Workbook

Sheet HT Media Historic Analysis
A1: Balance Sheet of HT Media | G1: Investments in Core Operation | J1: FALSE
E3: 2004 | F3: 2005 | G3: 2006 | H3: 2007 | I3: 2008 | J3: 2009 | K3: 2010 | L3: 2011 | M3: 2012 | N3: 2013 | O3: 2014 | P3: 2015 | Q3: 2016 | R3: 2017 | S3: 2018
B4: Sources Of Funds | C4: Direct | D4: Financing
B5: Total Share Capital | E5: 47.14 | F5: 61.75 | G5: 66.85 | H5: 46.85 | I5: 46.85 | J5: 47 | K5: 47 | L5: 47 | M5: 47 | N5: 47 | O5: 46.08 | P5: 46.1 | Q5: 46.1 | R5: 46.1 | S5: 46.11
B6: Equity Share Capital | E6: 37.14 | F6: 41.75 | G6: 46.85 | H6: 46.85 | I6: 46.85 | J6: 47 | K6: 47 | L6: 47 | M6: 47 | N6: 47 | O6: 46.08 | P6: 46.1 | Q6: 46.1 | R6: 46.1 | S6: 46.11
B7: Preference Share Capital | E7: 10 | F7: 20 | G7: 20 | H7: 0 | I7: 0 | J7: 854.61 | K7: 961.86 | L7: 1121.96 | M7: 1263.18 | N7: 1263.15 | O7: 1362.48 | P7: 1455.37 | Q7: 1545.9 | R7: 1652.25 | S7: 1853.28
B8: Reserves | E8: 238.52 | F8: 345.2 | G8: 626.39 | H8: 736.99 | I8: 868.88 | J8: 901.61 | K8: 1008.86 | L8: 1168.96 | M8: 1310.18 | N8: 1310.15 | O8: 1408.56 | P8: 1501.47 | Q8: 1592 | R8: 1698.35 | S8: 1899.39
B9: Networth | D9: 1 | E9: =SUM(E6:E8) -> 285.66 | F9: =SUM(F6:F8) -> 406.95 | G9: =SUM(G6:G8) -> 693.24 | H9: =SUM(H6:H8) -> 783.84 | I9: =SUM(I6:I8) -> 915.73 | J9: =J8 -> 901.61 | K9: =K8 -> 1008.86 | L9: 1168.96 | M9: 1310.18 | N9: 1310.15 | O9: 1408.56 | P9: 1501.47 | Q9: 1592 | R9: 1698.35 | S9: 1899.39
B10: Secured Loans | E10: 187.54 | F10: 171.6 | G10: 169.57 | H10: 165 | I10: 213.76 | J10: 0 | K10: 0 | L10: 28.36 | M10: 116.37 | N10: 143.38 | O10: 254.91 | P10: 139.72 | Q10: 0 | R10: 0 | S10: 0
B11: Total Debt | D11: 1 | E11: 187.54 | F11: 171.6 | G11: 169.57 | H11: 165 | I11: 213.76 | J11: 369.87 | K11: 177.5 | L11: 264.9 | M11: 267.54 | N11: 329.49 | O11: 396.51 | P11: 245.66 | Q11: 884.48 | R11: 987.4 | S11: 1071.96
B12: Total Liabilities | E12: 473.2 | F12: 578.55 | G12: 862.81 | H12: 948.84 | I12: 1129.49 | J12: 1271.48 | K12: 1186.36 | L12: 1433.86 | M12: 1577.72 | N12: 1639.64 | O12: 1805.07 | P12: 1747.13 | Q12: 2476.48 | R12: 2685.75 | S12: 2971.35
B14: Application Of Funds
B15: Gross Block | E15: 172.03 | F15: 418.84 | G15: 454.17 | H15: 496.47 | I15: 570.04 | J15: 793.46 | K15: 821.53 | L15: 765.6 | M15: 772.68 | N15: 785.39 | O15: 940.85 | P15: 931.85 | Q15: 1240.86 | R15: 989.4 | S15: 953.8
B16: Less: Accum. Depreciation | E16: 12.61 | F16: 32.38 | G16: 66.19 | H16: 100.72 | I16: 154.81 | J16: 234.05 | K16: 257.85 | L16: 240.34 | M16: 287.32 | N16: 336.93 | O16: 380.51 | P16: 432.75 | Q16: 487.93 | R16: 127.4 | S16: 180.1
B17: Net Block | C17: 1 | E17: 159.42 | F17: 386.46 | G17: 387.98 | H17: 395.75 | I17: 415.23 | J17: 559.41 | K17: 563.68 | L17: 525.26 | M17: 485.36 | N17: 448.46 | O17: 560.34 | P17: 499.1 | Q17: 752.93 | R17: 862 | S17: 773.7
B18: Capital Work in Progress | C18: 1 | E18: 145.99 | F18: 11.64 | G18: 3.9 | H18: 17.44 | I18: 46.8 | J18: 177.94 | K18: 19.53 | L18: 8.9 | M18: 11.04 | N18: 109.4 | O18: 22.53 | P18: 36.98 | Q18: 0 | R18: 368.81 | S18: 469.78
B19: Investments | C19: =IF(J1,1,0) -> 0 | D19: =IF(J1,0,-1) -> -1 | E19: 43.69 | F19: 100.92 | G19: 64.4 | H19: 372.98 | I19: 456.77 | J19: 405.59 | K19: 630.72 | L19: 808.19 | M19: 929.28 | N19: 872.81 | O19: 1078.67 | P19: 1055.41 | Q19: 1215.79 | R19: 1654.36 | S19: 1733.11
B20: Inventories | C20: 1 | E20: 56.13 | F20: 77.56 | G20: 108.45 | H20: 101.9 | I20: 113.67 | J20: 174.49 | K20: 94.38 | L20: 101.27 | M20: 121.28 | N20: 104.64 | O20: 192.73 | P20: 108.86 | Q20: 113.99 | R20: 107.91 | S20: 77.16
B21: Sundry Debtors | C21: 1 | E21: 103.69 | F21: 93.5 | G21: 121.22 | H21: 146.47 | I21: 197.82 | J21: 235 | K21: 185.1 | L21: 178.56 | M21: 194.36 | N21: 194.61 | O21: 189.93 | P21: 196.52 | Q21: 241.76 | R21: 177.05 | S21: 219.07
B22: Cash and Bank Balance | D22: -1 | E22: 31.98 | F22: 32.85 | G22: 50.33 | H22: 62.25 | I22: 68.64 | J22: 54.91 | K22: 63.44 | L22: 59.28 | M22: 80.46 | N22: 96.83 | O22: 72.14 | P22: 115.92 | Q22: 83.82 | R22: 65.91 | S22: 80.5
B23: Total Current Assets | E23: 191.8 | F23: 203.91 | G23: 280 | H23: 310.62 | I23: 380.13 | J23: 464.4 | K23: 342.92 | L23: 339.11 | M23: 396.1 | N23: 396.08 | O23: 454.8 | P23: 421.3 | Q23: 439.57 | R23: 350.87 | S23: 376.73
B24: Loans and Advances | D24: -1 | E24: 23.14 | F24: 23.15 | G24: 126.14 | H24: 51.85 | I24: 141.41 | J24: 242.09 | K24: 255.26 | L24: 282.51 | M24: 279.33 | N24: 388.48 | O24: 380.54 | P24: 502.67 | Q24: 774.8 | R24: 181.61 | S24: 294.36
B25: Fixed Deposits | D25: -1 | E25: 29.5 | F25: 16.02 | G25: 217.43 | H25: 43.98 | I25: 1.03 | J25: 5.34 | K25: 2.68 | L25: 0 | M25: 0 | N25: 0
B26: Total CA, Loans & Advances | E26: 244.44 | F26: 243.08 | G26: 623.57 | H26: 406.45 | I26: 522.57 | J26: 711.83 | K26: 600.86 | L26: 621.62 | M26: 675.43 | N26: 784.56 | O26: 835.34 | P26: 923.97 | Q26: 1214.37 | R26: 532.48 | S26: 671.09
B27: Current Liabilities | C27: -1 | E27: 118.06 | F27: 155.09 | G27: 204.57 | H27: 223.17 | I27: 289.24 | J27: 567.15 | K27: 603.92 | L27: 489.32 | M27: 505.46 | N27: 554.04 | O27: 671.46 | P27: 734.14 | Q27: 698.79 | R27: 707.74 | S27: 668.8
B28: Provisions | C28: -1 | E28: 2.29 | F28: 8.45 | G28: 12.46 | H28: 20.62 | I28: 22.66 | J28: 16.15 | K28: 24.51 | L28: 40.8 | M28: 17.91 | N28: 21.54 | O28: 20.33 | P28: 34.18 | Q28: 47.55 | R28: 24.16 | S28: 7.53
B29: Total CL & Provisions | E29: 120.35 | F29: 163.54 | G29: 217.03 | H29: 243.79 | I29: 311.9 | J29: 583.3 | K29: 628.43 | L29: 530.12 | M29: 523.37 | N29: 575.58 | O29: 691.79 | P29: 768.32 | Q29: 746.34 | R29: 731.9 | S29: 676.33
B30: Net Current Assets | E30: 124.09 | F30: 79.54 | G30: 406.54 | H30: 162.66 | I30: 210.67 | J30: 128.53 | K30: -27.57 | L30: 91.5 | M30: 152.06 | N30: 208.98 | O30: 143.55 | P30: 155.65 | Q30: 468.03 | R30: -199.42 | S30: -5.24
B31: Total Assets | E31: 473.19 | F31: 578.56 | G31: 862.82 | H31: 948.83 | I31: 1129.47 | J31: 1271.47 | K31: 1186.36 | L31: 1433.85 | M31: 1577.74 | N31: 1639.65 | O31: 1805.09 | P31: 1747.14 | Q31: 2436.75 | R31: 2685.75 | S31: 2971.35
B33: Invested Capital | E33: =SUMPRODUCT(E5:E31*$D$5:$D$31) -> 344.89 | F33: =SUMPRODUCT(F5:F31*$D$5:$D$31) -> 405.61 | G33: 404.51 | H33: 417.78 | I33: 461.64 | J33: 563.55 | K33: 234.26 | L33: 283.88 | M33: 288.65 | N33: 281.52 | O33: 273.72 | P33: 73.13 | Q33: 402.07 | R33: 783.87 | S33: 863.38
B34: Invested Capital | E34: =SUMPRODUCT(E5:E31*$C$5:$C$31) -> 344.88 | F34: =SUMPRODUCT(F5:F31*$C$5:$C$31) -> 405.62 | G34: 404.52 | H34: 417.77 | I34: 461.62 | J34: 563.54 | K34: 234.26 | L34: 283.87 | M34: 288.67 | N34: 281.53 | O34: 273.74 | P34: 73.14 | Q34: 362.34 | R34: 783.87 | S34: 863.38
B36: Contingent Liabilities | E36: 62.7 | F36: 5.1 | G36: 5.57 | H36: 10.73 | I36: 122.43 | J36: 22.74 | K36: 7.92 | L36: 40.88 | M36: 39.89 | N36: 271.57 | O36: 146.34 | P36: 49.95 | Q36: 31.03 | R36: 40.58 | S36: 49.12
B37: Book Value (Rs) | E37: 74.22 | F37: 92.68 | G37: 143.71 | H37: 33.46 | I37: 39.1 | J37: 38.49 | K37: 42.93 | L37: 49.74 | M37: 55.75 | N37: 55.75 | O37: 61.13 | P37: 65.13 | Q37: 69.06 | R37: 73.67 | S37: 82.38
A39: Profit & Loss account of HT Media
B40: Sales Turnover | E40: 417.17 | F40: 624.58 | G40: 821.01 | H40: 1039.29 | I40: 1186.23 | J40: 1323.04 | K40: 1263.11 | L40: 1221.39 | M40: 1319.14 | N40: 1345.09 | O40: 1429.25 | P40: 1452.82 | Q40: 1525.7 | R40: 1432.04 | S40: 1388.65
B41: Net Sales | E41: 417.17 | F41: 624.58 | G41: 821.01 | H41: 1039.29 | I41: 1186.23 | J41: 1323.04 | K41: 1263.11 | L41: 1221.39 | M41: 1319.14 | N41: 1345.09 | O41: 1429.25 | P41: 1452.82 | Q41: 1525.7 | R41: 1432.04 | S41: 1388.65
B42: Other Income | E42: 5.73 | F42: -3.99 | G42: -8.12 | H42: 26.85 | I42: 34.67 | J42: 0.22 | K42: -3.5 | L42: 31.61 | M42: 68.23 | N42: -81.3 | O42: 126.6 | P42: 105.24 | Q42: 153.48 | R42: 156.28 | S42: 197.16
B43: Stock Adjustments | E43: -0.05 | F43: 0.04 | G43: 0.03 | H43: 0.27 | I43: -0.35 | J43: 0.1 | K43: 0.49 | L43: 0.03 | M43: -0.01 | N43: 0.53 | O43: -0.39 | P43: 0.04 | Q43: -0.01 | R43: -0.05 | S43: -0.01
B44: Total Income | E44: 422.85 | F44: 620.63 | G44: 812.92 | H44: 1066.41 | I44: 1220.55 | J44: 1323.36 | K44: 1260.1 | L44: 1253.03 | M44: 1387.36 | N44: 1264.32 | O44: 1555.46 | P44: 1558.1 | Q44: 1679.17 | R44: 1588.27 | S44: 1585.8
B45: Expenditure
B46: Raw Materials | E46: 203.84 | F46: 303 | G46: 363.63 | H46: 458.73 | I46: 485.04 | J46: 572.48 | K46: 441.51 | L46: 384.94 | M46: 434.33 | N46: 447.77 | O46: 441.47 | P46: 442.64 | Q46: 417.96 | R46: 381.7 | S46: 325.99
B47: Power & Fuel Cost | E47: 6.14 | F47: 8.19 | G47: 12.8 | H47: 14.48 | I47: 16.23 | J47: 18.3 | K47: 19.75 | L47: 19.82 | M47: 20.69 | N47: 25.27 | O47: 27.91 | P47: 27.54 | Q47: 28.9 | R47: 27.02 | S47: 26.25
B48: Employee Cost | E48: 58.68 | F48: 79.37 | G48: 118.39 | H48: 147.68 | I48: 175.58 | J48: 203.58 | K48: 208.18 | L48: 209.53 | M48: 247.22 | N48: 289.15 | O48: 312.51 | P48: 347.95 | Q48: 390.84 | R48: 327.95 | S48: 261.9
B49: Other Manufacturing Expenses | E49: 42.23 | F49: 50.96 | G49: 56.72 | H49: 58.23 | I49: 70.64 | J49: 74.98 | K49: 65.01 | L49: 0 | M49: 0 | N49: 0
B50: Selling and Admin Expenses | E50: 75.27 | F50: 81.39 | G50: 117.74 | H50: 129.26 | I50: 166.92 | J50: 205.13 | K50: 205.91 | L50: 0 | M50: 0 | N50: 0 | O50: 0 | P50: 0 | Q50: 144.98 | R50: 112.46 | S50: 117.3
B51: Miscellaneous Expenses | E51: 19.81 | F51: 26.31 | G51: 32.14 | H51: 39.8 | I51: 48.11 | J51: 53.09 | K51: 53.24 | L51: 313.7 | M51: 378.21 | N51: 396.34 | O51: 469.41 | P51: 508.46 | Q51: 419.43 | R51: 499.41 | S51: 436.12
B52: Total Expenses | E52: 405.97 | F52: 549.22 | G52: 701.42 | H52: 848.18 | I52: 962.52 | J52: 1127.56 | K52: 993.6 | L52: 927.99 | M52: 1080.45 | N52: 1158.53 | O52: 1251.3 | P52: 1326.59 | Q52: 1402.11 | R52: 1348.54 | S52: 1167.56
B54: Operating Profit | E54: 11.15 | F54: 75.4 | G54: 119.62 | H54: 191.38 | I54: 223.36 | J54: 195.58 | K54: 270 | L54: 293.43 | M54: 238.68 | N54: 187.09 | O54: 177.56 | P54: 126.27 | Q54: 123.58 | R54: 83.45 | S54: 221.08
B55: PBDIT | E55: 16.88 | F55: 71.41 | G55: 111.5 | H55: 218.23 | I55: 258.03 | J55: 195.8 | K55: 266.5 | L55: 325.04 | M55: 306.91 | N55: 105.79 | O55: 304.16 | P55: 231.51 | Q55: 277.06 | R55: 239.73 | S55: 418.24
B56: Interest | E56: 5.82 | F56: 7.2 | G56: 14.3 | H56: 14.86 | I56: 17.73 | J56: 31.69 | K56: 25.73 | L56: 19.67 | M56: 28.58 | N56: 33.58 | O56: 55.57 | P56: 36.03 | Q56: 51.38 | R56: 78.68 | S56: 69.6
B57: PBDT | E57: 11.06 | F57: 64.21 | G57: 97.2 | H57: 203.37 | I57: 240.3 | J57: 164.11 | K57: 240.77 | L57: 305.37 | M57: 278.33 | N57: 72.21 | O57: 248.59 | P57: 195.48 | Q57: 225.68 | R57: 161.05 | S57: 348.64
B58: Depreciation | E58: 15.15 | F58: 22.66 | G58: 38.54 | H58: 39.71 | I58: 44.67 | J58: 55.01 | K58: 63.79 | L58: 56.29 | M58: 60.3 | N58: 57.58 | O58: 56.21 | P58: 71.67 | Q58: 69.39 | R58: 97.47 | S58: 96.74
B59: Other Written Off | E59: 0 | F59: 0.02 | G59: 0.01 | H59: 0 | I59: 0
B60: Profit Before Tax | E60: -4.09 | F60: 41.53 | G60: 58.65 | H60: 163.66 | I60: 195.63 | J60: 109.1 | K60: 176.98 | L60: 249.08 | M60: 218.03 | N60: 14.63 | O60: 192.38 | P60: 123.81 | Q60: 156.29 | R60: 63.58 | S60: 251.9
B61: Extra-ordinary items | E61: 0.66 | F61: 2.29 | G61: 2.51 | H61: 12.84 | I61: 5.61 | J61: 5.42 | K61: 0.71 | L61: 0 | M61: 0 | N61: 0
B62: PBT (Post Extra-ord Items) | E62: -3.43 | F62: 43.82 | G62: 61.16 | H62: 176.5 | I62: 201.24 | J62: 114.52 | K62: 177.69 | L62: 249.08 | M62: 218.03 | N62: 14.63 | O62: 192.38 | P62: 123.81 | Q62: 156.29 | R62: 63.58 | S62: 251.9
B63: Tax | E63: -1.04 | F63: 16.48 | G63: 23.9 | H63: 61.45 | I63: 56.68 | J63: 29.28 | K63: 52.93 | L63: 71.49 | M63: 58.21 | N63: -9.52 | O63: 36.73 | P63: 10.14 | Q63: 48.3 | R63: 2.68 | S63: 37.08
B64: Reported Net Profit | E64: -2.38 | F64: 27.33 | G64: 37.27 | H64: 115.06 | I64: 144.55 | J64: 85.23 | K64: 124.77 | L64: 177.59 | M64: 159.82 | N64: 24.15 | O64: 155.64 | P64: 113.66 | Q64: 107.99 | R64: 61.51 | S64: 213.74
B66: Total Value Addition | E66: 202.12 | F66: 246.22 | G66: 337.78 | H66: 389.45 | I66: 477.49 | J66: 555.08 | K66: 552.09 | L66: 543.05 | M66: 646.12 | N66: 710.76 | O66: 809.83 | P66: 883.95 | Q66: 984.14 | R66: 966.84 | S66: 841.57
B67: Preference Dividend | E67: 0 | F67: 0 | G67: 0.2 | H67: 0 | I67: 0
B68: Equity Dividend | E68: 0 | F68: 4.02 | G68: 5.62 | H68: 7.03 | I68: 9.37 | J68: 7.05 | K68: 8.46 | L68: 8.46 | M68: 9.4 | N68: 9.4 | O68: 9.29 | P68: 9.31 | Q68: 9.31 | R68: 9.31 | S68: 9.31
B69: Corporate Dividend Tax | E69: 0 | F69: 0.56 | G69: 0.82 | H69: 1.19 | I69: 1.59 | J69: 1.2 | K69: 1.41 | L69: 1.37 | M69: 1.53 | N69: 0.5 | O69: 0.47 | P69: 0.78 | Q69: 0.56 | R69: 0.56 | S69: 0.56
B70: Per share data (annualised)
B71: Shares in issue (lakhs) | E71: 371.43 | F71: 417.54 | G71: 468.46 | H71: 2342.29 | I71: 2342.29 | J71: 2342.52 | K71: 2350.21 | L71: 2350.21 | M71: 2350.21 | N71: 2350.21 | O71: 2304.23 | P71: 2305.2 | Q71: 2305.2 | R71: 2305.2 | S71: 2305.7
B72: Earning Per Share (Rs) | E72: -0.64 | F72: 6.55 | G72: 7.91 | H72: 4.91 | I72: 6.17 | J72: 3.64 | K72: 5.31 | L72: 7.56 | M72: 6.8 | N72: 1.03 | O72: 6.75 | P72: 4.93 | Q72: 4.68 | R72: 2.67 | S72: 9.27
B73: Equity Dividend (%) | E73: 0 | F73: 10 | G73: 12 | H73: 15 | I73: 20 | J73: 15 | K73: 18 | L73: 18 | M73: 20 | N73: 20 | O73: 20 | P73: 20 | Q73: 20 | R73: 20 | S73: 20
B74: Book Value (Rs) | E74: 74.22 | F74: 92.68 | G74: 143.71 | H74: 33.46 | I74: 39.1 | J74: 38.49 | K74: 42.93 | L74: 49.74 | M74: 55.75 | N74: 55.75 | O74: 61.13 | P74: 65.13 | Q74: 69.06 | R74: 73.67 | S74: 82.38
B75: Net Profit Before Tax | E75: -3.42 | F75: 43.82 | G75: 61.17 | H75: 176.51 | I75: 201.23 | J75: 114.51 | K75: 179.96 | L75: 249.08 | M75: 218.03 | N75: 14.63 | O75: 192.37 | P75: 123.8 | Q75: 127.06 | R75: 64.19 | S75: 250.82
B76: Net Cash From Operating Activities | E76: -1.97 | F76: 86.39 | G76: 52.75 | H76: 135.33 | I76: 144.28 | J76: 161.57 | K76: 387.56 | L76: 274.27 | M76: 134.78 | N76: 167.19 | O76: 183.34 | P76: 291.23 | Q76: 0 | R76: 191.21 | S76: 190.3
B77: Net Cash (used in)/from
B78: Investing Activities | E78: -193.92 | F78: -169.3 | G78: -83.58 | H78: -109.82 | I78: -172.09 | J78: -400.76 | K78: -152.69 | L78: -251.75 | M78: -96.4 | N78: -196.71 | O78: -193.74 | P78: -23.89 | Q78: 0 | R78: -214.97 | S78: -172.58
B79: Net Cash (used in)/from Financing Activities | E79: 247.66 | F79: 70.29 | G79: 249.72 | H79: -41.29 | I79: 23.17 | J79: 207.89 | K79: -214.73 | L79: -11.31 | M79: -17.2 | N79: 45.88 | O79: -14.29 | P79: -223.56 | Q79: 0 | R79: 10.79 | S79: 7.17
B80: Net (decrease)/increase In Cash and Cash Equivalents | E80: 51.76 | F80: -12.62 | G80: 218.89 | H80: -15.78 | I80: -4.65 | J80: -31.31 | K80: 20.15 | L80: 11.22 | M80: 21.18 | N80: 16.37 | O80: -24.69 | P80: 43.78 | Q80: -32.1 | R80: -12.97 | S80: 24.89
B81: Opening Cash & Cash Equivalents | E81: 9.71 | F81: 61.48 | G81: 48.86 | H81: 77.75 | I81: 61.97 | J81: 57.32 | K81: 26.02 | L81: 46.16 | M81: 59.28 | N81: 80.46 | O81: 96.83 | P81: 72.14 | Q81: 115.92 | R81: 68.56 | S81: 55.59
B82: Closing Cash & Cash Equivalents | E82: 61.48 | F82: 48.86 | G82: 267.75 | H82: 61.97 | I82: 57.32 | J82: 26.02 | K82: 46.16 | L82: 57.38 | M82: 80.46 | N82: 96.83 | O82: 72.14 | P82: 115.92 | Q82: 83.82 | R82: 55.59 | S82: 80.48
B83: Basic EPS (Rs.) | F83: 6.55 | G83: 7.96 | H83: 4.91 | I83: 6.17 | J83: 3.63 | K83: 5.31 | L83: 7.56 | M83: 6.8 | N83: 1.03 | O83: 6.66 | P83: 4.88 | Q83: 4.64 | R83: 2.64 | S83: 9.18
B84: Diluted EPS (Rs.) | F84: 6.55 | G84: 7.96 | H84: 4.91 | I84: 6.17 | J84: 3.63 | K84: 5.31 | L84: 7.56 | M84: 6.8 | N84: 1.03 | O84: 6.66 | P84: 4.88 | Q84: 4.64 | R84: 2.64 | S84: 9.18
B85: Cash EPS (Rs.) | F85: 11.98 | G85: 16.18 | H85: 6.61 | I85: 8.08 | J85: 5.97 | K85: 8.02 | L85: 9.95 | M85: 9.37 | N85: 3.48 | O85: 9.19 | P85: 8.04 | Q85: 7.69 | R85: 6.9 | S85: 13.47
B86: Book Value [ExclRevalReserve]/Share (Rs.) | F86: 92.68 | G86: 143.71 | H86: 33.46 | I86: 39.09 | J86: 38.36 | K86: 42.93 | L86: 49.74 | M86: 55.75 | N86: 55.75 | O86: 61.13 | P86: 65.13 | Q86: 69.06 | R86: 73.68 | S86: 82.39
B87: Book Value [InclRevalReserve]/Share (Rs.) | F87: 92.68 | G87: 143.71 | H87: 33.46 | I87: 39.09 | J87: 38.36 | K87: 42.93 | L87: 49.74 | M87: 55.75 | N87: 55.75 | O87: 61.13 | P87: 65.13 | Q87: 69.06 | R87: 73.68 | S87: 82.39
B88: Dividend / Share(Rs.) | F88: 1 | G88: 1.2 | H88: 0.3 | I88: 0.4 | J88: 0.3 | K88: 0.36 | L88: 0.36 | M88: 0.4 | N88: 0.4 | O88: 0.4 | P88: 0.4 | Q88: 0.4 | R88: 0.4 | S88: 0.4
B89: Revenue from Operations/Share (Rs.) | F89: 149.59 | G89: 175.26 | H89: 44.37 | I89: 50.64 | J89: 56.29 | K89: 53.74 | L89: 51.97 | M89: 56.13 | N89: 57.23 | O89: 62.03 | P89: 63.02 | Q89: 66.18 | R89: 62.13 | S89: 60.23
B90: PBDIT/Share (Rs.) | F90: 19.52 | G90: 28.31 | H90: 9.3 | I90: 10.99 | J90: 8.67 | K90: 11.49 | L90: 13.83 | M90: 13.06 | N90: 11.28 | O90: 13.2 | P90: 10.77 | Q90: 9.84 | R90: 10.43 | S90: 18.7
B91: PBIT/Share (Rs.) | F91: 14.1 | G91: 20.08 | H91: 7.61 | I91: 9.09 | J91: 6.33 | K91: 8.77 | L91: 11.44 | M91: 10.49 | N91: 8.83 | O91: 10.76 | P91: 7.66 | Q91: 6.83 | R91: 6.2 | S91: 14.51
B92: PBT/Share (Rs.) | F92: 12.49 | G92: 17.19 | H92: 7 | I92: 8.35 | J92: 5.08 | K92: 7.76 | L92: 10.6 | M92: 9.28 | N92: 0.62 | O92: 8.35 | P92: 5.37 | Q92: 5.51 | R92: 2.78 | S92: 10.88
B93: Net Profit/Share (Rs.) | F93: 6.55 | G93: 7.96 | H93: 4.91 | I93: 6.17 | J93: 3.63 | K93: 5.31 | L93: 7.56 | M93: 6.8 | N93: 1.03 | O93: 6.75 | P93: 4.93 | Q93: 4.68 | R93: 2.67 | S93: 9.27
B94: Profitability Ratios
B95: PBDIT Margin (%) | E95: 100 | F95: 0.1305 | G95: 0.1615 | H95: 0.2096 | I95: 0.217 | J95: 0.154 | K95: 0.2137 | L95: 0.2661 | M95: 0.2326 | N95: 0.1971 | O95: 0.2128 | P95: 0.1708 | Q95: 0.1486 | R95: 0.1678 | S95: 0.3105
B96: PBIT Margin (%) | F96: 0.0942 | G96: 0.1145 | H96: 0.1714 | I96: 0.1794 | J96: 0.1124 | K96: 0.1632 | L96: 0.22 | M96: 0.1869 | N96: 0.1543 | O96: 0.1734 | P96: 0.1215 | Q96: 0.1031 | R96: 0.0997 | S96: 0.2408
B97: PBT Margin (%) | F97: 0.0835 | G97: 0.098 | H97: 0.1577 | I97: 0.1649 | J97: 0.0902 | K97: 0.1444 | L97: 0.2039 | M97: 0.1652 | N97: 0.0108 | O97: 0.1345 | P97: 0.0852 | Q97: 0.0832 | R97: 0.0448 | S97: 0.1806
B98: Net Profit Margin (%) | F98: 0.0437 | G98: 0.0453 | H98: 0.1107 | I98: 0.1218 | J98: 0.0644 | K98: 0.0987 | L98: 0.1454 | M98: 0.1211 | N98: 0.0179 | O98: 0.1088 | P98: 0.0782 | Q98: 0.0707 | R98: 0.0429 | S98: 0.1539
B99: Return on Networth / Equity (%) | F99: 0.0706 | G99: 0.0553 | H99: 0.1467 | I99: 0.1578 | J99: 0.0945 | K99: 0.1236 | L99: 0.1519 | M99: 0.1219 | N99: 0.0184 | O99: 0.1104 | P99: 0.0756 | Q99: 0.0678 | R99: 0.0362 | S99: 0.1125
B100: Return on Capital Employed (%) | F100: 0.0457 | G100: 0.0416 | H100: 0.1161 | I100: 0.128 | J100: 0.0754 | K100: 0.1098 | L100: 0.1346 | M100: 0.1121 | N100: 0.0166 | O100: 0.1023 | P100: 0.0707 | Q100: 0.065 | R100: 0.0823 | S100: 0.1735
B101: Return on Assets (%) | F101: 0.0368 | G101: 0.0345 | H101: 0.0964 | I101: 0.1002 | J101: 0.0459 | K101: 0.0687 | L101: 0.0904 | M101: 0.076 | N101: 0.0109 | O101: 0.0623 | P101: 0.0451 | Q101: 0.0335 | R101: 0.0179 | S101: 0.0585
B102: Total Debt/Equity (X) | F102: 0.0044 | G102: 0.0025 | H102: 0.0021 | I102: 0.0023 | J102: 0.0041 | K102: 0.0018 | L102: 0.0023 | M102: 0.002 | N102: 0.0025 | O102: 0.0028 | P102: 0.0016 | Q102: 0.0056 | R102: 0.0058 | S102: 0.0056
B103: Asset Turnover Ratio (%) | F103: 0.8416 | G103: 0.7603 | H103: 0.8714 | I103: 0.8229 | J103: 0.7133 | K103: 0.696 | L103: 0.6218 | M103: 0.6278 | N103: 0.6072 | O103: 0.5724 | P103: 0.5775 | Q103: 0.4734 | R103: 0.419 | S103: 0.3806
B104: Liquidity Ratios
B105: Current Ratio (X) | F105: 1.61 | G105: 3.33 | H105: 1.98 | I105: 1.64 | J105: 0.96 | K105: 0.86 | L105: 1.5 | M105: 1.26 | N105: 1.59 | O105: 1.32 | P105: 0.93 | Q105: 0.84 | R105: 0.35 | S105: 0.47
B106: Quick Ratio (X) | F106: 1.07 | G106: 2.74 | H106: 1.47 | I106: 1.28 | J106: 0.72 | K106: 0.73 | L106: 1.34 | M106: 1.08 | N106: 1.45 | O106: 1.12 | P106: 0.81 | Q106: 0.77 | R106: 0.29 | S106: 0.43
B107: Inventory Turnover Ratio (X) | F107: 8.05 | G107: 7.57 | H107: 10.2 | I107: 10.44 | J107: 7.58 | K107: 13.38 | L107: 12.06 | M107: 10.88 | N107: 12.85 | O107: 7.42 | P107: 13.35 | Q107: 13.38 | R107: 13.27 | S107: 18
B108: Dividend Payout Ratio (NP) (%) | F108: 0.1472 | G108: 0.1508 | H108: 0.061 | I108: 0.0648 | J108: 0.0827 | K108: 0.0678 | L108: 0.0476 | M108: 0.0588 | N108: 0.3892 | O108: 0.0596 | P108: 0.0819 | Q108: 0.0862 | R108: 0.1513 | S108: 0.0435
B109: Dividend Payout Ratio (CP) (%) | F109: 0.0804 | G109: 0.0741 | H109: 0.0454 | I109: 0.0495 | J109: 0.0502 | K109: 0.0448 | L109: 0.0361 | M109: 0.0427 | N109: 0.115 | O109: 0.0438 | P109: 0.0502 | Q109: 0.0524 | R109: 0.0585 | S109: 0.0299
B110: Earnings Retention Ratio (%) | F110: 0.8528 | G110: 0.8492 | H110: 0.939 | I110: 0.9352 | J110: 0.9173 | K110: 0.9322 | L110: 0.9524 | M110: 0.9412 | N110: 0.6108 | O110: 0.9404 | P110: 0.9181 | Q110: 0.9138 | R110: 0.8487 | S110: 0.9565
B111: Cash Earnings Retention Ratio (%) | F111: 0.9196 | G111: 0.9259 | H111: 0.9546 | I111: 0.9505 | J111: 0.9498 | K111: 0.9552 | L111: 0.9639 | M111: 0.9573 | N111: 0.885 | O111: 0.9562 | P111: 0.9498 | Q111: 0.9476 | R111: 0.9415 | S111: 0.9701
B112: Valuation Ratios
B113: Enterprise Value (Cr.) | F113: 0 | G113: 2105.07 | H113: 4194.09 | I113: 4002.21 | J113: 1692.71 | K113: 3388.75 | L113: 3696.86 | M113: 3438.6 | N113: 2652.21 | O113: 2468.45 | P113: 2985.89 | Q113: 2554.92 | R113: 2830.03 | S113: 2935
B114: EV/Net Operating Revenue (X) | F114: 0 | G114: 2.56 | H114: 4.04 | I114: 3.37 | J114: 1.28 | K114: 2.68 | L114: 3.03 | M114: 2.61 | N114: 1.97 | O114: 1.73 | P114: 2.06 | Q114: 1.67 | R114: 1.98 | S114: 2.11
B115: EV/EBITDA (X) | F115: 0 | G115: 15.87 | H115: 19.25 | I115: 15.54 | J115: 8.31 | K115: 12.55 | L115: 11.37 | M115: 11.2 | N115: 10 | O115: 8.12 | P115: 12.03 | Q115: 11.27 | R115: 11.78 | S115: 6.81
B116: MarketCap/Net Operating Revenue (X) | F116: 0 | G116: 2.66 | H116: 3.98 | I116: 3.25 | J116: 1.05 | K116: 2.59 | L116: 2.86 | M116: 2.46 | N116: 1.8 | O116: 1.5 | P116: 1.97 | Q116: 1.15 | R116: 1.33 | S116: 1.4
B117: Retention Ratios (%) | F117: 85.27 | G117: 84.91 | H117: 93.89 | I117: 93.51 | J117: 91.72 | K117: 93.21 | L117: 95.23 | M117: 94.11 | N117: 61.07 | O117: 94.03 | P117: 91.8 | Q117: 91.37 | R117: 84.86 | S117: 95.64
B118: Price/BV (X) | F118: 0 | G118: 3.24 | H118: 5.28 | I118: 4.21 | J118: 1.53 | K118: 3.25 | L118: 2.99 | M118: 2.48 | N118: 1.85 | O118: 1.52 | P118: 1.9 | Q118: 1.1 | R118: 1.12 | S118: 1.02
B119: Price/Net Operating Revenue | F119: 0 | G119: 2.66 | H119: 3.98 | I119: 3.25 | J119: 1.05 | K119: 2.59 | L119: 2.86 | M119: 2.46 | N119: 1.8 | O119: 1.5 | P119: 1.97 | Q119: 1.15 | R119: 1.33 | S119: 1.4
B120: Earnings Yield | F120: 0 | G120: 0.02 | H120: 0.03 | I120: 0.04 | J120: 0.06 | K120: 0.04 | L120: 0.05 | M120: 0.05 | N120: 0.01 | O120: 0.07 | P120: 0.04 | Q120: 0.06 | R120: 0.03 | S120: 0.11
B121: Implied Price: P/B x B | F121: =F118*F87 -> 0 | G121: =G118*G87 -> 465.6204 | H121: 176.6688 | I121: 164.5689 | J121: 58.6908 | K121: 139.5225 | L121: 148.7226 | M121: 138.26 | N121: 103.1375 | O121: 92.9176 | P121: 123.747 | Q121: 75.966 | R121: 82.5216 | S121: 84.0378
B122: Average Price | F122: =LOOKUP(F3,'HTMEDIA.NS (2)'!$N:$N,'HTMEDIA.NS (2)'!$P:$P) -> 16.1581871 | G122: =LOOKUP(G3,'HTMEDIA.NS (2)'!$N:$N,'HTMEDIA.NS (2)'!$P:$P) -> 58.0544987 | H122: =LOOKUP(H3,'HTMEDIA.NS (2)'!$N:$N,'HTMEDIA.NS (2)'!$P:$P) -> 199.0367307 | I122: =LOOKUP(I3,'HTMEDIA.NS (2)'!$N:$N,'HTMEDIA.NS (2)'!$P:$P) -> 89.73065592 | J122: =LOOKUP(J3,'HTMEDIA.NS (2)'!$N:$N,'HTMEDIA.NS (2)'!$P:$P) -> 112.8152365 | K122: =LOOKUP(K3,'HTMEDIA.NS (2)'!$N:$N,'HTMEDIA.NS (2)'!$P:$P) -> 144.9850967 | L122: =LOOKUP(L3,'HTMEDIA.NS (2)'!$N:$N,'HTMEDIA.NS (2)'!$P:$P) -> 137.3893804 | M122: =LOOKUP(M3,'HTMEDIA.NS (2)'!$N:$N,'HTMEDIA.NS (2)'!$P:$P) -> 97.94815186 | N122: =LOOKUP(N3,'HTMEDIA.NS (2)'!$N:$N,'HTMEDIA.NS (2)'!$P:$P) -> 85.07788439 | O122: =LOOKUP(O3,'HTMEDIA.NS (2)'!$N:$N,'HTMEDIA.NS (2)'!$P:$P) -> 111.2074953 | P122: =LOOKUP(P3,'HTMEDIA.NS (2)'!$N:$N,'HTMEDIA.NS (2)'!$P:$P) -> 85.58001096 | Q122: =LOOKUP(Q3,'HTMEDIA.NS (2)'!$N:$N,'HTMEDIA.NS (2)'!$P:$P) -> 79.28707026 | R122: =LOOKUP(R3,'HTMEDIA.NS (2)'!$N:$N,'HTMEDIA.NS (2)'!$P:$P) -> 90.68234682 | S122: =LOOKUP(S3,'HTMEDIA.NS (2)'!$N:$N,'HTMEDIA.NS (2)'!$P:$P) -> 55.67424073
B123: Closing Price | G123: =LOOKUP(G3,'HTMEDIA.NS (2)'!$N:$N,'HTMEDIA.NS (2)'!$Q:$Q) -> 168.242096 | H123: =LOOKUP(H3,'HTMEDIA.NS (2)'!$N:$N,'HTMEDIA.NS (2)'!$Q:$Q) -> 162.836884 | I123: =LOOKUP(I3,'HTMEDIA.NS (2)'!$N:$N,'HTMEDIA.NS (2)'!$Q:$Q) -> 55.560516 | J123: =LOOKUP(J3,'HTMEDIA.NS (2)'!$N:$N,'HTMEDIA.NS (2)'!$Q:$Q) -> 132.696457 | K123: =LOOKUP(K3,'HTMEDIA.NS (2)'!$N:$N,'HTMEDIA.NS (2)'!$Q:$Q) -> 142.574066 | L123: =LOOKUP(L3,'HTMEDIA.NS (2)'!$N:$N,'HTMEDIA.NS (2)'!$Q:$Q) -> 133.575073 | M123: =LOOKUP(M3,'HTMEDIA.NS (2)'!$N:$N,'HTMEDIA.NS (2)'!$Q:$Q) -> 97.468887 | N123: =LOOKUP(N3,'HTMEDIA.NS (2)'!$N:$N,'HTMEDIA.NS (2)'!$Q:$Q) -> 89.973206 | O123: =LOOKUP(O3,'HTMEDIA.NS (2)'!$N:$N,'HTMEDIA.NS (2)'!$Q:$Q) -> 120.935867 | P123: =LOOKUP(P3,'HTMEDIA.NS (2)'!$N:$N,'HTMEDIA.NS (2)'!$Q:$Q) -> 74.647354 | Q123: =LOOKUP(Q3,'HTMEDIA.NS (2)'!$N:$N,'HTMEDIA.NS (2)'!$Q:$Q) -> 81.712181 | R123: =LOOKUP(R3,'HTMEDIA.NS (2)'!$N:$N,'HTMEDIA.NS (2)'!$Q:$Q) -> 82.642242 | S123: =LOOKUP(S3,'HTMEDIA.NS (2)'!$N:$N,'HTMEDIA.NS (2)'!$Q:$Q) -> 44.25
B124: Growth in Revenues | F124: =F40/E40-1 -> 0.4971834024 | G124: 0.3144993436 | H124: 0.2658676508 | I124: 0.141384984 | J124: 0.1153317653 | K124: -0.04529719434 | L124: -0.03302958571 | M124: 0.08003176709 | N124: 0.01967190745 | O124: 0.06256830398 | P124: 0.0164911667 | Q124: 0.05016450765 | R124: -0.06138821525 | S124: -0.03029943298
B126: PBITD | F126: =F55 -> 71.41 | G126: =G55 -> 111.5 | H126: 218.23 | I126: 258.03 | J126: 195.8 | K126: 266.5 | L126: 325.04 | M126: 306.91 | N126: 105.79 | O126: 304.16 | P126: 231.51 | Q126: 277.06 | R126: 239.73 | S126: 418.24
B127: PBIT | F127: =F126-F58 -> 48.75 | G127: =G126-G58 -> 72.96 | H127: 178.52 | I127: 213.36 | J127: 140.79 | K127: 202.71 | L127: 268.75 | M127: 246.61 | N127: 48.21 | O127: 247.95 | P127: 159.84 | Q127: 207.67 | R127: 142.26 | S127: 321.5
B128: Other Income | F128: =F42 -> -3.99 | G128: =G42 -> -8.12 | H128: 26.85 | I128: 34.67 | J128: 0.22 | K128: -3.5 | L128: 31.61 | M128: 68.23 | N128: -81.3 | O128: 126.6 | P128: 105.24 | Q128: 153.48 | R128: 156.28 | S128: 197.16
B129: Operating NOI | F129: =IF($J$1,F127,F127-F128) -> 52.74 | G129: =IF($J$1,G127,G127-G128) -> 81.08 | H129: 151.67 | I129: 178.69 | J129: 140.57 | K129: 206.21 | L129: 237.14 | M129: 178.38 | N129: 129.51 | O129: 121.35 | P129: 54.6 | Q129: 54.19 | R129: -14.02 | S129: 124.34
B130: NOI Used | D130: =J1 -> FALSE | F130: =F129 -> 52.74 | G130: =G129 -> 81.08 | H130: 151.67 | I130: 178.69 | J130: 140.57 | K130: 206.21 | L130: 237.14 | M130: 178.38 | N130: 129.51 | O130: 121.35 | P130: 54.6 | Q130: 54.19 | R130: -14.02 | S130: 124.34
B131: Tax Rate | F131: =F63/F62 -> 0.3760839799 | G131: 0.3907782865 | H131: 0.3481586402 | I131: 0.2816537468 | J131: 0.2556758645 | K131: 0.2978783274 | L131: 0.2870162197 | M131: 0.266981608 | N131: -0.6507177033 | O131: 0.1909242125 | P131: 0.081899685 | Q131: 0.3090408855 | R131: 0.04215162001 | S131: 0.1472012703
B132: Marginal Tax Rate | E132: 0.346 | F132: =$E$132 -> 0.346 | G132: =$E$132 -> 0.346 | H132: 0.346 | I132: 0.346 | J132: 0.346 | K132: 0.346 | L132: 0.346 | M132: 0.346 | N132: 0.346 | O132: 0.346 | P132: 0.346 | Q132: 0.346 | R132: 0.346 | S132: 0.346
B133: Applied Tax Rate | D133: FALSE | F133: =IF($D$133,F132,F131) -> 0.3760839799 | G133: 0.3907782865 | H133: 0.3481586402 | I133: 0.2816537468 | J133: 0.2556758645 | K133: 0.2978783274 | L133: 0.2870162197 | M133: 0.266981608 | N133: -0.6507177033 | O133: 0.1909242125 | P133: 0.081899685 | Q133: 0.3090408855 | R133: 0.04215162001 | S133: 0.1472012703
B134: NOPAT | F134: =F130*(1-F133) -> 32.9053309 | G134: =G130*(1-G133) -> 49.39569653 | H134: 98.86477904 | I134: 128.361292 | J134: 104.6296437 | K134: 144.7845101 | L134: 169.0769737 | M134: 130.7558208 | N134: 213.7844498 | O134: 98.18134681 | P134: 50.1282772 | Q134: 37.44307441 | R134: -13.42903429 | S134: 106.036994
B135: Average Invested Capital | E135: =AVERAGE(D33:E33) -> 344.89 | F135: 375.25 | G135: 405.06 | H135: 411.145 | I135: 439.71 | J135: 512.595 | K135: 398.905 | L135: 259.07 | M135: 286.265 | N135: 285.085 | O135: 277.62 | P135: 173.425 | Q135: 237.6 | R135: 592.97 | S135: 823.625
B136: ROIC | E136: =E127/E135 -> 0 | F136: =F134/F135 -> 0.08768908967 | G136: =G134/G135 -> 0.1219466166 | H136: 0.2404620731 | I136: 0.2919226126 | J136: 0.204117566 | K136: 0.3629548642 | L136: 0.6526304615 | M136: 0.4567649582 | N136: 0.7498972228 | O136: 0.3536537238 | P136: 0.2890487369 | Q136: 0.157588697 | R136: -0.02264707201 | S136: 0.1287442635
B137: Return on Capital Employed | E137: =E100 -> 0 | F137: =F100 -> 0.0457 | G137: 0.0416 | H137: 0.1161 | I137: 0.128 | J137: 0.0754 | K137: 0.1098 | L137: 0.1346 | M137: 0.1121 | N137: 0.0166 | O137: 0.1023 | P137: 0.0707 | Q137: 0.065 | R137: 0.0823 | S137: 0.1735
B139: Average Equity | F139: =AVERAGE(E9:F9) -> 346.305 | G139: 550.095 | H139: 738.54 | I139: 849.785 | J139: 908.67 | K139: 955.235 | L139: 1088.91 | M139: 1239.57 | N139: 1310.165 | O139: 1359.355 | P139: 1455.015 | Q139: 1546.735 | R139: 1645.175 | S139: 1798.87
B140: Net Income to Equity | F140: =F64 -> 27.33 | G140: =G64 -> 37.27 | H140: 115.06 | I140: 144.55 | J140: 85.23 | K140: 124.77 | L140: 177.59 | M140: 159.82 | N140: 24.15 | O140: 155.64 | P140: 113.66 | Q140: 107.99 | R140: 61.51 | S140: 213.74
B141: Return on Average Equity | F141: =F140/F139 -> 0.07891887209 | G141: =G140/G139 -> 0.06775193376 | H141: 0.1557938636 | I141: 0.1701018493 | J141: 0.09379642775 | K141: 0.1306170733 | L141: 0.1630896952 | M141: 0.128931807 | N141: 0.01843279282 | O141: 0.1144954776 | P141: 0.07811603317 | Q141: 0.06981803606 | R141: 0.0373881198 | S141: 0.1188190364
B143: Average Debt | F143: =AVERAGE(E11:F11) -> 179.57 | G143: 170.585 | H143: 167.285 | I143: 189.38 | J143: 291.815 | K143: 273.685 | L143: 221.2 | M143: 266.22 | N143: 298.515 | O143: 363 | P143: 321.085 | Q143: 565.07 | R143: 935.94 | S143: 1029.68
B144: Financial Charges | F144: =E56 -> 5.82 | G144: =F56 -> 7.2 | H144: 14.3 | I144: 14.86 | J144: 17.73 | K144: 31.69 | L144: 25.73 | M144: 19.67 | N144: 28.58 | O144: 33.58 | P144: 55.57 | Q144: 36.03 | R144: 51.38 | S144: 78.68
B145: After Tax Financing Charges | F145: =F144*(1-F132) -> 3.80628 | G145: =G144*(1-G132) -> 4.7088 | H145: 9.3522 | I145: 9.71844 | J145: 11.59542 | K145: 20.72526 | L145: 16.82742 | M145: 12.86418 | N145: 18.69132 | O145: 21.96132 | P145: 36.34278 | Q145: 23.56362 | R145: 33.60252 | S145: 51.45672
B146: Interest Rate | F146: =F145/F143 -> 0.02119663641 | G146: =G145/G143 -> 0.02760383387 | H146: 0.05590578952 | I146: 0.05131714014 | J146: 0.03973551737 | K146: 0.0757266931 | L146: 0.07607332731 | M146: 0.0483216137 | N146: 0.06261434099 | O146: 0.06049950413 | P146: 0.1131874114 | Q146: 0.04170035571 | R146: 0.03590242964 | S146: 0.04997350633
B148: Other Assets | F148: =F24+F25 -> 39.17 | G148: =G24+G25 -> 343.57 | H148: 95.83 | I148: 142.44 | J148: 247.43 | K148: 257.94 | L148: 282.51 | M148: 279.33 | N148: 388.48 | O148: 380.54 | P148: 502.67 | Q148: 774.8 | R148: 181.61 | S148: 294.36
B149: Investments | F149: =F19 -> 100.92 | G149: =G19 -> 64.4 | H149: 372.98 | I149: 456.77 | J149: 405.59 | K149: 630.72 | L149: 808.19 | M149: 929.28 | N149: 872.81 | O149: 1078.67 | P149: 1055.41 | Q149: 1215.79 | R149: 1654.36 | S149: 1733.11
B150: Total | F150: =SUM(F148:F149) -> 140.09 | G150: =SUM(G148:G149) -> 407.97 | H150: 468.81 | I150: 599.21 | J150: 653.02 | K150: 888.66 | L150: 1090.7 | M150: 1208.61 | N150: 1261.29 | O150: 1459.21 | P150: 1558.08 | Q150: 1990.59 | R150: 1835.97 | S150: 2027.47
B151: Average | F151: =AVERAGE(E150:F150) -> 140.09 | G151: =AVERAGE(F150:G150) -> 274.03 | H151: 438.39 | I151: 534.01 | J151: 626.115 | K151: 770.84 | L151: 989.68 | M151: 1149.655 | N151: 1234.95 | O151: 1360.25 | P151: 1508.645 | Q151: 1774.335 | R151: 1913.28 | S151: 1931.72
B152: Other Income | F152: =F42 -> -3.99 | G152: =G42 -> -8.12 | H152: 26.85 | I152: 34.67 | J152: 0.22 | K152: -3.5 | L152: 31.61 | M152: 68.23 | N152: -81.3 | O152: 126.6 | P152: 105.24 | Q152: 153.48 | R152: 156.28 | S152: 197.16
B153: Other Income After Tax | F153: =F152*(1-F133) -> -2.48942492 | G153: =G152*(1-G133) -> -4.946880314 | H153: 17.50194051 | I153: 24.9050646 | J153: 0.1637513098 | K153: -2.457425854 | L153: 22.5374173 | M153: 50.01384488 | N153: -134.2033493 | O153: 102.4289947 | P153: 96.62087715 | Q153: 106.0484049 | R153: 149.6925448 | S153: 168.1377975
B154: Return on Investments | F154: =F153/F151 -> -0.01777018288 | G154: =G153/G151 -> -0.01805233118 | H154: 0.03992322021 | I154: 0.04663782438 | J154: 0.0002615355163 | K154: -0.003187984347 | L154: 0.02277242876 | M154: 0.0435033509 | N154: -0.1086710792 | O154: 0.07530159507 | P154: 0.06404480653 | Q154: 0.05976797216 | R154: 0.07823870256 | S154: 0.08704046008

Sheet HTMEDIA.NS
A1: Date | B1: Open | C1: High | D1: Low | E1: Close | F1: Adj Close | G1: Volume
A2: 2005-08-31 | B2: 140 | C2: 150 | D2: 79.410004 | E2: 17.018 | F2: 14.908901 | G2: 150198570
A3: 2005-09-30 | B3: 85.209999 | C3: 96.599998 | D3: 84.010002 | E3: 17.518 | F3: 15.346934 | G3: 14139555
A4: 2005-10-31 | B4: 88.010002 | C4: 95.160004 | D4: 86.230003 | E4: 18.417999 | F4: 16.135395 | G4: 3873215
A5: 2005-11-30 | B5: 91 | C5: 99.580002 | D5: 87.010002 | E5: 17.620001 | F5: 15.436296 | G5: 4502920
A6: 2005-12-31 | B6: 88.800003 | C6: 97.980003 | D6: 88.199997 | E6: 18.468 | F6: 16.179201 | G6: 3657105
A7: 2006-01-31 | B7: 92.199997 | C7: 96.800003 | D7: 91.209999 | E7: 18.856001 | F7: 16.519114 | G7: 2185905
A8: 2006-02-28 | B8: 92.800003 | C8: 94.779999 | D8: 86.660004 | E8: 18.646 | F8: 16.33514 | G8: 2027400
A9: 2006-03-31 | B9: 90 | C9: 109.540001 | D9: 90 | E9: 20.653999 | F9: 18.094282 | G9: 2901750
A10: 2006-04-30 | B10: 103.400002 | C10: 110.199997 | D10: 89.599998 | E10: 19.85 | F10: 17.389927 | G10: 3132435
A11: 2006-05-31 | B11: 99 | C11: 100.18 | D11: 71.849998 | E11: 16.841999 | F11: 14.754715 | G11: 1311210
A12: 2006-06-30 | B12: 81.209999 | C12: 97.199997 | D12: 80 | E12: 18.848 | F12: 16.512108 | G12: 593485
A13: 2006-07-31 | B13: 94.199997 | C13: 115 | D13: 91.599998 | E13: 21.785999 | F13: 20.568586 | G13: 1680880
A14: 2006-08-31 | B14: 107 | C14: 120.800003 | D14: 103.419998 | E14: 23.445999 | F14: 22.135824 | G14: 4477200
A15: 2006-09-30 | B15: 114.220001 | C15: 138 | D15: 114.019997 | E15: 26.716 | F15: 25.223101 | G15: 6135015
A16: 2006-10-31 | B16: 133.199997 | C16: 171.800003 | D16: 124.040001 | E16: 31.004 | F16: 29.271482 | G16: 5952340
A17: 2006-11-30 | B17: 155 | C17: 170 | D17: 137 | E17: 164.699997 | F17: 155.49649 | G17: 2580582
A18: 2006-12-31 | B18: 165 | C18: 208 | D18: 160 | E18: 182.350006 | F18: 172.160217 | G18: 2269349
A19: 2007-01-31 | B19: 184.5 | C19: 202.850006 | D19: 168 | E19: 181.949997 | F19: 171.782547 | G19: 3110849
A20: 2007-02-28 | B20: 183 | C20: 208.899994 | D20: 165 | E20: 178.199997 | F20: 168.242096 | G20: 1385081
A21: 2007-03-31 | B21: 175.100006 | C21: 194.399994 | D21: 168 | E21: 190.649994 | F21: 179.996399 | G21: 3826893
A22: 2007-04-30 | B22: 195.350006 | C22: 228 | D22: 174.399994 | E22: 220.550003 | F22: 208.225555 | G22: 4316806
A23: 2007-05-31 | B23: 222.899994 | C23: 255 | D23: 215 | E23: 236.600006 | F23: 223.378693 | G23: 2943685
A24: 2007-06-30 | B24: 237 | C24: 250 | D24: 201 | E24: 235.149994 | F24: 222.00972 | G24: 3050676
A25: 2007-07-31 | B25: 235.149994 | C25: 241 | D25: 200 | E25: 212 | F25: 200.414642 | G25: 2002735
A26: 2007-08-31 | B26: 217 | C26: 248 | D26: 196.149994 | E26: 215.199997 | F26: 203.439758 | G26: 808060
A27: 2007-09-30 | B27: 211.800003 | C27: 225 | D27: 176.699997 | E27: 211.449997 | F27: 199.89473 | G27: 2124114
A28: 2007-10-31 | B28: 210.199997 | C28: 247 | D28: 200 | E28: 217.199997 | F28: 205.330475 | G28: 3803438
A29: 2007-11-30 | B29: 225 | C29: 266 | D29: 204.699997 | E29: 257.299988 | F29: 243.239075 | G29: 2244083
A30: 2007-12-31 | B30: 259.950012 | C30: 265.899994 | D30: 176 | E30: 199.550003 | F30: 188.645004 | G30: 1717020
A31: 2008-01-31 | B31: 195.050003 | C31: 229 | D31: 180.100006 | E31: 192.949997 | F31: 182.40567 | G31: 3367482
A32: 2008-02-29 | B32: 185 | C32: 202 | D32: 125.550003 | E32: 172.25 | F32: 162.836884 | G32: 1785729
A33: 2008-03-31 | B33: 175 | C33: 175 | D33: 140 | E33: 144.899994 | F33: 136.981537 | G33: 2773368
A34: 2008-04-30 | B34: 146 | C34: 150 | D34: 124.25 | E34: 125.599998 | F34: 118.736229 | G34: 934962
A35: 2008-05-31 | B35: 128 | C35: 133.199997 | D35: 93 | E35: 99.25 | F35: 93.826195 | G35: 2332784
A36: 2008-06-30 | B36: 117.949997 | C36: 119 | D36: 92.050003 | E36: 111.150002 | F36: 105.07589 | G36: 1920960
A37: 2008-07-31 | B37: 108.199997 | C37: 125 | D37: 108.099998 | E37: 117.150002 | F37: 111.16848 | G37: 231194
A38: 2008-08-31 | B38: 115 | C38: 144.399994 | D38: 92.5 | E38: 100.650002 | F38: 95.510963 | G38: 1510884
A39: 2008-09-30 | B39: 98.150002 | C39: 114.849998 | D39: 63 | E39: 77.849998 | F39: 73.875092 | G39: 201941
A40: 2008-10-31 | B40: 78 | C40: 88.650002 | D40: 57.200001 | E40: 69 | F40: 65.476974 | G40: 137828
A41: 2008-11-30 | B41: 68.900002 | C41: 94 | D41: 59.049999 | E41: 71.25 | F41: 67.612083 | G41: 1097027
A42: 2008-12-31 | B42: 69.599998 | C42: 76.900002 | D42: 48.650002 | E42: 53.950001 | F42: 51.195396 | G42: 828270
A43: 2009-01-31 | B43: 54 | C43: 70 | D43: 49.099998 | E43: 49.5 | F43: 46.972607 | G43: 847815
A44: 2009-02-28 | B44: 51.900002 | C44: 65 | D44: 36.099998 | E44: 58.549999 | F44: 55.560516 | G44: 1079947
A45: 2009-03-31 | B45: 59.200001 | C45: 80 | D45: 58.200001 | E45: 67 | F45: 63.579082 | G45: 1197414
A46: 2009-04-30 | B46: 67 | C46: 124.25 | D46: 64.5 | E46: 124.050003 | F46: 117.716194 | G46: 7226410
A47: 2009-05-31 | B47: 126.5 | C47: 127.75 | D47: 85.199997 | E47: 91.449997 | F47: 86.780701 | G47: 947657
A48: 2009-06-30 | B48: 91.449997 | C48: 116.900002 | D48: 76.150002 | E48: 108.5 | F48: 102.960152 | G48: 2743675
A49: 2009-07-31 | B49: 108 | C49: 128 | D49: 101.099998 | E49: 119.349998 | F49: 113.610657 | G49: 1967542
A50: 2009-08-31 | B50: 119 | C50: 143.25 | D50: 107.400002 | E50: 132.399994 | F50: 126.033066 | G50: 1619574
A51: 2009-09-30 | B51: 132 | C51: 135 | D51: 117 | E51: 131.899994 | F51: 125.557129 | G51: 5538259
A52: 2009-10-31 | B52: 131.25 | C52: 153.699997 | D52: 120 | E52: 139.75 | F52: 133.029648 | G52: 2696232
A53: 2009-11-30 | B53: 141.300003 | C53: 164.850006 | D53: 131.949997 | E53: 145 | F53: 138.027191 | G53: 1778072
A54: 2009-12-31 | B54: 144.100006 | C54: 173.5 | D54: 140.149994 | E54: 147.600006 | F54: 140.502151 | G54: 4506849
A55: 2010-01-31 | B55: 151.949997 | C55: 165 | D55: 135.399994 | E55: 138.899994 | F55: 132.220505 | G55: 1465008
A56: 2010-02-28 | B56: 141.899994 | C56: 154.800003 | D56: 133.350006 | E56: 139.399994 | F56: 132.696457 | G56: 2804747
A57: 2010-03-31 | B57: 140.399994 | C57: 148 | D57: 138.550003 | E57: 140.899994 | F57: 134.124344 | G57: 502718
A58: 2010-04-30 | B58: 140.050003 | C58: 159.899994 | D58: 137.800003 | E58: 147.600006 | F58: 140.502151 | G58: 1211538
A59: 2010-05-31 | B59: 146.550003 | C59: 169.800003 | D59: 146.550003 | E59: 149.350006 | F59: 142.167984 | G59: 822201
A60: 2010-06-30 | B60: 152.899994 | C60: 167.5 | D60: 137.199997 | E60: 157.550003 | F60: 149.973663 | G60: 2443388
A61: 2010-07-31 | B61: 157.550003 | C61: 181 | D61: 155.050003 | E61: 166.149994 | F61: 158.505722 | G61: 1536333
A62: 2010-08-31 | B62: 166.350006 | C62: 180.050003 | D62: 147.149994 | E62: 160.899994 | F62: 153.497269 | G62: 2150808
A63: 2010-09-30 | B63: 161.949997 | C63: 185.699997 | D63: 155.100006 | E63: 159.399994 | F63: 152.066269 | G63: 1665123
A64: 2010-10-31 | B64: 162.850006 | C64: 182 | D64: 136 | E64: 149.5 | F64: 142.621765 | G64: 10361537
A65: 2010-11-30 | B65: 150 | C65: 157.600006 | D65: 136 | E65: 146 | F65: 139.282791 | G65: 825069
A66: 2010-12-31 | B66: 147 | C66: 159.949997 | D66: 141.100006 | E66: 149.75 | F66: 142.860275 | G66: 1959603
A67: 2011-01-31 | B67: 151.75 | C67: 154.800003 | D67: 132.050003 | E67: 132.75 | F67: 126.642395 | G67: 714928
A68: 2011-02-28 | B68: 134.449997 | C68: 156 | D68: 129.300003 | E68: 149.449997 | F68: 142.574066 | G68: 1256641
A69: 2011-03-31 | B69: 146.949997 | C69: 160.100006 | D69: 141.100006 | E69: 146.600006 | F69: 139.855194 | G69: 2462973
A70: 2011-04-30 | B70: 146.149994 | C70: 168.800003 | D70: 145.699997 | E70: 160.800003 | F70: 153.401886 | G70: 640042
A71: 2011-05-31 | B71: 158.649994 | C71: 182 | D71: 155 | E71: 170 | F71: 162.178604 | G71: 1127933
A72: 2011-06-30 | B72: 166.100006 | C72: 175.800003 | D72: 152.949997 | E72: 160.050003 | F72: 152.686401 | G72: 3674103
A73: 2011-07-31 | B73: 163.850006 | C73: 163.850006 | D73: 144.25 | E73: 150.149994 | F73: 143.56691 | G73: 1092671
A74: 2011-08-31 | B74: 149.100006 | C74: 157 | D74: 134.100006 | E74: 147.850006 | F74: 141.367783 | G74: 1445985
A75: 2011-09-30 | B75: 148.5 | C75: 151.949997 | D75: 134.149994 | E75: 143.350006 | F75: 137.065063 | G75: 294499
A76: 2011-10-31 | B76: 144.699997 | C76: 145.5 | D76: 115.199997 | E76: 120.050003 | F76: 114.786591 | G76: 385158
A77: 2011-11-30 | B77: 122 | C77: 132.699997 | D77: 105.300003 | E77: 122.75 | F77: 117.368233 | G77: 694497
A78: 2011-12-31 | B78: 125 | C78: 140.899994 | D78: 116.75 | E78: 138.75 | F78: 132.666748 | G78: 249952
A79: 2012-01-31 | B79: 137.5 | C79: 151.199997 | D79: 133.050003 | E79: 144.100006 | F79: 137.782181 | G79: 223747
A80: 2012-02-29 | B80: 133 | C80: 145.5 | D80: 121.300003 | E80: 139.699997 | F80: 133.575073 | G80: 1513093
A81: 2012-03-31 | B81: 139 | C81: 144.199997 | D81: 123.5 | E81: 127 | F81: 121.431892 | G81: 135900
A82: 2012-04-30 | B82: 127.050003 | C82: 128.550003 | D82: 109.300003 | E82: 111.349998 | F82: 106.46804 | G82: 1865434
A83: 2012-05-31 | B83: 113.75 | C83: 116 | D83: 92 | E83: 96.699997 | F83: 92.460342 | G83: 3318066
A84: 2012-06-30 | B84: 97.949997 | C84: 103.900002 | D84: 83.150002 | E84: 83.900002 | F84: 80.221542 | G84: 3505529
A85: 2012-07-31 | B85: 84.150002 | C85: 98.300003 | D85: 84.099998 | E85: 91.800003 | F85: 87.775185 | G85: 3730830
A86: 2012-08-31 | B86: 93.5 | C86: 97.25 | D86: 84.599998 | E86: 93.050003 | F86: 89.354492 | G86: 1093829
A87: 2012-09-30 | B87: 94.349998 | C87: 108.800003 | D87: 85.5 | E87: 102.349998 | F87: 98.285141 | G87: 1419837
A88: 2012-10-31 | B88: 102.400002 | C88: 104.849998 | D88: 93.199997 | E88: 102.800003 | F88: 98.717255 | G88: 3788504
A89: 2012-11-30 | B89: 102.849998 | C89: 112.699997 | D89: 97.599998 | E89: 106.849998 | F89: 102.606415 | G89: 1100603
A90: 2012-12-31 | B90: 107.099998 | C90: 109.849998 | D90: 100.949997 | E90: 104.050003 | F90: 99.917618 | G90: 1424232
A91: 2013-01-31 | B91: 104 | C91: 106 | D91: 97 | E91: 103.699997 | F91: 99.581528 | G91: 564984
A92: 2013-02-28 | B92: 104.150002 | C92: 107.650002 | D92: 95.550003 | E92: 101.5 | F92: 97.468887 | G92: 713710
A93: 2013-03-31 | B93: 100.75 | C93: 106 | D93: 90 | E93: 104.25 | F93: 100.109673 | G93: 678974
A94: 2013-04-30 | B94: 104.25 | C94: 119 | D94: 96.599998 | E94: 99.900002 | F94: 95.932442 | G94: 3641521
A95: 2013-05-31 | B95: 99.800003 | C95: 103.900002 | D95: 91.150002 | E95: 97.5 | F95: 93.627754 | G95: 2500096
A96: 2013-06-30 | B96: 95.900002 | C96: 100.900002 | D96: 86 | E96: 98.900002 | F96: 94.972168 | G96: 777779
A97: 2013-07-31 | B97: 99.699997 | C97: 107 | D97: 87.599998 | E97: 89.650002 | F97: 86.089523 | G97: 410980
A98: 2013-08-31 | B98: 88.849998 | C98: 92.650002 | D98: 80.349998 | E98: 87.75 | F98: 84.621094 | G98: 1031326
A99: 2013-09-30 | B99: 87 | C99: 97.5 | D99: 75 | E99: 82.949997 | F99: 79.992241 | G99: 7992348
A100: 2013-10-31 | B100: 82.75 | C100: 84.5 | D100: 77 | E100: 80.650002 | F100: 77.774261 | G100: 4171170
A101: 2013-11-30 | B101: 81.400002 | C101: 83.900002 | D101: 74.099998 | E101: 78 | F101: 75.218742 | G101: 2253395
A102: 2013-12-31 | B102: 78.550003 | C102: 86 | D102: 72.949997 | E102: 74.25 | F102: 71.602463 | G102: 6646354
A103: 2014-01-31 | B103: 74.5 | C103: 78.900002 | D103: 69.650002 | E103: 77.300003 | F103: 74.543709 | G103: 6655398
A104: 2014-02-28 | B104: 81.5 | C104: 95.699997 | D104: 75.099998 | E104: 93.300003 | F104: 89.973206 | G104: 13511980
A105: 2014-03-31 | B105: 94 | C105: 95.5 | D105: 85 | E105: 91.550003 | F105: 88.285591 | G105: 9515512
A106: 2014-04-30 | B106: 91.550003 | C106: 118.400002 | D106: 89.150002 | E106: 114 | F106: 109.935081 | G106: 11287138
A107: 2014-05-31 | B107: 115.300003 | C107: 125.900002 | D107: 106.849998 | E107: 124.650002 | F107: 120.20536 | G107: 6254697
A108: 2014-06-30 | B108: 125 | C108: 131.399994 | D108: 104.599998 | E108: 106 | F108: 102.220345 | G108: 5757898
A109: 2014-07-31 | B109: 106 | C109: 111.150002 | D109: 101.099998 | E109: 104.150002 | F109: 100.436325 | G109: 2657639
A110: 2014-08-31 | B110: 103.550003 | C110: 122.75 | D110: 103.199997 | E110: 111 | F110: 107.042061 | G110: 6951355
A111: 2014-09-30 | B111: 113.949997 | C111: 117.300003 | D111: 106 | E111: 115.949997 | F111: 112.67588 | G111: 1969514
A112: 2014-10-31 | B112: 116 | C112: 118.300003 | D112: 105.099998 | E112: 111.199997 | F112: 108.060005 | G112: 3762931
A113: 2014-11-30 | B113: 111 | C113: 132.75 | D113: 108.099998 | E113: 129.75 | F113: 126.086212 | G113: 3782182
A114: 2014-12-31 | B114: 128.550003 | C114: 138 | D114: 119.599998 | E114: 134.300003 | F114: 130.507736 | G114: 2679424
A115: 2015-01-31 | B115: 134.300003 | C115: 145.100006 | D115: 130.100006 | E115: 133.800003 | F115: 130.021851 | G115: 2287936
A116: 2015-02-28 | B116: 136.699997 | C116: 139 | D116: 116.550003 | E116: 124.449997 | F116: 120.935867 | G116: 1957006
A117: 2015-03-31 | B117: 123 | C117: 125.300003 | D117: 104.099998 | E117: 107.599998 | F117: 104.561668 | G117: 3095904
A118: 2015-04-30 | B118: 107.599998 | C118: 112.449997 | D118: 92.5 | E118: 95.900002 | F118: 93.192047 | G118: 3832499
A119: 2015-05-31 | B119: 96 | C119: 98.25 | D119: 87 | E119: 92.300003 | F119: 89.693695 | G119: 2383979
A120: 2015-06-30 | B120: 92.050003 | C120: 102.400002 | D120: 86.5 | E120: 87.849998 | F120: 85.369347 | G120: 3586174
A121: 2015-07-31 | B121: 88 | C121: 91 | D121: 78.300003 | E121: 81.699997 | F121: 79.393013 | G121: 4063732
A122: 2015-08-31 | B122: 81.900002 | C122: 90 | D122: 73 | E122: 81.449997 | F122: 79.150078 | G122: 2266903
A123: 2015-09-30 | B123: 81.449997 | C123: 95.75 | D123: 78.849998 | E123: 82.550003 | F123: 80.603531 | G123: 4284908
A124: 2015-10-31 | B124: 82.599998 | C124: 84.900002 | D124: 74.5 | E124: 81.900002 | F124: 79.968857 | G124: 2841511
A125: 2015-11-30 | B125: 82 | C125: 96.400002 | D125: 78.150002 | E125: 92.199997 | F125: 90.025986 | G125: 4210171
A126: 2015-12-31 | B126: 93.050003 | C126: 94.449997 | D126: 76.699997 | E126: 77.699997 | F126: 75.867882 | G126: 5420071
A127: 2016-01-31 | B127: 78.400002 | C127: 81.699997 | D127: 73 | E127: 79 | F127: 77.13723 | G127: 2374136
A128: 2016-02-29 | B128: 79.050003 | C128: 84.400002 | D128: 74.800003 | E128: 76.449997 | F128: 74.647354 | G128: 3020573
A129: 2016-03-31 | B129: 76.099998 | C129: 91.099998 | D129: 74.849998 | E129: 89.699997 | F129: 87.584923 | G129: 5864089
A130: 2016-04-30 | B130: 90 | C130: 91.300003 | D130: 79 | E130: 80.800003 | F130: 78.894783 | G130: 1679312
A131: 2016-05-31 | B131: 81.050003 | C131: 83.800003 | D131: 74.75 | E131: 77 | F131: 75.184387 | G131: 4498951
A132: 2016-06-30 | B132: 77.5 | C132: 88.699997 | D132: 77.5 | E132: 84.550003 | F132: 82.556366 | G132: 6486642
A133: 2016-07-31 | B133: 85.550003 | C133: 93.900002 | D133: 75.900002 | E133: 82.599998 | F133: 80.652344 | G133: 10877876
A134: 2016-08-31 | B134: 82.900002 | C134: 89.900002 | D134: 78.300003 | E134: 83.5 | F134: 81.53112 | G134: 3854182
A135: 2016-09-30 | B135: 84 | C135: 95.800003 | D135: 83 | E135: 89.949997 | F135: 88.235413 | G135: 3349279
A136: 2016-10-31 | B136: 92 | C136: 96.5 | D136: 70.5 | E136: 71.449997 | F136: 70.088058 | G136: 5006603
A137: 2016-11-30 | B137: 71.949997 | C137: 79 | D137: 68.900002 | E137: 72.25 | F137: 70.872803 | G137: 3072287
A138: 2016-12-31 | B138: 73.800003 | C138: 86.699997 | D138: 72 | E138: 79.75 | F138: 78.229851 | G138: 7177429
A139: 2017-01-31 | B139: 80.75 | C139: 88.400002 | D139: 80 | E139: 85.5 | F139: 83.870247 | G139: 3940736
A140: 2017-02-28 | B140: 85.5 | C140: 86.800003 | D140: 80.800003 | E140: 83.300003 | F140: 81.712181 | G140: 2113660
A141: 2017-03-31 | B141: 83.25 | C141: 88 | D141: 81.75 | E141: 82.050003 | F141: 80.486008 | G141: 2704161
A142: 2017-04-30 | B142: 82.050003 | C142: 91.800003 | D142: 79.25 | E142: 82.75 | F142: 81.172661 | G142: 5866618
A143: 2017-05-31 | B143: 83.150002 | C143: 84.949997 | D143: 80 | E143: 80.800003 | F143: 79.259827 | G143: 4852183
A144: 2017-06-30 | B144: 80.199997 | C144: 94.900002 | D144: 80.199997 | E144: 92.150002 | F144: 90.393478 | G144: 10291764
A145: 2017-07-31 | B145: 92.75 | C145: 96.5 | D145: 80.349998 | E145: 93.25 | F145: 91.472511 | G145: 5503605
A146: 2017-08-31 | B146: 94.199997 | C146: 108.900002 | D146: 91.050003 | E146: 93.699997 | F146: 91.913933 | G146: 13260118
A147: 2017-09-30 | B147: 93.699997 | C147: 106.699997 | D147: 93.550003 | E147: 102.449997 | F147: 100.914146 | G147: 13177779
A148: 2017-10-31 | B148: 102.349998 | C148: 104.5 | D148: 95.599998 | E148: 99.25 | F148: 97.762115 | G148: 4478063
A149: 2017-11-30 | B149: 100.349998 | C149: 107.650002 | D149: 92 | E149: 102 | F149: 100.470894 | G149: 10771867
A150: 2017-12-31 | B150: 102.599998 | C150: 118.400002 | D150: 98.050003 | E150: 98.550003 | F150: 97.072617 | G150: 42389344
A151: 2018-01-31 | B151: 98.650002 | C151: 100.800003 | D151: 87.199997 | E151: 92 | F151: 90.620804 | G151: 4543202
A152: 2018-02-28 | B152: 92 | C152: 92.699997 | D152: 81.449997 | E152: 83.900002 | F152: 82.642242 | G152: 4486345
A153: 2018-03-31 | B153: 84.900002 | C153: 92.599998 | D153: 83.349998 | E153: 90.400002 | F153: 89.044792 | G153: 4458338
A154: 2018-04-30 | B154: 90.400002 | C154: 92 | D154: 75.650002 | E154: 80.650002 | F154: 79.440956 | G154: 4176906
A155: 2018-05-31 | B155: 80.900002 | C155: 83.199997 | D155: 70 | E155: 71.699997 | F155: 70.62513 | G155: 2255842
A156: 2018-06-30 | B156: 72.75 | C156: 75.449997 | D156: 53.200001 | E156: 55.900002 | F156: 55.061989 | G156: 6894053
A157: 2018-07-31 | B157: 55.549999 | C157: 61.400002 | D157: 52.950001 | E157: 55.549999 | F157: 54.717236 | G157: 4178278
A158: 2018-08-31 | B158: 56 | C158: 57 | D158: 46.099998 | E158: 46.5 | F158: 45.802906 | G158: 2158370
A159: 2018-09-30 | B159: 47.150002 | C159: 51.25 | D159: 39.25 | E159: 39.549999 | F159: 39.549999 | G159: 2724791
A160: 2018-10-31 | B160: 39.900002 | C160: 41.650002 | D160: 39.400002 | E160: 39.549999 | F160: 39.549999 | G160: 1712999
A161: 2018-11-30 | B161: 40.349998 | C161: 43.299999 | D161: 36.25 | E161: 39.799999 | F161: 39.799999 | G161: 2713673
A162: 2018-12-31 | B162: 40.400002 | C162: 50.700001 | D162: 38.549999 | E162: 40.150002 | F162: 40.150002 | G162: 13240958
A163: 2019-01-31 | B163: 41.099998 | C163: 41.099998 | D163: 36.299999 | E163: 37.150002 | F163: 37.150002 | G163: 1400311
A164: 2019-02-28 | B164: 37.150002 | C164: 49.75 | D164: 37.150002 | E164: 45 | F164: 45 | G164: 3482006
A165: 2019-03-31 | B165: 45.799999 | C165: 49.299999 | D165: 40 | E165: 41 | F165: 41 | G165: 1527265

Sheet HTMEDIA.NS (2)
B1: Date | C1: 4 | E1: Open | F1: High | G1: Low | H1: Close | I1: Adj Close | J1: Volume
B2: 2005-09-01 | E2: 140 | F2: 150 | G2: 108.25 | H2: 22.271999 | I2: 19.511755 | J2: 72278515
B3: 2005-09-02 | C3: =AND(MONTH(B3)=$C$1,MONTH(B2)<>$C$1) -> FALSE | D3: =YEAR(B3) -> 2005 | E3: 108 | F3: 111.400002 | G3: 106.599998 | H3: 21.472 | I3: 18.810905 | J3: 21464115 | K3: =IF(ISNUMBER(H3),H3,H2) -> 21.472 | L3: =IF(ISNUMBER(I3),I3,I2) -> 18.810905 | N3: 2005 | O3: =AVERAGEIF(D:D,N3,L:L) -> 16.1581871 | P3: =AVERAGEIF(D:D,N3,L:L) -> 16.1581871 | Q3: =LOOKUP(N3,D:D,L:L) -> 16.33514
B4: 2005-09-05 | C4: =AND(MONTH(B4)=$C$1,MONTH(B3)<>$C$1) -> FALSE | D4: =IF(C4,D3+1,D3) -> 2005 | E4: 108.800003 | F4: 109 | G4: 99.199997 | H4: 20.158001 | I4: 17.659756 | J4: 12781925 | K4: =IF(ISNUMBER(H4),H4,H3) -> 20.158001 | L4: 17.659756 | N4: 2006 | O4: =AVERAGEIF(D:D,N4,L:L) -> 58.0544987 | P4: =AVERAGEIF(D:D,N4,L:L) -> 58.0544987 | Q4: =LOOKUP(N4,D:D,L:L) -> 168.242096
B5: 2005-09-06 | C5: FALSE | D5: =IF(C5,D4+1,D4) -> 2005 | E5: 101.599998 | F5: 104.739998 | G5: 101 | H5: 20.375999 | I5: 17.850737 | J5: 12794610 | K5: 20.375999 | L5: 17.850737 | N5: 2007 | O5: 199.0367307 | P5: 199.0367307 | Q5: 162.836884
B6: 2005-09-08 | C6: FALSE | D6: 2005 | E6: 102.599998 | F6: 103.339996 | G6: 100.25 | H6: 20.132 | I6: 17.636976 | J6: 3575585 | K6: 20.132 | L6: 17.636976 | N6: 2008 | O6: 89.73065592 | P6: 89.73065592 | Q6: 55.560516
B7: 2005-09-09 | C7: FALSE | D7: 2005 | E7: 101.199997 | F7: 101.800003 | G7: 97 | H7: 19.534 | I7: 17.113085 | J7: 3671165 | K7: 19.534 | L7: 17.113085 | N7: 2009 | O7: 112.8152365 | P7: 112.8152365 | Q7: 132.696457
B8: 2005-09-12 | C8: FALSE | D8: 2005 | E8: 97.599998 | F8: 98.980003 | G8: 95.599998 | H8: 19.290001 | I8: 16.89933 | J8: 2426010 | K8: 19.290001 | L8: 16.89933 | N8: 2010 | O8: 144.9850967 | P8: 144.9850967 | Q8: 142.574066
B9: 2005-09-13 | C9: FALSE | D9: 2005 | E9: 96.800003 | F9: 99.339996 | G9: 95 | H9: 19.375999 | I9: 16.974667 | J9: 5024230 | K9: 19.375999 | L9: 16.974667 | N9: 2011 | O9: 137.3893804 | P9: 137.3893804 | Q9: 133.575073
B10: 2005-09-14 | C10: FALSE | D10: 2005 | E10: 97 | F10: 97.199997 | G10: 94.019997 | H10: 18.924 | I10: 16.578686 | J10: 2156705 | K10: 18.924 | L10: 16.578686 | N10: 2012 | O10: 97.94815186 | P10: 97.94815186 | Q10: 97.468887
B11: 2005-09-15 | C11: FALSE | D11: 2005 | E11: 94.599998 | F11: 96.419998 | G11: 94.269997 | H11: 18.992001 | I11: 16.638264 | J11: 1650695 | K11: 18.992001 | L11: 16.638264 | N11: 2013 | O11: 85.07788439 | P11: 85.07788439 | Q11: 89.973206
B12: 2005-09-16 | C12: FALSE | D12: 2005 | E12: 94.800003 | F12: 95.400002 | G12: 94.059998 | H12: 18.938 | I12: 16.590952 | J12: 974860 | K12: 18.938 | L12: 16.590952 | N12: 2014 | O12: 111.2074953 | P12: 111.2074953 | Q12: 120.935867
B13: 2005-09-19 | C13: FALSE | D13: 2005 | E13: 94.900002 | F13: 95.940002 | G13: 92.459999 | H13: 18.614 | I13: 16.307102 | J13: 762710 | K13: 18.614 | L13: 16.307102 | N13: 2015 | O13: 85.58001096 | P13: 85.58001096 | Q13: 74.647354
B14: 2005-09-20 | C14: FALSE | D14: 2005 | E14: 93.099998 | F14: 93.099998 | G14: 90.410004 | H14: 18.158001 | I14: 15.907623 | J14: 1229040 | K14: 18.158001 | L14: 15.907623 | N14: 2016 | O14: 79.28707026 | P14: 79.28707026 | Q14: 81.712181
B15: 2005-09-21 | C15: FALSE | D15: 2005 | E15: 91.199997 | F15: 91.199997 | G15: 85.599998 | H15: 17.664 | I15: 15.47484 | J15: 1498175 | K15: 17.664 | L15: 15.47484 | N15: 2017 | O15: 90.68234682 | P15: 90.68234682 | Q15: 82.642242
B16: 2005-09-22 | C16: FALSE | D16: 2005 | E16: 88 | F16: 88 | G16: 80.599998 | H16: 16.618 | I16: 14.558478 | J16: 1201730 | K16: 16.618 | L16: 14.558478 | N16: 2018 | O16: 55.67424073 | P16: 55.67424073 | Q16: 44.25
B17: 2005-09-23 | C17: FALSE | D17: 2005 | E17: 82 | F17: 83.970001 | G17: 79.410004 | H17: 16.362 | I17: 14.334203 | J17: 2104515 | K17: 16.362 | L17: 14.334203 | N17: 2019 | O17: 44.85555567 | P17: 44.85555567 | Q17: 40.25
B18: 2005-09-26 | C18: FALSE | D18: 2005 | E18: 82.660004 | F18: 84.489998 | G18: 82.400002 | H18: 16.681999 | I18: 14.614546 | J18: 961535 | K18: 16.681999 | L18: 14.614546
B19: 2005-09-27 | C19: FALSE | D19: 2005 | E19: 83.809998 | F19: 84.980003 | G19: 83 | H19: 16.676001 | I19: 14.609291 | J19: 716935 | K19: 16.676001 | L19: 14.609291
B20: 2005-09-28 | C20: FALSE | D20: 2005 | E20: 83.800003 | F20: 84.199997 | G20: 83.019997 | H20: 16.738001 | I20: 14.663606 | J20: 443310 | K20: 16.738001 | L20: 14.663606
B21: 2005-09-29 | C21: FALSE | D21: 2005 | E21: 85 | F21: 95.199997 | G21: 83.400002 | H21: 17 | I21: 14.893135 | J21: 1624130 | K21: 17 | L21: 14.893135
B22: 2005-09-30 | C22: FALSE | D22: 2005 | E22: 85.199997 | F22: 86.400002 | G22: 83.599998 | H22: 17.018 | I22: 14.908901 | J22: 858075 | K22: 17.018 | L22: 14.908901
B23: 2005-10-03 | C23: FALSE | D23: 2005 | E23: 85.209999 | F23: 85.800003 | G23: 84.199997 | H23: 16.954 | I23: 14.852839 | J23: 268250 | K23: 16.954 | L23: 14.852839
B24: 2005-10-04 | C24: FALSE | D24: 2005 | E24: 84.800003 | F24: 89.800003 | G24: 84.580002 | H24: 17.85 | I24: 15.63779 | J24: 1886885 | K24: 17.85 | L24: 15.63779
B25: 2005-10-05 | C25: FALSE | D25: 2005 | E25: 90.400002 | F25: 90.400002 | G25: 88.099998 | H25: 17.66 | I25: 15.471339 | J25: 747555 | K25: 17.66 | L25: 15.471339
B26: 2005-10-06 | C26: FALSE | D26: 2005 | E26: 88.68 | F26: 88.68 | G26: 86.199997 | H26: 17.441999 | I26: 15.280354 | J26: 323120 | K26: 17.441999 | L26: 15.280354
B27: 2005-10-07 | C27: FALSE | D27: 2005 | E27: 88.400002 | F27: 92.800003 | G27: 87.199997 | H27: 18.43 | I27: 16.145906 | J27: 2197425 | K27: 18.43 | L27: 16.145906
B28: 2005-10-10 | C28: FALSE | D28: 2005 | E28: 92.410004 | F28: 93.800003 | G28: 91.669998 | H28: 18.459999 | I28: 16.172188 | J28: 922145 | K28: 18.459999 | L28: 16.172188
B29: 2005-10-11 | C29: FALSE | D29: 2005 | E29: 92.779999 | F29: 95.199997 | G29: 91.800003 | H29: 18.868 | I29: 16.529625 | J29: 1233900 | K29: 18.868 | L29: 16.529625
B30: 2005-10-13 | C30: FALSE | D30: 2005 | E30: 94.199997 | F30: 96.400002 | G30: 92.400002 | H30: 19.048 | I30: 16.687317 | J30: 2111460 | K30: 19.048 | L30: 16.687317
B31: 2005-10-14 | C31: FALSE | D31: 2005 | E31: 95 | F31: 96.599998 | G31: 92.43 | H31: 18.638 | I31: 16.328133 | J31: 743265 | K31: 18.638 | L31: 16.328133
B32: 2005-10-17 | C32: FALSE | D32: 2005 | E32: 93.389999 | F32: 94 | G32: 92 | H32: 18.436001 | I32: 16.151169 | J32: 455160 | K32: 18.436001 | L32: 16.151169
B33: 2005-10-18 | C33: FALSE | D33: 2005 | E33: 92 | F33: 93.199997 | G33: 91.440002 | H33: 18.365999 | I33: 16.089838 | J33: 496855 | K33: 18.365999 | L33: 16.089838
B34: 2005-10-19 | C34: FALSE | D34: 2005 | E34: 92 | F34: 92 | G34: 88.199997 | H34: 17.837999 | I34: 15.627276 | J34: 315150 | K34: 17.837999 | L34: 15.627276
B35: 2005-10-20 | C35: FALSE | D35: 2005 | E35: 89.190002 | F35: 92 | G35: 86.800003 | H35: 17.544001 | I35: 15.369716 | J35: 382200 | K35: 17.544001 | L35: 15.369716
B36: 2005-10-21 | C36: FALSE | D36: 2005 | E36: 86.629997 | F36: 88.400002 | G36: 86.629997 | H36: 17.542 | I36: 15.367963 | J36: 216945 | K36: 17.542 | L36: 15.367963
B37: 2005-10-24 | C37: FALSE | D37: 2005 | E37: 88.400002 | F37: 88.800003 | G37: 87.220001 | H37: 17.598 | I37: 15.417025 | J37: 180135 | K37: 17.598 | L37: 15.417025
B38: 2005-10-25 | C38: FALSE | D38: 2005 | E38: 88.690002 | F38: 88.690002 | G38: 87.209999 | H38: 17.507999 | I38: 15.338176 | J38: 122430 | K38: 17.507999 | L38: 15.338176
B39: 2005-10-26 | C39: FALSE | D39: 2005 | E39: 87.800003 | F39: 88.480003 | G39: 87.599998 | H39: 17.546 | I39: 15.371464 | J39: 126395 | K39: 17.546 | L39: 15.371464
B40: 2005-10-27 | C40: FALSE | D40: 2005 | E40: 87.800003 | F40: 87.900002 | G40: 84.230003 | H40: 17.094 | I40: 14.975486 | J40: 79805 | K40: 17.094 | L40: 14.975486
B41: 2005-10-28 | C41: FALSE | D41: 2005 | E41: 85.400002 | F41: 87.900002 | G41: 84.010002 | H41: 17.205999 | I41: 15.073605 | J41: 462975 | K41: 17.205999 | L41: 15.073605
B42: 2005-10-31 | C42: FALSE | D42: 2005 | E42: 86.220001 | F42: 88 | G42: 86.209999 | H42: 17.518 | I42: 15.346934 | J42: 867500 | K42: 17.518 | L42: 15.346934
B43: 2005-11-02 | C43: FALSE | D43: 2005 | E43: 86.620003 | F43: 87.599998 | G43: 86.230003 | H43: 17.49 | I43: 15.322405 | J43: 78080 | K43: 17.49 | L43: 15.322405
B44: 2005-11-07 | C44: FALSE | D44: 2005 | E44: 88 | F44: 90 | G44: 87.599998 | H44: 17.945999 | I44: 15.721891 | J44: 169100 | K44: 17.945999 | L44: 15.721891
B45: 2005-11-08 | C45: FALSE | D45: 2005 | E45: 89.400002 | F45: 91.800003 | G45: 89.400002 | H45: 18.252001 | I45: 15.989974 | J45: 158280 | K45: 18.252001 | L45: 15.989974
B46: 2005-11-09 | C46: FALSE | D46: 2005 | E46: 91.940002 | F46: 91.940002 | G46: 90 | H46: 18.058001 | I46: 15.820017 | J46: 161100 | K46: 18.058001 | L46: 15.820017
B47: 2005-11-10 | C47: FALSE | D47: 2005 | E47: 91.400002 | F47: 91.989998 | G47: 90.199997 | H47: 18.33 | I47: 16.058304 | J47: 114935 | K47: 18.33 | L47: 16.058304
B48: 2005-11-11 | C48: FALSE | D48: 2005 | E48: 90.400002 | F48: 92.989998 | G48: 90.400002 | H48: 18.375999 | I48: 16.098602 | J48: 256740 | K48: 18.375999 | L48: 16.098602
B49: 2005-11-14 | C49: FALSE | D49: 2005 | E49: 90.199997 | F49: 92.599998 | G49: 90.199997 | H49: 18.469999 | I49: 16.180954 | J49: 413275 | K49: 18.469999 | L49: 16.180954
B50: 2005-11-16 | C50: FALSE | D50: 2005 | E50: 92.199997 | F50: 92.779999 | G50: 91.709999 | H50: 18.360001 | I50: 16.084587 | J50: 92905 | K50: 18.360001 | L50: 16.084587
B51: 2005-11-17 | C51: FALSE | D51: 2005 | E51: 91.400002 | F51: 92.410004 | G51: 91.300003 | H51: 18.360001 | I51: 16.084587 | J51: 96420 | K51: 18.360001 | L51: 16.084587
B52: 2005-11-18 | C52: FALSE | D52: 2005 | E52: 92 | F52: 95.160004 | G52: 90.330002 | H52: 18.284 | I52: 16.018002 | J52: 1054920 | K52: 18.284 | L52: 16.018002
B53: 2005-11-21 | C53: FALSE | D53: 2005 | E53: 92 | F53: 92 | G53: 90.230003 | H53: 18.202 | I53: 15.946166 | J53: 204705 | K53: 18.202 | L53: 15.946166
B54: 2005-11-22 | C54: FALSE | D54: 2005 | E54: 90.199997 | F54: 90.800003 | G54: 89.019997 | H54: 18.01 | I54: 15.777963 | J54: 132075 | K54: 18.01 | L54: 15.777963
B55: 2005-11-23 | C55: FALSE | D55: 2005 | E55: 89.050003 | F55: 91.400002 | G55: 89.050003 | H55: 18.238001 | I55: 15.977707 | J55: 180290 | K55: 18.238001 | L55: 15.977707
B56: 2005-11-24 | C56: FALSE | D56: 2005 | E56: 91.980003 | F56: 91.980003 | G56: 91.199997 | H56: 18.309999 | I56: 16.040779 | J56: 120535 | K56: 18.309999 | L56: 16.040779
B57: 2005-11-25 | C57: FALSE | D57: 2005 | E57: 91.959999 | F57: 91.959999 | G57: 90.400002 | H57: 18.271999 | I57: 16.00749 | J57: 100540 | K57: 18.271999 | L57: 16.00749
B58: 2005-11-28 | C58: FALSE | D58: 2005 | E58: 91.800003 | F58: 92 | G58: 91 | H58: 18.236 | I58: 15.975955 | J58: 179095 | K58: 18.236 | L58: 15.975955
B59: 2005-11-29 | C59: FALSE | D59: 2005 | E59: 90.400002 | F59: 91.599998 | G59: 90.400002 | H59: 18.271999 | I59: 16.00749 | J59: 117805 | K59: 18.271999 | L59: 16.00749
B60: 2005-11-30 | C60: FALSE | D60: 2005 | E60: 91.599998 | F60: 93 | G60: 91.239998 | H60: 18.417999 | I60: 16.135395 | J60: 208800 | K60: 18.417999 | L60: 16.135395
B61: 2005-12-01 | C61: FALSE | D61: 2005 | E61: 91 | F61: 93.529999 | G61: 91 | H61: 18.624001 | I61: 16.31587 | J61: 210400 | K61: 18.624001 | L61: 16.31587
B62: 2005-12-02 | C62: FALSE | D62: 2005 | E62: 93.400002 | F62: 94.599998 | G62: 93.040001 | H62: 18.836 | I62: 16.501596 | J62: 263090 | K62: 18.836 | L62: 16.501596
B63: 2005-12-05 | C63: FALSE | D63: 2005 | E63: 94 | F63: 96.860001 | G63: 94 | H63: 19.204 | I63: 16.823984 | J63: 435415 | K63: 19.204 | L63: 16.823984
B64: 2005-12-06 | C64: FALSE | D64: 2005 | E64: 95.959999 | F64: 96.400002 | G64: 95.449997 | H64: 19.205999 | I64: 16.825739 | J64: 256490 | K64: 19.205999 | L64: 16.825739
B65: 2005-12-07 | C65: FALSE | D65: 2005 | E65: 96 | F65: 97.959999 | G65: 96 | H65: 19.426001 | I65: 17.018473 | J65: 282020 | K65: 19.426001 | L65: 17.018473
B66: 2005-12-08 | C66: FALSE | D66: 2005 | E66: 97.199997 | F66: 97.400002 | G66: 94.400002 | H66: 19.025999 | I66: 16.668039 | J66: 215415 | K66: 19.025999 | L66: 16.668039
B67: 2005-12-09 | C67: FALSE | D67: 2005 | E67: 95.779999 | F67: 95.849998 | G67: 95.010002 | H67: 19.106001 | I67: 16.738134 | J67: 606590 | K67: 19.106001 | L67: 16.738134
B68: 2005-12-12 | C68: =AND(MONTH(B68)=$C$1,MONTH(B67)<>$C$1) -> FALSE | D68: 2005 | E68: 96.18 | F68: 96.18 | G68: 94.050003 | H68: 18.836 | I68: 16.501596 | J68: 187250 | K68: =IF(ISNUMBER(H68),H68,H67) -> 18.836 | L68: 16.501596
B69: 2005-12-13 | C69: FALSE | D69: =IF(C69,D68+1,D68) -> 2005 | E69: 93.699997 | F69: 94.980003 | G69: 93.699997 | H69: 18.926001 | I69: 16.580439 | J69: 88950 | K69: 18.926001 | L69: 16.580439
B70: 2005-12-14 | C70: FALSE | D70: 2005 | E70: 95.300003 | F70: 95.330002 | G70: 91.980003 | H70: 18.612 | I70: 16.305355 | J70: 637600 | K70: 18.612 | L70: 16.305355
B71: 2005-12-15 | C71: FALSE | D71: 2005 | E71: 94.459999 | F71: 99.580002 | G71: 92.800003 | H71: 18.790001 | I71: 16.461294 | J71: 182050 | K71: 18.790001 | L71: 16.461294
B72: 2005-12-16 | C72: FALSE | D72: 2005 | E72: 94.769997 | F72: 96 | G72: 94 | H72: 19.138 | I72: 16.766165 | J72: 144415 | K72: 19.138 | L72: 16.766165
B73: 2005-12-19 | C73: FALSE | D73: 2005 | E73: 94.209999 | F73: 95.099998 | G73: 93.82 | H73: 18.936001 | I73: 16.589203 | J73: 307035 | K73: 18.936001 | L73: 16.589203
B74: 2005-12-20 | C74: FALSE | D74: 2005 | E74: 93.510002 | F74: 94.790001 | G74: 93.510002 | H74: 18.804001 | I74: 16.47356 | J74: 59650 | K74: 18.804001 | L74: 16.47356
B75: 2005-12-21 | C75: FALSE | D75: 2005 | E75: 94.010002 | F75: 94.400002 | G75: 92.599998 | H75: 18.58 | I75: 16.277319 | J75: 47820 | K75: 18.58 | L75: 16.277319
B76: 2005-12-22 | C76: FALSE | D76: 2005 | E76: 94.790001 | F76: 94.790001 | G76: 91 | H76: 18.308001 | I76: 16.039032 | J76: 72145 | K76: 18.308001 | L76: 16.039032
B77: 2005-12-23 | C77: FALSE | D77: 2005 | E77: 91.43 | F77: 92.779999 | G77: 90.099998 | H77: 18.106001 | I77: 15.862061 | J77: 60350 | K77: 18.106001 | L77: 15.862061
B78: 2005-12-26 | C78: FALSE | D78: 2005 | E78: 90.400002 | F78: 92.190002 | G78: 88.199997 | H78: 17.714001 | I78: 15.518648 | J78: 69665 | K78: 17.714001 | L78: 15.518648
B79: 2005-12-27 | C79: FALSE | D79: 2005 | E79: 88.410004 | F79: 89.519997 | G79: 88.410004 | H79: 17.827999 | I79: 15.618519 | J79: 54555 | K79: 17.827999 | L79: 15.618519
B80: 2005-12-28 | C80: FALSE | D80: 2005 | E80: 89 | F80: 89.779999 | G80: 88.199997 | H80: 17.672001 | I80: 15.481851 | J80: 56525 | K80: 17.672001 | L80: 15.481851
B81: 2005-12-29 | C81: FALSE | D81: 2005 | E81: 88.599998 | F81: 89.599998 | G81: 88.25 | H81: 17.714001 | I81: 15.518648 | J81: 42980 | K81: 17.714001 | L81: 15.518648
B82: 2005-12-30 | C82: FALSE | D82: 2005 | E82: 87.610001 | F82: 89.160004 | G82: 87.010002 | H82: 17.620001 | I82: 15.436296 | J82: 222510 | K82: 17.620001 | L82: 15.436296
B83: 2006-01-02 | C83: FALSE | D83: 2005 | E83: 88.800003 | F83: 89.889999 | G83: 88.199997 | H83: 17.870001 | I83: 15.655313 | J83: 92275 | K83: 17.870001 | L83: 15.655313
B84: 2006-01-03 | C84: FALSE | D84: 2005 | E84: 89.019997 | F84: 89.940002 | G84: 89.019997 | H84: 17.940001 | I84: 15.716638 | J84: 102275 | K84: 17.940001 | L84: 15.716638
B85: 2006-01-04 | C85: FALSE | D85: 2005 | E85: 89.400002 | F85: 91.400002 | G85: 89.400002 | H85: 18.236 | I85: 15.975955 | J85: 167260 | K85: 18.236 | L85: 15.975955
B86: 2006-01-05 | C86: FALSE | D86: 2005 | E86: 91.199997 | F86: 92.400002 | G86: 90.220001 | H86: 18.298 | I86: 16.030266 | J86: 124145 | K86: 18.298 | L86: 16.030266
B87: 2006-01-06 | C87: FALSE | D87: 2005 | E87: 91.980003 | F87: 92.540001 | G87: 91.599998 | H87: 18.445999 | I87: 16.159924 | J87: 167495 | K87: 18.445999 | L87: 16.159924
B88: 2006-01-09 | C88: FALSE | D88: 2005 | E88: 94 | F88: 94.699997 | G88: 92.599998 | H88: 18.806 | I88: 16.475311 | J88: 261475 | K88: 18.806 | L88: 16.475311
B89: 2006-01-10 | C89: FALSE | D89: 2005 | E89: 94 | F89: 95 | G89: 93.800003 | H89: 18.954 | I89: 16.604965 | J89: 191910 | K89: 18.954 | L89: 16.604965
B90: 2006-01-12 | C90: FALSE | D90: 2005 | E90: 94.800003 | F90: 95 | G90: 93.050003 | H90: 18.896 | I90: 16.554152 | J90: 148920 | K90: 18.896 | L90: 16.554152
B91: 2006-01-13 | C91: FALSE | D91: 2005 | E91: 94.900002 | F91: 94.980003 | G91: 93 | H91: 18.66 | I91: 16.347404 | J91: 133920 | K91: 18.66 | L91: 16.347404
B92: 2006-01-16 | C92: FALSE | D92: 2005 | E92: 94 | F92: 95.199997 | G92: 93.610001 | H92: 18.93 | I92: 16.583944 | J92: 471185 | K92: 18.93 | L92: 16.583944
B93: 2006-01-17 | C93: FALSE | D93: 2005 | E93: 95 | F93: 96.199997 | G93: 94.559998 | H93: 18.958 | I93: 16.608475 | J93: 328385 | K93: 18.958 | L93: 16.608475
B94: 2006-01-18 | C94: FALSE | D94: 2005 | E94: 95 | F94: 95 | G94: 93.809998 | H94: 18.884001 | I94: 16.543642 | J94: 151545 | K94: 18.884001 | L94: 16.543642
B95: 2006-01-19 | C95: FALSE | D95: 2005 | E95: 94.419998 | F95: 97 | G95: 94 | H95: 19.266001 | I95: 16.8783 | J95: 200045 | K95: 19.266001 | L95: 16.8783
B96: 2006-01-20 | C96: FALSE | D96: 2005 | E96: 96.800003 | F96: 97.980003 | G96: 96.209999 | H96: 19.448 | I96: 17.037743 | J96: 325780 | K96: 19.448 | L96: 17.037743
B97: 2006-01-23 | C97: FALSE | D97: 2005 | E97: 97.400002 | F97: 97.669998 | G97: 96.260002 | H97: 19.35 | I97: 16.951891 | J97: 168135 | K97: 19.35 | L97: 16.951891
B98: 2006-01-24 | C98: FALSE | D98: 2005 | E98: 97.379997 | F98: 97.599998 | G98: 96.510002 | H98: 19.476 | I98: 17.062271 | J98: 210740 | K98: 19.476 | L98: 17.062271
B99: 2006-01-25 | C99: FALSE | D99: 2005 | E99: 97.400002 | F99: 97.589996 | G99: 96.230003 | H99: 19.290001 | I99: 16.89933 | J99: 131365 | K99: 19.290001 | L99: 16.89933
B100: 2006-01-27 | C100: FALSE | D100: 2005 | E100: 96.300003 | F100: 96.800003 | G100: 94.419998 | H100: 18.926001 | I100: 16.580439 | J100: 174460 | K100: 18.926001 | L100: 16.580439
B101: 2006-01-30 | C101: FALSE | D101: 2005 | E101: 97 | F101: 97 | G101: 92.239998 | H101: 18.496 | I101: 16.203728 | J101: 58390 | K101: 18.496 | L101: 16.203728
B102: 2006-01-31 | C102: FALSE | D102: 2005 | E102: 94 | F102: 94 | G102: 92.040001 | H102: 18.468 | I102: 16.179201 | J102: 47400 | K102: 18.468 | L102: 16.179201
B103: 2006-02-01 | C103: FALSE | D103: 2005 | E103: 92.199997 | F103: 93.129997 | G103: 92.199997 | H103: 18.601999 | I103: 16.296593 | J103: 98715 | K103: 18.601999 | L103: 16.296593
B104: 2006-02-02 | C104: FALSE | D104: 2005 | E104: 92.800003 | F104: 93.199997 | G104: 92.400002 | H104: 18.572001 | I104: 16.270309 | J104: 93825 | K104: 18.572001 | L104: 16.270309
B105: 2006-02-03 | C105: FALSE | D105: 2005 | E105: 91.309998 | F105: 96.800003 | G105: 91.209999 | H105: 18.566 | I105: 16.265053 | J105: 350655 | K105: 18.566 | L105: 16.265053
B106: 2006-02-06 | C106: FALSE | D106: 2005 | E106: 92.900002 | F106: 94.779999 | G106: 92.220001 | H106: 18.804001 | I106: 16.47356 | J106: 232180 | K106: 18.804001 | L106: 16.47356
B107: 2006-02-07 | C107: FALSE | D107: 2005 | E107: 92.75 | F107: 96 | G107: 92.75 | H107: 19.104 | I107: 16.736382 | J107: 130270 | K107: 19.104 | L107: 16.736382
B108: 2006-02-08 | C108: FALSE | D108: 2005 | E108: 93.400002 | F108: 95 | G108: 93.400002 | H108: 18.958 | I108: 16.608475 | J108: 59410 | K108: 18.958 | L108: 16.608475
B109: 2006-02-10 | C109: FALSE | D109: 2005 | E109: 93.010002 | F109: 96 | G109: 93.010002 | H109: 18.927999 | I109: 16.582193 | J109: 143780 | K109: 18.927999 | L109: 16.582193
B110: 2006-02-13 | C110: FALSE | D110: 2005 | E110: 94.300003 | F110: 95 | G110: 93.949997 | H110: 18.84 | I110: 16.505098 | J110: 52555 | K110: 18.84 | L110: 16.505098
B111: 2006-02-14 | C111: FALSE | D111: 2005 | E111: 93.050003 | F111: 94.360001 | G111: 93.050003 | H111: 18.813999 | I111: 16.482317 | J111: 73095 | K111: 18.813999 | L111: 16.482317
B112: 2006-02-15 | C112: FALSE | D112: 2005 | E112: 95.599998 | F112: 95.599998 | G112: 92.800003 | H112: 18.68 | I112: 16.364927 | J112: 78115 | K112: 18.68 | L112: 16.364927
B113: 2006-02-16 | C113: FALSE | D113: 2005 | E113: 94.400002 | F113: 94.400002 | G113: 93.309998 | H113: 18.836 | I113: 16.501596 | J113: 78165 | K113: 18.836 | L113: 16.501596
B114: 2006-02-17 | C114: FALSE | D114: 2005 | E114: 94 | F114: 96.800003 | G114: 94 | H114: 19.021999 | I114: 16.664541 | J114: 250825 | K114: 19.021999 | L114: 16.664541
B115: 2006-02-20 | C115: FALSE | D115: 2005 | E115: 94.260002 | F115: 95 | G115: 92.809998 | H115: 18.926001 | I115: 16.580439 | J115: 98985 | K115: 18.926001 | L115: 16.580439
B116: 2006-02-21 | C116: FALSE | D116: 2005 | E116: 94.400002 | F116: 94.599998 | G116: 93.199997 | H116: 18.841999 | I116: 16.506847 | J116: 75040 | K116: 18.841999 | L116: 16.506847
B117: 2006-02-22 | C117: FALSE | D117: 2005 | E117: 94 | F117: 94.540001 | G117: 93.599998 | H117: 18.794001 | I117: 16.464802 | J117: 78120 | K117: 18.794001 | L117: 16.464802
B118: 2006-02-23 | C118: FALSE | D118: 2005 | E118: 93.220001 | F118: 94 | G118: 93.110001 | H118: 18.709999 | I118: 16.391207 | J118: 71225 | K118: 18.709999 | L118: 16.391207
B119: 2006-02-24 | C119: FALSE | D119: 2005 | E119: 92.82 | F119: 94.32 | G119: 92.809998 | H119: 18.816 | I119: 16.48407 | J119: 81955 | K119: 18.816 | L119: 16.48407
B120: 2006-02-27 | C120: FALSE | D120: 2005 | E120: 94 | F120: 94.199997 | G120: 93.599998 | H120: 18.796 | I120: 16.466553 | J120: 44905 | K120: 18.796 | L120: 16.466553
B121: 2006-02-28 | C121: FALSE | D121: 2005 | E121: 92.599998 | F121: 94.5 | G121: 92.599998 | H121: 18.856001 | I121: 16.519114 | J121: 94085 | K121: 18.856001 | L121: 16.519114
B122: 2006-03-01 | C122: FALSE | D122: 2005 | E122: 92.800003 | F122: 94.5 | G122: 92.800003 | H122: 18.790001 | I122: 16.461294 | J122: 105855 | K122: 18.790001 | L122: 16.461294
B123: 2006-03-02 | C123: FALSE | D123: 2005 | E123: 86.660004 | F123: 94.099998 | G123: 86.660004 | H123: 18.799999 | I123: 16.470053 | J123: 85465 | K123: 18.799999 | L123: 16.470053
B124: 2006-03-03 | C124: FALSE | D124: 2005 | E124: 93.230003 | F124: 94.099998 | G124: 93.230003 | H124: 18.798 | I124: 16.468302 | J124: 123565 | K124: 18.798 | L124: 16.468302
B125: 2006-03-06 | C125: FALSE | D125: 2005 | E125: 93.599998 | F125: 94.300003 | G125: 93.099998 | H125: 18.780001 | I125: 16.452534 | J125: 111095 | K125: 18.780001 | L125: 16.452534
B126: 2006-03-07 | C126: FALSE | D126: 2005 | E126: 93.019997 | F126: 94 | G126: 92.029999 | H126: 18.492001 | I126: 16.200228 | J126: 107375 | K126: 18.492001 | L126: 16.200228
B127: 2006-03-08 | C127: FALSE | D127: 2005 | E127: 92.050003 | F127: 92.900002 | G127: 91.610001 | H127: 18.396 | I127: 16.116125 | J127: 91435 | K127: 18.396 | L127: 16.116125
B128: 2006-03-09 | C128: FALSE | D128: 2005 | E128: 90.800003 | F128: 92.25 | G128: 90.800003 | H128: 18.393999 | I128: 16.114368 | J128: 87180 | K128: 18.393999 | L128: 16.114368
B129: 2006-03-10 | C129: FALSE | D129: 2005 | E129: 92 | F129: 92.599998 | G129: 91.220001 | H129: 18.402 | I129: 16.121378 | J129: 85990 | K129: 18.402 | L129: 16.121378
B130: 2006-03-13 | C130: FALSE | D130: 2005 | E130: 91.300003 | F130: 92 | G130: 90.519997 | H130: 18.209999 | I130: 15.953174 | J130: 50235 | K130: 18.209999 | L130: 15.953174
B131: 2006-03-14 | C131: FALSE | D131: 2005 | E131: 91.099998 | F131: 92.559998 | G131: 91 | H131: 18.336 | I131: 16.063559 | J131: 89630 | K131: 18.336 | L131: 16.063559
B132: 2006-03-16 | C132: =AND(MONTH(B132)=$C$1,MONTH(B131)<>$C$1) -> FALSE | D132: 2005 | E132: 91.779999 | F132: 91.800003 | G132: 90.839996 | H132: 18.219999 | I132: 15.961934 | J132: 76325 | K132: =IF(ISNUMBER(H132),H132,H131) -> 18.219999 | L132: 15.961934
B133: 2006-03-17 | C133: FALSE | D133: =IF(C133,D132+1,D132) -> 2005 | E133: 91.019997 | F133: 91.050003 | G133: 90.029999 | H133: 18.122 | I133: 15.876081 | J133: 56500 | K133: 18.122 | L133: 15.876081
B134: 2006-03-20 | C134: FALSE | D134: 2005 | E134: 90.800003 | F134: 90.800003 | G134: 89.800003 | H134: 18.021999 | I134: 15.788474 | J134: 60425 | K134: 18.021999 | L134: 15.788474
B135: 2006-03-21 | C135: FALSE | D135: 2005 | E135: 90.400002 | F135: 90.699997 | G135: 89.120003 | H135: 17.982 | I135: 15.753431 | J135: 47725 | K135: 17.982 | L135: 15.753431
B136: 2006-03-22 | C136: FALSE | D136: 2005 | E136: 89.199997 | F136: 90.68 | G136: 89.120003 | H136: 18.054001 | I136: 15.816509 | J136: 73805 | K136: 18.054001 | L136: 15.816509
B137: 2006-03-23 | C137: FALSE | D137: 2005 | E137: 90.019997 | F137: 92 | G137: 89.82 | H137: 18.257999 | I137: 15.995226 | J137: 145145 | K137: 18.257999 | L137: 15.995226
B138: 2006-03-24 | C138: FALSE | D138: 2005 | E138: 91.220001 | F138: 91.400002 | G138: 90.599998 | H138: 18.209999 | I138: 15.953174 | J138: 89185 | K138: 18.209999 | L138: 15.953174
B139: 2006-03-27 | C139: FALSE | D139: 2005 | E139: 89.610001 | F139: 91.550003 | G139: 89.599998 | H139: 18.216 | I139: 15.95843 | J139: 99455 | K139: 18.216 | L139: 15.95843
B140: 2006-03-28 | C140: FALSE | D140: 2005 | E140: 90.25 | F140: 91.5 | G140: 89 | H140: 17.952 | I140: 15.727147 | J140: 195805 | K140: 17.952 | L140: 15.727147
B141: 2006-03-29 | C141: FALSE | D141: 2005 | E141: 89.400002 | F141: 94.779999 | G141: 89.400002 | H141: 18.648001 | I141: 16.336895 | J141: 145065 | K141: 18.648001 | L141: 16.336895
B142: 2006-03-30 | C142: FALSE | D142: 2005 | E142: 93 | F142: 94 | G142: 93 | H142: 18.65 | I142: 16.338642 | J142: 54140 | K142: 18.65 | L142: 16.338642
B143: 2006-03-31 | C143: FALSE | D143: 2005 | E143: 93.25 | F143: 93.599998 | G143: 93.199997 | H143: 18.646 | I143: 16.33514 | J143: 46000 | K143: 18.646 | L143: 16.33514
B144: 2006-04-03 | C144: TRUE | D144: 2006 | E144: 90 | F144: 95.599998 | G144: 90 | H144: 18.993999 | I144: 16.640009 | J144: 123800 | K144: 18.993999 | L144: 16.640009
B145: 2006-04-04 | C145: FALSE | D145: 2006 | E145: 94 | F145: 95.800003 | G145: 94 | H145: 19.120001 | I145: 16.750397 | J145: 93745 | K145: 19.120001 | L145: 16.750397
B146: 2006-04-05 | C146: FALSE | D146: 2006 | E146: 95.599998 | F146: 97.400002 | G146: 94.400002 | H146: 19.392 | I146: 16.988686 | J146: 170750 | K146: 19.392 | L146: 16.988686
B147: 2006-04-07 | C147: FALSE | D147: 2006 | E147: 97.599998 | F147: 97.940002 | G147: 95.199997 | H147: 19.393999 | I147: 16.99044 | J147: 159890 | K147: 19.393999 | L147: 16.99044
B148: 2006-04-10 | C148: FALSE | D148: 2006 | E148: 95.199997 | F148: 97.480003 | G148: 95.199997 | H148: 19.452 | I148: 17.04125 | J148: 62850 | K148: 19.452 | L148: 17.04125
B149: 2006-04-12 | C149: FALSE | D149: 2006 | E149: 97.879997 | F149: 97.879997 | G149: 94 | H149: 19.332001 | I149: 16.936123 | J149: 77380 | K149: 19.332001 | L149: 16.936123
B150: 2006-04-13 | C150: FALSE | D150: 2006 | E150: 95.019997 | F150: 97.400002 | G150: 95 | H150: 19.4 | I150: 16.995693 | J150: 123825 | K150: 19.4 | L150: 16.995693
B151: 2006-04-17 | C151: FALSE | D151: 2006 | E151: 96.980003 | F151: 97.360001 | G151: 95.220001 | H151: 19.417999 | I151: 17.011465 | J151: 149715 | K151: 19.417999 | L151: 17.011465
B152: 2006-04-18 | C152: FALSE | D152: 2006 | E152: 97.089996 | F152: 103.879997 | G152: 97.089996 | H152: 20.686001 | I152: 18.122318 | J152: 528315 | K152: 20.686001 | L152: 18.122318
B153: 2006-04-19 | C153: FALSE | D153: 2006 | E153: 105 | F153: 109.540001 | G153: 103.599998 | H153: 21.25 | I153: 18.616417 | J153: 691300 | K153: 21.25 | L153: 18.616417
B154: 2006-04-20 | C154: FALSE | D154: 2006 | E154: 100.470001 | F154: 107 | G154: 100.470001 | H154: 21.302 | I154: 18.661974 | J154: 251280 | K154: 21.302 | L154: 18.661974
B155: 2006-04-21 | C155: FALSE | D155: 2006 | E155: 106 | F155: 106.400002 | G155: 102.199997 | H155: 20.823999 | I155: 18.243214 | J155: 104580 | K155: 20.823999 | L155: 18.243214
B156: 2006-04-24 | C156: FALSE | D156: 2006 | E156: 102 | F156: 104.599998 | G156: 102 | H156: 20.712 | I156: 18.145094 | J156: 55170 | K156: 20.712 | L156: 18.145094
B157: 2006-04-25 | C157: FALSE | D157: 2006 | E157: 102.400002 | F157: 105 | G157: 102 | H157: 20.719999 | I157: 18.1521 | J157: 84965 | K157: 20.719999 | L157: 18.1521
B158: 2006-04-26 | C158: FALSE | D158: 2006 | E158: 102.199997 | F158: 104.699997 | G158: 102.080002 | H158: 20.738001 | I158: 18.167873 | J158: 67600 | K158: 20.738001 | L158: 18.167873
B159: 2006-04-27 | C159: FALSE | D159: 2006 | E159: 107.980003 | F159: 108 | G159: 102 | H159: 20.982 | I159: 18.381636 | J159: 94240 | K159: 20.982 | L159: 18.381636
B160: 2006-04-28 | C160: FALSE | D160: 2006 | E160: 103.599998 | F160: 103.599998 | G160: 96 | H160: 20.653999 | I160: 18.094282 | J160: 62345 | K160: 20.653999 | L160: 18.094282
B161: 2006-05-02 | C161: FALSE | D161: 2006 | E161: 103.400002 | F161: 105.400002 | G161: 103.279999 | H161: 20.927999 | I161: 18.334326 | J161: 117735 | K161: 20.927999 | L161: 18.334326
B162: 2006-05-03 | C162: FALSE | D162: 2006 | E162: 103.599998 | F162: 105.339996 | G162: 103.300003 | H162: 20.917999 | I162: 18.325562 | J162: 134435 | K162: 20.917999 | L162: 18.325562
B163: 2006-05-04 | C163: FALSE | D163: 2006 | E163: 105 | F163: 105.800003 | G163: 103.610001 | H163: 21.056 | I163: 18.446457 | J163: 247495 | K163: 21.056 | L163: 18.446457
B164: 2006-05-05 | C164: FALSE | D164: 2006 | E164: 104.599998 | F164: 105.989998 | G164: 104.400002 | H164: 21.046 | I164: 18.4377 | J164: 46000 | K164: 21.046 | L164: 18.4377
B165: 2006-05-08 | C165: FALSE | D165: 2006 | E165: 105.800003 | F165: 106.199997 | G165: 104.120003 | H165: 21.195999 | I165: 18.569107 | J165: 124445 | K165: 21.195999 | L165: 18.569107
B166: 2006-05-09 | C166: FALSE | D166: 2006 | E166: 104 | F166: 106.599998 | G166: 102.800003 | H166: 21.228001 | I166: 18.597145 | J166: 233310 | K166: 21.228001 | L166: 18.597145
B167: 2006-05-10 | C167: FALSE | D167: 2006 | E167: 106.980003 | F167: 108.599998 | G167: 103.25 | H167: 21.52 | I167: 18.852961 | J167: 461610 | K167: 21.52 | L167: 18.852961
B168: 2006-05-11 | C168: FALSE | D168: 2006 | E168: 103.800003 | F168: 106.989998 | G168: 103.800003 | H168: 21.285999 | I168: 18.647957 | J168: 67525 | K168: 21.285999 | L168: 18.647957
B169: 2006-05-12 | C169: FALSE | D169: 2006 | E169: 106 | F169: 110.199997 | G169: 106 | H169: 21.940001 | I169: 19.220903 | J169: 333375 | K169: 21.940001 | L169: 19.220903
B170: 2006-05-15 | C170: FALSE | D170: 2006 | E170: 106.440002 | F170: 109.599998 | G170: 105.599998 | H170: 21.232 | I170: 18.600649 | J170: 113115 | K170: 21.232 | L170: 18.600649
B171: 2006-05-16 | C171: FALSE | D171: 2006 | E171: 104.400002 | F171: 105.199997 | G171: 98.220001 | H171: 20.694 | I171: 18.129328 | J171: 66370 | K171: 20.694 | L171: 18.129328
B172: 2006-05-17 | C172: FALSE | D172: 2006 | E172: 103.010002 | F172: 107 | G172: 103.010002 | H172: 21.208 | I172: 18.579622 | J172: 46830 | K172: 21.208 | L172: 18.579622
B173: 2006-05-18 | C173: FALSE | D173: 2006 | E173: 104 | F173: 104 | G173: 100 | H173: 20.025999 | I173: 17.544115 | J173: 38055 | K173: 20.025999 | L173: 17.544115
B174: 2006-05-19 | C174: FALSE | D174: 2006 | E174: 101 | F174: 104 | G174: 100 | H174: 20.43 | I174: 17.898043 | J174: 130545 | K174: 20.43 | L174: 17.898043
B175: 2006-05-22 | C175: FALSE | D175: 2006 | E175: 98.400002 | F175: 100.800003 | G175: 89.599998 | H175: 19.826 | I175: 17.3689 | J175: 83940 | K175: 19.826 | L175: 17.3689
B176: 2006-05-23 | C176: FALSE | D176: 2006 | E176: 101.400002 | F176: 101.400002 | G176: 94.199997 | H176: 20 | I176: 17.521334 | J176: 65565 | K176: 20 | L176: 17.521334
B177: 2006-05-24 | C177: FALSE | D177: 2006 | E177: 100.400002 | F177: 101.400002 | G177: 98.199997 | H177: 19.996 | I177: 17.517832 | J177: 515950 | K177: 19.996 | L177: 17.517832
B178: 2006-05-25 | C178: FALSE | D178: 2006 | E178: 95.279999 | F178: 98 | G178: 94.610001 | H178: 19.356001 | I178: 16.95715 | J178: 136565 | K178: 19.356001 | L178: 16.95715
B179: 2006-05-26 | C179: FALSE | D179: 2006 | E179: 97.5 | F179: 99.800003 | G179: 97 | H179: 19.736 | I179: 17.290051 | J179: 13220 | K179: 19.736 | L179: 17.290051
B180: 2006-05-29 | C180: FALSE | D180: 2006 | E180: 95 | F180: 99.790001 | G180: 91.279999 | H180: 19.826 | I180: 17.3689 | J180: 35870 | K180: 19.826 | L180: 17.3689
B181: 2006-05-30 | C181: FALSE | D181: 2006 | E181: 98.790001 | F181: 100.370003 | G181: 98.790001 | H181: 19.99 | I181: 17.512573 | J181: 34080 | K181: 19.99 | L181: 17.512573
B182: 2006-05-31 | C182: FALSE | D182: 2006 | E182: 94 | F182: 102 | G182: 94 | H182: 19.85 | I182: 17.389927 | J182: 86400 | K182: 19.85 | L182: 17.389927
B183: 2006-06-01 | C183: FALSE | D183: 2006 | E183: 99 | F183: 100.18 | G183: 98.970001 | H183: 19.888 | I183: 17.423216 | J183: 129535 | K183: 19.888 | L183: 17.423216
B184: 2006-06-02 | C184: FALSE | D184: 2006 | E184: 94.199997 | F184: 99.800003 | G184: 94.199997 | H184: 19.812 | I184: 17.356632 | J184: 58805 | K184: 19.812 | L184: 17.356632
B185: 2006-06-05 | C185: FALSE | D185: 2006 | E185: 99 | F185: 99.800003 | G185: 98.959999 | H185: 19.804001 | I185: 17.349627 | J185: 45440 | K185: 19.804001 | L185: 17.349627
B186: 2006-06-06 | C186: FALSE | D186: 2006 | E186: 91.599998 | F186: 97.959999 | G186: 90.199997 | H186: 18.518 | I186: 16.223009 | J186: 17385 | K186: 18.518 | L186: 16.223009
B187: 2006-06-07 | C187: FALSE | D187: 2006 | E187: 89 | F187: 93.199997 | G187: 88.300003 | H187: 17.764 | I187: 15.562449 | J187: 204955 | K187: 17.764 | L187: 15.562449
B188: 2006-06-08 | C188: FALSE | D188: 2006 | E188: 87.050003 | F188: 88.199997 | G188: 83.900002 | H188: 16.988001 | I188: 14.882623 | J188: 224720 | K188: 16.988001 | L188: 14.882623
B189: 2006-06-09 | C189: FALSE | D189: 2006 | E189: 84.419998 | F189: 86 | G189: 84 | H189: 16.875999 | I189: 14.784505 | J189: 128595 | K189: 16.875999 | L189: 14.784505
B190: 2006-06-12 | C190: FALSE | D190: 2006 | E190: 84.120003 | F190: 85.790001 | G190: 80.419998 | H190: 16.166 | I190: 14.162497 | J190: 18915 | K190: 16.166 | L190: 14.162497
B191: 2006-06-13 | C191: FALSE | D191: 2006 | E191: 79.019997 | F191: 81.980003 | G191: 77.050003 | H191: 15.608 | I191: 13.67365 | J191: 31240 | K191: 15.608 | L191: 13.67365
B192: 2006-06-14 | C192: FALSE | D192: 2006 | E192: 79 | F192: 79.790001 | G192: 71.849998 | H192: 14.626 | I192: 12.813354 | J192: 17885 | K192: 14.626 | L192: 12.813354
B193: 2006-06-15 | C193: FALSE | D193: 2006 | E193: 87.650002 | F193: 87.650002 | G193: 74 | H193: 15.112 | I193: 13.239121 | J193: 72145 | K193: 15.112 | L193: 13.239121
B194: 2006-06-16 | C194: FALSE | D194: 2006 | E194: 73.199997 | F194: 80 | G194: 73.199997 | H194: 15.886 | I194: 13.917196 | J194: 44245 | K194: 15.886 | L194: 13.917196
B195: 2006-06-19 | C195: FALSE | D195: 2006 | E195: 79.650002 | F195: 79.650002 | G195: 78.339996 | H195: 15.688 | I195: 13.743737 | J195: 8310 | K195: 15.688 | L195: 13.743737
B196: 2006-06-20 | C196: =AND(MONTH(B196)=$C$1,MONTH(B195)<>$C$1) -> FALSE | D196: 2006 | E196: 86 | F196: 86 | G196: 77.019997 | H196: 15.542 | I196: 13.615829 | J196: 17040 | K196: =IF(ISNUMBER(H196),H196,H195) -> 15.542 | L196: 13.615829
B197: 2006-06-21 | C197: FALSE | D197: =IF(C197,D196+1,D196) -> 2006 | E197: 78.589996 | F197: 78.589996 | G197: 76.800003 | H197: 15.424 | I197: 13.512452 | J197: 21385 | K197: 15.424 | L197: 13.512452
B198: 2006-06-22 | C198: FALSE | D198: 2006 | E198: 78.599998 | F198: 80 | G198: 76 | H198: 15.44 | I198: 13.526468 | J198: 148630 | K198: 15.44 | L198: 13.526468
B199: 2006-06-23 | C199: FALSE | D199: 2006 | E199: 77.959999 | F199: 77.980003 | G199: 76.800003 | H199: 15.45 | I199: 13.53523 | J199: 8285 | K199: 15.45 | L199: 13.53523
B200: 2006-06-26 | C200: FALSE | D200: 2006 | E200: 78.400002 | F200: 79.599998 | G200: 77.419998 | H200: 15.812 | I200: 13.852368 | J200: 26220 | K200: 15.812 | L200: 13.852368
... 3160 more rows

Sheet Nifty Fifty
A1: Date | B1: Open | C1: High | D1: Low | E1: Close | F1: Adj Close | G1: Volume
A2: 2007-09-17 | B2: 4518.450195 | C2: 4549.049805 | D2: 4482.850098 | E2: 4494.649902 | F2: 4494.649902 | G2: 0
A3: 2007-09-18 | B3: 4494.100098 | C3: 4551.799805 | D3: 4481.549805 | E3: 4546.200195 | F3: 4546.200195 | G3: 0
A4: 2007-09-19 | B4: 4550.25 | C4: 4739 | D4: 4550.25 | E4: 4732.350098 | F4: 4732.350098 | G4: 0
A5: 2007-09-20 | B5: 4734.850098 | C5: 4760.850098 | D5: 4721.149902 | E5: 4747.549805 | F5: 4747.549805 | G5: 0
A6: 2007-09-21 | B6: 4752.950195 | C6: 4855.700195 | D6: 4733.700195 | E6: 4837.549805 | F6: 4837.549805 | G6: 0
A7: 2007-09-24 | B7: 4837.149902 | C7: 4941.149902 | D7: 4837.149902 | E7: 4932.200195 | F7: 4932.200195 | G7: 0
A8: 2007-09-25 | B8: 4939.100098 | C8: 4953.899902 | D8: 4878.149902 | E8: 4938.850098 | F8: 4938.850098 | G8: 0
A9: 2007-09-26 | B9: 4937.600098 | C9: 4980.850098 | D9: 4930.350098 | E9: 4940.5 | F9: 4940.5 | G9: 0
A10: 2007-09-27 | B10: 4942.700195 | C10: 5016.399902 | D10: 4942.700195 | E10: 5000.549805 | F10: 5000.549805 | G10: 0
A11: 2007-09-28 | B11: 4996.450195 | C11: 5055.799805 | D11: 4996.450195 | E11: 5021.350098 | F11: 5021.350098 | G11: 0
A12: 2007-10-01 | B12: 5021.5 | C12: 5089.299805 | D12: 5001.350098 | E12: 5068.950195 | F12: 5068.950195 | G12: 0
A13: 2007-10-03 | B13: 5069 | C13: 5261.350098 | D13: 5034.149902 | E13: 5210.799805 | F13: 5210.799805 | G13: 0
A14: 2007-10-04 | B14: 5211.649902 | C14: 5233.100098 | D14: 5126.049805 | E14: 5208.649902 | F14: 5208.649902 | G14: 0
A15: 2007-10-05 | B15: 5208.149902 | C15: 5248.549805 | D15: 5164.5 | E15: 5185.850098 | F15: 5185.850098 | G15: 0
A16: 2007-10-08 | B16: 5186.25 | C16: 5249.299805 | D16: 5024.75 | E16: 5085.100098 | F16: 5085.100098 | G16: 0
A17: 2007-10-09 | B17: 5062.649902 | C17: 5348.700195 | D17: 5000.950195 | E17: 5327.25 | F17: 5327.25 | G17: 0
A18: 2007-10-10 | B18: 5328.149902 | C18: 5454.700195 | D18: 5328.149902 | E18: 5441.450195 | F18: 5441.450195 | G18: 0
A19: 2007-10-11 | B19: 5438.899902 | C19: 5532.75 | D19: 5424.25 | E19: 5524.850098 | F19: 5524.850098 | G19: 0
A20: 2007-10-12 | B20: 5525.299805 | C20: 5549.299805 | D20: 5402.600098 | E20: 5428.25 | F20: 5428.25 | G20: 0
A21: 2007-10-15 | B21: 5428.350098 | C21: 5682.649902 | D21: 5419.899902 | E21: 5670.399902 | F21: 5670.399902 | G21: 0
A22: 2007-10-16 | B22: 5670.649902 | C22: 5708.350098 | D22: 5578.450195 | E22: 5668.049805 | F22: 5668.049805 | G22: 0
A23: 2007-10-17 | B23: 5658.899902 | C23: 5658.899902 | D23: 5107.299805 | E23: 5559.299805 | F23: 5559.299805 | G23: 0
A24: 2007-10-18 | B24: 5551.100098 | C24: 5736.799805 | D24: 5269.649902 | E24: 5351 | F24: 5351 | G24: 0
A25: 2007-10-19 | B25: 5360.350098 | C25: 5390.850098 | D25: 5101.75 | E25: 5215.299805 | F25: 5215.299805 | G25: 0
A26: 2007-10-22 | B26: 5202.75 | C26: 5247.399902 | D26: 5070.899902 | E26: 5184 | F26: 5184 | G26: 0
A27: 2007-10-23 | B27: 5185.299805 | C27: 5488.5 | D27: 5176.850098 | E27: 5473.700195 | F27: 5473.700195 | G27: 0
A28: 2007-10-24 | B28: 5477.600098 | C28: 5577.899902 | D28: 5419.399902 | E28: 5496.149902 | F28: 5496.149902 | G28: 0
A29: 2007-10-25 | B29: 5499.049805 | C29: 5605.950195 | D29: 5469.299805 | E29: 5568.950195 | F29: 5568.950195 | G29: 0
A30: 2007-10-26 | B30: 5564.25 | C30: 5716.899902 | D30: 5513.350098 | E30: 5702.299805 | F30: 5702.299805 | G30: 0
A31: 2007-10-29 | B31: 5708.899902 | C31: 5922.5 | D31: 5708.899902 | E31: 5905.899902 | F31: 5905.899902 | G31: 0
A32: 2007-10-30 | B32: 5917.549805 | C32: 5976 | D32: 5833.899902 | E32: 5868.75 | F32: 5868.75 | G32: 0
A33: 2007-10-31 | B33: 5868.899902 | C33: 5952.25 | D33: 5861.299805 | E33: 5900.649902 | F33: 5900.649902 | G33: 0
A34: 2007-11-01 | B34: 5903.799805 | C34: 6011.950195 | D34: 5837.200195 | E34: 5866.450195 | F34: 5866.450195 | G34: 0
A35: 2007-11-02 | B35: 5854.850098 | C35: 5944.75 | D35: 5714.25 | E35: 5932.399902 | F35: 5932.399902 | G35: 0
A36: 2007-11-05 | B36: 5931.899902 | C36: 5948.549805 | D36: 5819.600098 | E36: 5847.299805 | F36: 5847.299805 | G36: 0
A37: 2007-11-06 | B37: 5847.100098 | C37: 5957.200195 | D37: 5759.950195 | E37: 5786.5 | F37: 5786.5 | G37: 0
A38: 2007-11-07 | B38: 5782.399902 | C38: 5861.350098 | D38: 5744.299805 | E38: 5782.350098 | F38: 5782.350098 | G38: 0
A39: 2007-11-08 | B39: 5779.299805 | C39: 5780.799805 | D39: 5646.75 | E39: 5698.75 | F39: 5698.75 | G39: 0
A40: 2007-11-12 | B40: 5660.600098 | C40: 5660.600098 | D40: 5477.5 | E40: 5617.100098 | F40: 5617.100098 | G40: 0
A41: 2007-11-13 | B41: 5612.350098 | C41: 5758.850098 | D41: 5591.600098 | E41: 5695.399902 | F41: 5695.399902 | G41: 0
A42: 2007-11-14 | B42: 5703.950195 | C42: 5950.200195 | D42: 5700.049805 | E42: 5937.899902 | F42: 5937.899902 | G42: 0
A43: 2007-11-15 | B43: 5942.700195 | C43: 5966.950195 | D43: 5895.649902 | E43: 5912.100098 | F43: 5912.100098 | G43: 0
A44: 2007-11-16 | B44: 5913.149902 | C44: 5948.049805 | D44: 5817.399902 | E44: 5906.850098 | F44: 5906.850098 | G44: 0
A45: 2007-11-19 | B45: 5908.049805 | C45: 5981.799805 | D45: 5893.799805 | E45: 5907.649902 | F45: 5907.649902 | G45: 0
A46: 2007-11-20 | B46: 5911.25 | C46: 5923.700195 | D46: 5755.799805 | E46: 5780.899902 | F46: 5780.899902 | G46: 0
A47: 2007-11-21 | B47: 5778.799805 | C47: 5790.049805 | D47: 5530.850098 | E47: 5561.049805 | F47: 5561.049805 | G47: 0
A48: 2007-11-22 | B48: 5564.649902 | C48: 5608.649902 | D48: 5394.350098 | E48: 5519.350098 | F48: 5519.350098 | G48: 0
A49: 2007-11-23 | B49: 5524.299805 | C49: 5638.600098 | D49: 5514.75 | E49: 5608.600098 | F49: 5608.600098 | G49: 0
A50: 2007-11-26 | B50: 5611.299805 | C50: 5772.549805 | D50: 5608.950195 | E50: 5731.700195 | F50: 5731.700195 | G50: 0
A51: 2007-11-27 | B51: 5729.25 | C51: 5743.549805 | D51: 5655.600098 | E51: 5698.149902 | F51: 5698.149902 | G51: 0
A52: 2007-11-28 | B52: 5699.549805 | C52: 5749.950195 | D52: 5595.5 | E52: 5617.549805 | F52: 5617.549805 | G52: 0
A53: 2007-11-29 | B53: 5617.799805 | C53: 5725 | D53: 5612.100098 | E53: 5634.600098 | F53: 5634.600098 | G53: 0
A54: 2007-11-30 | B54: 5633.899902 | C54: 5782.549805 | D54: 5632.649902 | E54: 5762.75 | F54: 5762.75 | G54: 0
A55: 2007-12-03 | B55: 5765.450195 | C55: 5878.799805 | D55: 5754.600098 | E55: 5865 | F55: 5865 | G55: 0
A56: 2007-12-04 | B56: 5870.200195 | C56: 5897.25 | D56: 5840.299805 | E56: 5858.350098 | F56: 5858.350098 | G56: 0
A57: 2007-12-05 | B57: 5861.899902 | C57: 5949.299805 | D57: 5859.950195 | E57: 5940 | F57: 5940 | G57: 0
A58: 2007-12-06 | B58: 5941.049805 | C58: 6027.049805 | D58: 5919.799805 | E58: 5954.700195 | F58: 5954.700195 | G58: 0
A59: 2007-12-07 | B59: 5963.600098 | C59: 6042.100098 | D59: 5894.799805 | E59: 5974.299805 | F59: 5974.299805 | G59: 0
A60: 2007-12-10 | B60: 5974 | C60: 6015.299805 | D60: 5923.350098 | E60: 5960.600098 | F60: 5960.600098 | G60: 0
A61: 2007-12-11 | B61: 5960.399902 | C61: 6111.200195 | D61: 5960.399902 | E61: 6097.25 | F61: 6097.25 | G61: 0
A62: 2007-12-12 | B62: 6067.049805 | C62: 6175.649902 | D62: 6005.450195 | E62: 6159.299805 | F62: 6159.299805 | G62: 0
A63: 2007-12-13 | B63: 6159.25 | C63: 6185.399902 | D63: 6040.399902 | E63: 6058.100098 | F63: 6058.100098 | G63: 0
A64: 2007-12-14 | B64: 6056.200195 | C64: 6078.549805 | D64: 6015.049805 | E64: 6047.700195 | F64: 6047.700195 | G64: 0
A65: 2007-12-17 | B65: 6037.950195 | C65: 6039.950195 | D65: 5740.600098 | E65: 5777 | F65: 5777 | G65: 0
A66: 2007-12-18 | B66: 5777.600098 | C66: 5874.600098 | D66: 5710.600098 | E66: 5742.299805 | F66: 5742.299805 | G66: 0
A67: 2007-12-19 | B67: 5730.25 | C67: 5840.799805 | D67: 5676.700195 | E67: 5751.149902 | F67: 5751.149902 | G67: 0
A68: 2007-12-20 | B68: 5751.75 | C68: 5799.5 | D68: 5742.75 | E68: 5766.5 | F68: 5766.5 | G68: 0
A69: 2007-12-24 | B69: 5771.299805 | C69: 6001.049805 | D69: 5771.299805 | E69: 5985.100098 | F69: 5985.100098 | G69: 0
A70: 2007-12-26 | B70: 5988.450195 | C70: 6085.25 | D70: 5988.450195 | E70: 6070.75 | F70: 6070.75 | G70: 0
A71: 2007-12-27 | B71: 6069 | C71: 6110.850098 | D71: 6060.200195 | E71: 6081.5 | F71: 6081.5 | G71: 0
A72: 2007-12-28 | B72: 6079.549805 | C72: 6098.600098 | D72: 6021.899902 | E72: 6079.700195 | F72: 6079.700195 | G72: 0
A73: 2007-12-31 | B73: 6095 | C73: 6167.75 | D73: 6095 | E73: 6138.600098 | F73: 6138.600098 | G73: 0
A74: 2008-01-01 | B74: 6136.75 | C74: 6165.350098 | D74: 6109.850098 | E74: 6144.350098 | F74: 6144.350098 | G74: 0
A75: 2008-01-02 | B75: 6144.700195 | C75: 6197 | D75: 6060.850098 | E75: 6179.399902 | F75: 6179.399902 | G75: 0
A76: 2008-01-03 | B76: 6184.25 | C76: 6230.149902 | D76: 6126.399902 | E76: 6178.549805 | F76: 6178.549805 | G76: 0
A77: 2008-01-04 | B77: 6179.100098 | C77: 6300.049805 | D77: 6179.100098 | E77: 6274.299805 | F77: 6274.299805 | G77: 0
A78: 2008-01-07 | B78: 6271 | C78: 6289.799805 | D78: 6193.350098 | E78: 6279.100098 | F78: 6279.100098 | G78: 0
A79: 2008-01-08 | B79: 6282.450195 | C79: 6357.100098 | D79: 6221.600098 | E79: 6287.850098 | F79: 6287.850098 | G79: 0
A80: 2008-01-09 | B80: 6287.549805 | C80: 6338.299805 | D80: 6231.25 | E80: 6272 | F80: 6272 | G80: 0
A81: 2008-01-10 | B81: 6278.100098 | C81: 6347 | D81: 6142.899902 | E81: 6156.950195 | F81: 6156.950195 | G81: 0
A82: 2008-01-11 | B82: 6166.649902 | C82: 6224.200195 | D82: 6112.549805 | E82: 6200.100098 | F82: 6200.100098 | G82: 0
A83: 2008-01-14 | B83: 6208.799805 | C83: 6244.149902 | D83: 6172 | E83: 6206.799805 | F83: 6206.799805 | G83: 0
A84: 2008-01-15 | B84: 6226.350098 | C84: 6260.450195 | D84: 6053.299805 | E84: 6074.25 | F84: 6074.25 | G84: 0
A85: 2008-01-16 | B85: 6065 | C85: 6065 | D85: 5825.75 | E85: 5935.75 | F85: 5935.75 | G85: 0
A86: 2008-01-17 | B86: 5937.950195 | C86: 6013.149902 | D86: 5880.299805 | E86: 5913.200195 | F86: 5913.200195 | G86: 0
A87: 2008-01-18 | B87: 5907.75 | C87: 5908.75 | D87: 5677 | E87: 5705.299805 | F87: 5705.299805 | G87: 0
A88: 2008-01-21 | B88: 5705 | C88: 5705 | D88: 4977.100098 | E88: 5208.799805 | F88: 5208.799805 | G88: 0
A89: 2008-01-22 | B89: 5203.350098 | C89: 5203.350098 | D89: 4448.5 | E89: 4899.299805 | F89: 4899.299805 | G89: 0
A90: 2008-01-23 | B90: 4903.049805 | C90: 5328.049805 | D90: 4891.600098 | E90: 5203.399902 | F90: 5203.399902 | G90: 0
A91: 2008-01-24 | B91: 5208 | C91: 5357.200195 | D91: 4995.799805 | E91: 5033.450195 | F91: 5033.450195 | G91: 0
A92: 2008-01-25 | B92: 5035.049805 | C92: 5399.25 | D92: 5035.049805 | E92: 5383.350098 | F92: 5383.350098 | G92: 0
A93: 2008-01-28 | B93: 5380.950195 | C93: 5380.950195 | D93: 5071 | E93: 5274.100098 | F93: 5274.100098 | G93: 0
A94: 2008-01-29 | B94: 5279.549805 | C94: 5391.600098 | D94: 5225.25 | E94: 5280.799805 | F94: 5280.799805 | G94: 0
A95: 2008-01-30 | B95: 5283.75 | C95: 5314.299805 | D95: 5142.25 | E95: 5167.600098 | F95: 5167.600098 | G95: 0
A96: 2008-01-31 | B96: 5172.25 | C96: 5251.649902 | D96: 5071.149902 | E96: 5137.450195 | F96: 5137.450195 | G96: 0
A97: 2008-02-01 | B97: 5140.600098 | C97: 5339.950195 | D97: 5090.75 | E97: 5317.25 | F97: 5317.25 | G97: 0
A98: 2008-02-04 | B98: 5315.549805 | C98: 5545.200195 | D98: 5315.549805 | E98: 5463.5 | F98: 5463.5 | G98: 0
A99: 2008-02-05 | B99: 5463.75 | C99: 5500.600098 | D99: 5412.950195 | E99: 5483.899902 | F99: 5483.899902 | G99: 0
A100: 2008-02-06 | B100: 5470.399902 | C100: 5470.399902 | D100: 5257.049805 | E100: 5322.549805 | F100: 5322.549805 | G100: 0
A101: 2008-02-07 | B101: 5322.549805 | C101: 5344.600098 | D101: 5113.850098 | E101: 5133.25 | F101: 5133.25 | G101: 0
A102: 2008-02-08 | B102: 5132.100098 | C102: 5173.850098 | D102: 5034.25 | E102: 5120.350098 | F102: 5120.350098 | G102: 0
A103: 2008-02-11 | B103: 5120.549805 | C103: 5126.399902 | D103: 4803.600098 | E103: 4857 | F103: 4857 | G103: 0
A104: 2008-02-12 | B104: 4877.850098 | C104: 4949.600098 | D104: 4820.450195 | E104: 4838.25 | F104: 4838.25 | G104: 0
A105: 2008-02-13 | B105: 4836.549805 | C105: 4986.549805 | D105: 4836.549805 | E105: 4929.450195 | F105: 4929.450195 | G105: 0
A106: 2008-02-14 | B106: 4944.649902 | C106: 5220.25 | D106: 4944.649902 | E106: 5202 | F106: 5202 | G106: 0
A107: 2008-02-15 | B107: 5202.850098 | C107: 5315.399902 | D107: 5104.75 | E107: 5302.899902 | F107: 5302.899902 | G107: 0
A108: 2008-02-18 | B108: 5304.450195 | C108: 5348.600098 | D108: 5224 | E108: 5276.899902 | F108: 5276.899902 | G108: 0
A109: 2008-02-19 | B109: 5278.399902 | C109: 5368.450195 | D109: 5262 | E109: 5280.799805 | F109: 5280.799805 | G109: 0
A110: 2008-02-20 | B110: 5267.149902 | C110: 5267.149902 | D110: 5116.299805 | E110: 5154.450195 | F110: 5154.450195 | G110: 0
A111: 2008-02-21 | B111: 5156.899902 | C111: 5241.350098 | D111: 5120.049805 | E111: 5191.799805 | F111: 5191.799805 | G111: 0
A112: 2008-02-22 | B112: 5183.399902 | C112: 5184 | D112: 5092.799805 | E112: 5110.75 | F112: 5110.75 | G112: 0
A113: 2008-02-25 | B113: 5112.25 | C113: 5212.350098 | D113: 5055.149902 | E113: 5200.700195 | F113: 5200.700195 | G113: 0
A114: 2008-02-26 | B114: 5200.799805 | C114: 5281.200195 | D114: 5200.799805 | E114: 5270.049805 | F114: 5270.049805 | G114: 0
A115: 2008-02-27 | B115: 5271.399902 | C115: 5368.149902 | D115: 5249.75 | E115: 5268.399902 | F115: 5268.399902 | G115: 0
A116: 2008-02-28 | B116: 5266.350098 | C116: 5302.850098 | D116: 5227.149902 | E116: 5285.100098 | F116: 5285.100098 | G116: 0
A117: 2008-02-29 | B117: 5285 | C117: 5290.799805 | D117: 5098.350098 | E117: 5223.5 | F117: 5223.5 | G117: 0
A118: 2008-03-03 | B118: 5222.799805 | C118: 5222.799805 | D118: 4936.049805 | E118: 4953 | F118: 4953 | G118: 0
A119: 2008-03-04 | B119: 4958.549805 | C119: 4976.700195 | D119: 4812.950195 | E119: 4864.25 | F119: 4864.25 | G119: 0
A120: 2008-03-05 | B120: 4866.850098 | C120: 4936.75 | D120: 4847.25 | E120: 4921.399902 | F120: 4921.399902 | G120: 0
A121: 2008-03-07 | B121: 4918.299805 | C121: 4918.299805 | D121: 4672.25 | E121: 4771.600098 | F121: 4771.600098 | G121: 0
A122: 2008-03-10 | B122: 4767.799805 | C122: 4814.950195 | D122: 4620.5 | E122: 4800.399902 | F122: 4800.399902 | G122: 0
A123: 2008-03-11 | B123: 4796.299805 | C123: 4888.5 | D123: 4732.850098 | E123: 4865.899902 | F123: 4865.899902 | G123: 0
A124: 2008-03-12 | B124: 4869.75 | C124: 5019.200195 | D124: 4854.75 | E124: 4872 | F124: 4872 | G124: 0
A125: 2008-03-13 | B125: 4868.700195 | C125: 4868.799805 | D125: 4580.149902 | E125: 4623.600098 | F125: 4623.600098 | G125: 0
A126: 2008-03-14 | B126: 4623.799805 | C126: 4758.950195 | D126: 4607.549805 | E126: 4745.799805 | F126: 4745.799805 | G126: 0
A127: 2008-03-17 | B127: 4745.450195 | C127: 4745.450195 | D127: 4482.100098 | E127: 4503.100098 | F127: 4503.100098 | G127: 0
A128: 2008-03-18 | B128: 4519.899902 | C128: 4617.950195 | D128: 4468.549805 | E128: 4533 | F128: 4533 | G128: 0
A129: 2008-03-19 | B129: 4534.75 | C129: 4718.399902 | D129: 4533.899902 | E129: 4573.950195 | F129: 4573.950195 | G129: 0
A130: 2008-03-24 | B130: 4576.799805 | C130: 4649.450195 | D130: 4539.799805 | E130: 4609.850098 | F130: 4609.850098 | G130: 0
A131: 2008-03-25 | B131: 4616.799805 | C131: 4896.799805 | D131: 4616.799805 | E131: 4877.5 | F131: 4877.5 | G131: 0
A132: 2008-03-26 | B132: 4878.700195 | C132: 4912.299805 | D132: 4808.649902 | E132: 4828.850098 | F132: 4828.850098 | G132: 0
A133: 2008-03-27 | B133: 4828.799805 | C133: 4863.75 | D133: 4769.600098 | E133: 4830.25 | F133: 4830.25 | G133: 0
A134: 2008-03-28 | B134: 4830 | C134: 4970.799805 | D134: 4796.350098 | E134: 4942 | F134: 4942 | G134: 0
A135: 2008-03-31 | B135: 4942.149902 | C135: 4947 | D135: 4703.850098 | E135: 4734.5 | F135: 4734.5 | G135: 0
A136: 2008-04-01 | B136: 4735.649902 | C136: 4800.75 | D136: 4628.75 | E136: 4739.549805 | F136: 4739.549805 | G136: 0
A137: 2008-04-02 | B137: 4741.399902 | C137: 4916.75 | D137: 4741.399902 | E137: 4754.200195 | F137: 4754.200195 | G137: 0
A138: 2008-04-03 | B138: 4753.899902 | C138: 4833.25 | D138: 4738.200195 | E138: 4771.600098 | F138: 4771.600098 | G138: 0
A139: 2008-04-04 | B139: 4766.700195 | C139: 4791.700195 | D139: 4632.700195 | E139: 4647 | F139: 4647 | G139: 0
A140: 2008-04-07 | B140: 4631.350098 | C140: 4798.549805 | D140: 4628.799805 | E140: 4761.200195 | F140: 4761.200195 | G140: 0
A141: 2008-04-08 | B141: 4760.649902 | C141: 4769.549805 | D141: 4677.799805 | E141: 4709.649902 | F141: 4709.649902 | G141: 0
A142: 2008-04-09 | B142: 4707.049805 | C142: 4758.25 | D142: 4667.5 | E142: 4747.049805 | F142: 4747.049805 | G142: 0
A143: 2008-04-10 | B143: 4747.549805 | C143: 4799.5 | D143: 4720.899902 | E143: 4733 | F143: 4733 | G143: 0
A144: 2008-04-11 | B144: 4734.350098 | C144: 4817.399902 | D144: 4727.25 | E144: 4777.799805 | F144: 4777.799805 | G144: 0
A145: 2008-04-15 | B145: 4779.950195 | C145: 4917.100098 | D145: 4708.299805 | E145: 4879.649902 | F145: 4879.649902 | G145: 0
A146: 2008-04-16 | B146: 4881.649902 | C146: 4951.399902 | D146: 4874.049805 | E146: 4887.299805 | F146: 4887.299805 | G146: 0
A147: 2008-04-17 | B147: 4890.600098 | C147: 4984.950195 | D147: 4889.649902 | E147: 4958.399902 | F147: 4958.399902 | G147: 0
A148: 2008-04-21 | B148: 4955.899902 | C148: 5053.399902 | D148: 4955.899902 | E148: 5037 | F148: 5037 | G148: 0
A149: 2008-04-22 | B149: 5037.049805 | C149: 5074.25 | D149: 4994.049805 | E149: 5049.299805 | F149: 5049.299805 | G149: 0
A150: 2008-04-23 | B150: 5044.350098 | C150: 5083.5 | D150: 5003.549805 | E150: 5022.799805 | F150: 5022.799805 | G150: 0
A151: 2008-04-24 | B151: 5022.899902 | C151: 5072.700195 | D151: 4991.350098 | E151: 4999.850098 | F151: 4999.850098 | G151: 0
A152: 2008-04-25 | B152: 4999.149902 | C152: 5117.700195 | D152: 4999.149902 | E152: 5111.700195 | F152: 5111.700195 | G152: 0
A153: 2008-04-28 | B153: 5112.5 | C153: 5147.450195 | D153: 5079.149902 | E153: 5089.649902 | F153: 5089.649902 | G153: 0
A154: 2008-04-29 | B154: 5092.399902 | C154: 5210.899902 | D154: 5082.149902 | E154: 5195.5 | F154: 5195.5 | G154: 0
A155: 2008-04-30 | B155: 5198.350098 | C155: 5230.75 | D155: 5155.850098 | E155: 5165.899902 | F155: 5165.899902 | G155: 0
A156: 2008-05-02 | B156: 5265.299805 | C156: 5298.850098 | D156: 5197.600098 | E156: 5228.200195 | F156: 5228.200195 | G156: 0
A157: 2008-05-05 | B157: 5227.25 | C157: 5254.5 | D157: 5182.600098 | E157: 5192.25 | F157: 5192.25 | G157: 0
A158: 2008-05-06 | B158: 5192.350098 | C158: 5206.5 | D158: 5110.899902 | E158: 5144.649902 | F158: 5144.649902 | G158: 0
A159: 2008-05-07 | B159: 5156.700195 | C159: 5159.049805 | D159: 5101.25 | E159: 5135.5 | F159: 5135.5 | G159: 0
A160: 2008-05-08 | B160: 5135.799805 | C160: 5143.049805 | D160: 5062.450195 | E160: 5081.700195 | F160: 5081.700195 | G160: 0
A161: 2008-05-09 | B161: 5070.850098 | C161: 5087.649902 | D161: 4969.399902 | E161: 4982.600098 | F161: 4982.600098 | G161: 0
A162: 2008-05-12 | B162: 4981 | C162: 5021.75 | D162: 4913.799805 | E162: 5012.649902 | F162: 5012.649902 | G162: 0
A163: 2008-05-13 | B163: 5008.600098 | C163: 5066 | D163: 4943.75 | E163: 4957.799805 | F163: 4957.799805 | G163: 0
A164: 2008-05-14 | B164: 4958.450195 | C164: 5026.100098 | D164: 4932.049805 | E164: 5011.75 | F164: 5011.75 | G164: 0
A165: 2008-05-15 | B165: 5010.899902 | C165: 5118.549805 | D165: 4999.600098 | E165: 5115.25 | F165: 5115.25 | G165: 0
A166: 2008-05-16 | B166: 5115.649902 | C166: 5167.399902 | D166: 5106.399902 | E166: 5157.700195 | F166: 5157.700195 | G166: 0
A167: 2008-05-20 | B167: 5157 | C167: 5160.049805 | D167: 5072.399902 | E167: 5104.950195 | F167: 5104.950195 | G167: 0
A168: 2008-05-21 | B168: 5105.700195 | C168: 5135.549805 | D168: 5048.700195 | E168: 5117.649902 | F168: 5117.649902 | G168: 0
A169: 2008-05-22 | B169: 5117 | C169: 5118.899902 | D169: 5010.700195 | E169: 5025.450195 | F169: 5025.450195 | G169: 0
A170: 2008-05-23 | B170: 5026.549805 | C170: 5059.049805 | D170: 4940.700195 | E170: 4946.549805 | F170: 4946.549805 | G170: 0
A171: 2008-05-26 | B171: 4953.600098 | C171: 4953.600098 | D171: 4858 | E171: 4875.049805 | F171: 4875.049805 | G171: 0
A172: 2008-05-27 | B172: 4877.149902 | C172: 4932 | D172: 4846.200195 | E172: 4859.799805 | F172: 4859.799805 | G172: 0
A173: 2008-05-28 | B173: 4862.700195 | C173: 4926.899902 | D173: 4835.649902 | E173: 4918.350098 | F173: 4918.350098 | G173: 0
A174: 2008-05-29 | B174: 4926.299805 | C174: 4957.399902 | D174: 4801.899902 | E174: 4835.299805 | F174: 4835.299805 | G174: 0
A175: 2008-05-30 | B175: 4844.049805 | C175: 4908.850098 | D175: 4833.450195 | E175: 4870.100098 | F175: 4870.100098 | G175: 0
A176: 2008-06-02 | B176: 4869.25 | C176: 4908.799805 | D176: 4713 | E176: 4739.600098 | F176: 4739.600098 | G176: 0
A177: 2008-06-03 | B177: 4739.299805 | C177: 4739.299805 | D177: 4634 | E177: 4715.899902 | F177: 4715.899902 | G177: 0
A178: 2008-06-04 | B178: 4718.700195 | C178: 4731.5 | D178: 4564.5 | E178: 4585.600098 | F178: 4585.600098 | G178: 0
A179: 2008-06-05 | B179: 4586.950195 | C179: 4690.600098 | D179: 4536.25 | E179: 4676.950195 | F179: 4676.950195 | G179: 0
A180: 2008-06-06 | B180: 4680.549805 | C180: 4746.299805 | D180: 4614.25 | E180: 4627.799805 | F180: 4627.799805 | G180: 0
A181: 2008-06-09 | B181: 4626.450195 | C181: 4626.450195 | D181: 4411.600098 | E181: 4500.950195 | F181: 4500.950195 | G181: 0
A182: 2008-06-10 | B182: 4522 | C182: 4522.549805 | D182: 4369.799805 | E182: 4449.799805 | F182: 4449.799805 | G182: 0
A183: 2008-06-11 | B183: 4469.649902 | C183: 4541.049805 | D183: 4468.049805 | E183: 4523.600098 | F183: 4523.600098 | G183: 0
A184: 2008-06-12 | B184: 4524.399902 | C184: 4550 | D184: 4392 | E184: 4539.350098 | F184: 4539.350098 | G184: 0
A185: 2008-06-13 | B185: 4539.5 | C185: 4563.350098 | D185: 4491.350098 | E185: 4517.100098 | F185: 4517.100098 | G185: 0
A186: 2008-06-16 | B186: 4536.299805 | C186: 4617.700195 | D186: 4536.299805 | E186: 4572.5 | F186: 4572.5 | G186: 0
A187: 2008-06-17 | B187: 4572.5 | C187: 4664.049805 | D187: 4561.75 | E187: 4653 | F187: 4653 | G187: 0
A188: 2008-06-18 | B188: 4652.799805 | C188: 4679.75 | D188: 4569.899902 | E188: 4582.399902 | F188: 4582.399902 | G188: 0
A189: 2008-06-19 | B189: 4582.549805 | C189: 4585.700195 | D189: 4488.950195 | E189: 4504.25 | F189: 4504.25 | G189: 0
A190: 2008-06-20 | B190: 4504.200195 | C190: 4532 | D190: 4333.600098 | E190: 4347.549805 | F190: 4347.549805 | G190: 0
A191: 2008-06-23 | B191: 4351.149902 | C191: 4351.149902 | D191: 4225.5 | E191: 4266.399902 | F191: 4266.399902 | G191: 0
A192: 2008-06-24 | B192: 4271.049805 | C192: 4305.899902 | D192: 4156.100098 | E192: 4191.100098 | F192: 4191.100098 | G192: 0
A193: 2008-06-25 | B193: 4189.600098 | C193: 4264.549805 | D193: 4093.199951 | E193: 4252.649902 | F193: 4252.649902 | G193: 0
A194: 2008-06-26 | B194: 4252.600098 | C194: 4324.75 | D194: 4230 | E194: 4315.850098 | F194: 4315.850098 | G194: 0
A195: 2008-06-27 | B195: 4315.299805 | C195: 4315.299805 | D195: 4119.200195 | E195: 4136.649902 | F195: 4136.649902 | G195: 0
A196: 2008-06-30 | B196: 4136.25 | C196: 4163 | D196: 4021.699951 | E196: 4040.550049 | F196: 4040.550049 | G196: 0
A197: 2008-07-01 | B197: 4039.75 | C197: 4075.399902 | D197: 3878.199951 | E197: 3896.75 | F197: 3896.75 | G197: 0
A198: 2008-07-02 | B198: 3895.300049 | C198: 4107.149902 | D198: 3848.25 | E198: 4093.350098 | F198: 4093.350098 | G198: 0
A199: 2008-07-03 | B199: 4094.600098 | C199: 4097.350098 | D199: 3874.850098 | E199: 3925.75 | F199: 3925.75 | G199: 0
A200: 2008-07-04 | B200: 3926.649902 | C200: 4033.5 | D200: 3896.399902 | E200: 4016 | F200: 4016 | G200: 0
... 2657 more rows

Sheet ROIC History Graph
D3: Row | E3: 123 | F3: 136 | G3: 154
F5: ='HT Media Historic Analysis'!F3 -> 2005 | G5: ='HT Media Historic Analysis'!G3 -> 2006 | H5: ='HT Media Historic Analysis'!H3 -> 2007 | I5: ='HT Media Historic Analysis'!I3 -> 2008 | J5: ='HT Media Historic Analysis'!J3 -> 2009 | K5: ='HT Media Historic Analysis'!K3 -> 2010 | L5: ='HT Media Historic Analysis'!L3 -> 2011 | M5: ='HT Media Historic Analysis'!M3 -> 2012 | N5: ='HT Media Historic Analysis'!N3 -> 2013 | O5: ='HT Media Historic Analysis'!O3 -> 2014 | P5: ='HT Media Historic Analysis'!P3 -> 2015 | Q5: ='HT Media Historic Analysis'!Q3 -> 2016 | R5: ='HT Media Historic Analysis'!R3 -> 2017 | S5: ='HT Media Historic Analysis'!S3 -> 2018
B6: =INDEX('HT Media Historic Analysis'!B:B,'ROIC History Graph'!$E$3) -> Closing Price | F6: =INDEX('HT Media Historic Analysis'!F:F,'ROIC History Graph'!$E$3) -> 0 | G6: =INDEX('HT Media Historic Analysis'!G:G,'ROIC History Graph'!$E$3) -> 168.242096 | H6: =INDEX('HT Media Historic Analysis'!H:H,'ROIC History Graph'!$E$3) -> 162.836884 | I6: =INDEX('HT Media Historic Analysis'!I:I,'ROIC History Graph'!$E$3) -> 55.560516 | J6: =INDEX('HT Media Historic Analysis'!J:J,'ROIC History Graph'!$E$3) -> 132.696457 | K6: =INDEX('HT Media Historic Analysis'!K:K,'ROIC History Graph'!$E$3) -> 142.574066 | L6: =INDEX('HT Media Historic Analysis'!L:L,'ROIC History Graph'!$E$3) -> 133.575073 | M6: =INDEX('HT Media Historic Analysis'!M:M,'ROIC History Graph'!$E$3) -> 97.468887 | N6: =INDEX('HT Media Historic Analysis'!N:N,'ROIC History Graph'!$E$3) -> 89.973206 | O6: =INDEX('HT Media Historic Analysis'!O:O,'ROIC History Graph'!$E$3) -> 120.935867 | P6: =INDEX('HT Media Historic Analysis'!P:P,'ROIC History Graph'!$E$3) -> 74.647354 | Q6: =INDEX('HT Media Historic Analysis'!Q:Q,'ROIC History Graph'!$E$3) -> 81.712181 | R6: =INDEX('HT Media Historic Analysis'!R:R,'ROIC History Graph'!$E$3) -> 82.642242 | S6: =INDEX('HT Media Historic Analysis'!S:S,'ROIC History Graph'!$E$3) -> 44.25
B7: =INDEX('HT Media Historic Analysis'!B:B,'ROIC History Graph'!$F$3) -> ROIC | F7: =INDEX('HT Media Historic Analysis'!F:F,'ROIC History Graph'!$F$3) -> 0.08768908967 | G7: =INDEX('HT Media Historic Analysis'!G:G,'ROIC History Graph'!$F$3) -> 0.1219466166 | H7: =INDEX('HT Media Historic Analysis'!H:H,'ROIC History Graph'!$F$3) -> 0.2404620731 | I7: =INDEX('HT Media Historic Analysis'!I:I,'ROIC History Graph'!$F$3) -> 0.2919226126 | J7: =INDEX('HT Media Historic Analysis'!J:J,'ROIC History Graph'!$F$3) -> 0.204117566 | K7: =INDEX('HT Media Historic Analysis'!K:K,'ROIC History Graph'!$F$3) -> 0.3629548642 | L7: =INDEX('HT Media Historic Analysis'!L:L,'ROIC History Graph'!$F$3) -> 0.6526304615 | M7: =INDEX('HT Media Historic Analysis'!M:M,'ROIC History Graph'!$F$3) -> 0.4567649582 | N7: =INDEX('HT Media Historic Analysis'!N:N,'ROIC History Graph'!$F$3) -> 0.7498972228 | O7: =INDEX('HT Media Historic Analysis'!O:O,'ROIC History Graph'!$F$3) -> 0.3536537238 | P7: =INDEX('HT Media Historic Analysis'!P:P,'ROIC History Graph'!$F$3) -> 0.2890487369 | Q7: =INDEX('HT Media Historic Analysis'!Q:Q,'ROIC History Graph'!$F$3) -> 0.157588697 | R7: =INDEX('HT Media Historic Analysis'!R:R,'ROIC History Graph'!$F$3) -> -0.02264707201 | S7: =INDEX('HT Media Historic Analysis'!S:S,'ROIC History Graph'!$F$3) -> 0.1287442635
B8: =INDEX('HT Media Historic Analysis'!B:B,'ROIC History Graph'!$G$3) -> Return on Investments | F8: =INDEX('HT Media Historic Analysis'!F:F,'ROIC History Graph'!$G$3) -> -0.01777018288 | G8: =INDEX('HT Media Historic Analysis'!G:G,'ROIC History Graph'!$G$3) -> -0.01805233118 | H8: =INDEX('HT Media Historic Analysis'!H:H,'ROIC History Graph'!$G$3) -> 0.03992322021 | I8: =INDEX('HT Media Historic Analysis'!I:I,'ROIC History Graph'!$G$3) -> 0.04663782438 | J8: =INDEX('HT Media Historic Analysis'!J:J,'ROIC History Graph'!$G$3) -> 0.0002615355163 | K8: =INDEX('HT Media Historic Analysis'!K:K,'ROIC History Graph'!$G$3) -> -0.003187984347 | L8: =INDEX('HT Media Historic Analysis'!L:L,'ROIC History Graph'!$G$3) -> 0.02277242876 | M8: =INDEX('HT Media Historic Analysis'!M:M,'ROIC History Graph'!$G$3) -> 0.0435033509 | N8: =INDEX('HT Media Historic Analysis'!N:N,'ROIC History Graph'!$G$3) -> -0.1086710792 | O8: =INDEX('HT Media Historic Analysis'!O:O,'ROIC History Graph'!$G$3) -> 0.07530159507 | P8: =INDEX('HT Media Historic Analysis'!P:P,'ROIC History Graph'!$G$3) -> 0.06404480653 | Q8: =INDEX('HT Media Historic Analysis'!Q:Q,'ROIC History Graph'!$G$3) -> 0.05976797216 | R8: =INDEX('HT Media Historic Analysis'!R:R,'ROIC History Graph'!$G$3) -> 0.07823870256 | S8: =INDEX('HT Media Historic Analysis'!S:S,'ROIC History Graph'!$G$3) -> 0.08704046008

Sheet Annual Report Link
A2: http://www.htmedia.in/wp-content/uploads/2018/08/HTML_AR_2017-18.pdf
A4: Page 71 in downloaded version

Sheet Read In Balance Sheet
A1: Particulars Notes As at
A2: March 31, 2018
A3: As at
A4: March 31, 2017
A5: I ASSETS
A6: 1) Non-current assets
A7: Property, plant and equipment 3 37,142 42,453
A8: Capital work in progress 3 3,010 3,252
A9: Investment property 4 43,939 33,569
A10: Intangible assets 5 40,228 43,747
A11: Intangible assets under development 5 29 60
A12: Investment in subsidiaries 32,470 32,020
A13: Financial assets
A14: Investments 108,501 116,818
A15: Loans 12,422 3,445
A16: Other financial assets 2,022 1,811
A17: Deferred tax assets (net) 16 650 1,277
A18: Income tax assets 7 1,714 1,292
A19: Other non-current assets 8 1,165 2,349
A20: Total Non- current assets 283,292 282,093
A21: 2) Current assets
A22: Inventories 9 7,716 10,791
A23: Financial assets
A24: Investments 32,340 16,598
A25: (i Trade receivables 21,907 17,705
A26: (ii Cash and cash equivalents 8,048 6,589
A27: Other bank balances 2 2
A28: Loans 1,600 1,697
A29: (v Other financial assets 2,858 1,942
A30: Other current assets 11 7,005 4,348
A31: Total current assets 81,476 59,672
A32: Total Assets 364,768 341,765
A33: II EQUITY AND LIABILITIES
A34: 1) Equity
A35: Equity share capital 12 4,611 4,610
A36: Other equity 13 185,328 165,225
A37: Total equity 189,939 169,835
A38: 2) Liabilities
A39: Non-current liabilities
A40: Financial liabilities
A41: Borrowings 570 1,702
A42: Provisions 15 186 119
A43: Other non-current liabilities 17 1,985 1,799
A44: Total non- current liabilities 2,741 3,620
A45: Current liabilities
A46: Financial liabilities
A47: Borrowings 106,626 97,038
A48: (i Trade payables 25,037 30,271
A49: (ii Other financial liabilities 3,772 4,178
A50: Provisions 15 567 2,297
A51: Current tax liability 18 1,063 434
A52: Other current liabilities 19 35,023 34,092
A53: Total current liabilities 172,088 168,310
A54: Total liabilities 174,829 171,930
A55: Total equity and liabilities 364,768 341,765
A56: Summary of significant accounting policies 2
A57: Balance Sheet As at March 31, 2018
A58: Year ended
A59: March 31, 2017
A60: I Income
A61: Revenue from operations 20 138,865 143,204
A62: Other Income 21 21,013 15,689
A63: Total Income 159,878 158,893
A64: II Expenses
A65: Cost of materials consumed 22 29,844 35,151
A66: (Increas/decrease in inventories 23 1 5
A67: Employee benefits expense 24 26,190 32,795
A68: Finance costs 25 6,960 7,868
A69: Depreciation and amortization expense 26 9,674 9,747
A70: Other expenses 27 60,722 66,908
A71: Total expenses 133,391 152,474
A72: III Profit before exceptional items and tax from operations(I-I 26,487 6,419
A73: IV Exceptional items Gain/(Loss) 28 (1,405) -
A74: V Profit before tax from operations(III+IV) 25,082 6,419
A75: VI Earnings before interest, tax, depreciation and amortization
A76: (EBITD before exceptional items [III+II+II]
A77: 43,121 24,034
A78: VII Tax expense
A79: Current tax 16 618 (825)
A80: [Adjustment of tax charge/(credit) related to earlier years of ` Nil
A81: {Previous year (H 825) lacs}]
A82: Deferred tax charge/(credit) 16 3,090 1,093
A83: [Adjustment of deferred charge/(credit) tax related to earlier years of
A84: ` (2,279) Lacs {Previous Year ` 506 Lacs}]
A85: Total tax expense 3,708 268
A86: VIII Profit for the year (V-VI 21,374 6,151
A87: IX Other Comprehensive Income 30
A88: Items that will not to be reclassified to profit or loss
A89: Remeasurement gain/(loss) on defined benefit plans 142 (77)
A90: Income tax effect (34) 16
A91: 108 (61)
A92: Net (loss)/gain on FVTOCI for investment in Joint Venture Company (52) (5,441)
A93: Income tax effect - -
A94: (52) (5,441)
A95: Other comprehensive income for the year, net of tax 56 (5,502)
A96: X Total Comprehensive Income for the year, net of tax(VIII+IX) 21,430 649
A97: XI Earnings per share for continuing and discontinued operations
A98: Basic (Nominal value of share ` 2/-) 31 9.18 2.64
A99: Diluted (Nominal value of share ` 2/-) 31 9.18 2.64
A100: Summary of significant accounting policies 2
A101: Statement of Profit and Lossfor the year ended March 31, 2018
A102: The accompanying notes are an integral part of the financial statements.
A103: As per our report of even date
A104: For Price Waterhouse & Co Chartered Accountants LLP For and on behalf of the Board of Directors of HT Media Limited
A105: Firm Registration Number: 30402/ E300009
A106: Chartered Accountants
A107: Anupam Dhawan Piyush Gupta Dinesh Mittal
A108: Partner Group Chief Financial Officer Whole-time Director, Group General Counsel
A109: Membership No. 084451 & Company Secretary
A110: (DIN: 00105769)
A111: Place: New Delhi Rajiv Verma Shobhana Bhartia
A112: Date: May 2, 2018 Chief Executive Officer Chairperson & Editorial Director
A113: (DIN: 00020648)
A114: 72 HT MEDIA LIMITED ANNUAL REPORT 2017-18 73
A115: (` in Lacs)
A116: Particulars March 31, 2018 March 31, 2017
A117: Operating activities
A118: Profit before tax 25,082 6,419
A119: Adjustments to reconcile profit before tax to net cash flows:
A120: Depreciation and amortization expense 9,674 9,747
A121: Loss(Profit) on disposal of property, plant and equipment & intangibles (including Impairment) (3,008) 351
A122: Impairment of Investment in Subsidiaries (Exceptional item) 1,405 -
A123: Fair value of Investment through profit and loss (including loss on sale of investments) 2,423 420
A124: Dividend income (654) (654)
A125: Finance income from mutual funds (7,178) (10,387)
A126: Interest income from deposits and others (1,129) (569)
A127: Profit on Sale of Investment Properties (890) (53)
A128: Unclaimed balances/unspent liabilities written back (net) (2,192) (1,463)
A129: Interest cost on debts and borrowings 6,705 7,719
A130: Unrealized foreign exchange loss/(gain) 141 (477)
A131: Impairment/Reversal towards value of investment properties (546) 696
A132: Impairment for doubtful debts and advances (includes bad debts written of 324 439
A133: Working capital adjustments:
A134: Decrease/(Increas in trade receivables (4,418) 4,805
A135: Decrease/(Increas in inventories 3,075 607
A136: Decrease/(Increas in current and non-current financial assets and other current and
A137: non-current assets
A138: (3,588) (4,576)
A139: (Decreas/Increase in current and non-current financial Liabilities and Other Current
A140: and non-current liabilities & Provision
A141: (3,288) 7,062
A142: 21,938 20,086
A143: Income tax paid (2,908) (965)
A144: Net cash flows from operating activities 19,030 19,121
A145: Investing activities
A146: Purchase of property, plant and equipment & Intangible Assets (1,529) (2,772)
A147: Proceeds from sale of property, plant and equipment & Intangible Assets 4,571 262
A148: Purchase of Investment properties (11,900) (8,180)
A149: Proceeds from sale of Investment Properties 2,628 4,318
A150: Purchase of investments in mutual funds and others (21,879) (80,710)
A151: Proceeds from sale of investments in mutual funds and others 15,226 55,993
A152: Purchase of investments in subsidiaries/fellow subsidiary (1,428) (3,436)
A153: Purchase of investments in Joint venture - (1,313)
A154: Inter corporate deposits given (8,000) (1,900)
A155: Inter corporate deposits received back - 1,900
A156: Dividend received 654 654
A157: Finance Income from mutual funds and other interest received 4,891 13,596
A158: Purchase consideration for acquisition of business (Desimartini.com) (503) -
A159: Proceeds of deposits matured(net) 11 91
A160: Net cash flows used in investing activities (17,258) (21,497)
A161: Cash Flow Statement for the year ended March 31, 2018
A163: Cash Flow Statement for the year ended March 31, 2018
A164: (` in Lacs)
A165: Particulars March 31, 2018 March 31, 2017
A166: Financing activities
A167: Employee Stock Options Exercised 45 -
A168: Proceeds from Borrowings 407,197 292,022
A169: Repayment of Borrowings (398,860) (281,965)
A170: Interest Paid (6,687) (7,999)
A171: Dividend Paid (922) (923)
A172: Dividend distribution tax paid (56) (56)
A173: Net cash flows from/(used in) financing activities (C ) 717 1,079
A174: Net increase/ (decreas in cash and cash equivalents (D= A+B+ 2,489 (1,297)
A175: Cash and cash equivalents at the beginning of the year (E ) 5,559 6,856
A176: Cash and cash equivalents at year end (D+ 8,048 5,559
A177: Particulars March 31, 2018 March 31, 2017
A178: Components of Cash & Cash Equivalents as at end of the year
A179: Cash and cheques on hand 5,564 5,341
A180: With banks
A181: - on deposit accounts 1,890 715
A182: - on current accounts 594 533
A183: Total cash and cash equivalents 8,048 6,589
A184: Less: Bank Overdraft - 1,030
A185: Cash and cash equivalents as per Cash Flow Statement 8,048 5,559

Sheet Read In Balance Sheet (3)
A1: Particulars As at
A3: As at
A4: March | B4: Direct | C4: Financing | D4: 2017 | E4: 2018
A5: ASSETS
A6: Non current assets Property plant and equipment | B6: 1 | D6: 42453 | E6: 37142
A7: Capital work in progress | B7: 1 | D7: 3252 | E7: 3010
A8: Investment property | B8: 1 | D8: 33569 | E8: 43939
A9: Intangible assets | B9: 1 | D9: 43747 | E9: 40228
A10: Intangible assets under development | B10: 1 | D10: 60 | E10: 29
A11: Investment in subsidiaries | B11: 0 | C11: -1 | D11: 32020 | E11: 32470
A12: Financial assets Investments | C12: -1 | D12: 116818 | E12: 108501
A13: Loans | C13: -1 | D13: 3445 | E13: 12422
A14: Other financial assets | C14: -1 | D14: 1811 | E14: 2022
A15: Deferred tax assets net | B15: 1 | D15: 1277 | E15: 650
A16: Income tax assets | B16: 1 | D16: 1292 | E16: 1714
A17: Other non current assets | B17: 1 | D17: 2349 | E17: 1165
A18: Total Non current assets | D18: 282093 | E18: 283292
A19: Current assets Inventories | B19: 1 | D19: 10791 | E19: 7716
A20: Financial assets Investments | C20: -1 | D20: 16598 | E20: 32340
A21: Trade receivables | B21: 1 | D21: 17705 | E21: 21907
A22: iCash and cash equivalents | C22: -1 | D22: 6589 | E22: 8048
A23: Other bank balances | C23: -1 | D23: 2 | E23: 2
A24: Loans | C24: -1 | D24: 1697 | E24: 1600
A25: Other financial assets | C25: -1 | D25: 1942 | E25: 2858
A26: Other current assets | B26: 1 | D26: 4348 | E26: 7005
A27: Total current assets | D27: 59672 | E27: 81476
A28: Total Assets | D28: 341765 | E28: 364768
A29: IEQUITY AND LIABILITIES
A30: Equity Equity share capital | D30: 4610 | E30: 4611
A31: Other equity | D31: 165225 | E31: 185328
A32: Total equity | C32: 1 | D32: 169835 | E32: 189939
A33: Liabilities
A34: Non current liabilities
A35: Financial liabilities Borrowings | C35: 1 | D35: 1702 | E35: 570
A36: Provisions | B36: -1 | D36: 119 | E36: 186
A37: Other non current liabilities | B37: -1 | D37: 1799 | E37: 1985
A38: Total non current liabilities | D38: 3620 | E38: 2741
A39: Current liabilities
A40: Financial liabilities Borrowings | C40: 1 | D40: 97038 | E40: 106626
A41: Trade payables | B41: -1 | D41: 30271 | E41: 25037
A42: iOther financial liabilities | C42: 1 | D42: 4178 | E42: 3772
A43: Provisions | B43: -1 | D43: 2297 | E43: 567
A44: Current tax liability | B44: -1 | D44: 434 | E44: 1063
A45: Other current liabilities | B45: -1 | D45: 34092 | E45: 35023
A46: Total current liabilities | D46: 168310 | E46: 172088
A47: Total liabilities | D47: 171930 | E47: 174829
A48: Total equity and liabilities | D48: 341765 | E48: 364768
A50: Invested Capital Direct | D50: =SUMPRODUCT(D6:D48*$B$6:$B$48) -> 91831 | E50: =SUMPRODUCT(E6:E48*$B$6:$B$48) -> 100644
A51: Invested Capital Financing | D51: =SUMPRODUCT(D6:D48*$C$6:$C$48) -> 91831 | E51: =SUMPRODUCT(E6:E48*$C$6:$C$48) -> 100644
A55: Income Revenue from operations | D55: 143204 | E55: 138865
A56: Other Income | D56: 15689 | E56: 21013
A57: Total Income | D57: 158893 | E57: 159878
A58: IExpenses Cost of materials consumed | D58: 35151 | E58: 29844
A59: Increas/decrease in inventories | D59: 5 | E59: 1
A60: Employee benefits expense | D60: 32795 | E60: 26190
A61: Finance costs | D61: 7868 | E61: 6960
A62: Depreciation and amortization expense | D62: 9747 | E62: 9674
A63: Other expenses | D63: 66908 | E63: 60722
A64: Total expenses | D64: 152474 | E64: 133391
A65: IIProfit before exceptional items and tax from operationsI | D65: 6419 | E65: 26487
A66: Exceptional items Gain/Loss | D66: 0 | E66: -1405
A67: Profit before tax from operationsIII+IV | D67: 6419 | E67: 25082
A68: VEarnings before interest tax depreciation and amortization
A69: EBITD before exceptional items [III+II+II] | D69: 24034 | E69: 43121
A70: VITax expense Current tax | D70: -825 | E70: 618
A71: [Adjustment of tax charge/credit related to earlier years of ` Nil
A72: {Previous year H lacs}] Deferred tax charge/credit | D72: 1093 | E72: 3090
A73: [Adjustment of deferred charge/credit tax related to earlier years of ` Lacs {Previous Year ` Lacs}] | D73: 506 | E73: -2279
A74: Total tax expense | D74: 268 | E74: 3708
A75: VIIProfit for the year VI | D75: 6151 | E75: 21374
A77: EBITDA | D77: =D69 -> 24034 | E77: =E69 -> 43121
A78: Less: Other Income | D78: =D56 -> 15689 | E78: =E56 -> 21013
A79: Less: Depreciation | D79: =D62 -> 9747 | E79: =E62 -> 9674
A80: NOP | D80: =D77-D78-D79 -> -1402 | E80: =E77-E78-E79 -> 12434
A81: Tax | C81: 0.34 | D81: =$C$81 -> 0.34 | E81: =$C$81 -> 0.34
A82: NOPAT | D82: =D80*(1-D81) -> -925.32 | E82: =E80*(1-E81) -> 8206.44
A84: Average Investment | D84: =AVERAGE(D50:E50) -> 96237.5 | E84: =D84 -> 96237.5
A85: ROIC | E85: =E82/E84 -> 0.08527278867
A87: ROIC in Moneycontrol | E87: ='HT Media Historic Analysis'!S136 -> 0.1287442635
A98: IX Other Comprehensive Income | D98: 30
A99: Items that will not to be reclassified to profit or loss Remeasurement gain/loss on defined benefit plans | D99: -77 | E99: 142
A100: Income tax effect | D100: 16 | E100: -34
D101: -61 | E101: 108
A102: Net loss/gain on FVTOCfor investment in Joint Venture Company | D102: -5441 | E102: -52
A103: Income tax effect | D103: 0 | E103: 0
D104: -5441 | E104: -52
A105: Other comprehensive income for the year net of tax | D105: -5502 | E105: 56
A106: X Total Comprehensive Income for the year net of taxVIII+IX | D106: 649 | E106: 21430
A107: XEarnings per share for continuing and discontinued operations Basic Nominal value of share ` / | D107: 2.64 | E107: 9.18
A108: Diluted Nominal value of share ` / | D108: 2.64 | E108: 9.18
A109: Summary of significant accounting policies | D109: 2
A110: Statement of Profit and Lossfor the year ended March | D110: 2018
A111: The accompanying are an integral part of the financial statements
A112: As per our report of even date
A113: For Price Waterhouse & Co Chartered Accountants LLP For and on behalf of the Board of Directors of HT Media Limited
A114: Firm Registration Number: / E
A115: Chartered Accountants
A116: Anupam Dhawan Piyush Gupta Dinesh Mittal
A117: Partner Group Chief Financial Officer Whole time Director Group General Counsel
A118: Membership No & Company Secretary | D118: 84451
A119: DIN:
A120: Place: New DelhRajVerma Shobhana Bhartia
A121: Date: May Chief Executive Officer Chairperson & Editorial Director | D121: 2018
A122: DIN: HT MEDIA LIMITED ANNUAL REPORT | D122: 73 | E122: 2017
A123: ` in Lacs Particulars March March | D123: 2017 | E123: 2018
A124: Operating activities Profit before tax | D124: 6419 | E124: 25082
A125: Adjustments to reconcile profit before tax to net cash flows: Depreciation and amortization expense | D125: 9747 | E125: 9674
A126: LossProfit on disposal of property plant and equipment & intangibles including Impairment | D126: 351 | E126: -3008
A127: Impairment of Investment in Subsidiaries Exceptional item | D127: 0 | E127: 1405
A128: Fair value of Investment through profit and loss including loss on sale of investments | D128: 420 | E128: 2423
A129: Dividend income | D129: -654 | E129: -654
A130: Finance income from mutual funds | D130: -10387 | E130: -7178
A131: Interest income from deposits and others | D131: -569 | E131: -1129
A132: Profit on Sale of Investment Properties | D132: -53 | E132: -890
A133: Unclaimed balances/unspent liabilities written back net | D133: -1463 | E133: -2192
A134: Interest cost on debts and borrowings | D134: 7719 | E134: 6705
A135: Unrealized foreign exchange loss/gain | D135: -477 | E135: 141
A136: Impairment/Reversal towards value of investment properties | D136: 696 | E136: -546
A137: Impairment for doubtful debts and advances includes bad debts written of | D137: 439 | E137: 324
A138: Working capital adjustments: Decrease/Increas in trade receivables | D138: 4805 | E138: -4418
A139: Decrease/Increas in inventories | D139: 607 | E139: 3075
A140: Decrease/Increas in current and non current financial assets and other current and
A141: non current assets | D141: -4576 | E141: -3588
A142: Decreas/Increase in current and non current financial Liabilities and Other Current
A143: and non current liabilities & Provision | D143: 7062 | E143: -3288
D144: 20086 | E144: 21938
A145: Income tax paid | D145: -965 | E145: -2908
A146: Net cash flows from operating activities | D146: 19121 | E146: 19030
A147: Investing activities Purchase of property plant and equipment & Intangible Assets | D147: -2772 | E147: -1529
A148: Proceeds from sale of property plant and equipment & Intangible Assets | D148: 262 | E148: 4571
A149: Purchase of Investment properties | D149: -8180 | E149: -11900
A150: Proceeds from sale of Investment Properties | D150: 4318 | E150: 2628
A151: Purchase of investments in mutual funds and others | D151: -80710 | E151: -21879
A152: Proceeds from sale of investments in mutual funds and others | D152: 55993 | E152: 15226
A153: Purchase of investments in subsidiaries/fellow subsidiary | D153: -3436 | E153: -1428
A154: Purchase of investments in Joint venture | D154: -1313 | E154: 0
A155: Inter corporate deposits given | D155: -1900 | E155: -8000
A156: Inter corporate deposits received back | D156: 1900 | E156: 0
A157: Dividend received | D157: 654 | E157: 654
A158: Finance Income from mutual funds and other interest received | D158: 13596 | E158: 4891
A159: Purchase consideration for acquisition of business Desimartinicom | D159: 0 | E159: -503
A160: Proceeds of deposits maturednet | D160: 91 | E160: 11
A161: Net cash flows used in investing activities | D161: -21497 | E161: -17258
A162: Cash Flow Statement for the year ended March | D162: 2018
A163: Cash Flow Statement for the year ended March | D163: 2018
A164: ` in Lacs Particulars March March | D164: 2017 | E164: 2018
A165: Financing activities Employee Stock Options Exercised | D165: 0 | E165: 45
A166: Proceeds from Borrowings | D166: 292022 | E166: 407197
A167: Repayment of Borrowings | D167: -281965 | E167: -398860
A168: Interest Paid | D168: -7999 | E168: -6687
A169: Dividend Paid | D169: -923 | E169: -922
A170: Dividend distribution tax paid | D170: -56 | E170: -56
A171: Net cash flows from/used in financing activities C | D171: 1079 | E171: 717
A172: Net increase/ decreas in cash and cash equivalents D= A+B+ | D172: -1297 | E172: 2489
A173: Cash and cash equivalents at the beginning of the year E | D173: 6856 | E173: 5559
A174: Cash and cash equivalents at year end D+ | D174: 5559 | E174: 8048
A175: Particulars March March | D175: 2017 | E175: 2018
A176: Components of Cash & Cash Equivalents as at end of the year Cash and cheques on hand | D176: 5341 | E176: 5564
A177: With banks on deposit accounts | D177: 715 | E177: 1890
A178: on current accounts | D178: 533 | E178: 594
A179: Total cash and cash equivalents | D179: 6589 | E179: 8048
A180: Less: Bank Overdraft | D180: 1030 | E180: 0
A181: Cash and cash equivalents as per Cash Flow Statement | D181: 5559 | E181: 8048

Sheet HT Media Detail
A1: NOTE 21 : OTHER INCOME
A2: (` in Lacs)
A3: Particulars March 31, 2018 March 31, 2017
A4: Interest income on
A5: - Bank deposits 77 67
A6: - Loan to subsidiary 218 54
A7: - Others 834 448
A8: Dividend income from Subsidiary 654 654
A9: Other non - operating income
A10: Finance income from mutual funds 7,178 10,387
A11: Profit on sale of investment properties 890 53
A12: Income from Government Grant (Refer Note 17) 119 119
A13: Income on assets given on financial lease 144 123
A14: Unclaimed balances/unspent liabilities written back (net) ( Refer Note 15 C) 2,192 1,463
A15: Rental income 3,023 1,272
A16: Net gain on disposal of property, plant and equipment and Intangibles 3,008 -
A17: Unwinding of discount on security deposit 391 202
A18: Miscellaneous Income 2,285 847
A19: Total 21,013 15,689

Sheet HT Media Detail (2)
A1: : OTHER INCOME | C1: 21
A2: ` in Lacs
A3: Particulars March March | B3: 2018 | C3: 2017
A4: Interest income on
A5: Bank deposits | B5: 77 | C5: 67
A6: Loan to subsidiary | B6: 218 | C6: 54
A7: Others | B7: 834 | C7: 448
A8: Dividend income from Subsidiary | B8: 654 | C8: 654
A9: Other non operating income | C9: 0
A10: Finance income from mutual funds | B10: 7178 | C10: 10387
A11: Profit on sale of investment properties | B11: 890 | C11: 53
A12: Income from Government Grant Refer | B12: 119 | C12: 119
A13: Income on assets given on financial lease | B13: 144 | C13: 123
A14: Unclaimed balances/unspent liabilities written back net Refer C | B14: 2192 | C14: 1463
A15: Rental income | B15: 3023 | C15: 1272
A16: Net gain on disposal of property plant and equipment and Intangibles | B16: 3008 | C16: 0
A17: Unwinding of discount on security deposit | B17: 391 | C17: 202
A18: Miscellaneous Income | B18: 2285 | C18: 847
A19: Total | B19: 21013 | C19: 15689

Sheet HT Media Assumptions
F1: Revene Assumption
F3: 2004 | G3: 2005 | H3: 2006 | I3: 2007 | J3: 2008 | K3: 2009 | L3: 2010 | M3: 2011 | N3: 2012 | O3: 2013 | P3: 2014 | Q3: 2015 | R3: 2016 | S3: 2017 | T3: 2018 | U3: 2019 | V3: 2020 | W3: 2021 | X3: 2022 | Y3: 2023 | Z3: 2024 | AA3: 2025 | AB3: 2026 | AC3: 2027 | AD3: 2028
B4: Historic Switch | D4: 2018 | F4: =F3<=$D$4 -> TRUE | G4: =G3<=$D$4 -> TRUE | H4: TRUE | I4: TRUE | J4: TRUE | K4: TRUE | L4: TRUE | M4: TRUE | N4: TRUE | O4: TRUE | P4: TRUE | Q4: TRUE | R4: TRUE | S4: TRUE | T4: TRUE | U4: FALSE | V4: FALSE | W4: FALSE | X4: FALSE | Y4: FALSE | Z4: FALSE | AA4: FALSE | AB4: FALSE | AC4: FALSE | AD4: FALSE
A5: Balance Sheet of HT Media
B6: Sources Of Funds | C6: Direct | D6: Financing
B7: Total Share Capital | F7: 47.14 | G7: 61.75 | H7: 66.85 | I7: 46.85 | J7: 46.85 | K7: 47 | L7: 47 | M7: 47 | N7: 47 | O7: 47 | P7: 46.08 | Q7: 46.1 | R7: 46.1 | S7: 46.1 | T7: 46.11
B8: Equity Share Capital | F8: 37.14 | G8: 41.75 | H8: 46.85 | I8: 46.85 | J8: 46.85 | K8: 47 | L8: 47 | M8: 47 | N8: 47 | O8: 47 | P8: 46.08 | Q8: 46.1 | R8: 46.1 | S8: 46.1 | T8: 46.11
B9: Preference Share Capital | F9: 10 | G9: 20 | H9: 20 | I9: 0 | J9: 0 | K9: 854.61 | L9: 961.86 | M9: 1121.96 | N9: 1263.18 | O9: 1263.15 | P9: 1362.48 | Q9: 1455.37 | R9: 1545.9 | S9: 1652.25 | T9: 1853.28
B10: Reserves | F10: 238.52 | G10: 345.2 | H10: 626.39 | I10: 736.99 | J10: 868.88 | K10: 901.61 | L10: 1008.86 | M10: 1168.96 | N10: 1310.18 | O10: 1310.15 | P10: 1408.56 | Q10: 1501.47 | R10: 1592 | S10: 1698.35 | T10: 1899.39
B11: Networth | D11: 1 | F11: =SUM(F8:F10) -> 285.66 | G11: =SUM(G8:G10) -> 406.95 | H11: =SUM(H8:H10) -> 693.24 | I11: =SUM(I8:I10) -> 783.84 | J11: =SUM(J8:J10) -> 915.73 | K11: =K10 -> 901.61 | L11: =L10 -> 1008.86 | M11: 1168.96 | N11: 1310.18 | O11: 1310.15 | P11: 1408.56 | Q11: 1501.47 | R11: 1592 | S11: 1698.35 | T11: 1899.39
B12: Secured Loans | F12: 187.54 | G12: 171.6 | H12: 169.57 | I12: 165 | J12: 213.76 | K12: 0 | L12: 0 | M12: 28.36 | N12: 116.37 | O12: 143.38 | P12: 254.91 | Q12: 139.72 | R12: 0 | S12: 0 | T12: 0
B13: Total Debt | D13: 1 | F13: 187.54 | G13: 171.6 | H13: 169.57 | I13: 165 | J13: 213.76 | K13: 369.87 | L13: 177.5 | M13: 264.9 | N13: 267.54 | O13: 329.49 | P13: 396.51 | Q13: 245.66 | R13: 884.48 | S13: 987.4 | T13: 1071.96
B14: Total Liabilities | F14: 473.2 | G14: 578.55 | H14: 862.81 | I14: 948.84 | J14: 1129.49 | K14: 1271.48 | L14: 1186.36 | M14: 1433.86 | N14: 1577.72 | O14: 1639.64 | P14: 1805.07 | Q14: 1747.13 | R14: 2476.48 | S14: 2685.75 | T14: 2971.35
B16: Application Of Funds
B17: Gross Block | F17: 172.03 | G17: 418.84 | H17: 454.17 | I17: 496.47 | J17: 570.04 | K17: 793.46 | L17: 821.53 | M17: 765.6 | N17: 772.68 | O17: 785.39 | P17: 940.85 | Q17: 931.85 | R17: 1240.86 | S17: 989.4 | T17: 953.8
B18: Less: Accum. Depreciation | F18: 12.61 | G18: 32.38 | H18: 66.19 | I18: 100.72 | J18: 154.81 | K18: 234.05 | L18: 257.85 | M18: 240.34 | N18: 287.32 | O18: 336.93 | P18: 380.51 | Q18: 432.75 | R18: 487.93 | S18: 127.4 | T18: 180.1
B19: Net Block | C19: 1 | F19: 159.42 | G19: 386.46 | H19: 387.98 | I19: 395.75 | J19: 415.23 | K19: 559.41 | L19: 563.68 | M19: 525.26 | N19: 485.36 | O19: 448.46 | P19: 560.34 | Q19: 499.1 | R19: 752.93 | S19: 862 | T19: 773.7
B20: Capital Work in Progress | C20: 1 | F20: 145.99 | G20: 11.64 | H20: 3.9 | I20: 17.44 | J20: 46.8 | K20: 177.94 | L20: 19.53 | M20: 8.9 | N20: 11.04 | O20: 109.4 | P20: 22.53 | Q20: 36.98 | R20: 0 | S20: 368.81 | T20: 469.78
B21: Investments | C21: 0 | D21: -1 | F21: 43.69 | G21: 100.92 | H21: 64.4 | I21: 372.98 | J21: 456.77 | K21: 405.59 | L21: 630.72 | M21: 808.19 | N21: 929.28 | O21: 872.81 | P21: 1078.67 | Q21: 1055.41 | R21: 1215.79 | S21: 1654.36 | T21: 1733.11
B22: Inventories | C22: 1 | F22: 56.13 | G22: 77.56 | H22: 108.45 | I22: 101.9 | J22: 113.67 | K22: 174.49 | L22: 94.38 | M22: 101.27 | N22: 121.28 | O22: 104.64 | P22: 192.73 | Q22: 108.86 | R22: 113.99 | S22: 107.91 | T22: 77.16
B23: Sundry Debtors | C23: 1 | F23: 103.69 | G23: 93.5 | H23: 121.22 | I23: 146.47 | J23: 197.82 | K23: 235 | L23: 185.1 | M23: 178.56 | N23: 194.36 | O23: 194.61 | P23: 189.93 | Q23: 196.52 | R23: 241.76 | S23: 177.05 | T23: 219.07
B24: Cash and Bank Balance | D24: -1 | F24: 31.98 | G24: 32.85 | H24: 50.33 | I24: 62.25 | J24: 68.64 | K24: 54.91 | L24: 63.44 | M24: 59.28 | N24: 80.46 | O24: 96.83 | P24: 72.14 | Q24: 115.92 | R24: 83.82 | S24: 65.91 | T24: 80.5
B25: Total Current Assets | F25: 191.8 | G25: 203.91 | H25: 280 | I25: 310.62 | J25: 380.13 | K25: 464.4 | L25: 342.92 | M25: 339.11 | N25: 396.1 | O25: 396.08 | P25: 454.8 | Q25: 421.3 | R25: 439.57 | S25: 350.87 | T25: 376.73
B26: Loans and Advances | D26: -1 | F26: 23.14 | G26: 23.15 | H26: 126.14 | I26: 51.85 | J26: 141.41 | K26: 242.09 | L26: 255.26 | M26: 282.51 | N26: 279.33 | O26: 388.48 | P26: 380.54 | Q26: 502.67 | R26: 774.8 | S26: 181.61 | T26: 294.36
B27: Fixed Deposits | D27: -1 | F27: 29.5 | G27: 16.02 | H27: 217.43 | I27: 43.98 | J27: 1.03 | K27: 5.34 | L27: 2.68 | M27: 0 | N27: 0 | O27: 0
B28: Total CA, Loans & Advances | F28: 244.44 | G28: 243.08 | H28: 623.57 | I28: 406.45 | J28: 522.57 | K28: 711.83 | L28: 600.86 | M28: 621.62 | N28: 675.43 | O28: 784.56 | P28: 835.34 | Q28: 923.97 | R28: 1214.37 | S28: 532.48 | T28: 671.09
B29: Current Liabilities | C29: -1 | F29: 118.06 | G29: 155.09 | H29: 204.57 | I29: 223.17 | J29: 289.24 | K29: 567.15 | L29: 603.92 | M29: 489.32 | N29: 505.46 | O29: 554.04 | P29: 671.46 | Q29: 734.14 | R29: 698.79 | S29: 707.74 | T29: 668.8
B30: Provisions | C30: -1 | F30: 2.29 | G30: 8.45 | H30: 12.46 | I30: 20.62 | J30: 22.66 | K30: 16.15 | L30: 24.51 | M30: 40.8 | N30: 17.91 | O30: 21.54 | P30: 20.33 | Q30: 34.18 | R30: 47.55 | S30: 24.16 | T30: 7.53
B31: Total CL & Provisions | F31: 120.35 | G31: 163.54 | H31: 217.03 | I31: 243.79 | J31: 311.9 | K31: 583.3 | L31: 628.43 | M31: 530.12 | N31: 523.37 | O31: 575.58 | P31: 691.79 | Q31: 768.32 | R31: 746.34 | S31: 731.9 | T31: 676.33
B32: Net Current Assets | F32: 124.09 | G32: 79.54 | H32: 406.54 | I32: 162.66 | J32: 210.67 | K32: 128.53 | L32: -27.57 | M32: 91.5 | N32: 152.06 | O32: 208.98 | P32: 143.55 | Q32: 155.65 | R32: 468.03 | S32: -199.42 | T32: -5.24
B33: Total Assets | F33: 473.19 | G33: 578.56 | H33: 862.82 | I33: 948.83 | J33: 1129.47 | K33: 1271.47 | L33: 1186.36 | M33: 1433.85 | N33: 1577.74 | O33: 1639.65 | P33: 1805.09 | Q33: 1747.14 | R33: 2436.75 | S33: 2685.75 | T33: 2971.35
B35: Invested Capital | F35: =SUMPRODUCT(F7:F33*$D$7:$D$33) -> 344.89 | G35: =SUMPRODUCT(G7:G33*$D$7:$D$33) -> 405.61 | H35: 404.51 | I35: 417.78 | J35: 461.64 | K35: 563.55 | L35: 234.26 | M35: 283.88 | N35: 288.65 | O35: 281.52 | P35: 273.72 | Q35: 73.13 | R35: 402.07 | S35: 783.87 | T35: 863.38
B36: Invested Capital | F36: =SUMPRODUCT(F7:F33*$C$7:$C$33) -> 344.88 | G36: =SUMPRODUCT(G7:G33*$C$7:$C$33) -> 405.62 | H36: 404.52 | I36: 417.77 | J36: 461.62 | K36: 563.54 | L36: 234.26 | M36: 283.87 | N36: 288.67 | O36: 281.53 | P36: 273.74 | Q36: 73.14 | R36: 362.34 | S36: 783.87 | T36: 863.38
B38: Contingent Liabilities | F38: 62.7 | G38: 5.1 | H38: 5.57 | I38: 10.73 | J38: 122.43 | K38: 22.74 | L38: 7.92 | M38: 40.88 | N38: 39.89 | O38: 271.57 | P38: 146.34 | Q38: 49.95 | R38: 31.03 | S38: 40.58 | T38: 49.12
B39: Book Value (Rs) | F39: 74.22 | G39: 92.68 | H39: 143.71 | I39: 33.46 | J39: 39.1 | K39: 38.49 | L39: 42.93 | M39: 49.74 | N39: 55.75 | O39: 55.75 | P39: 61.13 | Q39: 65.13 | R39: 69.06 | S39: 73.67 | T39: 82.38
A41: Profit & Loss account of HT Media
B42: Sales Turnover | F42: 417.17 | G42: 624.58 | H42: 821.01 | I42: 1039.29 | J42: 1186.23 | K42: 1323.04 | L42: 1263.11 | M42: 1221.39 | N42: 1319.14 | O42: 1345.09 | P42: 1429.25 | Q42: 1452.82 | R42: 1525.7 | S42: 1432.04 | T42: 1388.65
B43: Net Sales | F43: 417.17 | G43: 624.58 | H43: 821.01 | I43: 1039.29 | J43: 1186.23 | K43: 1323.04 | L43: 1263.11 | M43: 1221.39 | N43: 1319.14 | O43: 1345.09 | P43: 1429.25 | Q43: 1452.82 | R43: 1525.7 | S43: 1432.04 | T43: 1388.65
B44: Other Income | F44: 5.73 | G44: -3.99 | H44: -8.12 | I44: 26.85 | J44: 34.67 | K44: 0.22 | L44: -3.5 | M44: 31.61 | N44: 68.23 | O44: -81.3 | P44: 126.6 | Q44: 105.24 | R44: 153.48 | S44: 156.28 | T44: 197.16
B45: Stock Adjustments | F45: -0.05 | G45: 0.04 | H45: 0.03 | I45: 0.27 | J45: -0.35 | K45: 0.1 | L45: 0.49 | M45: 0.03 | N45: -0.01 | O45: 0.53 | P45: -0.39 | Q45: 0.04 | R45: -0.01 | S45: -0.05 | T45: -0.01
B46: Total Income | F46: 422.85 | G46: 620.63 | H46: 812.92 | I46: 1066.41 | J46: 1220.55 | K46: 1323.36 | L46: 1260.1 | M46: 1253.03 | N46: 1387.36 | O46: 1264.32 | P46: 1555.46 | Q46: 1558.1 | R46: 1679.17 | S46: 1588.27 | T46: 1585.8
B47: Expenditure
B48: Raw Materials | F48: 203.84 | G48: 303 | H48: 363.63 | I48: 458.73 | J48: 485.04 | K48: 572.48 | L48: 441.51 | M48: 384.94 | N48: 434.33 | O48: 447.77 | P48: 441.47 | Q48: 442.64 | R48: 417.96 | S48: 381.7 | T48: 325.99
B49: Power & Fuel Cost | F49: 6.14 | G49: 8.19 | H49: 12.8 | I49: 14.48 | J49: 16.23 | K49: 18.3 | L49: 19.75 | M49: 19.82 | N49: 20.69 | O49: 25.27 | P49: 27.91 | Q49: 27.54 | R49: 28.9 | S49: 27.02 | T49: 26.25
B50: Employee Cost | F50: 58.68 | G50: 79.37 | H50: 118.39 | I50: 147.68 | J50: 175.58 | K50: 203.58 | L50: 208.18 | M50: 209.53 | N50: 247.22 | O50: 289.15 | P50: 312.51 | Q50: 347.95 | R50: 390.84 | S50: 327.95 | T50: 261.9
B51: Other Manufacturing Expenses | F51: 42.23 | G51: 50.96 | H51: 56.72 | I51: 58.23 | J51: 70.64 | K51: 74.98 | L51: 65.01 | M51: 0 | N51: 0 | O51: 0
B52: Selling and Admin Expenses | F52: 75.27 | G52: 81.39 | H52: 117.74 | I52: 129.26 | J52: 166.92 | K52: 205.13 | L52: 205.91 | M52: 0 | N52: 0 | O52: 0 | P52: 0 | Q52: 0 | R52: 144.98 | S52: 112.46 | T52: 117.3
B53: Miscellaneous Expenses | F53: 19.81 | G53: 26.31 | H53: 32.14 | I53: 39.8 | J53: 48.11 | K53: 53.09 | L53: 53.24 | M53: 313.7 | N53: 378.21 | O53: 396.34 | P53: 469.41 | Q53: 508.46 | R53: 419.43 | S53: 499.41 | T53: 436.12
B54: Total Expenses | F54: 405.97 | G54: 549.22 | H54: 701.42 | I54: 848.18 | J54: 962.52 | K54: 1127.56 | L54: 993.6 | M54: 927.99 | N54: 1080.45 | O54: 1158.53 | P54: 1251.3 | Q54: 1326.59 | R54: 1402.11 | S54: 1348.54 | T54: 1167.56
B56: Operating Profit | F56: 11.15 | G56: 75.4 | H56: 119.62 | I56: 191.38 | J56: 223.36 | K56: 195.58 | L56: 270 | M56: 293.43 | N56: 238.68 | O56: 187.09 | P56: 177.56 | Q56: 126.27 | R56: 123.58 | S56: 83.45 | T56: 221.08
B57: PBDIT | F57: 16.88 | G57: 71.41 | H57: 111.5 | I57: 218.23 | J57: 258.03 | K57: 195.8 | L57: 266.5 | M57: 325.04 | N57: 306.91 | O57: 105.79 | P57: 304.16 | Q57: 231.51 | R57: 277.06 | S57: 239.73 | T57: 418.24
B58: Interest | F58: 5.82 | G58: 7.2 | H58: 14.3 | I58: 14.86 | J58: 17.73 | K58: 31.69 | L58: 25.73 | M58: 19.67 | N58: 28.58 | O58: 33.58 | P58: 55.57 | Q58: 36.03 | R58: 51.38 | S58: 78.68 | T58: 69.6
B59: PBDT | F59: 11.06 | G59: 64.21 | H59: 97.2 | I59: 203.37 | J59: 240.3 | K59: 164.11 | L59: 240.77 | M59: 305.37 | N59: 278.33 | O59: 72.21 | P59: 248.59 | Q59: 195.48 | R59: 225.68 | S59: 161.05 | T59: 348.64
B60: Depreciation | F60: 15.15 | G60: 22.66 | H60: 38.54 | I60: 39.71 | J60: 44.67 | K60: 55.01 | L60: 63.79 | M60: 56.29 | N60: 60.3 | O60: 57.58 | P60: 56.21 | Q60: 71.67 | R60: 69.39 | S60: 97.47 | T60: 96.74
B61: Other Written Off | F61: 0 | G61: 0.02 | H61: 0.01 | I61: 0 | J61: 0
B62: Profit Before Tax | F62: -4.09 | G62: 41.53 | H62: 58.65 | I62: 163.66 | J62: 195.63 | K62: 109.1 | L62: 176.98 | M62: 249.08 | N62: 218.03 | O62: 14.63 | P62: 192.38 | Q62: 123.81 | R62: 156.29 | S62: 63.58 | T62: 251.9
B63: Extra-ordinary items | F63: 0.66 | G63: 2.29 | H63: 2.51 | I63: 12.84 | J63: 5.61 | K63: 5.42 | L63: 0.71 | M63: 0 | N63: 0 | O63: 0
B64: PBT (Post Extra-ord Items) | F64: -3.43 | G64: 43.82 | H64: 61.16 | I64: 176.5 | J64: 201.24 | K64: 114.52 | L64: 177.69 | M64: 249.08 | N64: 218.03 | O64: 14.63 | P64: 192.38 | Q64: 123.81 | R64: 156.29 | S64: 63.58 | T64: 251.9
B65: Tax | F65: -1.04 | G65: 16.48 | H65: 23.9 | I65: 61.45 | J65: 56.68 | K65: 29.28 | L65: 52.93 | M65: 71.49 | N65: 58.21 | O65: -9.52 | P65: 36.73 | Q65: 10.14 | R65: 48.3 | S65: 2.68 | T65: 37.08
B66: Reported Net Profit | F66: -2.38 | G66: 27.33 | H66: 37.27 | I66: 115.06 | J66: 144.55 | K66: 85.23 | L66: 124.77 | M66: 177.59 | N66: 159.82 | O66: 24.15 | P66: 155.64 | Q66: 113.66 | R66: 107.99 | S66: 61.51 | T66: 213.74
B68: Total Value Addition | F68: 202.12 | G68: 246.22 | H68: 337.78 | I68: 389.45 | J68: 477.49 | K68: 555.08 | L68: 552.09 | M68: 543.05 | N68: 646.12 | O68: 710.76 | P68: 809.83 | Q68: 883.95 | R68: 984.14 | S68: 966.84 | T68: 841.57
B69: Preference Dividend | F69: 0 | G69: 0 | H69: 0.2 | I69: 0 | J69: 0
B70: Equity Dividend | F70: 0 | G70: 4.02 | H70: 5.62 | I70: 7.03 | J70: 9.37 | K70: 7.05 | L70: 8.46 | M70: 8.46 | N70: 9.4 | O70: 9.4 | P70: 9.29 | Q70: 9.31 | R70: 9.31 | S70: 9.31 | T70: 9.31
B71: Corporate Dividend Tax | F71: 0 | G71: 0.56 | H71: 0.82 | I71: 1.19 | J71: 1.59 | K71: 1.2 | L71: 1.41 | M71: 1.37 | N71: 1.53 | O71: 0.5 | P71: 0.47 | Q71: 0.78 | R71: 0.56 | S71: 0.56 | T71: 0.56
B72: Per share data (annualised)
B73: Shares in issue (lakhs) | F73: 371.43 | G73: 417.54 | H73: 468.46 | I73: 2342.29 | J73: 2342.29 | K73: 2342.52 | L73: 2350.21 | M73: 2350.21 | N73: 2350.21 | O73: 2350.21 | P73: 2304.23 | Q73: 2305.2 | R73: 2305.2 | S73: 2305.2 | T73: 2305.7
B74: Earning Per Share (Rs) | F74: -0.64 | G74: 6.55 | H74: 7.91 | I74: 4.91 | J74: 6.17 | K74: 3.64 | L74: 5.31 | M74: 7.56 | N74: 6.8 | O74: 1.03 | P74: 6.75 | Q74: 4.93 | R74: 4.68 | S74: 2.67 | T74: 9.27
B75: Equity Dividend (%) | F75: 0 | G75: 10 | H75: 12 | I75: 15 | J75: 20 | K75: 15 | L75: 18 | M75: 18 | N75: 20 | O75: 20 | P75: 20 | Q75: 20 | R75: 20 | S75: 20 | T75: 20
B76: Book Value (Rs) | F76: 74.22 | G76: 92.68 | H76: 143.71 | I76: 33.46 | J76: 39.1 | K76: 38.49 | L76: 42.93 | M76: 49.74 | N76: 55.75 | O76: 55.75 | P76: 61.13 | Q76: 65.13 | R76: 69.06 | S76: 73.67 | T76: 82.38
B77: Net Profit Before Tax | F77: -3.42 | G77: 43.82 | H77: 61.17 | I77: 176.51 | J77: 201.23 | K77: 114.51 | L77: 179.96 | M77: 249.08 | N77: 218.03 | O77: 14.63 | P77: 192.37 | Q77: 123.8 | R77: 127.06 | S77: 64.19 | T77: 250.82
B78: Net Cash From Operating Activities | F78: -1.97 | G78: 86.39 | H78: 52.75 | I78: 135.33 | J78: 144.28 | K78: 161.57 | L78: 387.56 | M78: 274.27 | N78: 134.78 | O78: 167.19 | P78: 183.34 | Q78: 291.23 | R78: 0 | S78: 191.21 | T78: 190.3
B79: Net Cash (used in)/from
B80: Investing Activities | F80: -193.92 | G80: -169.3 | H80: -83.58 | I80: -109.82 | J80: -172.09 | K80: -400.76 | L80: -152.69 | M80: -251.75 | N80: -96.4 | O80: -196.71 | P80: -193.74 | Q80: -23.89 | R80: 0 | S80: -214.97 | T80: -172.58
B81: Net Cash (used in)/from Financing Activities | F81: 247.66 | G81: 70.29 | H81: 249.72 | I81: -41.29 | J81: 23.17 | K81: 207.89 | L81: -214.73 | M81: -11.31 | N81: -17.2 | O81: 45.88 | P81: -14.29 | Q81: -223.56 | R81: 0 | S81: 10.79 | T81: 7.17
B82: Net (decrease)/increase In Cash and Cash Equivalents | F82: 51.76 | G82: -12.62 | H82: 218.89 | I82: -15.78 | J82: -4.65 | K82: -31.31 | L82: 20.15 | M82: 11.22 | N82: 21.18 | O82: 16.37 | P82: -24.69 | Q82: 43.78 | R82: -32.1 | S82: -12.97 | T82: 24.89
B83: Opening Cash & Cash Equivalents | F83: 9.71 | G83: 61.48 | H83: 48.86 | I83: 77.75 | J83: 61.97 | K83: 57.32 | L83: 26.02 | M83: 46.16 | N83: 59.28 | O83: 80.46 | P83: 96.83 | Q83: 72.14 | R83: 115.92 | S83: 68.56 | T83: 55.59
B84: Closing Cash & Cash Equivalents | F84: 61.48 | G84: 48.86 | H84: 267.75 | I84: 61.97 | J84: 57.32 | K84: 26.02 | L84: 46.16 | M84: 57.38 | N84: 80.46 | O84: 96.83 | P84: 72.14 | Q84: 115.92 | R84: 83.82 | S84: 55.59 | T84: 80.48
B85: Basic EPS (Rs.) | G85: 6.55 | H85: 7.96 | I85: 4.91 | J85: 6.17 | K85: 3.63 | L85: 5.31 | M85: 7.56 | N85: 6.8 | O85: 1.03 | P85: 6.66 | Q85: 4.88 | R85: 4.64 | S85: 2.64 | T85: 9.18
B86: Diluted EPS (Rs.) | G86: 6.55 | H86: 7.96 | I86: 4.91 | J86: 6.17 | K86: 3.63 | L86: 5.31 | M86: 7.56 | N86: 6.8 | O86: 1.03 | P86: 6.66 | Q86: 4.88 | R86: 4.64 | S86: 2.64 | T86: 9.18
B87: Cash EPS (Rs.) | G87: 11.98 | H87: 16.18 | I87: 6.61 | J87: 8.08 | K87: 5.97 | L87: 8.02 | M87: 9.95 | N87: 9.37 | O87: 3.48 | P87: 9.19 | Q87: 8.04 | R87: 7.69 | S87: 6.9 | T87: 13.47
B88: Book Value [ExclRevalReserve]/Share (Rs.) | G88: 92.68 | H88: 143.71 | I88: 33.46 | J88: 39.09 | K88: 38.36 | L88: 42.93 | M88: 49.74 | N88: 55.75 | O88: 55.75 | P88: 61.13 | Q88: 65.13 | R88: 69.06 | S88: 73.68 | T88: 82.39
B89: Book Value [InclRevalReserve]/Share (Rs.) | G89: 92.68 | H89: 143.71 | I89: 33.46 | J89: 39.09 | K89: 38.36 | L89: 42.93 | M89: 49.74 | N89: 55.75 | O89: 55.75 | P89: 61.13 | Q89: 65.13 | R89: 69.06 | S89: 73.68 | T89: 82.39
B90: Dividend / Share(Rs.) | G90: 1 | H90: 1.2 | I90: 0.3 | J90: 0.4 | K90: 0.3 | L90: 0.36 | M90: 0.36 | N90: 0.4 | O90: 0.4 | P90: 0.4 | Q90: 0.4 | R90: 0.4 | S90: 0.4 | T90: 0.4
B91: Revenue from Operations/Share (Rs.) | G91: 149.59 | H91: 175.26 | I91: 44.37 | J91: 50.64 | K91: 56.29 | L91: 53.74 | M91: 51.97 | N91: 56.13 | O91: 57.23 | P91: 62.03 | Q91: 63.02 | R91: 66.18 | S91: 62.13 | T91: 60.23
B92: PBDIT/Share (Rs.) | G92: 19.52 | H92: 28.31 | I92: 9.3 | J92: 10.99 | K92: 8.67 | L92: 11.49 | M92: 13.83 | N92: 13.06 | O92: 11.28 | P92: 13.2 | Q92: 10.77 | R92: 9.84 | S92: 10.43 | T92: 18.7
B93: PBIT/Share (Rs.) | G93: 14.1 | H93: 20.08 | I93: 7.61 | J93: 9.09 | K93: 6.33 | L93: 8.77 | M93: 11.44 | N93: 10.49 | O93: 8.83 | P93: 10.76 | Q93: 7.66 | R93: 6.83 | S93: 6.2 | T93: 14.51
B94: PBT/Share (Rs.) | G94: 12.49 | H94: 17.19 | I94: 7 | J94: 8.35 | K94: 5.08 | L94: 7.76 | M94: 10.6 | N94: 9.28 | O94: 0.62 | P94: 8.35 | Q94: 5.37 | R94: 5.51 | S94: 2.78 | T94: 10.88
B95: Net Profit/Share (Rs.) | G95: 6.55 | H95: 7.96 | I95: 4.91 | J95: 6.17 | K95: 3.63 | L95: 5.31 | M95: 7.56 | N95: 6.8 | O95: 1.03 | P95: 6.75 | Q95: 4.93 | R95: 4.68 | S95: 2.67 | T95: 9.27
B96: Profitability Ratios
B97: PBDIT Margin (%) | F97: 100 | G97: 0.1305 | H97: 0.1615 | I97: 0.2096 | J97: 0.217 | K97: 0.154 | L97: 0.2137 | M97: 0.2661 | N97: 0.2326 | O97: 0.1971 | P97: 0.2128 | Q97: 0.1708 | R97: 0.1486 | S97: 0.1678 | T97: 0.3105
B98: PBIT Margin (%) | G98: 0.0942 | H98: 0.1145 | I98: 0.1714 | J98: 0.1794 | K98: 0.1124 | L98: 0.1632 | M98: 0.22 | N98: 0.1869 | O98: 0.1543 | P98: 0.1734 | Q98: 0.1215 | R98: 0.1031 | S98: 0.0997 | T98: 0.2408
B99: PBT Margin (%) | G99: 0.0835 | H99: 0.098 | I99: 0.1577 | J99: 0.1649 | K99: 0.0902 | L99: 0.1444 | M99: 0.2039 | N99: 0.1652 | O99: 0.0108 | P99: 0.1345 | Q99: 0.0852 | R99: 0.0832 | S99: 0.0448 | T99: 0.1806
B100: Net Profit Margin (%) | G100: 0.0437 | H100: 0.0453 | I100: 0.1107 | J100: 0.1218 | K100: 0.0644 | L100: 0.0987 | M100: 0.1454 | N100: 0.1211 | O100: 0.0179 | P100: 0.1088 | Q100: 0.0782 | R100: 0.0707 | S100: 0.0429 | T100: 0.1539
B101: Return on Networth / Equity (%) | G101: 0.0706 | H101: 0.0553 | I101: 0.1467 | J101: 0.1578 | K101: 0.0945 | L101: 0.1236 | M101: 0.1519 | N101: 0.1219 | O101: 0.0184 | P101: 0.1104 | Q101: 0.0756 | R101: 0.0678 | S101: 0.0362 | T101: 0.1125
B102: Return on Capital Employed (%) | G102: 0.0457 | H102: 0.0416 | I102: 0.1161 | J102: 0.128 | K102: 0.0754 | L102: 0.1098 | M102: 0.1346 | N102: 0.1121 | O102: 0.0166 | P102: 0.1023 | Q102: 0.0707 | R102: 0.065 | S102: 0.0823 | T102: 0.1735
B103: Return on Assets (%) | G103: 0.0368 | H103: 0.0345 | I103: 0.0964 | J103: 0.1002 | K103: 0.0459 | L103: 0.0687 | M103: 0.0904 | N103: 0.076 | O103: 0.0109 | P103: 0.0623 | Q103: 0.0451 | R103: 0.0335 | S103: 0.0179 | T103: 0.0585
B104: Total Debt/Equity (X) | G104: 0.0044 | H104: 0.0025 | I104: 0.0021 | J104: 0.0023 | K104: 0.0041 | L104: 0.0018 | M104: 0.0023 | N104: 0.002 | O104: 0.0025 | P104: 0.0028 | Q104: 0.0016 | R104: 0.0056 | S104: 0.0058 | T104: 0.0056
B105: Asset Turnover Ratio (%) | G105: 0.8416 | H105: 0.7603 | I105: 0.8714 | J105: 0.8229 | K105: 0.7133 | L105: 0.696 | M105: 0.6218 | N105: 0.6278 | O105: 0.6072 | P105: 0.5724 | Q105: 0.5775 | R105: 0.4734 | S105: 0.419 | T105: 0.3806
B106: Liquidity Ratios
B107: Current Ratio (X) | G107: 1.61 | H107: 3.33 | I107: 1.98 | J107: 1.64 | K107: 0.96 | L107: 0.86 | M107: 1.5 | N107: 1.26 | O107: 1.59 | P107: 1.32 | Q107: 0.93 | R107: 0.84 | S107: 0.35 | T107: 0.47
B108: Quick Ratio (X) | G108: 1.07 | H108: 2.74 | I108: 1.47 | J108: 1.28 | K108: 0.72 | L108: 0.73 | M108: 1.34 | N108: 1.08 | O108: 1.45 | P108: 1.12 | Q108: 0.81 | R108: 0.77 | S108: 0.29 | T108: 0.43
B109: Inventory Turnover Ratio (X) | G109: 8.05 | H109: 7.57 | I109: 10.2 | J109: 10.44 | K109: 7.58 | L109: 13.38 | M109: 12.06 | N109: 10.88 | O109: 12.85 | P109: 7.42 | Q109: 13.35 | R109: 13.38 | S109: 13.27 | T109: 18
B110: Dividend Payout Ratio (NP) (%) | G110: 0.1472 | H110: 0.1508 | I110: 0.061 | J110: 0.0648 | K110: 0.0827 | L110: 0.0678 | M110: 0.0476 | N110: 0.0588 | O110: 0.3892 | P110: 0.0596 | Q110: 0.0819 | R110: 0.0862 | S110: 0.1513 | T110: 0.0435
B111: Dividend Payout Ratio (CP) (%) | G111: 0.0804 | H111: 0.0741 | I111: 0.0454 | J111: 0.0495 | K111: 0.0502 | L111: 0.0448 | M111: 0.0361 | N111: 0.0427 | O111: 0.115 | P111: 0.0438 | Q111: 0.0502 | R111: 0.0524 | S111: 0.0585 | T111: 0.0299
B112: Earnings Retention Ratio (%) | G112: 0.8528 | H112: 0.8492 | I112: 0.939 | J112: 0.9352 | K112: 0.9173 | L112: 0.9322 | M112: 0.9524 | N112: 0.9412 | O112: 0.6108 | P112: 0.9404 | Q112: 0.9181 | R112: 0.9138 | S112: 0.8487 | T112: 0.9565
B113: Cash Earnings Retention Ratio (%) | G113: 0.9196 | H113: 0.9259 | I113: 0.9546 | J113: 0.9505 | K113: 0.9498 | L113: 0.9552 | M113: 0.9639 | N113: 0.9573 | O113: 0.885 | P113: 0.9562 | Q113: 0.9498 | R113: 0.9476 | S113: 0.9415 | T113: 0.9701
B114: Valuation Ratios
B115: Enterprise Value (Cr.) | G115: 0 | H115: 2105.07 | I115: 4194.09 | J115: 4002.21 | K115: 1692.71 | L115: 3388.75 | M115: 3696.86 | N115: 3438.6 | O115: 2652.21 | P115: 2468.45 | Q115: 2985.89 | R115: 2554.92 | S115: 2830.03 | T115: 2935
B116: EV/Net Operating Revenue (X) | G116: 0 | H116: 2.56 | I116: 4.04 | J116: 3.37 | K116: 1.28 | L116: 2.68 | M116: 3.03 | N116: 2.61 | O116: 1.97 | P116: 1.73 | Q116: 2.06 | R116: 1.67 | S116: 1.98 | T116: 2.11
B117: EV/EBITDA (X) | G117: 0 | H117: 15.87 | I117: 19.25 | J117: 15.54 | K117: 8.31 | L117: 12.55 | M117: 11.37 | N117: 11.2 | O117: 10 | P117: 8.12 | Q117: 12.03 | R117: 11.27 | S117: 11.78 | T117: 6.81
B118: MarketCap/Net Operating Revenue (X) | G118: 0 | H118: 2.66 | I118: 3.98 | J118: 3.25 | K118: 1.05 | L118: 2.59 | M118: 2.86 | N118: 2.46 | O118: 1.8 | P118: 1.5 | Q118: 1.97 | R118: 1.15 | S118: 1.33 | T118: 1.4
B119: Retention Ratios (%) | G119: 85.27 | H119: 84.91 | I119: 93.89 | J119: 93.51 | K119: 91.72 | L119: 93.21 | M119: 95.23 | N119: 94.11 | O119: 61.07 | P119: 94.03 | Q119: 91.8 | R119: 91.37 | S119: 84.86 | T119: 95.64
B120: Price/BV (X) | G120: 0 | H120: 3.24 | I120: 5.28 | J120: 4.21 | K120: 1.53 | L120: 3.25 | M120: 2.99 | N120: 2.48 | O120: 1.85 | P120: 1.52 | Q120: 1.9 | R120: 1.1 | S120: 1.12 | T120: 1.02
B121: Price/Net Operating Revenue | G121: 0 | H121: 2.66 | I121: 3.98 | J121: 3.25 | K121: 1.05 | L121: 2.59 | M121: 2.86 | N121: 2.46 | O121: 1.8 | P121: 1.5 | Q121: 1.97 | R121: 1.15 | S121: 1.33 | T121: 1.4
B122: Earnings Yield | G122: 0 | H122: 0.02 | I122: 0.03 | J122: 0.04 | K122: 0.06 | L122: 0.04 | M122: 0.05 | N122: 0.05 | O122: 0.01 | P122: 0.07 | Q122: 0.04 | R122: 0.06 | S122: 0.03 | T122: 0.11
B123: Implied Price: P/B x B | G123: =G120*G89 -> 0 | H123: =H120*H89 -> 465.6204 | I123: 176.6688 | J123: 164.5689 | K123: 58.6908 | L123: 139.5225 | M123: 148.7226 | N123: 138.26 | O123: 103.1375 | P123: 92.9176 | Q123: 123.747 | R123: 75.966 | S123: 82.5216 | T123: 84.0378
B124: Average Price | G124: =LOOKUP(G3,'HTMEDIA.NS (2)'!$N:$N,'HTMEDIA.NS (2)'!$P:$P) -> 16.1581871 | H124: =LOOKUP(H3,'HTMEDIA.NS (2)'!$N:$N,'HTMEDIA.NS (2)'!$P:$P) -> 58.0544987 | I124: =LOOKUP(I3,'HTMEDIA.NS (2)'!$N:$N,'HTMEDIA.NS (2)'!$P:$P) -> 199.0367307 | J124: =LOOKUP(J3,'HTMEDIA.NS (2)'!$N:$N,'HTMEDIA.NS (2)'!$P:$P) -> 89.73065592 | K124: =LOOKUP(K3,'HTMEDIA.NS (2)'!$N:$N,'HTMEDIA.NS (2)'!$P:$P) -> 112.8152365 | L124: =LOOKUP(L3,'HTMEDIA.NS (2)'!$N:$N,'HTMEDIA.NS (2)'!$P:$P) -> 144.9850967 | M124: =LOOKUP(M3,'HTMEDIA.NS (2)'!$N:$N,'HTMEDIA.NS (2)'!$P:$P) -> 137.3893804 | N124: =LOOKUP(N3,'HTMEDIA.NS (2)'!$N:$N,'HTMEDIA.NS (2)'!$P:$P) -> 97.94815186 | O124: =LOOKUP(O3,'HTMEDIA.NS (2)'!$N:$N,'HTMEDIA.NS (2)'!$P:$P) -> 85.07788439 | P124: =LOOKUP(P3,'HTMEDIA.NS (2)'!$N:$N,'HTMEDIA.NS (2)'!$P:$P) -> 111.2074953 | Q124: =LOOKUP(Q3,'HTMEDIA.NS (2)'!$N:$N,'HTMEDIA.NS (2)'!$P:$P) -> 85.58001096 | R124: =LOOKUP(R3,'HTMEDIA.NS (2)'!$N:$N,'HTMEDIA.NS (2)'!$P:$P) -> 79.28707026 | S124: =LOOKUP(S3,'HTMEDIA.NS (2)'!$N:$N,'HTMEDIA.NS (2)'!$P:$P) -> 90.68234682 | T124: =LOOKUP(T3,'HTMEDIA.NS (2)'!$N:$N,'HTMEDIA.NS (2)'!$P:$P) -> 55.67424073
B125: Closing Price | H125: =LOOKUP(H3,'HTMEDIA.NS (2)'!$N:$N,'HTMEDIA.NS (2)'!$Q:$Q) -> 168.242096 | I125: =LOOKUP(I3,'HTMEDIA.NS (2)'!$N:$N,'HTMEDIA.NS (2)'!$Q:$Q) -> 162.836884 | J125: =LOOKUP(J3,'HTMEDIA.NS (2)'!$N:$N,'HTMEDIA.NS (2)'!$Q:$Q) -> 55.560516 | K125: =LOOKUP(K3,'HTMEDIA.NS (2)'!$N:$N,'HTMEDIA.NS (2)'!$Q:$Q) -> 132.696457 | L125: =LOOKUP(L3,'HTMEDIA.NS (2)'!$N:$N,'HTMEDIA.NS (2)'!$Q:$Q) -> 142.574066 | M125: =LOOKUP(M3,'HTMEDIA.NS (2)'!$N:$N,'HTMEDIA.NS (2)'!$Q:$Q) -> 133.575073 | N125: =LOOKUP(N3,'HTMEDIA.NS (2)'!$N:$N,'HTMEDIA.NS (2)'!$Q:$Q) -> 97.468887 | O125: =LOOKUP(O3,'HTMEDIA.NS (2)'!$N:$N,'HTMEDIA.NS (2)'!$Q:$Q) -> 89.973206 | P125: =LOOKUP(P3,'HTMEDIA.NS (2)'!$N:$N,'HTMEDIA.NS (2)'!$Q:$Q) -> 120.935867 | Q125: =LOOKUP(Q3,'HTMEDIA.NS (2)'!$N:$N,'HTMEDIA.NS (2)'!$Q:$Q) -> 74.647354 | R125: =LOOKUP(R3,'HTMEDIA.NS (2)'!$N:$N,'HTMEDIA.NS (2)'!$Q:$Q) -> 81.712181 | S125: =LOOKUP(S3,'HTMEDIA.NS (2)'!$N:$N,'HTMEDIA.NS (2)'!$Q:$Q) -> 82.642242 | T125: =LOOKUP(T3,'HTMEDIA.NS (2)'!$N:$N,'HTMEDIA.NS (2)'!$Q:$Q) -> 44.25
B126: Growth in Revenues | G126: =G42/F42-1 -> 0.4971834024 | H126: 0.3144993436 | I126: 0.2658676508 | J126: 0.141384984 | K126: 0.1153317653 | L126: -0.04529719434 | M126: -0.03302958571 | N126: 0.08003176709 | O126: 0.01967190745 | P126: 0.06256830398 | Q126: 0.0164911667 | R126: 0.05016450765 | S126: -0.06138821525 | T126: -0.03029943298
B128: PBITD | G128: =G57 -> 71.41 | H128: =H57 -> 111.5 | I128: 218.23 | J128: 258.03 | K128: 195.8 | L128: 266.5 | M128: 325.04 | N128: 306.91 | O128: 105.79 | P128: 304.16 | Q128: 231.51 | R128: 277.06 | S128: 239.73 | T128: 418.24
B129: PBIT | G129: =G128-G60 -> 48.75 | H129: =H128-H60 -> 72.96 | I129: 178.52 | J129: 213.36 | K129: 140.79 | L129: 202.71 | M129: 268.75 | N129: 246.61 | O129: 48.21 | P129: 247.95 | Q129: 159.84 | R129: 207.67 | S129: 142.26 | T129: 321.5
B130: Other Income | G130: =G44 -> -3.99 | H130: =H44 -> -8.12 | I130: 26.85 | J130: 34.67 | K130: 0.22 | L130: -3.5 | M130: 31.61 | N130: 68.23 | O130: -81.3 | P130: 126.6 | Q130: 105.24 | R130: 153.48 | S130: 156.28 | T130: 197.16
B131: Operating NOI | G131: =G129-G130 -> 52.74 | H131: =H129-H130 -> 81.08 | I131: 151.67 | J131: 178.69 | K131: 140.57 | L131: 206.21 | M131: 237.14 | N131: 178.38 | O131: 129.51 | P131: 121.35 | Q131: 54.6 | R131: 54.19 | S131: -14.02 | T131: 124.34
B132: NOI Applied | D132: TRUE | G132: =$D$132*G131+NOT($D$132)*G129 -> 52.74 | H132: =$D$132*H131+NOT($D$132)*H129 -> 81.08 | I132: 151.67 | J132: 178.69 | K132: 140.57 | L132: 206.21 | M132: 237.14 | N132: 178.38 | O132: 129.51 | P132: 121.35 | Q132: 54.6 | R132: 54.19 | S132: -14.02 | T132: 124.34
B133: Tax Rate | G133: =G65/G64 -> 0.3760839799 | H133: 0.3907782865 | I133: 0.3481586402 | J133: 0.2816537468 | K133: 0.2556758645 | L133: 0.2978783274 | M133: 0.2870162197 | N133: 0.266981608 | O133: -0.6507177033 | P133: 0.1909242125 | Q133: 0.081899685 | R133: 0.3090408855 | S133: 0.04215162001 | T133: 0.1472012703
B134: Marginal Tax Rate | F134: 0.346 | G134: =$F$134 -> 0.346 | H134: =$F$134 -> 0.346 | I134: 0.346 | J134: 0.346 | K134: 0.346 | L134: 0.346 | M134: 0.346 | N134: 0.346 | O134: 0.346 | P134: 0.346 | Q134: 0.346 | R134: 0.346 | S134: 0.346 | T134: 0.346
B135: Applied Tax Rate | F135: TRUE | G135: =IF($F$135,G134,G133) -> 0.346 | H135: =IF($F$135,H134,H133) -> 0.346 | I135: 0.346 | J135: 0.346 | K135: 0.346 | L135: 0.346 | M135: 0.346 | N135: 0.346 | O135: 0.346 | P135: 0.346 | Q135: 0.346 | R135: 0.346 | S135: 0.346 | T135: 0.346
B136: NOPAT | G136: =G132*(1-G135) -> 34.49196 | H136: =H132*(1-H135) -> 53.02632 | I136: 99.19218 | J136: 116.86326 | K136: 91.93278 | L136: 134.86134 | M136: 155.08956 | N136: 116.66052 | O136: 84.69954 | P136: 79.3629 | Q136: 35.7084 | R136: 35.44026 | S136: -9.16908 | T136: 81.31836
B137: Average Invested Capital | F137: =AVERAGE(D35:F35) -> 344.89 | G137: =AVERAGE(F35:G35) -> 375.25 | H137: 405.06 | I137: 411.145 | J137: 439.71 | K137: 512.595 | L137: 398.905 | M137: 259.07 | N137: 286.265 | O137: 285.085 | P137: 277.62 | Q137: 173.425 | R137: 237.6 | S137: 592.97 | T137: 823.625
B138: ROIC | F138: =F129/F137 -> 0 | G138: =G136/G137 -> 0.09191728181 | H138: =H136/H137 -> 0.1309097911 | I138: 0.2412583882 | J138: 0.2657734871 | K138: 0.1793477892 | L138: 0.3380788408 | M138: 0.5986395955 | N138: 0.407526313 | O138: 0.2971027588 | P138: 0.2858688135 | Q138: 0.20590111 | R138: 0.1491593434 | S138: -0.01546297452 | T138: 0.09873226286
B139: Return on Capital Employed | F139: =F102 -> 0 | G139: =G102 -> 0.0457 | H139: 0.0416 | I139: 0.1161 | J139: 0.128 | K139: 0.0754 | L139: 0.1098 | M139: 0.1346 | N139: 0.1121 | O139: 0.0166 | P139: 0.1023 | Q139: 0.0707 | R139: 0.065 | S139: 0.0823 | T139: 0.1735
B141: Average Equity | G141: =AVERAGE(F11:G11) -> 346.305 | H141: 550.095 | I141: 738.54 | J141: 849.785 | K141: 908.67 | L141: 955.235 | M141: 1088.91 | N141: 1239.57 | O141: 1310.165 | P141: 1359.355 | Q141: 1455.015 | R141: 1546.735 | S141: 1645.175 | T141: 1798.87
B142: Net Income to Equity | G142: =G66 -> 27.33 | H142: =H66 -> 37.27 | I142: 115.06 | J142: 144.55 | K142: 85.23 | L142: 124.77 | M142: 177.59 | N142: 159.82 | O142: 24.15 | P142: 155.64 | Q142: 113.66 | R142: 107.99 | S142: 61.51 | T142: 213.74
B143: Return on Average Equity | G143: =G142/G141 -> 0.07891887209 | H143: =H142/H141 -> 0.06775193376 | I143: 0.1557938636 | J143: 0.1701018493 | K143: 0.09379642775 | L143: 0.1306170733 | M143: 0.1630896952 | N143: 0.128931807 | O143: 0.01843279282 | P143: 0.1144954776 | Q143: 0.07811603317 | R143: 0.06981803606 | S143: 0.0373881198 | T143: 0.1188190364
B145: Average Debt | G145: =AVERAGE(F13:G13) -> 179.57 | H145: 170.585 | I145: 167.285 | J145: 189.38 | K145: 291.815 | L145: 273.685 | M145: 221.2 | N145: 266.22 | O145: 298.515 | P145: 363 | Q145: 321.085 | R145: 565.07 | S145: 935.94 | T145: 1029.68
B146: Financial Charges | G146: =F58 -> 5.82 | H146: =G58 -> 7.2 | I146: 14.3 | J146: 14.86 | K146: 17.73 | L146: 31.69 | M146: 25.73 | N146: 19.67 | O146: 28.58 | P146: 33.58 | Q146: 55.57 | R146: 36.03 | S146: 51.38 | T146: 78.68
B147: After Tax Financing Charges | G147: =G146*(1-G134) -> 3.80628 | H147: =H146*(1-H134) -> 4.7088 | I147: 9.3522 | J147: 9.71844 | K147: 11.59542 | L147: 20.72526 | M147: 16.82742 | N147: 12.86418 | O147: 18.69132 | P147: 21.96132 | Q147: 36.34278 | R147: 23.56362 | S147: 33.60252 | T147: 51.45672
B148: Interest Rate | G148: =G147/G145 -> 0.02119663641 | H148: =H147/H145 -> 0.02760383387 | I148: 0.05590578952 | J148: 0.05131714014 | K148: 0.03973551737 | L148: 0.0757266931 | M148: 0.07607332731 | N148: 0.0483216137 | O148: 0.06261434099 | P148: 0.06049950413 | Q148: 0.1131874114 | R148: 0.04170035571 | S148: 0.03590242964 | T148: 0.04997350633
B150: Other Assets | G150: =G26+G27 -> 39.17 | H150: =H26+H27 -> 343.57 | I150: 95.83 | J150: 142.44 | K150: 247.43 | L150: 257.94 | M150: 282.51 | N150: 279.33 | O150: 388.48 | P150: 380.54 | Q150: 502.67 | R150: 774.8 | S150: 181.61 | T150: 294.36
B151: Investments | G151: =G21 -> 100.92 | H151: =H21 -> 64.4 | I151: 372.98 | J151: 456.77 | K151: 405.59 | L151: 630.72 | M151: 808.19 | N151: 929.28 | O151: 872.81 | P151: 1078.67 | Q151: 1055.41 | R151: 1215.79 | S151: 1654.36 | T151: 1733.11
B152: Total | G152: =SUM(G150:G151) -> 140.09 | H152: =SUM(H150:H151) -> 407.97 | I152: 468.81 | J152: 599.21 | K152: 653.02 | L152: 888.66 | M152: 1090.7 | N152: 1208.61 | O152: 1261.29 | P152: 1459.21 | Q152: 1558.08 | R152: 1990.59 | S152: 1835.97 | T152: 2027.47
B153: Average | G153: =AVERAGE(F152:G152) -> 140.09 | H153: =AVERAGE(G152:H152) -> 274.03 | I153: 438.39 | J153: 534.01 | K153: 626.115 | L153: 770.84 | M153: 989.68 | N153: 1149.655 | O153: 1234.95 | P153: 1360.25 | Q153: 1508.645 | R153: 1774.335 | S153: 1913.28 | T153: 1931.72
B154: Other Income | G154: =G44 -> -3.99 | H154: =H44 -> -8.12 | I154: 26.85 | J154: 34.67 | K154: 0.22 | L154: -3.5 | M154: 31.61 | N154: 68.23 | O154: -81.3 | P154: 126.6 | Q154: 105.24 | R154: 153.48 | S154: 156.28 | T154: 197.16
B155: Other Income After Tax | G155: =G154*(1-G135) -> -2.60946 | H155: =H154*(1-H135) -> -5.31048 | I155: 17.5599 | J155: 22.67418 | K155: 0.14388 | L155: -2.289 | M155: 20.67294 | N155: 44.62242 | O155: -53.1702 | P155: 82.7964 | Q155: 68.82696 | R155: 100.37592 | S155: 102.20712 | T155: 128.94264
B156: Return on Investments | G156: =G155/G153 -> -0.01862702548 | H156: =H155/H153 -> -0.01937919206 | I156: 0.0400554301 | J156: 0.0424602161 | K156: 0.0002297980403 | L156: -0.002969487831 | M156: 0.02088850942 | N156: 0.03881374847 | O156: -0.04305453662 | P156: 0.06086851682 | Q156: 0.0456217069 | R156: 0.05657100829 | S156: 0.05341984446 | T156: 0.06675017083
F158: =F3 -> 2004 | G158: =G3 -> 2005 | H158: 2006 | I158: 2007 | J158: 2008 | K158: 2009 | L158: 2010 | M158: 2011 | N158: 2012 | O158: 2013 | P158: 2014 | Q158: 2015 | R158: 2016 | S158: 2017 | T158: 2018 | U158: 2019 | V158: 2020 | W158: 2021 | X158: 2022 | Y158: 2023 | Z158: 2024 | AA158: 2025 | AB158: 2026 | AC158: 2027 | AD158: 2028
A159: Assumptions | C159: Average | D159: Last Yr | E159: Assumption
B160: Revenues | F160: =IF(F4,F43,E160*(1+F161)) -> 417.17 | G160: =IF(G4,G43,F160*(1+G161)) -> 624.58 | H160: 821.01 | I160: 1039.29 | J160: 1186.23 | K160: 1323.04 | L160: 1263.11 | M160: 1221.39 | N160: 1319.14 | O160: 1345.09 | P160: 1429.25 | Q160: 1452.82 | R160: 1525.7 | S160: 1432.04 | T160: 1388.65 | U160: 1402.5365 | V160: 1422.371361 | W160: 1450.818789 | X160: 1481.499871 | Y160: 1514.627215 | Z160: 1550.438364 | AA160: 1589.199323 | AB160: 1632.721339 | AC160: 1681.702979 | AD160: 1732.154069
B161: Revenue Growth | C161: =AVERAGEIF($4:$4,TRUE,161:161) -> 0.09951288362 | D161: =LOOKUP($D$4,$3:$3,161:161) -> -0.03029943298 | E161: Scenario | G161: =IF(G4,G160/F160-1,LOOKUP(G158,Scenario!$39:$39,Scenario!$40:$40)) -> 0.4971834024 | H161: =IF(H4,H160/G160-1,LOOKUP(H158,Scenario!$39:$39,Scenario!$40:$40)) -> 0.3144993436 | I161: =IF(I4,I160/H160-1,LOOKUP(I158,Scenario!$39:$39,Scenario!$40:$40)) -> 0.2658676508 | J161: =IF(J4,J160/I160-1,LOOKUP(J158,Scenario!$39:$39,Scenario!$40:$40)) -> 0.141384984 | K161: =IF(K4,K160/J160-1,LOOKUP(K158,Scenario!$39:$39,Scenario!$40:$40)) -> 0.1153317653 | L161: =IF(L4,L160/K160-1,LOOKUP(L158,Scenario!$39:$39,Scenario!$40:$40)) -> -0.04529719434 | M161: =IF(M4,M160/L160-1,LOOKUP(M158,Scenario!$39:$39,Scenario!$40:$40)) -> -0.03302958571 | N161: =IF(N4,N160/M160-1,LOOKUP(N158,Scenario!$39:$39,Scenario!$40:$40)) -> 0.08003176709 | O161: =IF(O4,O160/N160-1,LOOKUP(O158,Scenario!$39:$39,Scenario!$40:$40)) -> 0.01967190745 | P161: =IF(P4,P160/O160-1,LOOKUP(P158,Scenario!$39:$39,Scenario!$40:$40)) -> 0.06256830398 | Q161: =IF(Q4,Q160/P160-1,LOOKUP(Q158,Scenario!$39:$39,Scenario!$40:$40)) -> 0.0164911667 | R161: =IF(R4,R160/Q160-1,LOOKUP(R158,Scenario!$39:$39,Scenario!$40:$40)) -> 0.05016450765 | S161: =IF(S4,S160/R160-1,LOOKUP(S158,Scenario!$39:$39,Scenario!$40:$40)) -> -0.06138821525 | T161: =IF(T4,T160/S160-1,LOOKUP(T158,Scenario!$39:$39,Scenario!$40:$40)) -> -0.03029943298 | U161: =IF(U4,U160/T160-1,LOOKUP(U158,Scenario!$39:$39,Scenario!$40:$40)) -> 0.01 | V161: =IF(V4,V160/U160-1,LOOKUP(V158,Scenario!$39:$39,Scenario!$40:$40)) -> 0.01414213562 | W161: =IF(W4,W160/V160-1,LOOKUP(W158,Scenario!$39:$39,Scenario!$40:$40)) -> 0.02 | X161: =IF(X4,X160/W160-1,LOOKUP(X158,Scenario!$39:$39,Scenario!$40:$40)) -> 0.02114742527 | Y161: =IF(Y4,Y160/X160-1,LOOKUP(Y158,Scenario!$39:$39,Scenario!$40:$40)) -> 0.02236067977 | Z161: =IF(Z4,Z160/Y160-1,LOOKUP(Z158,Scenario!$39:$39,Scenario!$40:$40)) -> 0.02364354023 | AA161: =IF(AA4,AA160/Z160-1,LOOKUP(AA158,Scenario!$39:$39,Scenario!$40:$40)) -> 0.025 | AB161: =IF(AB4,AB160/AA160-1,LOOKUP(AB158,Scenario!$39:$39,Scenario!$40:$40)) -> 0.02738612788 | AC161: =IF(AC4,AC160/AB160-1,LOOKUP(AC158,Scenario!$39:$39,Scenario!$40:$40)) -> 0.03 | AD161: =IF(AD4,AD160/AC160-1,LOOKUP(AD158,Scenario!$39:$39,Scenario!$40:$40)) -> 0.03
B163: Raw Materials and Power | F163: =IF(F4,F48+F49,F160*F164) -> 209.98 | G163: =IF(G4,G48+G49,G160*G164) -> 311.19 | H163: 376.43 | I163: 473.21 | J163: 501.27 | K163: 590.78 | L163: 461.26 | M163: 404.76 | N163: 455.02 | O163: 473.04 | P163: 469.38 | Q163: 470.18 | R163: 446.86 | S163: 408.72 | T163: 352.24 | U163: 350.634125 | V163: 355.5928404 | W163: 362.7046972 | X163: 370.3749676 | Y163: 378.6568037 | Z163: 387.6095911 | AA163: 397.2998308 | AB163: 408.1803348 | AC163: 420.4257448 | AD163: 433.0385172
B164: Raw Materials Pct of Revenue | C164: =AVERAGEIF($4:$4,TRUE,164:164) -> 0.3774460818 | D164: =LOOKUP($D$4,$3:$3,164:164) -> 0.2536564289 | E164: 0.26 | F164: =IF(F4,F163/F160,LOOKUP(F158,Scenario!52:52,Scenario!53:53)) -> 0.5033439605 | G164: =IF(G4,G163/G160,LOOKUP(G158,Scenario!52:52,Scenario!53:53)) -> 0.4982388165 | H164: =IF(H4,H163/H160,LOOKUP(H158,Scenario!52:52,Scenario!53:53)) -> 0.4584962424 | I164: =IF(I4,I163/I160,LOOKUP(I158,Scenario!52:52,Scenario!53:53)) -> 0.4553204592 | J164: =IF(J4,J163/J160,LOOKUP(J158,Scenario!52:52,Scenario!53:53)) -> 0.4225740371 | K164: =IF(K4,K163/K160,LOOKUP(K158,Scenario!52:52,Scenario!53:53)) -> 0.4465322288 | L164: =IF(L4,L163/L160,LOOKUP(L158,Scenario!52:52,Scenario!53:53)) -> 0.365178013 | M164: =IF(M4,M163/M160,LOOKUP(M158,Scenario!52:52,Scenario!53:53)) -> 0.3313929212 | N164: =IF(N4,N163/N160,LOOKUP(N158,Scenario!52:52,Scenario!53:53)) -> 0.3449368528 | O164: =IF(O4,O163/O160,LOOKUP(O158,Scenario!52:52,Scenario!53:53)) -> 0.3516790698 | P164: =IF(P4,P163/P160,LOOKUP(P158,Scenario!52:52,Scenario!53:53)) -> 0.3284100052 | Q164: =IF(Q4,Q163/Q160,LOOKUP(Q158,Scenario!52:52,Scenario!53:53)) -> 0.3236326592 | R164: =IF(R4,R163/R160,LOOKUP(R158,Scenario!52:52,Scenario!53:53)) -> 0.2928885102 | S164: =IF(S4,S163/S160,LOOKUP(S158,Scenario!52:52,Scenario!53:53)) -> 0.285411022 | T164: =IF(T4,T163/T160,LOOKUP(T158,Scenario!52:52,Scenario!53:53)) -> 0.2536564289 | U164: =IF(U4,U163/U160,LOOKUP(U158,Scenario!52:52,Scenario!53:53)) -> 0.25 | V164: =IF(V4,V163/V160,LOOKUP(V158,Scenario!52:52,Scenario!53:53)) -> 0.25 | W164: =IF(W4,W163/W160,LOOKUP(W158,Scenario!52:52,Scenario!53:53)) -> 0.25 | X164: =IF(X4,X163/X160,LOOKUP(X158,Scenario!52:52,Scenario!53:53)) -> 0.25 | Y164: =IF(Y4,Y163/Y160,LOOKUP(Y158,Scenario!52:52,Scenario!53:53)) -> 0.25 | Z164: =IF(Z4,Z163/Z160,LOOKUP(Z158,Scenario!52:52,Scenario!53:53)) -> 0.25 | AA164: =IF(AA4,AA163/AA160,LOOKUP(AA158,Scenario!52:52,Scenario!53:53)) -> 0.25 | AB164: =IF(AB4,AB163/AB160,LOOKUP(AB158,Scenario!52:52,Scenario!53:53)) -> 0.25 | AC164: =IF(AC4,AC163/AC160,LOOKUP(AC158,Scenario!52:52,Scenario!53:53)) -> 0.25 | AD164: =IF(AD4,AD163/AD160,LOOKUP(AD158,Scenario!52:52,Scenario!53:53)) -> 0.25
B166: Employee Cost (Power Equation) | C166: ='Fixed and Variable Cost'!K10 -> 27.968 | D166: ='Fixed and Variable Cost'!K11 -> 0.0017 | E166: Power | F166: =IF(F4,F50,$C$166*EXP($D$166*F160)) -> 58.68 | G166: =IF(G4,G50,$C$166*EXP($D$166*G160)) -> 79.37 | H166: 118.39 | I166: 147.68 | J166: 175.58 | K166: 203.58 | L166: 208.18 | M166: 209.53 | N166: 247.22 | O166: 289.15 | P166: 312.51 | Q166: 347.95 | R166: 390.84 | S166: 327.95 | T166: 261.9 | U166: 303.4974017 | V166: =IF(V4,V50,$C$166*EXP($D$166*V160)) -> 313.9056032 | W166: 329.4593377 | X166: 347.099256 | Y166: 367.2075665 | Z166: 390.2572818 | AA166: 416.8389137 | AB166: 448.8493357 | AC166: 487.8246729 | AD166: 531.5104805
B167: Growth Rate Growth Rate | C167: =AVERAGEIF($4:$4,TRUE,167:167) -> 0.1266941641 | D167: =LOOKUP($D$4,$3:$3,167:167) -> -0.2014026528 | E167: -0.02 | G167: =G166/F166-1 -> 0.3525903204 | H167: =H166/G166-1 -> 0.4916215195 | I167: 0.2474026523 | J167: 0.1889219935 | K167: 0.159471466 | L167: 0.02259553984 | M167: 0.006484772793 | N167: 0.1798787763 | O167: 0.1696060189 | P167: 0.08078851807 | Q167: 0.1134043711 | R167: 0.1232648369 | S167: -0.1609098352 | T167: -0.2014026528 | U167: 0.1588293308 | V167: 0.03429420274 | W167: 0.04954908207 | X167: 0.05354201967 | Y167: 0.05793245064 | Z167: 0.06277026243 | AA167: 0.06811309644 | AB167: 0.0767932669 | AC167: 0.08683389753 | AD167: 0.0895522717
B168: Employee Percent of Revenue | C168: =AVERAGEIF($4:$4,TRUE,168:168) -> 0.181773403 | D168: =LOOKUP($D$4,$3:$3,168:168) -> 0.1886004393 | E168: 0.18 | F168: =F166/F160 -> 0.1406620802 | G168: =G166/G160 -> 0.127077396 | H168: 0.144200436 | I168: 0.1420970085 | J168: 0.1480151404 | K168: 0.1538728988 | L168: 0.1648154159 | M168: 0.1715504466 | N168: 0.1874099792 | O168: 0.2149670282 | P168: 0.2186531398 | Q168: 0.2394997316 | R168: 0.2561709379 | S168: 0.2290089662 | T168: 0.1886004393 | U168: 0.2163918028 | V168: 0.2206917347 | W168: 0.2270851055 | X168: 0.2342890897 | Y168: 0.2424408877 | Z168: 0.2517077046 | AA168: 0.2622949227 | AB168: 0.2749087213 | AC168: 0.2900777836 | AD168: 0.3068494253
B170: Other Expenses (Pct of Revenue) | E170: Rev % | F170: =IF(F4,F51+F52+F53,F172*F160) -> 137.31 | G170: =IF(G4,G51+G52+G53,G172*G160) -> 158.66 | H170: 206.6 | I170: 227.29 | J170: 285.67 | K170: 333.2 | L170: 324.16 | M170: 313.7 | N170: 378.21 | O170: 396.34 | P170: 469.41 | Q170: 508.46 | R170: 564.41 | S170: 611.87 | T170: 553.42 | U170: 561.0146 | V170: 568.9485446 | W170: 580.3275155 | X170: 592.5999482 | Y170: 605.8508859 | Z170: 620.1753457 | AA170: 635.6797293 | AB170: 653.0885357 | AC170: 672.6811918 | AD170: 692.8616275
B171: Growth Rate | C171: =AVERAGEIF($4:$4,TRUE,171:171) -> 0.1100965708 | D171: =LOOKUP($D$4,$3:$3,171:171) -> -0.09552682759 | G171: =G170/F170-1 -> 0.1554875828 | H171: =H170/G170-1 -> 0.3021555528 | I171: 0.1001452081 | J171: 0.2568524792 | K171: 0.166380789 | L171: -0.02713085234 | M171: -0.03226801579 | N171: 0.2056423334 | O171: 0.04793633167 | P171: 0.1843619115 | Q171: 0.0831895358 | R171: 0.1100381544 | S171: 0.08408780851 | T171: -0.09552682759 | U171: =U170/T170-1 -> 0.01372303133 | V171: 0.01414213562 | W171: 0.02 | X171: 0.02114742527 | Y171: 0.02236067977 | Z171: 0.02364354023 | AA171: 0.025 | AB171: 0.02738612788 | AC171: 0.03 | AD171: 0.03
B172: Percent of Revenue | C172: =AVERAGEIF($4:$4,TRUE,172:172) -> 0.3010112738 | D172: =LOOKUP($D$4,$3:$3,172:172) -> 0.3985309473 | E172: 0.4 | F172: =F170/F160 -> 0.3291463912 | G172: =IF(G4,G170/G160,$E$172) -> 0.2540267059 | H172: =IF(H4,H170/H160,$E$172) -> 0.2516412711 | I172: 0.2186973799 | J172: 0.2408217631 | K172: 0.2518442375 | L172: 0.2566363975 | M172: 0.25683852 | N172: 0.2867095229 | O172: 0.2946568631 | P172: 0.3284309953 | Q172: 0.3499814155 | R172: 0.3699351118 | S172: 0.4272715846 | T172: 0.3985309473 | U172: 0.4 | V172: =IF(V4,V170/V160,$E$172) -> 0.4 | W172: 0.4 | X172: 0.4 | Y172: 0.4 | Z172: 0.4 | AA172: 0.4 | AB172: 0.4 | AC172: 0.4 | AD172: 0.4
B174: Change in Accumulated Depreciation | G174: =G18-F18 -> 19.77 | H174: =H18-G18 -> 33.81 | I174: 34.53 | J174: 54.09 | K174: 79.24 | L174: 23.8 | M174: -17.51 | N174: 46.98 | O174: 49.61 | P174: 43.58 | Q174: 52.24 | R174: 55.18 | S174: -360.53 | T174: 52.7
B175: Depreciation Expense | G175: =G60 -> 22.66 | H175: =H60 -> 38.54 | I175: 39.71 | J175: 44.67 | K175: 55.01 | L175: 63.79 | M175: 56.29 | N175: 60.3 | O175: 57.58 | P175: 56.21 | Q175: 71.67 | R175: 69.39 | S175: 97.47 | T175: 96.74
B176: Implied Retirements | G176: =G175-G174 -> 2.89 | H176: =H175-H174 -> 4.73 | I176: 5.18 | J176: -9.42 | K176: -24.23 | L176: 39.99 | M176: 73.8 | N176: 13.32 | O176: 7.97 | P176: 12.63 | Q176: 19.43 | R176: 14.21 | S176: 458 | T176: 44.04
B178: Change in Gross Plant | G178: =G17-F17 -> 246.81 | H178: =H17-G17 -> 35.33 | I178: 42.3 | J178: 73.57 | K178: 223.42 | L178: 28.07 | M178: -55.93 | N178: 7.08 | O178: 12.71 | P178: 155.46 | Q178: -9 | R178: 309.01 | S178: -251.46 | T178: -35.6
B179: Change in CWIP | G179: =G20-F20 -> -134.35 | H179: =H20-G20 -> -7.74 | I179: 13.54 | J179: 29.36 | K179: 131.14 | L179: -158.41 | M179: -10.63 | N179: 2.14 | O179: 98.36 | P179: -86.87 | Q179: 14.45 | R179: -36.98 | S179: 368.81 | T179: 100.97
B180: Add: Retirements | G180: =G176 -> 2.89 | H180: =H176 -> 4.73 | I180: 5.18 | J180: -9.42 | K180: -24.23 | L180: 39.99 | M180: 73.8 | N180: 13.32 | O180: 7.97 | P180: 12.63 | Q180: 19.43 | R180: 14.21 | S180: 458 | T180: 44.04
B181: Total Capital Expenditures | G181: =IF(G4,G178+G180+G179,G160*G185) -> 115.35 | H181: =IF(H4,H178+H180+H179,H160*H185) -> 32.32 | I181: 61.02 | J181: 93.51 | K181: 330.33 | L181: -90.35 | M181: 7.24 | N181: 22.54 | O181: 119.04 | P181: 81.22 | Q181: 24.88 | R181: 286.24 | S181: 575.35 | T181: 109.41 | U181: =IF(U4,U178+U180+U179,U160*U185) -> 175.3170625 | V181: 177.7964202 | W181: 181.3523486 | X181: 185.1874838 | Y181: 189.3284018 | Z181: 193.8047955 | AA181: 198.6499154 | AB181: 204.0901674 | AC181: 210.2128724 | AD181: 216.5192586
B183: Cap Exp Period for Evaluation | D183: 2012 | E183: =D4 -> 2018 | G183: =AND(G3>=$D$183,G3<=$E$183) -> FALSE | H183: =AND(H3>=$D$183,H3<=$E$183) -> FALSE | I183: FALSE | J183: FALSE | K183: FALSE | L183: FALSE | M183: FALSE | N183: TRUE | O183: TRUE | P183: TRUE | Q183: TRUE | R183: TRUE | S183: TRUE | T183: TRUE
B184: Capital Expenditures to Depreciation | G184: =G181/G175 -> 5.090467785 | H184: =H181/H175 -> 0.8386092372 | I184: 1.536640645 | J184: 2.093351242 | K184: 6.004908199 | L184: -1.416366202 | M184: 0.1286196483 | N184: 0.3737976783 | O184: 2.067384509 | P184: 1.444938623 | Q184: 0.3471466443 | R184: 4.125090071 | S184: 5.9028419 | T184: 1.130969609
B185: Capital Expenditures to Revenue | D185: =AVERAGEIF(183:183,TRUE,185:185) -> 0.1211013379 | E185: Rev % | F185: 0.125 | G185: =IF(G4,G181/G160,$F$185) -> 0.1846841077 | H185: =IF(H4,H181/H160,$F$185) -> 0.03936614658 | I185: 0.05871315995 | J185: 0.07882956931 | K185: 0.2496749909 | L185: -0.0715297955 | M185: 0.00592767257 | N185: 0.01708688994 | O185: 0.0884996543 | P185: 0.05682700717 | Q185: 0.0171253149 | R185: 0.1876122436 | S185: 0.4017695036 | T185: 0.07878875167 | U185: 0.125 | V185: 0.125 | W185: 0.125 | X185: 0.125 | Y185: 0.125 | Z185: 0.125 | AA185: 0.125 | AB185: 0.125 | AC185: 0.125 | AD185: 0.125
B187: Inventories | F187: =IF(F4,F22,F163*F188) -> 56.13 | G187: =IF(G4,G22,G163*G188) -> 77.56 | H187: 108.45 | I187: 101.9 | J187: 113.67 | K187: 174.49 | L187: 94.38 | M187: 101.27 | N187: 121.28 | O187: 104.64 | P187: 192.73 | Q187: 108.86 | R187: 113.99 | S187: 107.91 | T187: 77.16 | U187: 77.1395075 | V187: 78.23042488 | W187: 79.79503337 | X187: 81.48249288 | Y187: 83.30449681 | Z187: 85.27411003 | AA187: 87.40596278 | AB187: 89.79967366 | AC187: 92.49366387 | AD187: 95.26847378
B188: Percent of Raw Materials | C188: =AVERAGEIF($4:$4,TRUE,188:188) -> 0.2576641518 | D188: =LOOKUP($D$4,$3:$3,188:188) -> 0.2190551896 | E188: 0.22 | F188: =IF(F4,F187/F163,$E$188) -> 0.2673111725 | G188: =IF(G4,G187/G163,$E$188) -> 0.2492368007 | H188: 0.2881013734 | I188: 0.2153377993 | J188: 0.2267640194 | K188: 0.295355293 | L188: 0.2046134501 | M188: 0.250197648 | N188: 0.2665377346 | O188: 0.2212075089 | P188: 0.4106054796 | Q188: 0.2315283508 | R188: 0.25509108 | S188: 0.2640193776 | T188: 0.2190551896 | U188: 0.22 | V188: 0.22 | W188: 0.22 | X188: 0.22 | Y188: 0.22 | Z188: 0.22 | AA188: 0.22 | AB188: 0.22 | AC188: 0.22 | AD188: 0.22
B190: Sundry Debtors | F190: =IF(F4,F23,F160*F192) -> 103.69 | G190: =IF(G4,G23,G160*G192) -> 93.5 | H190: 121.22 | I190: 146.47 | J190: 197.82 | K190: 235 | L190: 185.1 | M190: 178.56 | N190: 194.36 | O190: 194.61 | P190: 189.93 | Q190: 196.52 | R190: 241.76 | S190: 177.05 | T190: 219.07 | U190: 218.795694 | V190: 221.8899324 | W190: 226.327731 | X190: 231.1139798 | Y190: 236.2818455 | Z190: 241.8683848 | AA190: 247.9150944 | AB190: 254.7045289 | AC190: 262.3456648 | AD190: 270.2160347
B191: Revenues | F191: =F160 -> 417.17 | G191: =G160 -> 624.58 | H191: 821.01 | I191: 1039.29 | J191: 1186.23 | K191: 1323.04 | L191: 1263.11 | M191: 1221.39 | N191: 1319.14 | O191: 1345.09 | P191: 1429.25 | Q191: 1452.82 | R191: 1525.7 | S191: 1432.04 | T191: 1388.65 | U191: 1402.5365 | V191: 1422.371361 | W191: 1450.818789 | X191: 1481.499871 | Y191: 1514.627215 | Z191: 1550.438364 | AA191: 1589.199323 | AB191: 1632.721339 | AC191: 1681.702979 | AD191: 1732.154069
B192: Percent of Sales | C192: =AVERAGEIF($4:$4,TRUE,192:192) -> 0.1549323525 | D192: =LOOKUP($D$4,$3:$3,192:192) -> 0.1577575343 | E192: 0.156 | F192: =IF(F4,F190/F191,$E$192) -> 0.2485557447 | G192: =IF(G4,G190/G191,$E$192) -> 0.1497005988 | H192: =IF(H4,H190/H191,$E$192) -> 0.1476474099 | I192: 0.1409327522 | J192: 0.1667636125 | K192: 0.1776212359 | L192: 0.1465430564 | M192: 0.1461940903 | N192: 0.1473384175 | O192: 0.1446817685 | P192: 0.1328878783 | Q192: 0.1352679616 | R192: 0.1584584125 | S192: 0.1236348147 | T192: 0.1577575343 | U192: 0.156 | V192: 0.156 | W192: 0.156 | X192: 0.156 | Y192: 0.156 | Z192: 0.156 | AA192: 0.156 | AB192: 0.156 | AC192: 0.156 | AD192: 0.156
B194: Current Liabilities | F194: =IF(F4,F29,F195*F196) -> 118.06 | G194: =IF(G4,G29,G195*G196) -> 155.09 | H194: 204.57 | I194: 223.17 | J194: 289.24 | K194: 567.15 | L194: 603.92 | M194: 489.32 | N194: 505.46 | O194: 554.04 | P194: 671.46 | Q194: 734.14 | R194: 698.79 | S194: 707.74 | T194: 668.8 | U194: 668.3303697 | V194: 681.1458434 | W194: 699.8703526 | X194: 720.5407945 | Y194: 743.4433909 | Z194: 768.9232202 | AA194: 797.4001606 | AB194: 830.5650134 | AC194: 869.5123852 | AD194: 911.5758439
B195: Total Expenses | F195: =F163+F166+F170 -> 405.97 | G195: =G163+G166+G170 -> 549.22 | H195: 701.42 | I195: 848.18 | J195: 962.52 | K195: 1127.56 | L195: 993.6 | M195: 927.99 | N195: 1080.45 | O195: 1158.53 | P195: 1251.3 | Q195: 1326.59 | R195: 1402.11 | S195: 1348.54 | T195: 1167.56 | U195: 1215.146127 | V195: 1238.446988 | W195: 1272.49155 | X195: 1310.074172 | Y195: 1351.715256 | Z195: 1398.042219 | AA195: 1449.818474 | AB195: 1510.118206 | AC195: 1580.931609 | AD195: 1657.410625
B196: Percent of Total Expenses | C196: =AVERAGEIF($4:$4,TRUE,196:196) -> 0.4465758573 | D196: =LOOKUP($D$4,$3:$3,196:196) -> 0.5728185275 | E196: 0.55 | F196: =IF(F4,F194/F195,$E$196) -> 0.2908096657 | G196: =IF(G4,G194/G195,$E$196) -> 0.2823822876 | H196: 0.2916512218 | I196: 0.2631163196 | J196: 0.3005028467 | K196: 0.5029887545 | L196: 0.6078099839 | M196: 0.5272901648 | N196: 0.467823592 | O196: 0.4782267183 | P196: 0.5366099257 | Q196: 0.5534038399 | R196: 0.4983845775 | S196: 0.5248194344 | T196: 0.5728185275 | U196: 0.55 | V196: 0.55 | W196: 0.55 | X196: 0.55 | Y196: 0.55 | Z196: 0.55 | AA196: 0.55 | AB196: 0.55 | AC196: 0.55 | AD196: 0.55
B198: Provisions | F198: =IF(F4,F30,F199*F160) -> 2.29 | G198: =IF(G4,G30,G199*G160) -> 8.45 | H198: 12.46 | I198: 20.62 | J198: 22.66 | K198: 16.15 | L198: 24.51 | M198: 40.8 | N198: 17.91 | O198: 21.54 | P198: 20.33 | Q198: 34.18 | R198: 47.55 | S198: 24.16 | T198: 7.53 | U198: 14.025365 | V198: 14.22371361 | W198: 14.50818789 | X198: 14.81499871 | Y198: 15.14627215 | Z198: 15.50438364 | AA198: 15.89199323 | AB198: 16.32721339 | AC198: 16.81702979 | AD198: 17.32154069
B199: Provisions % of Revenues | C199: =AVERAGEIF($4:$4,TRUE,199:199) -> 0.0172636665 | D199: =LOOKUP($D$4,$3:$3,199:199) -> 0.005422532676 | E199: 0.01 | F199: =IF(F4,F198/F160,$E$199) -> 0.005489368842 | G199: =IF(G4,G198/G160,$E$199) -> 0.01352909155 | H199: 0.01517642903 | I199: 0.01984046801 | J199: 0.01910253492 | K199: 0.012206736 | L199: 0.01940448575 | M199: 0.03340456365 | N199: 0.01357702746 | O199: 0.01601379833 | P199: 0.01422424348 | Q199: 0.0235266585 | R199: 0.03116602215 | S199: 0.01687103712 | T199: 0.005422532676 | U199: 0.01 | V199: 0.01 | W199: 0.01 | X199: 0.01 | Y199: 0.01 | Z199: 0.01 | AA199: 0.01 | AB199: 0.01 | AC199: 0.01 | AD199: 0.01
B201: Depreciation Expense | F201: =F60 -> 15.15 | G201: =G60 -> 22.66 | H201: 38.54 | I201: 39.71 | J201: 44.67 | K201: 55.01 | L201: 63.79 | M201: 56.29 | N201: 60.3 | O201: 57.58 | P201: 56.21 | Q201: 71.67 | R201: 69.39 | S201: 97.47 | T201: 96.74 | U201: 0 | V201: 0 | W201: 0 | X201: 0 | Y201: 0 | Z201: 0 | AA201: 0 | AB201: 0 | AC201: 0 | AD201: 0
B202: Average Gross Plant | F202: =IF(F4,AVERAGE(E17:F17)) -> 172.03 | G202: =IF(G4,AVERAGE(F17:G17)) -> 295.435 | H202: 436.505 | I202: 475.32 | J202: 533.255 | K202: 681.75 | L202: 807.495 | M202: 793.565 | N202: 769.14 | O202: 779.035 | P202: 863.12 | Q202: 936.35 | R202: 1086.355 | S202: 1115.13 | T202: 971.6 | U202: FALSE | V202: FALSE | W202: FALSE | X202: FALSE | Y202: FALSE | Z202: FALSE | AA202: FALSE | AB202: FALSE | AC202: FALSE | AD202: FALSE
B203: Average Net Plant | F203: =IF(F4,AVERAGE(E19:F19)) -> 159.42 | G203: =IF(G4,AVERAGE(F19:G19)) -> 272.94 | H203: 387.22 | I203: 391.865 | J203: 405.49 | K203: 487.32 | L203: 561.545 | M203: 544.47 | N203: 505.31 | O203: 466.91 | P203: 504.4 | Q203: 529.72 | R203: 626.015 | S203: 807.465 | T203: 817.85 | U203: FALSE | V203: FALSE | W203: FALSE | X203: FALSE | Y203: FALSE | Z203: FALSE | AA203: FALSE | AB203: FALSE | AC203: FALSE | AD203: FALSE
B204: Depreciation as Pct of Gross Plant | C204: =AVERAGEIF($4:$4,TRUE,204:204) -> 0.07972112518 | D204: =LOOKUP($D$4,$3:$3,204:204) -> 0.09956772334 | E204: 0.1 | F204: =IF(F4,F201/F202,$E$204) -> 0.08806603499 | G204: =IF(G4,G201/G202,$E$204) -> 0.07670045865 | H204: 0.08829223033 | I204: 0.08354371792 | J204: 0.08376855351 | K204: 0.08068940227 | L204: 0.07899739317 | M204: 0.07093306786 | N204: 0.07839925111 | O204: 0.07391195518 | P204: 0.06512420057 | Q204: 0.07654189139 | R204: 0.06387414795 | S204: 0.08740684943 | T204: 0.09956772334 | U204: 0.1 | V204: 0.1 | W204: 0.1 | X204: 0.1 | Y204: 0.1 | Z204: 0.1 | AA204: 0.1 | AB204: 0.1 | AC204: 0.1 | AD204: 0.1
B205: Depreciation as Pct of Net Plant | C205: =AVERAGEIF($4:$4,TRUE,205:205) -> 0.11054533 | D205: =LOOKUP($D$4,$3:$3,205:205) -> 0.1182857492 | E205: 0.12 | F205: =IF(F4,F201/F203,$E$205) -> 0.09503199097 | G205: =IF(G4,G201/G203,$E$205) -> 0.08302190958 | H205: 0.09952998296 | I205: 0.1013359193 | J205: 0.1101630127 | K205: 0.1128827054 | L205: 0.1135973074 | M205: 0.1033849432 | N205: 0.1193326869 | O205: 0.123321411 | P205: 0.1114393339 | Q205: 0.1352978932 | R205: 0.1108439894 | S205: 0.1207111144 | T205: 0.1182857492 | U205: 0.12 | V205: 0.12 | W205: 0.12 | X205: 0.12 | Y205: 0.12 | Z205: 0.12 | AA205: 0.12 | AB205: 0.12 | AC205: 0.12 | AD205: 0.12
B207: Pre-tax Income | F207: =F64 -> -3.43 | G207: =G64 -> 43.82 | H207: 61.16 | I207: 176.5 | J207: 201.24 | K207: 114.52 | L207: 177.69 | M207: 249.08 | N207: 218.03 | O207: 14.63 | P207: 192.38 | Q207: 123.81 | R207: 156.29 | S207: 63.58 | T207: 251.9 | U207: 0 | V207: 0 | W207: 0 | X207: 0 | Y207: 0 | Z207: 0 | AA207: 0 | AB207: 0 | AC207: 0 | AD207: 0
B208: Taxes | F208: =F65 -> -1.04 | G208: =G65 -> 16.48 | H208: 23.9 | I208: 61.45 | J208: 56.68 | K208: 29.28 | L208: 52.93 | M208: 71.49 | N208: 58.21 | O208: -9.52 | P208: 36.73 | Q208: 10.14 | R208: 48.3 | S208: 2.68 | T208: 37.08 | U208: 0 | V208: 0 | W208: 0 | X208: 0 | Y208: 0 | Z208: 0 | AA208: 0 | AB208: 0 | AC208: 0 | AD208: 0
B209: Tax Rate | C209: =AVERAGEIF($4:$4,TRUE,209:209) -> 0.195195576 | D209: =LOOKUP($D$4,$3:$3,209:209) -> 0.1472012703 | E209: 0.34 | F209: =IF(F4,F208/F207,$E$209) -> 0.3032069971 | G209: =IF(G4,G208/G207,$E$209) -> 0.3760839799 | H209: 0.3907782865 | I209: 0.3481586402 | J209: 0.2816537468 | K209: 0.2556758645 | L209: 0.2978783274 | M209: 0.2870162197 | N209: 0.266981608 | O209: -0.6507177033 | P209: 0.1909242125 | Q209: 0.081899685 | R209: 0.3090408855 | S209: 0.04215162001 | T209: 0.1472012703 | U209: 0.34 | V209: 0.34 | W209: 0.34 | X209: 0.34 | Y209: 0.34 | Z209: 0.34 | AA209: 0.34 | AB209: 0.34 | AC209: 0.34 | AD209: 0.34
B211: Investments and Loans | F211: =F21+F26+F27 -> 96.33 | G211: =G21+G26+G27 -> 140.09 | H211: 407.97 | I211: 468.81 | J211: 599.21 | K211: 653.02 | L211: 888.66 | M211: 1090.7 | N211: 1208.61 | O211: 1261.29 | P211: 1459.21 | Q211: 1558.08 | R211: 1990.59 | S211: 1835.97 | T211: 2027.47 | U211: 0 | V211: 0 | W211: 0 | X211: 0 | Y211: 0 | Z211: 0 | AA211: 0 | AB211: 0 | AC211: 0 | AD211: 0
B212: Growth | C212: =AVERAGEIF($4:$4,TRUE,212:212) -> 0.2965957013 | D212: =LOOKUP($D$4,$3:$3,212:212) -> 0.1043045366 | E212: 0.05 | G212: =IF(G4,G211/F211-1,$E$212) -> 0.4542717741 | H212: =IF(H4,H211/G211-1,$E$212) -> 1.9121993 | I212: 0.1491286124 | J212: 0.2781510633 | K212: 0.08980157207 | L212: 0.3608465284 | M212: 0.2273535435 | N212: 0.1081048868 | O212: 0.0435872614 | P212: 0.1569187102 | Q212: 0.06775584049 | R212: 0.2775916513 | S212: -0.07767546305 | T212: 0.1043045366 | U212: 0.05 | V212: 0.05 | W212: 0.05 | X212: 0.05 | Y212: 0.05 | Z212: 0.05 | AA212: 0.05 | AB212: 0.05 | AC212: 0.05 | AD212: 0.05
B214: Other Income | F214: =F44 -> 5.73 | G214: =G44 -> -3.99 | H214: -8.12 | I214: 26.85 | J214: 34.67 | K214: 0.22 | L214: -3.5 | M214: 31.61 | N214: 68.23 | O214: -81.3 | P214: 126.6 | Q214: 105.24 | R214: 153.48 | S214: 156.28 | T214: 197.16 | U214: 0 | V214: 0 | W214: 0 | X214: 0 | Y214: 0 | Z214: 0 | AA214: 0 | AB214: 0 | AC214: 0 | AD214: 0
B215: Average Investments | F215: =AVERAGE(E211:F211) -> 96.33 | G215: =AVERAGE(F211:G211) -> 118.21 | H215: 274.03 | I215: 438.39 | J215: 534.01 | K215: 626.115 | L215: 770.84 | M215: 989.68 | N215: 1149.655 | O215: 1234.95 | P215: 1360.25 | Q215: 1508.645 | R215: 1774.335 | S215: 1913.28 | T215: 1931.72 | U215: 1013.735 | V215: 0 | W215: 0 | X215: 0 | Y215: 0 | Z215: 0 | AA215: 0 | AB215: 0 | AC215: 0 | AD215: 0
B216: Return on Average Investments | C216: =AVERAGEIF($4:$4,TRUE,216:216) -> 0.03844065754 | D216: =LOOKUP($D$4,$3:$3,216:216) -> 0.1020644814 | E216: 0.1 | F216: =IF(F4,F214/F215,$E$216) -> 0.05948302709 | G216: =IF(G4,G214/G215,$E$216) -> -0.03375348955 | H216: -0.02963179214 | I216: 0.06124683501 | J216: 0.06492387783 | K216: 0.0003513731503 | L216: -0.004540501271 | M216: 0.03193961685 | N216: 0.05934823925 | O216: -0.0658326248 | P216: 0.09307112663 | Q216: 0.06975796161 | R216: 0.08650001268 | S216: 0.08168171935 | T216: 0.1020644814 | U216: 0.1 | V216: 0.1 | W216: 0.1 | X216: 0.1 | Y216: 0.1 | Z216: 0.1 | AA216: 0.1 | AB216: 0.1 | AC216: 0.1 | AD216: 0.1
B218: Extraordinary | F218: =F63+F61 -> 0.66 | G218: =G63+G61 -> 2.31 | H218: 2.52 | I218: 12.84 | J218: 5.61 | K218: 5.42 | L218: 0.71 | M218: 0 | N218: 0 | O218: 0 | P218: 0 | Q218: 0 | R218: 0 | S218: 0 | T218: 0 | U218: 0 | V218: 0 | W218: 0 | X218: 0 | Y218: 0 | Z218: 0 | AA218: 0 | AB218: 0 | AC218: 0 | AD218: 0
B220: Total Debt | F220: =F13 -> 187.54 | G220: =G13 -> 171.6 | H220: 169.57 | I220: 165 | J220: 213.76 | K220: 369.87 | L220: 177.5 | M220: 264.9 | N220: 267.54 | O220: 329.49 | P220: 396.51 | Q220: 245.66 | R220: 884.48 | S220: 987.4 | T220: 1071.96 | U220: 0 | V220: 0 | W220: 0 | X220: 0 | Y220: 0 | Z220: 0 | AA220: 0 | AB220: 0 | AC220: 0 | AD220: 0
B221: Average Debt | F221: =AVERAGE(E220:F220) -> 187.54 | G221: =AVERAGE(F220:G220) -> 179.57 | H221: 170.585 | I221: 167.285 | J221: 189.38 | K221: 291.815 | L221: 273.685 | M221: 221.2 | N221: 266.22 | O221: 298.515 | P221: 363 | Q221: 321.085 | R221: 565.07 | S221: 935.94 | T221: 1029.68 | U221: 535.98 | V221: 0 | W221: 0 | X221: 0 | Y221: 0 | Z221: 0 | AA221: 0 | AB221: 0 | AC221: 0 | AD221: 0
B222: Interest Expense | F222: =F58 -> 5.82 | G222: =G58 -> 7.2 | H222: 14.3 | I222: 14.86 | J222: 17.73 | K222: 31.69 | L222: 25.73 | M222: 19.67 | N222: 28.58 | O222: 33.58 | P222: 55.57 | Q222: 36.03 | R222: 51.38 | S222: 78.68 | T222: 69.6 | U222: 0 | V222: 0 | W222: 0 | X222: 0 | Y222: 0 | Z222: 0 | AA222: 0 | AB222: 0 | AC222: 0 | AD222: 0
B223: Interest Rate | C223: =AVERAGEIF($4:$4,TRUE,223:223) -> 0.09044486578 | D223: =LOOKUP($D$4,$3:$3,223:223) -> 0.06759381555 | E223: 0.07 | F223: =IF(F4,F222/F221,$E$223) -> 0.03103337955 | G223: =IF(G4,G222/G221,$E$223) -> 0.04009578437 | H223: 0.08382917607 | I223: 0.08883043907 | J223: 0.09362129053 | K223: 0.1085961996 | L223: 0.09401319035 | M223: 0.08892405063 | N223: 0.1073548193 | O223: 0.1124901596 | P223: 0.1530853994 | Q223: 0.1122132769 | R223: 0.09092678783 | S223: 0.08406521786 | T223: 0.06759381555 | U223: 0.07 | V223: 0.07 | W223: 0.07 | X223: 0.07 | Y223: 0.07 | Z223: 0.07 | AA223: 0.07 | AB223: 0.07 | AC223: 0.07 | AD223: 0.07
B225: Total Cash Balance | F225: =F24 -> 31.98 | G225: =G24 -> 32.85 | H225: 50.33 | I225: 62.25 | J225: 68.64 | K225: 54.91 | L225: 63.44 | M225: 59.28 | N225: 80.46 | O225: 96.83 | P225: 72.14 | Q225: 115.92 | R225: 83.82 | S225: 65.91 | T225: 80.5 | U225: 0 | V225: 0 | W225: 0 | X225: 0 | Y225: 0 | Z225: 0 | AA225: 0 | AB225: 0 | AC225: 0 | AD225: 0

Sheet Fixed and Variable Cost
E3: ='HT Media Assumptions'!F3 -> 2004 | F3: ='HT Media Assumptions'!G3 -> 2005 | G3: ='HT Media Assumptions'!H3 -> 2006 | H3: ='HT Media Assumptions'!I3 -> 2007 | I3: ='HT Media Assumptions'!J3 -> 2008 | J3: ='HT Media Assumptions'!K3 -> 2009 | K3: ='HT Media Assumptions'!L3 -> 2010 | L3: ='HT Media Assumptions'!M3 -> 2011 | M3: ='HT Media Assumptions'!N3 -> 2012 | N3: ='HT Media Assumptions'!O3 -> 2013 | O3: ='HT Media Assumptions'!P3 -> 2014 | P3: ='HT Media Assumptions'!Q3 -> 2015 | Q3: ='HT Media Assumptions'!R3 -> 2016 | R3: ='HT Media Assumptions'!S3 -> 2017 | S3: ='HT Media Assumptions'!T3 -> 2018
C4: Revenues | E4: ='HT Media Assumptions'!F160 -> 417.17 | F4: ='HT Media Assumptions'!G160 -> 624.58 | G4: ='HT Media Assumptions'!H160 -> 821.01 | H4: ='HT Media Assumptions'!I160 -> 1039.29 | I4: ='HT Media Assumptions'!J160 -> 1186.23 | J4: ='HT Media Assumptions'!K160 -> 1323.04 | K4: ='HT Media Assumptions'!L160 -> 1263.11 | L4: ='HT Media Assumptions'!M160 -> 1221.39 | M4: ='HT Media Assumptions'!N160 -> 1319.14 | N4: ='HT Media Assumptions'!O160 -> 1345.09 | O4: ='HT Media Assumptions'!P160 -> 1429.25 | P4: ='HT Media Assumptions'!Q160 -> 1452.82 | Q4: ='HT Media Assumptions'!R160 -> 1525.7 | R4: ='HT Media Assumptions'!S160 -> 1432.04 | S4: ='HT Media Assumptions'!T160 -> 1388.65
D5: Employee Cost | E5: ='HT Media Assumptions'!F166 -> 58.68 | F5: ='HT Media Assumptions'!G166 -> 79.37 | G5: ='HT Media Assumptions'!H166 -> 118.39 | H5: ='HT Media Assumptions'!I166 -> 147.68 | I5: ='HT Media Assumptions'!J166 -> 175.58 | J5: ='HT Media Assumptions'!K166 -> 203.58 | K5: ='HT Media Assumptions'!L166 -> 208.18 | L5: ='HT Media Assumptions'!M166 -> 209.53 | M5: ='HT Media Assumptions'!N166 -> 247.22 | N5: ='HT Media Assumptions'!O166 -> 289.15 | O5: ='HT Media Assumptions'!P166 -> 312.51 | P5: ='HT Media Assumptions'!Q166 -> 347.95 | Q5: ='HT Media Assumptions'!R166 -> 390.84 | R5: ='HT Media Assumptions'!S166 -> 327.95 | S5: ='HT Media Assumptions'!T166 -> 261.9
D6: Predict | E6: =$K$10*EXP($K$11*E4) -> 56.84055114 | F6: =$K$10*EXP($K$11*F4) -> 80.87032933 | G6: 112.9311114 | H6: 163.6702936 | I6: 210.1143696 | J6: 265.132314 | K6: 239.4508076 | L6: 223.0562539 | M6: 263.3803011 | N6: 275.2594203 | O6: 317.5978626 | P6: 330.5820866 | Q6: 374.1852514 | R6: 319.1078073 | S6: 296.4166303
K10: 27.968
K11: 0.0017
E23: =E3 -> 2004 | F23: =F3 -> 2005 | G23: 2006 | H23: 2007 | I23: 2008 | J23: 2009 | K23: 2010 | L23: 2011 | M23: 2012 | N23: 2013 | O23: 2014 | P23: 2015 | Q23: 2016 | R23: 2017 | S23: 2018
C24: Revenues | E24: =E4 -> 417.17 | F24: =F4 -> 624.58 | G24: 821.01 | H24: 1039.29 | I24: 1186.23 | J24: 1323.04 | K24: 1263.11 | L24: 1221.39 | M24: 1319.14 | N24: 1345.09 | O24: 1429.25 | P24: 1452.82 | Q24: 1525.7 | R24: 1432.04 | S24: 1388.65
D25: ='HT Media Assumptions'!B170 -> Other Expenses (Pct of Revenue) | E25: ='HT Media Assumptions'!F170 -> 137.31 | F25: ='HT Media Assumptions'!G170 -> 158.66 | G25: ='HT Media Assumptions'!H170 -> 206.6 | H25: ='HT Media Assumptions'!I170 -> 227.29 | I25: ='HT Media Assumptions'!J170 -> 285.67 | J25: ='HT Media Assumptions'!K170 -> 333.2 | K25: ='HT Media Assumptions'!L170 -> 324.16 | L25: ='HT Media Assumptions'!M170 -> 313.7 | M25: ='HT Media Assumptions'!N170 -> 378.21 | N25: ='HT Media Assumptions'!O170 -> 396.34 | O25: ='HT Media Assumptions'!P170 -> 469.41 | P25: ='HT Media Assumptions'!Q170 -> 508.46 | Q25: ='HT Media Assumptions'!R170 -> 564.41 | R25: ='HT Media Assumptions'!S170 -> 611.87 | S25: ='HT Media Assumptions'!T170 -> 553.42
D26: Power | E26: =$N$35*EXP($N$34*E24) -> 120.1523439 | F26: =$N$35*EXP($N$34*F24) -> 160.6349613 | G26: 211.481277 | H26: 287.0706836 | I26: 352.6388586 | J26: 427.083041 | K26: 392.7119807 | L26: 370.4314731 | M26: 424.757522 | N26: 440.4727006 | O26: 495.5520877 | P26: 512.1771031 | Q26: 567.1946085 | R26: 497.4914993 | S26: 468.1704644
D27: Linear | E27: =$N$38+$N$37*E24 -> 54.144963 | F27: =$N$38+$N$37*F24 -> 137.917862 | G27: 217.255939 | H27: 305.419231 | I27: 364.768297 | J27: 420.025856 | K27: 395.820129 | L27: 378.969421 | M27: 418.450646 | N27: 428.931851 | O27: 462.924075 | P27: 472.443998 | Q27: 501.88023 | R27: 464.050956 | S27: 446.525735
D28: Rev % | E28: =E25/E24 -> 0.3291463912 | F28: =F25/F24 -> 0.2540267059 | G28: 0.2516412711 | H28: 0.2186973799 | I28: 0.2408217631 | J28: 0.2518442375 | K28: 0.2566363975 | L28: 0.25683852 | M28: 0.2867095229 | N28: 0.2946568631 | O28: 0.3284309953 | P28: 0.3499814155 | Q28: 0.3699351118 | R28: 0.4272715846 | S28: 0.3985309473
N34: 0.0014
N35: 67.002
N37: 0.4039
N38: -114.35

Sheet Assumptions Graph
D3: Start Row | E3: =ROW('HT Media Assumptions'!E160) -> 160
D4: Row Applied | E4: 165 | J4: 214
F6: ='HT Media Assumptions'!F3 -> 2004 | G6: ='HT Media Assumptions'!G3 -> 2005 | H6: ='HT Media Assumptions'!H3 -> 2006 | I6: ='HT Media Assumptions'!I3 -> 2007 | J6: ='HT Media Assumptions'!J3 -> 2008 | K6: ='HT Media Assumptions'!K3 -> 2009 | L6: ='HT Media Assumptions'!L3 -> 2010 | M6: ='HT Media Assumptions'!M3 -> 2011 | N6: ='HT Media Assumptions'!N3 -> 2012 | O6: ='HT Media Assumptions'!O3 -> 2013 | P6: ='HT Media Assumptions'!P3 -> 2014 | Q6: ='HT Media Assumptions'!Q3 -> 2015 | R6: ='HT Media Assumptions'!R3 -> 2016 | S6: ='HT Media Assumptions'!S3 -> 2017 | T6: ='HT Media Assumptions'!T3 -> 2018 | U6: ='HT Media Assumptions'!U3 -> 2019 | V6: ='HT Media Assumptions'!V3 -> 2020 | W6: ='HT Media Assumptions'!W3 -> 2021 | X6: ='HT Media Assumptions'!X3 -> 2022 | Y6: ='HT Media Assumptions'!Y3 -> 2023 | Z6: ='HT Media Assumptions'!Z3 -> 2024 | AA6: ='HT Media Assumptions'!AA3 -> 2025 | AB6: ='HT Media Assumptions'!AB3 -> 2026 | AC6: ='HT Media Assumptions'!AC3 -> 2027 | AD6: ='HT Media Assumptions'!AD3 -> 2028
F7: ='HT Media Assumptions'!F4 -> TRUE | G7: ='HT Media Assumptions'!G4 -> TRUE | H7: ='HT Media Assumptions'!H4 -> TRUE | I7: ='HT Media Assumptions'!I4 -> TRUE | J7: ='HT Media Assumptions'!J4 -> TRUE | K7: ='HT Media Assumptions'!K4 -> TRUE | L7: ='HT Media Assumptions'!L4 -> TRUE | M7: ='HT Media Assumptions'!M4 -> TRUE | N7: ='HT Media Assumptions'!N4 -> TRUE | O7: ='HT Media Assumptions'!O4 -> TRUE | P7: ='HT Media Assumptions'!P4 -> TRUE | Q7: ='HT Media Assumptions'!Q4 -> TRUE | R7: ='HT Media Assumptions'!R4 -> TRUE | S7: ='HT Media Assumptions'!S4 -> TRUE | T7: ='HT Media Assumptions'!T4 -> TRUE | U7: ='HT Media Assumptions'!U4 -> FALSE | V7: ='HT Media Assumptions'!V4 -> FALSE | W7: ='HT Media Assumptions'!W4 -> FALSE | X7: ='HT Media Assumptions'!X4 -> FALSE | Y7: ='HT Media Assumptions'!Y4 -> FALSE | Z7: ='HT Media Assumptions'!Z4 -> FALSE | AA7: ='HT Media Assumptions'!AA4 -> FALSE | AB7: ='HT Media Assumptions'!AB4 -> FALSE | AC7: ='HT Media Assumptions'!AC4 -> FALSE | AD7: ='HT Media Assumptions'!AD4 -> FALSE
B8: =INDEX('HT Media Model Valuation'!B:B,'Assumptions Graph'!$E$4) -> Raw Materials and Power | F8: =INDEX('HT Media Model Valuation'!F:F,'Assumptions Graph'!$E$4) -> 209.98 | G8: =INDEX('HT Media Model Valuation'!G:G,'Assumptions Graph'!$E$4) -> 311.19 | H8: =INDEX('HT Media Model Valuation'!H:H,'Assumptions Graph'!$E$4) -> 376.43 | I8: =INDEX('HT Media Model Valuation'!I:I,'Assumptions Graph'!$E$4) -> 473.21 | J8: =INDEX('HT Media Model Valuation'!J:J,'Assumptions Graph'!$E$4) -> 501.27 | K8: =INDEX('HT Media Model Valuation'!K:K,'Assumptions Graph'!$E$4) -> 590.78 | L8: =INDEX('HT Media Model Valuation'!L:L,'Assumptions Graph'!$E$4) -> 461.26 | M8: =INDEX('HT Media Model Valuation'!M:M,'Assumptions Graph'!$E$4) -> 404.76 | N8: =INDEX('HT Media Model Valuation'!N:N,'Assumptions Graph'!$E$4) -> 455.02 | O8: =INDEX('HT Media Model Valuation'!O:O,'Assumptions Graph'!$E$4) -> 473.04 | P8: =INDEX('HT Media Model Valuation'!P:P,'Assumptions Graph'!$E$4) -> 469.38 | Q8: =INDEX('HT Media Model Valuation'!Q:Q,'Assumptions Graph'!$E$4) -> 470.18 | R8: =INDEX('HT Media Model Valuation'!R:R,'Assumptions Graph'!$E$4) -> 446.86 | S8: =INDEX('HT Media Model Valuation'!S:S,'Assumptions Graph'!$E$4) -> 408.72 | T8: =INDEX('HT Media Model Valuation'!T:T,'Assumptions Graph'!$E$4) -> 352.24 | U8: =INDEX('HT Media Model Valuation'!U:U,'Assumptions Graph'!$E$4) -> 350.634125 | V8: =INDEX('HT Media Model Valuation'!V:V,'Assumptions Graph'!$E$4) -> 355.5928404 | W8: =INDEX('HT Media Model Valuation'!W:W,'Assumptions Graph'!$E$4) -> 362.7046972 | X8: =INDEX('HT Media Model Valuation'!X:X,'Assumptions Graph'!$E$4) -> 370.3749676 | Y8: =INDEX('HT Media Model Valuation'!Y:Y,'Assumptions Graph'!$E$4) -> 378.6568037 | Z8: =INDEX('HT Media Model Valuation'!Z:Z,'Assumptions Graph'!$E$4) -> 387.6095911 | AA8: =INDEX('HT Media Model Valuation'!AA:AA,'Assumptions Graph'!$E$4) -> 397.2998308 | AB8: =INDEX('HT Media Model Valuation'!AB:AB,'Assumptions Graph'!$E$4) -> 408.1803348 | AC8: =INDEX('HT Media Model Valuation'!AC:AC,'Assumptions Graph'!$E$4) -> 420.4257448 | AD8: =INDEX('HT Media Model Valuation'!AD:AD,'Assumptions Graph'!$E$4) -> 433.0385172
F10: =F6 -> 2004 | G10: =G6 -> 2005 | H10: 2006 | I10: 2007 | J10: 2008 | K10: 2009 | L10: 2010 | M10: 2011 | N10: 2012 | O10: 2013 | P10: 2014 | Q10: 2015 | R10: 2016 | S10: 2017 | T10: 2018 | U10: 2019 | V10: 2020 | W10: 2021 | X10: 2022 | Y10: 2023 | Z10: 2024 | AA10: 2025 | AB10: 2026 | AC10: 2027 | AD10: 2028
B11: History | F11: =IF(F7,F8) -> 209.98 | G11: =IF(G7,G8) -> 311.19 | H11: 376.43 | I11: 473.21 | J11: 501.27 | K11: 590.78 | L11: 461.26 | M11: 404.76 | N11: 455.02 | O11: 473.04 | P11: 469.38 | Q11: 470.18 | R11: 446.86 | S11: 408.72 | T11: 352.24 | U11: FALSE | V11: FALSE | W11: FALSE | X11: FALSE | Y11: FALSE | Z11: FALSE | AA11: FALSE | AB11: FALSE | AC11: FALSE | AD11: FALSE
B12: Forecast | F12: =IF(NOT(F7),F8) -> FALSE | G12: =IF(NOT(G7),G8) -> FALSE | H12: FALSE | I12: FALSE | J12: FALSE | K12: FALSE | L12: FALSE | M12: FALSE | N12: FALSE | O12: FALSE | P12: FALSE | Q12: FALSE | R12: FALSE | S12: FALSE | T12: FALSE | U12: 350.634125 | V12: 355.5928404 | W12: 362.7046972 | X12: 370.3749676 | Y12: 378.6568037 | Z12: 387.6095911 | AA12: 397.2998308 | AB12: 408.1803348 | AC12: 420.4257448 | AD12: 433.0385172
B14: Sum of Forecast | E14: =SUMIF(7:7,FALSE,8:8) -> 3864.517453 | F14: output

Sheet HT Media Model Structure
B1: Revene Assumption | L1: Investments in Core Assets | O1: FALSE
F3: 2004 | G3: 2005 | H3: 2006 | I3: 2007 | J3: 2008 | K3: 2009 | L3: 2010 | M3: 2011 | N3: 2012 | O3: 2013 | P3: 2014 | Q3: 2015 | R3: 2016 | S3: 2017 | T3: 2018 | U3: 2019 | V3: 2020 | W3: 2021 | X3: 2022 | Y3: 2023 | Z3: 2024 | AA3: 2025 | AB3: 2026 | AC3: 2027 | AD3: 2028
B4: Historic Switch | D4: 2018 | F4: =F3<=$D$4 -> TRUE | G4: =G3<=$D$4 -> TRUE | H4: TRUE | I4: TRUE | J4: TRUE | K4: TRUE | L4: TRUE | M4: TRUE | N4: TRUE | O4: TRUE | P4: TRUE | Q4: TRUE | R4: TRUE | S4: TRUE | T4: TRUE | U4: FALSE | V4: FALSE | W4: FALSE | X4: FALSE | Y4: FALSE | Z4: FALSE | AA4: FALSE | AB4: FALSE | AC4: FALSE | AD4: FALSE
A5: Balance Sheet of HT Media
B6: Sources Of Funds | C6: Direct | D6: Financing
B7: Total Share Capital | F7: 47.14 | G7: 61.75 | H7: 66.85 | I7: 46.85 | J7: 46.85 | K7: 47 | L7: 47 | M7: 47 | N7: 47 | O7: 47 | P7: 46.08 | Q7: 46.1 | R7: 46.1 | S7: 46.1 | T7: 46.11
B8: Equity Share Capital | F8: 37.14 | G8: 41.75 | H8: 46.85 | I8: 46.85 | J8: 46.85 | K8: 47 | L8: 47 | M8: 47 | N8: 47 | O8: 47 | P8: 46.08 | Q8: 46.1 | R8: 46.1 | S8: 46.1 | T8: 46.11
B9: Preference Share Capital | F9: 10 | G9: 20 | H9: 20 | I9: 0 | J9: 0 | K9: 854.61 | L9: 961.86 | M9: 1121.96 | N9: 1263.18 | O9: 1263.15 | P9: 1362.48 | Q9: 1455.37 | R9: 1545.9 | S9: 1652.25 | T9: 1853.28
B10: Reserves | F10: 238.52 | G10: 345.2 | H10: 626.39 | I10: 736.99 | J10: 868.88 | K10: 901.61 | L10: 1008.86 | M10: 1168.96 | N10: 1310.18 | O10: 1310.15 | P10: 1408.56 | Q10: 1501.47 | R10: 1592 | S10: 1698.35 | T10: 1899.39
B11: Networth | D11: 1 | F11: =SUM(F8:F10) -> 285.66 | G11: =SUM(G8:G10) -> 406.95 | H11: =SUM(H8:H10) -> 693.24 | I11: =SUM(I8:I10) -> 783.84 | J11: =SUM(J8:J10) -> 915.73 | K11: =K10 -> 901.61 | L11: =L10 -> 1008.86 | M11: 1168.96 | N11: 1310.18 | O11: 1310.15 | P11: 1408.56 | Q11: 1501.47 | R11: 1592 | S11: 1698.35 | T11: 1899.39
B12: Secured Loans | F12: 187.54 | G12: 171.6 | H12: 169.57 | I12: 165 | J12: 213.76 | K12: 0 | L12: 0 | M12: 28.36 | N12: 116.37 | O12: 143.38 | P12: 254.91 | Q12: 139.72 | R12: 0 | S12: 0 | T12: 0
B13: Total Debt | D13: 1 | F13: 187.54 | G13: 171.6 | H13: 169.57 | I13: 165 | J13: 213.76 | K13: 369.87 | L13: 177.5 | M13: 264.9 | N13: 267.54 | O13: 329.49 | P13: 396.51 | Q13: 245.66 | R13: 884.48 | S13: 987.4 | T13: 1071.96
B14: Total Liabilities | F14: 473.2 | G14: 578.55 | H14: 862.81 | I14: 948.84 | J14: 1129.49 | K14: 1271.48 | L14: 1186.36 | M14: 1433.86 | N14: 1577.72 | O14: 1639.64 | P14: 1805.07 | Q14: 1747.13 | R14: 2476.48 | S14: 2685.75 | T14: 2971.35
B16: Application Of Funds
B17: Gross Block | F17: 172.03 | G17: 418.84 | H17: 454.17 | I17: 496.47 | J17: 570.04 | K17: 793.46 | L17: 821.53 | M17: 765.6 | N17: 772.68 | O17: 785.39 | P17: 940.85 | Q17: 931.85 | R17: 1240.86 | S17: 989.4 | T17: 953.8
B18: Less: Accum. Depreciation | F18: 12.61 | G18: 32.38 | H18: 66.19 | I18: 100.72 | J18: 154.81 | K18: 234.05 | L18: 257.85 | M18: 240.34 | N18: 287.32 | O18: 336.93 | P18: 380.51 | Q18: 432.75 | R18: 487.93 | S18: 127.4 | T18: 180.1
B19: Net Block | C19: 1 | F19: 159.42 | G19: 386.46 | H19: 387.98 | I19: 395.75 | J19: 415.23 | K19: 559.41 | L19: 563.68 | M19: 525.26 | N19: 485.36 | O19: 448.46 | P19: 560.34 | Q19: 499.1 | R19: 752.93 | S19: 862 | T19: 773.7
B20: Capital Work in Progress | C20: 1 | F20: 145.99 | G20: 11.64 | H20: 3.9 | I20: 17.44 | J20: 46.8 | K20: 177.94 | L20: 19.53 | M20: 8.9 | N20: 11.04 | O20: 109.4 | P20: 22.53 | Q20: 36.98 | R20: 0 | S20: 368.81 | T20: 469.78
B21: Investments | C21: =IF(O1,1,0) -> 0 | D21: =IF(O1,0,-1) -> -1 | F21: 43.69 | G21: 100.92 | H21: 64.4 | I21: 372.98 | J21: 456.77 | K21: 405.59 | L21: 630.72 | M21: 808.19 | N21: 929.28 | O21: 872.81 | P21: 1078.67 | Q21: 1055.41 | R21: 1215.79 | S21: 1654.36 | T21: 1733.11
B22: Inventories | C22: 1 | F22: 56.13 | G22: 77.56 | H22: 108.45 | I22: 101.9 | J22: 113.67 | K22: 174.49 | L22: 94.38 | M22: 101.27 | N22: 121.28 | O22: 104.64 | P22: 192.73 | Q22: 108.86 | R22: 113.99 | S22: 107.91 | T22: 77.16
B23: Sundry Debtors | C23: 1 | F23: 103.69 | G23: 93.5 | H23: 121.22 | I23: 146.47 | J23: 197.82 | K23: 235 | L23: 185.1 | M23: 178.56 | N23: 194.36 | O23: 194.61 | P23: 189.93 | Q23: 196.52 | R23: 241.76 | S23: 177.05 | T23: 219.07
B24: Cash and Bank Balance | D24: -1 | F24: 31.98 | G24: 32.85 | H24: 50.33 | I24: 62.25 | J24: 68.64 | K24: 54.91 | L24: 63.44 | M24: 59.28 | N24: 80.46 | O24: 96.83 | P24: 72.14 | Q24: 115.92 | R24: 83.82 | S24: 65.91 | T24: 80.5
B25: Total Current Assets | F25: 191.8 | G25: 203.91 | H25: 280 | I25: 310.62 | J25: 380.13 | K25: 464.4 | L25: 342.92 | M25: 339.11 | N25: 396.1 | O25: 396.08 | P25: 454.8 | Q25: 421.3 | R25: 439.57 | S25: 350.87 | T25: 376.73
B26: Loans and Advances | D26: -1 | F26: 23.14 | G26: 23.15 | H26: 126.14 | I26: 51.85 | J26: 141.41 | K26: 242.09 | L26: 255.26 | M26: 282.51 | N26: 279.33 | O26: 388.48 | P26: 380.54 | Q26: 502.67 | R26: 774.8 | S26: 181.61 | T26: 294.36
B27: Fixed Deposits | D27: -1 | F27: 29.5 | G27: 16.02 | H27: 217.43 | I27: 43.98 | J27: 1.03 | K27: 5.34 | L27: 2.68 | M27: 0 | N27: 0 | O27: 0
B28: Total CA, Loans & Advances | F28: 244.44 | G28: 243.08 | H28: 623.57 | I28: 406.45 | J28: 522.57 | K28: 711.83 | L28: 600.86 | M28: 621.62 | N28: 675.43 | O28: 784.56 | P28: 835.34 | Q28: 923.97 | R28: 1214.37 | S28: 532.48 | T28: 671.09
B29: Current Liabilities | C29: -1 | F29: 118.06 | G29: 155.09 | H29: 204.57 | I29: 223.17 | J29: 289.24 | K29: 567.15 | L29: 603.92 | M29: 489.32 | N29: 505.46 | O29: 554.04 | P29: 671.46 | Q29: 734.14 | R29: 698.79 | S29: 707.74 | T29: 668.8
B30: Provisions | C30: -1 | F30: 2.29 | G30: 8.45 | H30: 12.46 | I30: 20.62 | J30: 22.66 | K30: 16.15 | L30: 24.51 | M30: 40.8 | N30: 17.91 | O30: 21.54 | P30: 20.33 | Q30: 34.18 | R30: 47.55 | S30: 24.16 | T30: 7.53
B31: Total CL & Provisions | F31: 120.35 | G31: 163.54 | H31: 217.03 | I31: 243.79 | J31: 311.9 | K31: 583.3 | L31: 628.43 | M31: 530.12 | N31: 523.37 | O31: 575.58 | P31: 691.79 | Q31: 768.32 | R31: 746.34 | S31: 731.9 | T31: 676.33
B32: Net Current Assets | F32: 124.09 | G32: 79.54 | H32: 406.54 | I32: 162.66 | J32: 210.67 | K32: 128.53 | L32: -27.57 | M32: 91.5 | N32: 152.06 | O32: 208.98 | P32: 143.55 | Q32: 155.65 | R32: 468.03 | S32: -199.42 | T32: -5.24
B33: Total Assets | F33: 473.19 | G33: 578.56 | H33: 862.82 | I33: 948.83 | J33: 1129.47 | K33: 1271.47 | L33: 1186.36 | M33: 1433.85 | N33: 1577.74 | O33: 1639.65 | P33: 1805.09 | Q33: 1747.14 | R33: 2436.75 | S33: 2685.75 | T33: 2971.35
B35: Invested Capital | F35: =SUMPRODUCT(F7:F33*$D$7:$D$33) -> 344.89 | G35: =SUMPRODUCT(G7:G33*$D$7:$D$33) -> 405.61 | H35: 404.51 | I35: 417.78 | J35: 461.64 | K35: 563.55 | L35: 234.26 | M35: 283.88 | N35: 288.65 | O35: 281.52 | P35: 273.72 | Q35: 73.13 | R35: 402.07 | S35: 783.87 | T35: 863.38
B36: Invested Capital | F36: =SUMPRODUCT(F7:F33*$C$7:$C$33) -> 344.88 | G36: =SUMPRODUCT(G7:G33*$C$7:$C$33) -> 405.62 | H36: 404.52 | I36: 417.77 | J36: 461.62 | K36: 563.54 | L36: 234.26 | M36: 283.87 | N36: 288.67 | O36: 281.53 | P36: 273.74 | Q36: 73.14 | R36: 362.34 | S36: 783.87 | T36: 863.38
B38: Contingent Liabilities | F38: 62.7 | G38: 5.1 | H38: 5.57 | I38: 10.73 | J38: 122.43 | K38: 22.74 | L38: 7.92 | M38: 40.88 | N38: 39.89 | O38: 271.57 | P38: 146.34 | Q38: 49.95 | R38: 31.03 | S38: 40.58 | T38: 49.12
B39: Book Value (Rs) | F39: 74.22 | G39: 92.68 | H39: 143.71 | I39: 33.46 | J39: 39.1 | K39: 38.49 | L39: 42.93 | M39: 49.74 | N39: 55.75 | O39: 55.75 | P39: 61.13 | Q39: 65.13 | R39: 69.06 | S39: 73.67 | T39: 82.38
A41: Profit & Loss account of HT Media
B42: Sales Turnover | F42: 417.17 | G42: 624.58 | H42: 821.01 | I42: 1039.29 | J42: 1186.23 | K42: 1323.04 | L42: 1263.11 | M42: 1221.39 | N42: 1319.14 | O42: 1345.09 | P42: 1429.25 | Q42: 1452.82 | R42: 1525.7 | S42: 1432.04 | T42: 1388.65
B43: Net Sales | F43: 417.17 | G43: 624.58 | H43: 821.01 | I43: 1039.29 | J43: 1186.23 | K43: 1323.04 | L43: 1263.11 | M43: 1221.39 | N43: 1319.14 | O43: 1345.09 | P43: 1429.25 | Q43: 1452.82 | R43: 1525.7 | S43: 1432.04 | T43: 1388.65
B44: Other Income | F44: 5.73 | G44: -3.99 | H44: -8.12 | I44: 26.85 | J44: 34.67 | K44: 0.22 | L44: -3.5 | M44: 31.61 | N44: 68.23 | O44: -81.3 | P44: 126.6 | Q44: 105.24 | R44: 153.48 | S44: 156.28 | T44: 197.16
B45: Stock Adjustments | F45: -0.05 | G45: 0.04 | H45: 0.03 | I45: 0.27 | J45: -0.35 | K45: 0.1 | L45: 0.49 | M45: 0.03 | N45: -0.01 | O45: 0.53 | P45: -0.39 | Q45: 0.04 | R45: -0.01 | S45: -0.05 | T45: -0.01
B46: Total Income | F46: 422.85 | G46: 620.63 | H46: 812.92 | I46: 1066.41 | J46: 1220.55 | K46: 1323.36 | L46: 1260.1 | M46: 1253.03 | N46: 1387.36 | O46: 1264.32 | P46: 1555.46 | Q46: 1558.1 | R46: 1679.17 | S46: 1588.27 | T46: 1585.8
B47: Expenditure
B48: Raw Materials | F48: 203.84 | G48: 303 | H48: 363.63 | I48: 458.73 | J48: 485.04 | K48: 572.48 | L48: 441.51 | M48: 384.94 | N48: 434.33 | O48: 447.77 | P48: 441.47 | Q48: 442.64 | R48: 417.96 | S48: 381.7 | T48: 325.99
B49: Power & Fuel Cost | F49: 6.14 | G49: 8.19 | H49: 12.8 | I49: 14.48 | J49: 16.23 | K49: 18.3 | L49: 19.75 | M49: 19.82 | N49: 20.69 | O49: 25.27 | P49: 27.91 | Q49: 27.54 | R49: 28.9 | S49: 27.02 | T49: 26.25
B50: Employee Cost | F50: 58.68 | G50: 79.37 | H50: 118.39 | I50: 147.68 | J50: 175.58 | K50: 203.58 | L50: 208.18 | M50: 209.53 | N50: 247.22 | O50: 289.15 | P50: 312.51 | Q50: 347.95 | R50: 390.84 | S50: 327.95 | T50: 261.9
B51: Other Manufacturing Expenses | F51: 42.23 | G51: 50.96 | H51: 56.72 | I51: 58.23 | J51: 70.64 | K51: 74.98 | L51: 65.01 | M51: 0 | N51: 0 | O51: 0
B52: Selling and Admin Expenses | F52: 75.27 | G52: 81.39 | H52: 117.74 | I52: 129.26 | J52: 166.92 | K52: 205.13 | L52: 205.91 | M52: 0 | N52: 0 | O52: 0 | P52: 0 | Q52: 0 | R52: 144.98 | S52: 112.46 | T52: 117.3
B53: Miscellaneous Expenses | F53: 19.81 | G53: 26.31 | H53: 32.14 | I53: 39.8 | J53: 48.11 | K53: 53.09 | L53: 53.24 | M53: 313.7 | N53: 378.21 | O53: 396.34 | P53: 469.41 | Q53: 508.46 | R53: 419.43 | S53: 499.41 | T53: 436.12
B54: Total Expenses | F54: 405.97 | G54: 549.22 | H54: 701.42 | I54: 848.18 | J54: 962.52 | K54: 1127.56 | L54: 993.6 | M54: 927.99 | N54: 1080.45 | O54: 1158.53 | P54: 1251.3 | Q54: 1326.59 | R54: 1402.11 | S54: 1348.54 | T54: 1167.56
B56: Operating Profit | F56: 11.15 | G56: 75.4 | H56: 119.62 | I56: 191.38 | J56: 223.36 | K56: 195.58 | L56: 270 | M56: 293.43 | N56: 238.68 | O56: 187.09 | P56: 177.56 | Q56: 126.27 | R56: 123.58 | S56: 83.45 | T56: 221.08
B57: PBDIT | F57: 16.88 | G57: 71.41 | H57: 111.5 | I57: 218.23 | J57: 258.03 | K57: 195.8 | L57: 266.5 | M57: 325.04 | N57: 306.91 | O57: 105.79 | P57: 304.16 | Q57: 231.51 | R57: 277.06 | S57: 239.73 | T57: 418.24
B58: Interest | F58: 5.82 | G58: 7.2 | H58: 14.3 | I58: 14.86 | J58: 17.73 | K58: 31.69 | L58: 25.73 | M58: 19.67 | N58: 28.58 | O58: 33.58 | P58: 55.57 | Q58: 36.03 | R58: 51.38 | S58: 78.68 | T58: 69.6
B59: PBDT | F59: 11.06 | G59: 64.21 | H59: 97.2 | I59: 203.37 | J59: 240.3 | K59: 164.11 | L59: 240.77 | M59: 305.37 | N59: 278.33 | O59: 72.21 | P59: 248.59 | Q59: 195.48 | R59: 225.68 | S59: 161.05 | T59: 348.64
B60: Depreciation | F60: 15.15 | G60: 22.66 | H60: 38.54 | I60: 39.71 | J60: 44.67 | K60: 55.01 | L60: 63.79 | M60: 56.29 | N60: 60.3 | O60: 57.58 | P60: 56.21 | Q60: 71.67 | R60: 69.39 | S60: 97.47 | T60: 96.74
B61: Other Written Off | F61: 0 | G61: 0.02 | H61: 0.01 | I61: 0 | J61: 0
B62: Profit Before Tax | F62: -4.09 | G62: 41.53 | H62: 58.65 | I62: 163.66 | J62: 195.63 | K62: 109.1 | L62: 176.98 | M62: 249.08 | N62: 218.03 | O62: 14.63 | P62: 192.38 | Q62: 123.81 | R62: 156.29 | S62: 63.58 | T62: 251.9
B63: Extra-ordinary items | F63: 0.66 | G63: 2.29 | H63: 2.51 | I63: 12.84 | J63: 5.61 | K63: 5.42 | L63: 0.71 | M63: 0 | N63: 0 | O63: 0
B64: PBT (Post Extra-ord Items) | F64: -3.43 | G64: 43.82 | H64: 61.16 | I64: 176.5 | J64: 201.24 | K64: 114.52 | L64: 177.69 | M64: 249.08 | N64: 218.03 | O64: 14.63 | P64: 192.38 | Q64: 123.81 | R64: 156.29 | S64: 63.58 | T64: 251.9
B65: Tax | F65: -1.04 | G65: 16.48 | H65: 23.9 | I65: 61.45 | J65: 56.68 | K65: 29.28 | L65: 52.93 | M65: 71.49 | N65: 58.21 | O65: -9.52 | P65: 36.73 | Q65: 10.14 | R65: 48.3 | S65: 2.68 | T65: 37.08
B66: Reported Net Profit | F66: -2.38 | G66: 27.33 | H66: 37.27 | I66: 115.06 | J66: 144.55 | K66: 85.23 | L66: 124.77 | M66: 177.59 | N66: 159.82 | O66: 24.15 | P66: 155.64 | Q66: 113.66 | R66: 107.99 | S66: 61.51 | T66: 213.74
B68: Total Value Addition | F68: 202.12 | G68: 246.22 | H68: 337.78 | I68: 389.45 | J68: 477.49 | K68: 555.08 | L68: 552.09 | M68: 543.05 | N68: 646.12 | O68: 710.76 | P68: 809.83 | Q68: 883.95 | R68: 984.14 | S68: 966.84 | T68: 841.57
B69: Preference Dividend | F69: 0 | G69: 0 | H69: 0.2 | I69: 0 | J69: 0
B70: Equity Dividend | F70: 0 | G70: 4.02 | H70: 5.62 | I70: 7.03 | J70: 9.37 | K70: 7.05 | L70: 8.46 | M70: 8.46 | N70: 9.4 | O70: 9.4 | P70: 9.29 | Q70: 9.31 | R70: 9.31 | S70: 9.31 | T70: 9.31
B71: Corporate Dividend Tax | F71: 0 | G71: 0.56 | H71: 0.82 | I71: 1.19 | J71: 1.59 | K71: 1.2 | L71: 1.41 | M71: 1.37 | N71: 1.53 | O71: 0.5 | P71: 0.47 | Q71: 0.78 | R71: 0.56 | S71: 0.56 | T71: 0.56
B72: Per share data (annualised)
B73: Shares in issue (lakhs) | F73: 371.43 | G73: 417.54 | H73: 468.46 | I73: 2342.29 | J73: 2342.29 | K73: 2342.52 | L73: 2350.21 | M73: 2350.21 | N73: 2350.21 | O73: 2350.21 | P73: 2304.23 | Q73: 2305.2 | R73: 2305.2 | S73: 2305.2 | T73: 2305.7
B74: Earning Per Share (Rs) | F74: -0.64 | G74: 6.55 | H74: 7.91 | I74: 4.91 | J74: 6.17 | K74: 3.64 | L74: 5.31 | M74: 7.56 | N74: 6.8 | O74: 1.03 | P74: 6.75 | Q74: 4.93 | R74: 4.68 | S74: 2.67 | T74: 9.27
B75: Equity Dividend (%) | F75: 0 | G75: 10 | H75: 12 | I75: 15 | J75: 20 | K75: 15 | L75: 18 | M75: 18 | N75: 20 | O75: 20 | P75: 20 | Q75: 20 | R75: 20 | S75: 20 | T75: 20
B76: Book Value (Rs) | F76: 74.22 | G76: 92.68 | H76: 143.71 | I76: 33.46 | J76: 39.1 | K76: 38.49 | L76: 42.93 | M76: 49.74 | N76: 55.75 | O76: 55.75 | P76: 61.13 | Q76: 65.13 | R76: 69.06 | S76: 73.67 | T76: 82.38
B77: Net Profit Before Tax | F77: -3.42 | G77: 43.82 | H77: 61.17 | I77: 176.51 | J77: 201.23 | K77: 114.51 | L77: 179.96 | M77: 249.08 | N77: 218.03 | O77: 14.63 | P77: 192.37 | Q77: 123.8 | R77: 127.06 | S77: 64.19 | T77: 250.82
B78: Net Cash From Operating Activities | F78: -1.97 | G78: 86.39 | H78: 52.75 | I78: 135.33 | J78: 144.28 | K78: 161.57 | L78: 387.56 | M78: 274.27 | N78: 134.78 | O78: 167.19 | P78: 183.34 | Q78: 291.23 | R78: 0 | S78: 191.21 | T78: 190.3
B79: Net Cash (used in)/from
B80: Investing Activities | F80: -193.92 | G80: -169.3 | H80: -83.58 | I80: -109.82 | J80: -172.09 | K80: -400.76 | L80: -152.69 | M80: -251.75 | N80: -96.4 | O80: -196.71 | P80: -193.74 | Q80: -23.89 | R80: 0 | S80: -214.97 | T80: -172.58
B81: Net Cash (used in)/from Financing Activities | F81: 247.66 | G81: 70.29 | H81: 249.72 | I81: -41.29 | J81: 23.17 | K81: 207.89 | L81: -214.73 | M81: -11.31 | N81: -17.2 | O81: 45.88 | P81: -14.29 | Q81: -223.56 | R81: 0 | S81: 10.79 | T81: 7.17
B82: Net (decrease)/increase In Cash and Cash Equivalents | F82: 51.76 | G82: -12.62 | H82: 218.89 | I82: -15.78 | J82: -4.65 | K82: -31.31 | L82: 20.15 | M82: 11.22 | N82: 21.18 | O82: 16.37 | P82: -24.69 | Q82: 43.78 | R82: -32.1 | S82: -12.97 | T82: 24.89
B83: Opening Cash & Cash Equivalents | F83: 9.71 | G83: 61.48 | H83: 48.86 | I83: 77.75 | J83: 61.97 | K83: 57.32 | L83: 26.02 | M83: 46.16 | N83: 59.28 | O83: 80.46 | P83: 96.83 | Q83: 72.14 | R83: 115.92 | S83: 68.56 | T83: 55.59
B84: Closing Cash & Cash Equivalents | F84: 61.48 | G84: 48.86 | H84: 267.75 | I84: 61.97 | J84: 57.32 | K84: 26.02 | L84: 46.16 | M84: 57.38 | N84: 80.46 | O84: 96.83 | P84: 72.14 | Q84: 115.92 | R84: 83.82 | S84: 55.59 | T84: 80.48
B85: Basic EPS (Rs.) | G85: 6.55 | H85: 7.96 | I85: 4.91 | J85: 6.17 | K85: 3.63 | L85: 5.31 | M85: 7.56 | N85: 6.8 | O85: 1.03 | P85: 6.66 | Q85: 4.88 | R85: 4.64 | S85: 2.64 | T85: 9.18
B86: Diluted EPS (Rs.) | G86: 6.55 | H86: 7.96 | I86: 4.91 | J86: 6.17 | K86: 3.63 | L86: 5.31 | M86: 7.56 | N86: 6.8 | O86: 1.03 | P86: 6.66 | Q86: 4.88 | R86: 4.64 | S86: 2.64 | T86: 9.18
B87: Cash EPS (Rs.) | G87: 11.98 | H87: 16.18 | I87: 6.61 | J87: 8.08 | K87: 5.97 | L87: 8.02 | M87: 9.95 | N87: 9.37 | O87: 3.48 | P87: 9.19 | Q87: 8.04 | R87: 7.69 | S87: 6.9 | T87: 13.47
B88: Book Value [ExclRevalReserve]/Share (Rs.) | G88: 92.68 | H88: 143.71 | I88: 33.46 | J88: 39.09 | K88: 38.36 | L88: 42.93 | M88: 49.74 | N88: 55.75 | O88: 55.75 | P88: 61.13 | Q88: 65.13 | R88: 69.06 | S88: 73.68 | T88: 82.39
B89: Book Value [InclRevalReserve]/Share (Rs.) | G89: 92.68 | H89: 143.71 | I89: 33.46 | J89: 39.09 | K89: 38.36 | L89: 42.93 | M89: 49.74 | N89: 55.75 | O89: 55.75 | P89: 61.13 | Q89: 65.13 | R89: 69.06 | S89: 73.68 | T89: 82.39
B90: Dividend / Share(Rs.) | G90: 1 | H90: 1.2 | I90: 0.3 | J90: 0.4 | K90: 0.3 | L90: 0.36 | M90: 0.36 | N90: 0.4 | O90: 0.4 | P90: 0.4 | Q90: 0.4 | R90: 0.4 | S90: 0.4 | T90: 0.4
B91: Revenue from Operations/Share (Rs.) | G91: 149.59 | H91: 175.26 | I91: 44.37 | J91: 50.64 | K91: 56.29 | L91: 53.74 | M91: 51.97 | N91: 56.13 | O91: 57.23 | P91: 62.03 | Q91: 63.02 | R91: 66.18 | S91: 62.13 | T91: 60.23
B92: PBDIT/Share (Rs.) | G92: 19.52 | H92: 28.31 | I92: 9.3 | J92: 10.99 | K92: 8.67 | L92: 11.49 | M92: 13.83 | N92: 13.06 | O92: 11.28 | P92: 13.2 | Q92: 10.77 | R92: 9.84 | S92: 10.43 | T92: 18.7
B93: PBIT/Share (Rs.) | G93: 14.1 | H93: 20.08 | I93: 7.61 | J93: 9.09 | K93: 6.33 | L93: 8.77 | M93: 11.44 | N93: 10.49 | O93: 8.83 | P93: 10.76 | Q93: 7.66 | R93: 6.83 | S93: 6.2 | T93: 14.51
B94: PBT/Share (Rs.) | G94: 12.49 | H94: 17.19 | I94: 7 | J94: 8.35 | K94: 5.08 | L94: 7.76 | M94: 10.6 | N94: 9.28 | O94: 0.62 | P94: 8.35 | Q94: 5.37 | R94: 5.51 | S94: 2.78 | T94: 10.88
B95: Net Profit/Share (Rs.) | G95: 6.55 | H95: 7.96 | I95: 4.91 | J95: 6.17 | K95: 3.63 | L95: 5.31 | M95: 7.56 | N95: 6.8 | O95: 1.03 | P95: 6.75 | Q95: 4.93 | R95: 4.68 | S95: 2.67 | T95: 9.27
B96: Profitability Ratios
B97: PBDIT Margin (%) | F97: 100 | G97: 0.1305 | H97: 0.1615 | I97: 0.2096 | J97: 0.217 | K97: 0.154 | L97: 0.2137 | M97: 0.2661 | N97: 0.2326 | O97: 0.1971 | P97: 0.2128 | Q97: 0.1708 | R97: 0.1486 | S97: 0.1678 | T97: 0.3105
B98: PBIT Margin (%) | G98: 0.0942 | H98: 0.1145 | I98: 0.1714 | J98: 0.1794 | K98: 0.1124 | L98: 0.1632 | M98: 0.22 | N98: 0.1869 | O98: 0.1543 | P98: 0.1734 | Q98: 0.1215 | R98: 0.1031 | S98: 0.0997 | T98: 0.2408
B99: PBT Margin (%) | G99: 0.0835 | H99: 0.098 | I99: 0.1577 | J99: 0.1649 | K99: 0.0902 | L99: 0.1444 | M99: 0.2039 | N99: 0.1652 | O99: 0.0108 | P99: 0.1345 | Q99: 0.0852 | R99: 0.0832 | S99: 0.0448 | T99: 0.1806
B100: Net Profit Margin (%) | G100: 0.0437 | H100: 0.0453 | I100: 0.1107 | J100: 0.1218 | K100: 0.0644 | L100: 0.0987 | M100: 0.1454 | N100: 0.1211 | O100: 0.0179 | P100: 0.1088 | Q100: 0.0782 | R100: 0.0707 | S100: 0.0429 | T100: 0.1539
B101: Return on Networth / Equity (%) | G101: 0.0706 | H101: 0.0553 | I101: 0.1467 | J101: 0.1578 | K101: 0.0945 | L101: 0.1236 | M101: 0.1519 | N101: 0.1219 | O101: 0.0184 | P101: 0.1104 | Q101: 0.0756 | R101: 0.0678 | S101: 0.0362 | T101: 0.1125
B102: Return on Capital Employed (%) | G102: 0.0457 | H102: 0.0416 | I102: 0.1161 | J102: 0.128 | K102: 0.0754 | L102: 0.1098 | M102: 0.1346 | N102: 0.1121 | O102: 0.0166 | P102: 0.1023 | Q102: 0.0707 | R102: 0.065 | S102: 0.0823 | T102: 0.1735
B103: Return on Assets (%) | G103: 0.0368 | H103: 0.0345 | I103: 0.0964 | J103: 0.1002 | K103: 0.0459 | L103: 0.0687 | M103: 0.0904 | N103: 0.076 | O103: 0.0109 | P103: 0.0623 | Q103: 0.0451 | R103: 0.0335 | S103: 0.0179 | T103: 0.0585
B104: Total Debt/Equity (X) | G104: 0.0044 | H104: 0.0025 | I104: 0.0021 | J104: 0.0023 | K104: 0.0041 | L104: 0.0018 | M104: 0.0023 | N104: 0.002 | O104: 0.0025 | P104: 0.0028 | Q104: 0.0016 | R104: 0.0056 | S104: 0.0058 | T104: 0.0056
B105: Asset Turnover Ratio (%) | G105: 0.8416 | H105: 0.7603 | I105: 0.8714 | J105: 0.8229 | K105: 0.7133 | L105: 0.696 | M105: 0.6218 | N105: 0.6278 | O105: 0.6072 | P105: 0.5724 | Q105: 0.5775 | R105: 0.4734 | S105: 0.419 | T105: 0.3806
B106: Liquidity Ratios
B107: Current Ratio (X) | G107: 1.61 | H107: 3.33 | I107: 1.98 | J107: 1.64 | K107: 0.96 | L107: 0.86 | M107: 1.5 | N107: 1.26 | O107: 1.59 | P107: 1.32 | Q107: 0.93 | R107: 0.84 | S107: 0.35 | T107: 0.47
B108: Quick Ratio (X) | G108: 1.07 | H108: 2.74 | I108: 1.47 | J108: 1.28 | K108: 0.72 | L108: 0.73 | M108: 1.34 | N108: 1.08 | O108: 1.45 | P108: 1.12 | Q108: 0.81 | R108: 0.77 | S108: 0.29 | T108: 0.43
B109: Inventory Turnover Ratio (X) | G109: 8.05 | H109: 7.57 | I109: 10.2 | J109: 10.44 | K109: 7.58 | L109: 13.38 | M109: 12.06 | N109: 10.88 | O109: 12.85 | P109: 7.42 | Q109: 13.35 | R109: 13.38 | S109: 13.27 | T109: 18
B110: Dividend Payout Ratio (NP) (%) | G110: 0.1472 | H110: 0.1508 | I110: 0.061 | J110: 0.0648 | K110: 0.0827 | L110: 0.0678 | M110: 0.0476 | N110: 0.0588 | O110: 0.3892 | P110: 0.0596 | Q110: 0.0819 | R110: 0.0862 | S110: 0.1513 | T110: 0.0435
B111: Dividend Payout Ratio (CP) (%) | G111: 0.0804 | H111: 0.0741 | I111: 0.0454 | J111: 0.0495 | K111: 0.0502 | L111: 0.0448 | M111: 0.0361 | N111: 0.0427 | O111: 0.115 | P111: 0.0438 | Q111: 0.0502 | R111: 0.0524 | S111: 0.0585 | T111: 0.0299
B112: Earnings Retention Ratio (%) | G112: 0.8528 | H112: 0.8492 | I112: 0.939 | J112: 0.9352 | K112: 0.9173 | L112: 0.9322 | M112: 0.9524 | N112: 0.9412 | O112: 0.6108 | P112: 0.9404 | Q112: 0.9181 | R112: 0.9138 | S112: 0.8487 | T112: 0.9565
B113: Cash Earnings Retention Ratio (%) | G113: 0.9196 | H113: 0.9259 | I113: 0.9546 | J113: 0.9505 | K113: 0.9498 | L113: 0.9552 | M113: 0.9639 | N113: 0.9573 | O113: 0.885 | P113: 0.9562 | Q113: 0.9498 | R113: 0.9476 | S113: 0.9415 | T113: 0.9701
B114: Valuation Ratios
B115: Enterprise Value (Cr.) | G115: 0 | H115: 2105.07 | I115: 4194.09 | J115: 4002.21 | K115: 1692.71 | L115: 3388.75 | M115: 3696.86 | N115: 3438.6 | O115: 2652.21 | P115: 2468.45 | Q115: 2985.89 | R115: 2554.92 | S115: 2830.03 | T115: 2935
B116: EV/Net Operating Revenue (X) | G116: 0 | H116: 2.56 | I116: 4.04 | J116: 3.37 | K116: 1.28 | L116: 2.68 | M116: 3.03 | N116: 2.61 | O116: 1.97 | P116: 1.73 | Q116: 2.06 | R116: 1.67 | S116: 1.98 | T116: 2.11
B117: EV/EBITDA (X) | G117: 0 | H117: 15.87 | I117: 19.25 | J117: 15.54 | K117: 8.31 | L117: 12.55 | M117: 11.37 | N117: 11.2 | O117: 10 | P117: 8.12 | Q117: 12.03 | R117: 11.27 | S117: 11.78 | T117: 6.81
B118: MarketCap/Net Operating Revenue (X) | G118: 0 | H118: 2.66 | I118: 3.98 | J118: 3.25 | K118: 1.05 | L118: 2.59 | M118: 2.86 | N118: 2.46 | O118: 1.8 | P118: 1.5 | Q118: 1.97 | R118: 1.15 | S118: 1.33 | T118: 1.4
B119: Retention Ratios (%) | G119: 85.27 | H119: 84.91 | I119: 93.89 | J119: 93.51 | K119: 91.72 | L119: 93.21 | M119: 95.23 | N119: 94.11 | O119: 61.07 | P119: 94.03 | Q119: 91.8 | R119: 91.37 | S119: 84.86 | T119: 95.64
B120: Price/BV (X) | G120: 0 | H120: 3.24 | I120: 5.28 | J120: 4.21 | K120: 1.53 | L120: 3.25 | M120: 2.99 | N120: 2.48 | O120: 1.85 | P120: 1.52 | Q120: 1.9 | R120: 1.1 | S120: 1.12 | T120: 1.02
B121: Price/Net Operating Revenue | G121: 0 | H121: 2.66 | I121: 3.98 | J121: 3.25 | K121: 1.05 | L121: 2.59 | M121: 2.86 | N121: 2.46 | O121: 1.8 | P121: 1.5 | Q121: 1.97 | R121: 1.15 | S121: 1.33 | T121: 1.4
B122: Earnings Yield | G122: 0 | H122: 0.02 | I122: 0.03 | J122: 0.04 | K122: 0.06 | L122: 0.04 | M122: 0.05 | N122: 0.05 | O122: 0.01 | P122: 0.07 | Q122: 0.04 | R122: 0.06 | S122: 0.03 | T122: 0.11
B123: Implied Price: P/B x B | G123: =G120*G89 -> 0 | H123: =H120*H89 -> 465.6204 | I123: 176.6688 | J123: 164.5689 | K123: 58.6908 | L123: 139.5225 | M123: 148.7226 | N123: 138.26 | O123: 103.1375 | P123: 92.9176 | Q123: 123.747 | R123: 75.966 | S123: 82.5216 | T123: 84.0378
B124: Average Price | G124: =LOOKUP(G3,'HTMEDIA.NS (2)'!$N:$N,'HTMEDIA.NS (2)'!$P:$P) -> 16.1581871 | H124: =LOOKUP(H3,'HTMEDIA.NS (2)'!$N:$N,'HTMEDIA.NS (2)'!$P:$P) -> 58.0544987 | I124: =LOOKUP(I3,'HTMEDIA.NS (2)'!$N:$N,'HTMEDIA.NS (2)'!$P:$P) -> 199.0367307 | J124: =LOOKUP(J3,'HTMEDIA.NS (2)'!$N:$N,'HTMEDIA.NS (2)'!$P:$P) -> 89.73065592 | K124: =LOOKUP(K3,'HTMEDIA.NS (2)'!$N:$N,'HTMEDIA.NS (2)'!$P:$P) -> 112.8152365 | L124: =LOOKUP(L3,'HTMEDIA.NS (2)'!$N:$N,'HTMEDIA.NS (2)'!$P:$P) -> 144.9850967 | M124: =LOOKUP(M3,'HTMEDIA.NS (2)'!$N:$N,'HTMEDIA.NS (2)'!$P:$P) -> 137.3893804 | N124: =LOOKUP(N3,'HTMEDIA.NS (2)'!$N:$N,'HTMEDIA.NS (2)'!$P:$P) -> 97.94815186 | O124: =LOOKUP(O3,'HTMEDIA.NS (2)'!$N:$N,'HTMEDIA.NS (2)'!$P:$P) -> 85.07788439 | P124: =LOOKUP(P3,'HTMEDIA.NS (2)'!$N:$N,'HTMEDIA.NS (2)'!$P:$P) -> 111.2074953 | Q124: =LOOKUP(Q3,'HTMEDIA.NS (2)'!$N:$N,'HTMEDIA.NS (2)'!$P:$P) -> 85.58001096 | R124: =LOOKUP(R3,'HTMEDIA.NS (2)'!$N:$N,'HTMEDIA.NS (2)'!$P:$P) -> 79.28707026 | S124: =LOOKUP(S3,'HTMEDIA.NS (2)'!$N:$N,'HTMEDIA.NS (2)'!$P:$P) -> 90.68234682 | T124: =LOOKUP(T3,'HTMEDIA.NS (2)'!$N:$N,'HTMEDIA.NS (2)'!$P:$P) -> 55.67424073
B125: Closing Price | H125: =LOOKUP(H3,'HTMEDIA.NS (2)'!$N:$N,'HTMEDIA.NS (2)'!$Q:$Q) -> 168.242096 | I125: =LOOKUP(I3,'HTMEDIA.NS (2)'!$N:$N,'HTMEDIA.NS (2)'!$Q:$Q) -> 162.836884 | J125: =LOOKUP(J3,'HTMEDIA.NS (2)'!$N:$N,'HTMEDIA.NS (2)'!$Q:$Q) -> 55.560516 | K125: =LOOKUP(K3,'HTMEDIA.NS (2)'!$N:$N,'HTMEDIA.NS (2)'!$Q:$Q) -> 132.696457 | L125: =LOOKUP(L3,'HTMEDIA.NS (2)'!$N:$N,'HTMEDIA.NS (2)'!$Q:$Q) -> 142.574066 | M125: =LOOKUP(M3,'HTMEDIA.NS (2)'!$N:$N,'HTMEDIA.NS (2)'!$Q:$Q) -> 133.575073 | N125: =LOOKUP(N3,'HTMEDIA.NS (2)'!$N:$N,'HTMEDIA.NS (2)'!$Q:$Q) -> 97.468887 | O125: =LOOKUP(O3,'HTMEDIA.NS (2)'!$N:$N,'HTMEDIA.NS (2)'!$Q:$Q) -> 89.973206 | P125: =LOOKUP(P3,'HTMEDIA.NS (2)'!$N:$N,'HTMEDIA.NS (2)'!$Q:$Q) -> 120.935867 | Q125: =LOOKUP(Q3,'HTMEDIA.NS (2)'!$N:$N,'HTMEDIA.NS (2)'!$Q:$Q) -> 74.647354 | R125: =LOOKUP(R3,'HTMEDIA.NS (2)'!$N:$N,'HTMEDIA.NS (2)'!$Q:$Q) -> 81.712181 | S125: =LOOKUP(S3,'HTMEDIA.NS (2)'!$N:$N,'HTMEDIA.NS (2)'!$Q:$Q) -> 82.642242 | T125: =LOOKUP(T3,'HTMEDIA.NS (2)'!$N:$N,'HTMEDIA.NS (2)'!$Q:$Q) -> 44.25
B126: Growth in Revenues | G126: =G42/F42-1 -> 0.4971834024 | H126: 0.3144993436 | I126: 0.2658676508 | J126: 0.141384984 | K126: 0.1153317653 | L126: -0.04529719434 | M126: -0.03302958571 | N126: 0.08003176709 | O126: 0.01967190745 | P126: 0.06256830398 | Q126: 0.0164911667 | R126: 0.05016450765 | S126: -0.06138821525 | T126: -0.03029943298
B128: PBITD | G128: =G57 -> 71.41 | H128: =H57 -> 111.5 | I128: 218.23 | J128: 258.03 | K128: 195.8 | L128: 266.5 | M128: 325.04 | N128: 306.91 | O128: 105.79 | P128: 304.16 | Q128: 231.51 | R128: 277.06 | S128: 239.73 | T128: 418.24
B129: PBIT | G129: =G128-G60 -> 48.75 | H129: =H128-H60 -> 72.96 | I129: 178.52 | J129: 213.36 | K129: 140.79 | L129: 202.71 | M129: 268.75 | N129: 246.61 | O129: 48.21 | P129: 247.95 | Q129: 159.84 | R129: 207.67 | S129: 142.26 | T129: 321.5
B130: Other Income | G130: =G44 -> -3.99 | H130: =H44 -> -8.12 | I130: 26.85 | J130: 34.67 | K130: 0.22 | L130: -3.5 | M130: 31.61 | N130: 68.23 | O130: -81.3 | P130: 126.6 | Q130: 105.24 | R130: 153.48 | S130: 156.28 | T130: 197.16
B131: Operating NOI | G131: =G129-G130 -> 52.74 | H131: =H129-H130 -> 81.08 | I131: 151.67 | J131: 178.69 | K131: 140.57 | L131: 206.21 | M131: 237.14 | N131: 178.38 | O131: 129.51 | P131: 121.35 | Q131: 54.6 | R131: 54.19 | S131: -14.02 | T131: 124.34
B132: NOI Applied | D132: =O1 -> FALSE | G132: =IF($D$132,G131+G130,G131) -> 52.74 | H132: =IF($D$132,H131+H130,H131) -> 81.08 | I132: 151.67 | J132: 178.69 | K132: 140.57 | L132: 206.21 | M132: 237.14 | N132: 178.38 | O132: 129.51 | P132: 121.35 | Q132: 54.6 | R132: 54.19 | S132: -14.02 | T132: 124.34
B133: Tax Rate | G133: =G65/G64 -> 0.3760839799 | H133: 0.3907782865 | I133: 0.3481586402 | J133: 0.2816537468 | K133: 0.2556758645 | L133: 0.2978783274 | M133: 0.2870162197 | N133: 0.266981608 | O133: -0.6507177033 | P133: 0.1909242125 | Q133: 0.081899685 | R133: 0.3090408855 | S133: 0.04215162001 | T133: 0.1472012703
B134: Marginal Tax Rate | F134: 0.346 | G134: =$F$134 -> 0.346 | H134: =$F$134 -> 0.346 | I134: 0.346 | J134: 0.346 | K134: 0.346 | L134: 0.346 | M134: 0.346 | N134: 0.346 | O134: 0.346 | P134: 0.346 | Q134: 0.346 | R134: 0.346 | S134: 0.346 | T134: 0.346
B135: Applied Tax Rate | F135: TRUE | G135: =IF($F$135,G134,G133) -> 0.346 | H135: =IF($F$135,H134,H133) -> 0.346 | I135: 0.346 | J135: 0.346 | K135: 0.346 | L135: 0.346 | M135: 0.346 | N135: 0.346 | O135: 0.346 | P135: 0.346 | Q135: 0.346 | R135: 0.346 | S135: 0.346 | T135: 0.346
B136: NOPAT | G136: =G132*(1-G135) -> 34.49196 | H136: =H132*(1-H135) -> 53.02632 | I136: 99.19218 | J136: 116.86326 | K136: 91.93278 | L136: 134.86134 | M136: 155.08956 | N136: 116.66052 | O136: 84.69954 | P136: 79.3629 | Q136: 35.7084 | R136: 35.44026 | S136: -9.16908 | T136: 81.31836
B137: Average Invested Capital | F137: =AVERAGE(D35:F35) -> 344.89 | G137: =AVERAGE(F35:G35) -> 375.25 | H137: 405.06 | I137: 411.145 | J137: 439.71 | K137: 512.595 | L137: 398.905 | M137: 259.07 | N137: 286.265 | O137: 285.085 | P137: 277.62 | Q137: 173.425 | R137: 237.6 | S137: 592.97 | T137: 823.625
B138: ROIC | F138: =F129/F137 -> 0 | G138: =G136/G137 -> 0.09191728181 | H138: =H136/H137 -> 0.1309097911 | I138: 0.2412583882 | J138: 0.2657734871 | K138: 0.1793477892 | L138: 0.3380788408 | M138: 0.5986395955 | N138: 0.407526313 | O138: 0.2971027588 | P138: 0.2858688135 | Q138: 0.20590111 | R138: 0.1491593434 | S138: -0.01546297452 | T138: 0.09873226286
B139: Return on Capital Employed | F139: =F102 -> 0 | G139: =G102 -> 0.0457 | H139: 0.0416 | I139: 0.1161 | J139: 0.128 | K139: 0.0754 | L139: 0.1098 | M139: 0.1346 | N139: 0.1121 | O139: 0.0166 | P139: 0.1023 | Q139: 0.0707 | R139: 0.065 | S139: 0.0823 | T139: 0.1735
B141: Average Equity | G141: =AVERAGE(F11:G11) -> 346.305 | H141: 550.095 | I141: 738.54 | J141: 849.785 | K141: 908.67 | L141: 955.235 | M141: 1088.91 | N141: 1239.57 | O141: 1310.165 | P141: 1359.355 | Q141: 1455.015 | R141: 1546.735 | S141: 1645.175 | T141: 1798.87
B142: Net Income to Equity | G142: =G66 -> 27.33 | H142: =H66 -> 37.27 | I142: 115.06 | J142: 144.55 | K142: 85.23 | L142: 124.77 | M142: 177.59 | N142: 159.82 | O142: 24.15 | P142: 155.64 | Q142: 113.66 | R142: 107.99 | S142: 61.51 | T142: 213.74
B143: Return on Average Equity | G143: =G142/G141 -> 0.07891887209 | H143: =H142/H141 -> 0.06775193376 | I143: 0.1557938636 | J143: 0.1701018493 | K143: 0.09379642775 | L143: 0.1306170733 | M143: 0.1630896952 | N143: 0.128931807 | O143: 0.01843279282 | P143: 0.1144954776 | Q143: 0.07811603317 | R143: 0.06981803606 | S143: 0.0373881198 | T143: 0.1188190364
B145: Average Debt | G145: =AVERAGE(F13:G13) -> 179.57 | H145: 170.585 | I145: 167.285 | J145: 189.38 | K145: 291.815 | L145: 273.685 | M145: 221.2 | N145: 266.22 | O145: 298.515 | P145: 363 | Q145: 321.085 | R145: 565.07 | S145: 935.94 | T145: 1029.68
B146: Financial Charges | G146: =F58 -> 5.82 | H146: =G58 -> 7.2 | I146: 14.3 | J146: 14.86 | K146: 17.73 | L146: 31.69 | M146: 25.73 | N146: 19.67 | O146: 28.58 | P146: 33.58 | Q146: 55.57 | R146: 36.03 | S146: 51.38 | T146: 78.68
B147: After Tax Financing Charges | G147: =G146*(1-G134) -> 3.80628 | H147: =H146*(1-H134) -> 4.7088 | I147: 9.3522 | J147: 9.71844 | K147: 11.59542 | L147: 20.72526 | M147: 16.82742 | N147: 12.86418 | O147: 18.69132 | P147: 21.96132 | Q147: 36.34278 | R147: 23.56362 | S147: 33.60252 | T147: 51.45672
B148: Interest Rate | G148: =G147/G145 -> 0.02119663641 | H148: =H147/H145 -> 0.02760383387 | I148: 0.05590578952 | J148: 0.05131714014 | K148: 0.03973551737 | L148: 0.0757266931 | M148: 0.07607332731 | N148: 0.0483216137 | O148: 0.06261434099 | P148: 0.06049950413 | Q148: 0.1131874114 | R148: 0.04170035571 | S148: 0.03590242964 | T148: 0.04997350633
B150: Other Assets | G150: =G26+G27 -> 39.17 | H150: =H26+H27 -> 343.57 | I150: 95.83 | J150: 142.44 | K150: 247.43 | L150: 257.94 | M150: 282.51 | N150: 279.33 | O150: 388.48 | P150: 380.54 | Q150: 502.67 | R150: 774.8 | S150: 181.61 | T150: 294.36
B151: Investments | G151: =G21 -> 100.92 | H151: =H21 -> 64.4 | I151: 372.98 | J151: 456.77 | K151: 405.59 | L151: 630.72 | M151: 808.19 | N151: 929.28 | O151: 872.81 | P151: 1078.67 | Q151: 1055.41 | R151: 1215.79 | S151: 1654.36 | T151: 1733.11
B152: Total | G152: =SUM(G150:G151) -> 140.09 | H152: =SUM(H150:H151) -> 407.97 | I152: 468.81 | J152: 599.21 | K152: 653.02 | L152: 888.66 | M152: 1090.7 | N152: 1208.61 | O152: 1261.29 | P152: 1459.21 | Q152: 1558.08 | R152: 1990.59 | S152: 1835.97 | T152: 2027.47
B153: Average | G153: =AVERAGE(F152:G152) -> 140.09 | H153: =AVERAGE(G152:H152) -> 274.03 | I153: 438.39 | J153: 534.01 | K153: 626.115 | L153: 770.84 | M153: 989.68 | N153: 1149.655 | O153: 1234.95 | P153: 1360.25 | Q153: 1508.645 | R153: 1774.335 | S153: 1913.28 | T153: 1931.72
B154: Other Income | G154: =G44 -> -3.99 | H154: =H44 -> -8.12 | I154: 26.85 | J154: 34.67 | K154: 0.22 | L154: -3.5 | M154: 31.61 | N154: 68.23 | O154: -81.3 | P154: 126.6 | Q154: 105.24 | R154: 153.48 | S154: 156.28 | T154: 197.16
B155: Other Income After Tax | G155: =G154*(1-G135) -> -2.60946 | H155: =H154*(1-H135) -> -5.31048 | I155: 17.5599 | J155: 22.67418 | K155: 0.14388 | L155: -2.289 | M155: 20.67294 | N155: 44.62242 | O155: -53.1702 | P155: 82.7964 | Q155: 68.82696 | R155: 100.37592 | S155: 102.20712 | T155: 128.94264
B156: Return on Investments | G156: =G155/G153 -> -0.01862702548 | H156: =H155/H153 -> -0.01937919206 | I156: 0.0400554301 | J156: 0.0424602161 | K156: 0.0002297980403 | L156: -0.002969487831 | M156: 0.02088850942 | N156: 0.03881374847 | O156: -0.04305453662 | P156: 0.06086851682 | Q156: 0.0456217069 | R156: 0.05657100829 | S156: 0.05341984446 | T156: 0.06675017083
F158: =F3 -> 2004 | G158: =G3 -> 2005 | H158: 2006 | I158: 2007 | J158: 2008 | K158: 2009 | L158: 2010 | M158: 2011 | N158: 2012 | O158: 2013 | P158: 2014 | Q158: 2015 | R158: 2016 | S158: 2017 | T158: 2018 | U158: 2019 | V158: 2020 | W158: 2021 | X158: 2022 | Y158: 2023 | Z158: 2024 | AA158: 2025 | AB158: 2026 | AC158: 2027 | AD158: 2028
A159: Assumptions | C159: Average | D159: Last Yr | E159: Assumption
B160: Revenues | F160: =IF(F4,F43,E160*(1+F161)) -> 417.17 | G160: =IF(G4,G43,F160*(1+G161)) -> 624.58 | H160: 821.01 | I160: 1039.29 | J160: 1186.23 | K160: 1323.04 | L160: 1263.11 | M160: 1221.39 | N160: 1319.14 | O160: 1345.09 | P160: 1429.25 | Q160: 1452.82 | R160: 1525.7 | S160: 1432.04 | T160: 1388.65 | U160: 1402.5365 | V160: 1422.371361 | W160: 1450.818789 | X160: 1481.499871 | Y160: 1514.627215 | Z160: 1550.438364 | AA160: 1589.199323 | AB160: 1632.721339 | AC160: 1681.702979 | AD160: 1732.154069
B161: Revenue Growth | C161: =AVERAGEIF($4:$4,TRUE,161:161) -> 0.09951288362 | D161: =LOOKUP($D$4,$3:$3,161:161) -> -0.03029943298 | E161: Scenario | G161: =IF(G4,G160/F160-1,LOOKUP(G158,Scenario!$39:$39,Scenario!$40:$40)) -> 0.4971834024 | H161: =IF(H4,H160/G160-1,LOOKUP(H158,Scenario!$39:$39,Scenario!$40:$40)) -> 0.3144993436 | I161: =IF(I4,I160/H160-1,LOOKUP(I158,Scenario!$39:$39,Scenario!$40:$40)) -> 0.2658676508 | J161: =IF(J4,J160/I160-1,LOOKUP(J158,Scenario!$39:$39,Scenario!$40:$40)) -> 0.141384984 | K161: =IF(K4,K160/J160-1,LOOKUP(K158,Scenario!$39:$39,Scenario!$40:$40)) -> 0.1153317653 | L161: =IF(L4,L160/K160-1,LOOKUP(L158,Scenario!$39:$39,Scenario!$40:$40)) -> -0.04529719434 | M161: =IF(M4,M160/L160-1,LOOKUP(M158,Scenario!$39:$39,Scenario!$40:$40)) -> -0.03302958571 | N161: =IF(N4,N160/M160-1,LOOKUP(N158,Scenario!$39:$39,Scenario!$40:$40)) -> 0.08003176709 | O161: =IF(O4,O160/N160-1,LOOKUP(O158,Scenario!$39:$39,Scenario!$40:$40)) -> 0.01967190745 | P161: =IF(P4,P160/O160-1,LOOKUP(P158,Scenario!$39:$39,Scenario!$40:$40)) -> 0.06256830398 | Q161: =IF(Q4,Q160/P160-1,LOOKUP(Q158,Scenario!$39:$39,Scenario!$40:$40)) -> 0.0164911667 | R161: =IF(R4,R160/Q160-1,LOOKUP(R158,Scenario!$39:$39,Scenario!$40:$40)) -> 0.05016450765 | S161: =IF(S4,S160/R160-1,LOOKUP(S158,Scenario!$39:$39,Scenario!$40:$40)) -> -0.06138821525 | T161: =IF(T4,T160/S160-1,LOOKUP(T158,Scenario!$39:$39,Scenario!$40:$40)) -> -0.03029943298 | U161: =IF(U4,U160/T160-1,LOOKUP(U158,Scenario!$39:$39,Scenario!$40:$40)) -> 0.01 | V161: =IF(V4,V160/U160-1,LOOKUP(V158,Scenario!$39:$39,Scenario!$40:$40)) -> 0.01414213562 | W161: =IF(W4,W160/V160-1,LOOKUP(W158,Scenario!$39:$39,Scenario!$40:$40)) -> 0.02 | X161: =IF(X4,X160/W160-1,LOOKUP(X158,Scenario!$39:$39,Scenario!$40:$40)) -> 0.02114742527 | Y161: =IF(Y4,Y160/X160-1,LOOKUP(Y158,Scenario!$39:$39,Scenario!$40:$40)) -> 0.02236067977 | Z161: =IF(Z4,Z160/Y160-1,LOOKUP(Z158,Scenario!$39:$39,Scenario!$40:$40)) -> 0.02364354023 | AA161: =IF(AA4,AA160/Z160-1,LOOKUP(AA158,Scenario!$39:$39,Scenario!$40:$40)) -> 0.025 | AB161: =IF(AB4,AB160/AA160-1,LOOKUP(AB158,Scenario!$39:$39,Scenario!$40:$40)) -> 0.02738612788 | AC161: =IF(AC4,AC160/AB160-1,LOOKUP(AC158,Scenario!$39:$39,Scenario!$40:$40)) -> 0.03 | AD161: =IF(AD4,AD160/AC160-1,LOOKUP(AD158,Scenario!$39:$39,Scenario!$40:$40)) -> 0.03
B163: Raw Materials and Power | F163: =IF(F4,F48+F49,F160*F164) -> 209.98 | G163: =IF(G4,G48+G49,G160*G164) -> 311.19 | H163: 376.43 | I163: 473.21 | J163: 501.27 | K163: 590.78 | L163: 461.26 | M163: 404.76 | N163: 455.02 | O163: 473.04 | P163: 469.38 | Q163: 470.18 | R163: 446.86 | S163: 408.72 | T163: 352.24 | U163: 350.634125 | V163: 355.5928404 | W163: 362.7046972 | X163: 370.3749676 | Y163: 378.6568037 | Z163: 387.6095911 | AA163: 397.2998308 | AB163: 408.1803348 | AC163: 420.4257448 | AD163: 433.0385172
B164: Raw Materials Pct of Revenue | C164: =AVERAGEIF($4:$4,TRUE,164:164) -> 0.3774460818 | D164: =LOOKUP($D$4,$3:$3,164:164) -> 0.2536564289 | E164: 0.26 | F164: =IF(F4,F163/F160,LOOKUP(F158,Scenario!52:52,Scenario!53:53)) -> 0.5033439605 | G164: =IF(G4,G163/G160,LOOKUP(G158,Scenario!52:52,Scenario!53:53)) -> 0.4982388165 | H164: =IF(H4,H163/H160,LOOKUP(H158,Scenario!52:52,Scenario!53:53)) -> 0.4584962424 | I164: =IF(I4,I163/I160,LOOKUP(I158,Scenario!52:52,Scenario!53:53)) -> 0.4553204592 | J164: =IF(J4,J163/J160,LOOKUP(J158,Scenario!52:52,Scenario!53:53)) -> 0.4225740371 | K164: =IF(K4,K163/K160,LOOKUP(K158,Scenario!52:52,Scenario!53:53)) -> 0.4465322288 | L164: =IF(L4,L163/L160,LOOKUP(L158,Scenario!52:52,Scenario!53:53)) -> 0.365178013 | M164: =IF(M4,M163/M160,LOOKUP(M158,Scenario!52:52,Scenario!53:53)) -> 0.3313929212 | N164: =IF(N4,N163/N160,LOOKUP(N158,Scenario!52:52,Scenario!53:53)) -> 0.3449368528 | O164: =IF(O4,O163/O160,LOOKUP(O158,Scenario!52:52,Scenario!53:53)) -> 0.3516790698 | P164: =IF(P4,P163/P160,LOOKUP(P158,Scenario!52:52,Scenario!53:53)) -> 0.3284100052 | Q164: =IF(Q4,Q163/Q160,LOOKUP(Q158,Scenario!52:52,Scenario!53:53)) -> 0.3236326592 | R164: =IF(R4,R163/R160,LOOKUP(R158,Scenario!52:52,Scenario!53:53)) -> 0.2928885102 | S164: =IF(S4,S163/S160,LOOKUP(S158,Scenario!52:52,Scenario!53:53)) -> 0.285411022 | T164: =IF(T4,T163/T160,LOOKUP(T158,Scenario!52:52,Scenario!53:53)) -> 0.2536564289 | U164: =IF(U4,U163/U160,LOOKUP(U158,Scenario!52:52,Scenario!53:53)) -> 0.25 | V164: =IF(V4,V163/V160,LOOKUP(V158,Scenario!52:52,Scenario!53:53)) -> 0.25 | W164: =IF(W4,W163/W160,LOOKUP(W158,Scenario!52:52,Scenario!53:53)) -> 0.25 | X164: =IF(X4,X163/X160,LOOKUP(X158,Scenario!52:52,Scenario!53:53)) -> 0.25 | Y164: =IF(Y4,Y163/Y160,LOOKUP(Y158,Scenario!52:52,Scenario!53:53)) -> 0.25 | Z164: =IF(Z4,Z163/Z160,LOOKUP(Z158,Scenario!52:52,Scenario!53:53)) -> 0.25 | AA164: =IF(AA4,AA163/AA160,LOOKUP(AA158,Scenario!52:52,Scenario!53:53)) -> 0.25 | AB164: =IF(AB4,AB163/AB160,LOOKUP(AB158,Scenario!52:52,Scenario!53:53)) -> 0.25 | AC164: =IF(AC4,AC163/AC160,LOOKUP(AC158,Scenario!52:52,Scenario!53:53)) -> 0.25 | AD164: =IF(AD4,AD163/AD160,LOOKUP(AD158,Scenario!52:52,Scenario!53:53)) -> 0.25
B166: Employee Cost (Power Equation) | C166: ='Fixed and Variable Cost'!K10 -> 27.968 | D166: ='Fixed and Variable Cost'!K11 -> 0.0017 | E166: Growth | F166: =IF(F4,F50,F168*F160) -> 58.68 | G166: =IF(G4,G50,F166*(1+G167)) -> 79.37 | H166: =IF(H4,H50,G166*(1+H167)) -> 118.39 | I166: 147.68 | J166: 175.58 | K166: 203.58 | L166: 208.18 | M166: 209.53 | N166: 247.22 | O166: 289.15 | P166: 312.51 | Q166: 347.95 | R166: 390.84 | S166: 327.95 | T166: 261.9 | U166: 272.376 | V166: 283.27104 | W166: 294.6018816 | X166: 306.3859569 | Y166: 318.6413951 | Z166: 331.3870509 | AA166: 344.642533 | AB166: 358.4282343 | AC166: 372.7653637 | AD166: 387.6759782
B167: Growth Rate Growth Rate | C167: =AVERAGEIF($4:$4,TRUE,167:167) -> 0.1266941641 | D167: =LOOKUP($D$4,$3:$3,167:167) -> -0.2014026528 | E167: 0.04 | G167: =IF(G4,G166/F166-1,$E$167) -> 0.3525903204 | H167: =IF(H4,H166/G166-1,$E$167) -> 0.4916215195 | I167: 0.2474026523 | J167: 0.1889219935 | K167: 0.159471466 | L167: 0.02259553984 | M167: 0.006484772793 | N167: 0.1798787763 | O167: 0.1696060189 | P167: 0.08078851807 | Q167: 0.1134043711 | R167: 0.1232648369 | S167: -0.1609098352 | T167: -0.2014026528 | U167: 0.04 | V167: 0.04 | W167: 0.04 | X167: 0.04 | Y167: 0.04 | Z167: 0.04 | AA167: 0.04 | AB167: 0.04 | AC167: 0.04 | AD167: 0.04
B168: Employee Percent of Revenue | C168: =AVERAGEIF($4:$4,TRUE,168:168) -> 0.181773403 | D168: =LOOKUP($D$4,$3:$3,168:168) -> 0.1886004393 | E168: 0.19 | F168: =IF(F4,F166/F160,$E$168) -> 0.1406620802 | G168: =IF(G4,G166/G160,$E$168) -> 0.127077396 | H168: 0.144200436 | I168: 0.1420970085 | J168: 0.1480151404 | K168: 0.1538728988 | L168: 0.1648154159 | M168: 0.1715504466 | N168: 0.1874099792 | O168: 0.2149670282 | P168: 0.2186531398 | Q168: 0.2394997316 | R168: 0.2561709379 | S168: 0.2290089662 | T168: 0.1886004393 | U168: 0.19 | V168: 0.19 | W168: 0.19 | X168: 0.19 | Y168: 0.19 | Z168: 0.19 | AA168: 0.19 | AB168: 0.19 | AC168: 0.19 | AD168: 0.19
B170: Other Expenses (Pct of Revenue) | E170: Rev % | F170: =IF(F4,F51+F52+F53,F172*F160) -> 137.31 | G170: =IF(G4,G51+G52+G53,G172*G160) -> 158.66 | H170: 206.6 | I170: 227.29 | J170: 285.67 | K170: 333.2 | L170: 324.16 | M170: 313.7 | N170: 378.21 | O170: 396.34 | P170: 469.41 | Q170: 508.46 | R170: 564.41 | S170: 611.87 | T170: 553.42 | U170: 532.96387 | V170: 540.5011173 | W170: 551.3111397 | X170: 562.9699508 | Y170: 575.5583416 | Z170: 589.1665784 | AA170: 603.8957429 | AB170: 620.4341089 | AC170: 639.0471322 | AD170: 658.2185461
B171: Growth Rate | C171: =AVERAGEIF($4:$4,TRUE,171:171) -> 0.1100965708 | D171: =LOOKUP($D$4,$3:$3,171:171) -> -0.09552682759 | G171: =G170/F170-1 -> 0.1554875828 | H171: =H170/G170-1 -> 0.3021555528 | I171: 0.1001452081 | J171: 0.2568524792 | K171: 0.166380789 | L171: -0.02713085234 | M171: -0.03226801579 | N171: 0.2056423334 | O171: 0.04793633167 | P171: 0.1843619115 | Q171: 0.0831895358 | R171: 0.1100381544 | S171: 0.08408780851 | T171: -0.09552682759 | U171: -0.03696312023 | V171: 0.01414213562 | W171: 0.02 | X171: 0.02114742527 | Y171: 0.02236067977 | Z171: 0.02364354023 | AA171: 0.025 | AB171: 0.02738612788 | AC171: 0.03 | AD171: 0.03
B172: Percent of Revenue | C172: =AVERAGEIF($4:$4,TRUE,172:172) -> 0.3010112738 | D172: =LOOKUP($D$4,$3:$3,172:172) -> 0.3985309473 | E172: 0.38 | F172: =F170/F160 -> 0.3291463912 | G172: =IF(G4,G170/G160,$E$172) -> 0.2540267059 | H172: =IF(H4,H170/H160,$E$172) -> 0.2516412711 | I172: 0.2186973799 | J172: 0.2408217631 | K172: 0.2518442375 | L172: 0.2566363975 | M172: 0.25683852 | N172: 0.2867095229 | O172: 0.2946568631 | P172: 0.3284309953 | Q172: 0.3499814155 | R172: 0.3699351118 | S172: 0.4272715846 | T172: 0.3985309473 | U172: 0.38 | V172: =IF(V4,V170/V160,$E$172) -> 0.38 | W172: 0.38 | X172: 0.38 | Y172: 0.38 | Z172: 0.38 | AA172: 0.38 | AB172: 0.38 | AC172: 0.38 | AD172: 0.38
B174: Change in Accumulated Depreciation | G174: =G18-F18 -> 19.77 | H174: =H18-G18 -> 33.81 | I174: 34.53 | J174: 54.09 | K174: 79.24 | L174: 23.8 | M174: -17.51 | N174: 46.98 | O174: 49.61 | P174: 43.58 | Q174: 52.24 | R174: 55.18 | S174: -360.53 | T174: 52.7
B175: Depreciation Expense | G175: =G60 -> 22.66 | H175: =H60 -> 38.54 | I175: 39.71 | J175: 44.67 | K175: 55.01 | L175: 63.79 | M175: 56.29 | N175: 60.3 | O175: 57.58 | P175: 56.21 | Q175: 71.67 | R175: 69.39 | S175: 97.47 | T175: 96.74
B176: Implied Retirements | G176: =G175-G174 -> 2.89 | H176: =H175-H174 -> 4.73 | I176: 5.18 | J176: -9.42 | K176: -24.23 | L176: 39.99 | M176: 73.8 | N176: 13.32 | O176: 7.97 | P176: 12.63 | Q176: 19.43 | R176: 14.21 | S176: 458 | T176: 44.04
B178: Change in Gross Plant | G178: =G17-F17 -> 246.81 | H178: =H17-G17 -> 35.33 | I178: 42.3 | J178: 73.57 | K178: 223.42 | L178: 28.07 | M178: -55.93 | N178: 7.08 | O178: 12.71 | P178: 155.46 | Q178: -9 | R178: 309.01 | S178: -251.46 | T178: -35.6
B179: Change in CWIP | G179: =G20-F20 -> -134.35 | H179: =H20-G20 -> -7.74 | I179: 13.54 | J179: 29.36 | K179: 131.14 | L179: -158.41 | M179: -10.63 | N179: 2.14 | O179: 98.36 | P179: -86.87 | Q179: 14.45 | R179: -36.98 | S179: 368.81 | T179: 100.97
B180: Add: Retirements | G180: =G176 -> 2.89 | H180: =H176 -> 4.73 | I180: 5.18 | J180: -9.42 | K180: -24.23 | L180: 39.99 | M180: 73.8 | N180: 13.32 | O180: 7.97 | P180: 12.63 | Q180: 19.43 | R180: 14.21 | S180: 458 | T180: 44.04
B181: Total Capital Expenditures | G181: =IF(G4,G178+G180+G179,G160*G185) -> 115.35 | H181: =IF(H4,H178+H180+H179,H160*H185) -> 32.32 | I181: 61.02 | J181: 93.51 | K181: 330.33 | L181: -90.35 | M181: 7.24 | N181: 22.54 | O181: 119.04 | P181: 81.22 | Q181: 24.88 | R181: 286.24 | S181: 575.35 | T181: 109.41 | U181: 126.228285 | V181: 128.0134225 | W181: 130.573691 | X181: 133.3349883 | Y181: 136.3164493 | Z181: 139.5394528 | AA181: 143.0279391 | AB181: 146.9449205 | AC181: 151.3532681 | AD181: 155.8938662
B183: Cap Exp Period for Evaluation | D183: 2009 | E183: =D4 -> 2018 | G183: =AND(G3>=$D$183,G3<=$E$183) -> FALSE | H183: =AND(H3>=$D$183,H3<=$E$183) -> FALSE | I183: FALSE | J183: FALSE | K183: TRUE | L183: TRUE | M183: TRUE | N183: TRUE | O183: TRUE | P183: TRUE | Q183: TRUE | R183: TRUE | S183: TRUE | T183: TRUE
B184: Capital Expenditures to Depreciation | G184: =G181/G175 -> 5.090467785 | H184: =H181/H175 -> 0.8386092372 | I184: 1.536640645 | J184: 2.093351242 | K184: 6.004908199 | L184: -1.416366202 | M184: 0.1286196483 | N184: 0.3737976783 | O184: 2.067384509 | P184: 1.444938623 | Q184: 0.3471466443 | R184: 4.125090071 | S184: 5.9028419 | T184: 1.130969609
B185: Capital Expenditures to Revenue | D185: =AVERAGEIF(183:183,TRUE,185:185) -> 0.1031782233 | E185: Rev % | F185: 0.09 | G185: =IF(G4,G181/G160,$F$185) -> 0.1846841077 | H185: =IF(H4,H181/H160,$F$185) -> 0.03936614658 | I185: 0.05871315995 | J185: 0.07882956931 | K185: 0.2496749909 | L185: -0.0715297955 | M185: 0.00592767257 | N185: 0.01708688994 | O185: 0.0884996543 | P185: 0.05682700717 | Q185: 0.0171253149 | R185: 0.1876122436 | S185: 0.4017695036 | T185: 0.07878875167 | U185: 0.09 | V185: 0.09 | W185: 0.09 | X185: 0.09 | Y185: 0.09 | Z185: 0.09 | AA185: 0.09 | AB185: 0.09 | AC185: 0.09 | AD185: 0.09
B187: Inventories | F187: =IF(F4,F22,F163*F188) -> 56.13 | G187: =IF(G4,G22,G163*G188) -> 77.56 | H187: 108.45 | I187: 101.9 | J187: 113.67 | K187: 174.49 | L187: 94.38 | M187: 101.27 | N187: 121.28 | O187: 104.64 | P187: 192.73 | Q187: 108.86 | R187: 113.99 | S187: 107.91 | T187: 77.16 | U187: 77.1395075 | V187: 78.23042488 | W187: 79.79503337 | X187: 81.48249288 | Y187: 83.30449681 | Z187: 85.27411003 | AA187: 87.40596278 | AB187: 89.79967366 | AC187: 92.49366387 | AD187: 95.26847378
B188: Percent of Raw Materials | C188: =AVERAGEIF($4:$4,TRUE,188:188) -> 0.2576641518 | D188: =LOOKUP($D$4,$3:$3,188:188) -> 0.2190551896 | E188: 0.22 | F188: =IF(F4,F187/F163,$E$188) -> 0.2673111725 | G188: =IF(G4,G187/G163,$E$188) -> 0.2492368007 | H188: 0.2881013734 | I188: 0.2153377993 | J188: 0.2267640194 | K188: 0.295355293 | L188: 0.2046134501 | M188: 0.250197648 | N188: 0.2665377346 | O188: 0.2212075089 | P188: 0.4106054796 | Q188: 0.2315283508 | R188: 0.25509108 | S188: 0.2640193776 | T188: 0.2190551896 | U188: 0.22 | V188: 0.22 | W188: 0.22 | X188: 0.22 | Y188: 0.22 | Z188: 0.22 | AA188: 0.22 | AB188: 0.22 | AC188: 0.22 | AD188: 0.22
B190: Sundry Debtors | F190: =IF(F4,F23,F160*F192) -> 103.69 | G190: =IF(G4,G23,G160*G192) -> 93.5 | H190: 121.22 | I190: 146.47 | J190: 197.82 | K190: 235 | L190: 185.1 | M190: 178.56 | N190: 194.36 | O190: 194.61 | P190: 189.93 | Q190: 196.52 | R190: 241.76 | S190: 177.05 | T190: 219.07 | U190: 218.795694 | V190: 221.8899324 | W190: 226.327731 | X190: 231.1139798 | Y190: 236.2818455 | Z190: 241.8683848 | AA190: 247.9150944 | AB190: 254.7045289 | AC190: 262.3456648 | AD190: 270.2160347
B191: Revenues | F191: =F160 -> 417.17 | G191: =G160 -> 624.58 | H191: 821.01 | I191: 1039.29 | J191: 1186.23 | K191: 1323.04 | L191: 1263.11 | M191: 1221.39 | N191: 1319.14 | O191: 1345.09 | P191: 1429.25 | Q191: 1452.82 | R191: 1525.7 | S191: 1432.04 | T191: 1388.65 | U191: 1402.5365 | V191: 1422.371361 | W191: 1450.818789 | X191: 1481.499871 | Y191: 1514.627215 | Z191: 1550.438364 | AA191: 1589.199323 | AB191: 1632.721339 | AC191: 1681.702979 | AD191: 1732.154069
B192: Percent of Sales | C192: =AVERAGEIF($4:$4,TRUE,192:192) -> 0.1549323525 | D192: =LOOKUP($D$4,$3:$3,192:192) -> 0.1577575343 | E192: 0.156 | F192: =IF(F4,F190/F191,$E$192) -> 0.2485557447 | G192: =IF(G4,G190/G191,$E$192) -> 0.1497005988 | H192: =IF(H4,H190/H191,$E$192) -> 0.1476474099 | I192: 0.1409327522 | J192: 0.1667636125 | K192: 0.1776212359 | L192: 0.1465430564 | M192: 0.1461940903 | N192: 0.1473384175 | O192: 0.1446817685 | P192: 0.1328878783 | Q192: 0.1352679616 | R192: 0.1584584125 | S192: 0.1236348147 | T192: 0.1577575343 | U192: 0.156 | V192: 0.156 | W192: 0.156 | X192: 0.156 | Y192: 0.156 | Z192: 0.156 | AA192: 0.156 | AB192: 0.156 | AC192: 0.156 | AD192: 0.156
B194: Current Liabilities | F194: =IF(F4,F29,F195*F196) -> 118.06 | G194: =IF(G4,G29,G195*G196) -> 155.09 | H194: 204.57 | I194: 223.17 | J194: 289.24 | K194: 567.15 | L194: 603.92 | M194: 489.32 | N194: 505.46 | O194: 554.04 | P194: 671.46 | Q194: 734.14 | R194: 698.79 | S194: 707.74 | T194: 668.8 | U194: 635.7856973 | V194: 648.6507487 | W194: 664.7397451 | X194: 681.8519814 | Y194: 700.0710972 | Z194: 719.4897712 | AA194: 740.2109587 | AB194: 762.8734729 | AC194: 787.7310324 | AD194: 813.4131728
B195: Total Expenses | F195: =F163+F166+F170 -> 405.97 | G195: =G163+G166+G170 -> 549.22 | H195: 701.42 | I195: 848.18 | J195: 962.52 | K195: 1127.56 | L195: 993.6 | M195: 927.99 | N195: 1080.45 | O195: 1158.53 | P195: 1251.3 | Q195: 1326.59 | R195: 1402.11 | S195: 1348.54 | T195: 1167.56 | U195: 1155.973995 | V195: 1179.364998 | W195: 1208.617718 | X195: 1239.730875 | Y195: 1272.85654 | Z195: 1308.16322 | AA195: 1345.838107 | AB195: 1387.042678 | AC195: 1432.238241 | AD195: 1478.933042
B196: Percent of Total Expenses | C196: =AVERAGEIF($4:$4,TRUE,196:196) -> 0.4465758573 | D196: =LOOKUP($D$4,$3:$3,196:196) -> 0.5728185275 | E196: 0.55 | F196: =IF(F4,F194/F195,$E$196) -> 0.2908096657 | G196: =IF(G4,G194/G195,$E$196) -> 0.2823822876 | H196: 0.2916512218 | I196: 0.2631163196 | J196: 0.3005028467 | K196: 0.5029887545 | L196: 0.6078099839 | M196: 0.5272901648 | N196: 0.467823592 | O196: 0.4782267183 | P196: 0.5366099257 | Q196: 0.5534038399 | R196: 0.4983845775 | S196: 0.5248194344 | T196: 0.5728185275 | U196: 0.55 | V196: 0.55 | W196: 0.55 | X196: 0.55 | Y196: 0.55 | Z196: 0.55 | AA196: 0.55 | AB196: 0.55 | AC196: 0.55 | AD196: 0.55
B198: Provisions | F198: =IF(F4,F30,F199*F160) -> 2.29 | G198: =IF(G4,G30,G199*G160) -> 8.45 | H198: 12.46 | I198: 20.62 | J198: 22.66 | K198: 16.15 | L198: 24.51 | M198: 40.8 | N198: 17.91 | O198: 21.54 | P198: 20.33 | Q198: 34.18 | R198: 47.55 | S198: 24.16 | T198: 7.53 | U198: 14.025365 | V198: 14.22371361 | W198: 14.50818789 | X198: 14.81499871 | Y198: 15.14627215 | Z198: 15.50438364 | AA198: 15.89199323 | AB198: 16.32721339 | AC198: 16.81702979 | AD198: 17.32154069
B199: Provisions % of Revenues | C199: =AVERAGEIF($4:$4,TRUE,199:199) -> 0.0172636665 | D199: =LOOKUP($D$4,$3:$3,199:199) -> 0.005422532676 | E199: 0.01 | F199: =IF(F4,F198/F160,$E$199) -> 0.005489368842 | G199: =IF(G4,G198/G160,$E$199) -> 0.01352909155 | H199: 0.01517642903 | I199: 0.01984046801 | J199: 0.01910253492 | K199: 0.012206736 | L199: 0.01940448575 | M199: 0.03340456365 | N199: 0.01357702746 | O199: 0.01601379833 | P199: 0.01422424348 | Q199: 0.0235266585 | R199: 0.03116602215 | S199: 0.01687103712 | T199: 0.005422532676 | U199: 0.01 | V199: 0.01 | W199: 0.01 | X199: 0.01 | Y199: 0.01 | Z199: 0.01 | AA199: 0.01 | AB199: 0.01 | AC199: 0.01 | AD199: 0.01
B201: Depreciation Expense | F201: =F60 -> 15.15 | G201: =G60 -> 22.66 | H201: 38.54 | I201: 39.71 | J201: 44.67 | K201: 55.01 | L201: 63.79 | M201: 56.29 | N201: 60.3 | O201: 57.58 | P201: 56.21 | Q201: 71.67 | R201: 69.39 | S201: 97.47 | T201: 96.74 | U201: 0 | V201: 0 | W201: 0 | X201: 0 | Y201: 0 | Z201: 0 | AA201: 0 | AB201: 0 | AC201: 0 | AD201: 0
B202: Average Gross Plant | F202: =IF(F4,AVERAGE(E17:F17)) -> 172.03 | G202: =IF(G4,AVERAGE(F17:G17)) -> 295.435 | H202: 436.505 | I202: 475.32 | J202: 533.255 | K202: 681.75 | L202: 807.495 | M202: 793.565 | N202: 769.14 | O202: 779.035 | P202: 863.12 | Q202: 936.35 | R202: 1086.355 | S202: 1115.13 | T202: 971.6 | U202: FALSE | V202: FALSE | W202: FALSE | X202: FALSE | Y202: FALSE | Z202: FALSE | AA202: FALSE | AB202: FALSE | AC202: FALSE | AD202: FALSE
B203: Average Net Plant | F203: =IF(F4,AVERAGE(E19:F19)) -> 159.42 | G203: =IF(G4,AVERAGE(F19:G19)) -> 272.94 | H203: 387.22 | I203: 391.865 | J203: 405.49 | K203: 487.32 | L203: 561.545 | M203: 544.47 | N203: 505.31 | O203: 466.91 | P203: 504.4 | Q203: 529.72 | R203: 626.015 | S203: 807.465 | T203: 817.85 | U203: FALSE | V203: FALSE | W203: FALSE | X203: FALSE | Y203: FALSE | Z203: FALSE | AA203: FALSE | AB203: FALSE | AC203: FALSE | AD203: FALSE
B204: Depreciation as Pct of Gross Plant | C204: =AVERAGEIF($4:$4,TRUE,204:204) -> 0.07972112518 | D204: =LOOKUP($D$4,$3:$3,204:204) -> 0.09956772334 | E204: 0.1 | F204: =IF(F4,F201/F202,$E$204) -> 0.08806603499 | G204: =IF(G4,G201/G202,$E$204) -> 0.07670045865 | H204: 0.08829223033 | I204: 0.08354371792 | J204: 0.08376855351 | K204: 0.08068940227 | L204: 0.07899739317 | M204: 0.07093306786 | N204: 0.07839925111 | O204: 0.07391195518 | P204: 0.06512420057 | Q204: 0.07654189139 | R204: 0.06387414795 | S204: 0.08740684943 | T204: 0.09956772334 | U204: 0.1 | V204: 0.1 | W204: 0.1 | X204: 0.1 | Y204: 0.1 | Z204: 0.1 | AA204: 0.1 | AB204: 0.1 | AC204: 0.1 | AD204: 0.1
B205: Depreciation as Pct of Net Plant | C205: =AVERAGEIF($4:$4,TRUE,205:205) -> 0.105188193 | D205: =LOOKUP($D$4,$3:$3,205:205) -> 0.07859864642 | E205: 0.12 | G205: =IF(G4,G201/(F19+F20),$E$205) -> 0.07419534396 | H205: =IF(H4,H201/(G19+G20),$E$205) -> 0.09680984677 | I205: 0.1013320404 | J205: 0.1081100704 | K205: 0.1190615328 | L205: 0.08651251102 | M205: 0.09651754942 | N205: 0.1128875243 | O205: 0.1159951652 | P205: 0.1007600473 | Q205: 0.1229605229 | R205: 0.1294396359 | S205: 0.1294542653 | T205: 0.07859864642 | U205: 0.12 | V205: 0.12 | W205: 0.12 | X205: 0.12 | Y205: 0.12 | Z205: 0.12 | AA205: 0.12 | AB205: 0.12 | AC205: 0.12 | AD205: 0.12
B207: Pre-tax Income | F207: =F64 -> -3.43 | G207: =G64 -> 43.82 | H207: 61.16 | I207: 176.5 | J207: 201.24 | K207: 114.52 | L207: 177.69 | M207: 249.08 | N207: 218.03 | O207: 14.63 | P207: 192.38 | Q207: 123.81 | R207: 156.29 | S207: 63.58 | T207: 251.9 | U207: 0 | V207: 0 | W207: 0 | X207: 0 | Y207: 0 | Z207: 0 | AA207: 0 | AB207: 0 | AC207: 0 | AD207: 0
B208: Taxes | F208: =F65 -> -1.04 | G208: 16.48 | H208: 23.9 | I208: 61.45 | J208: 56.68 | K208: 29.28 | L208: 52.93 | M208: 71.49 | N208: 58.21 | O208: -9.52 | P208: 36.73 | Q208: 10.14 | R208: 48.3 | S208: 2.68 | T208: 37.08 | U208: 0 | V208: 0 | W208: 0 | X208: 0 | Y208: 0 | Z208: 0 | AA208: 0 | AB208: 0 | AC208: 0 | AD208: 0
B209: Tax Rate | C209: =AVERAGEIF($4:$4,TRUE,209:209) -> 0.195195576 | D209: =LOOKUP($D$4,$3:$3,209:209) -> 0.1472012703 | E209: 0.34 | F209: =IF(F4,F208/F207,$E$209) -> 0.3032069971 | G209: =IF(G4,G208/G207,$E$209) -> 0.3760839799 | H209: 0.3907782865 | I209: 0.3481586402 | J209: 0.2816537468 | K209: 0.2556758645 | L209: 0.2978783274 | M209: 0.2870162197 | N209: 0.266981608 | O209: -0.6507177033 | P209: 0.1909242125 | Q209: 0.081899685 | R209: 0.3090408855 | S209: 0.04215162001 | T209: 0.1472012703 | U209: 0.34 | V209: 0.34 | W209: 0.34 | X209: 0.34 | Y209: 0.34 | Z209: 0.34 | AA209: 0.34 | AB209: 0.34 | AC209: 0.34 | AD209: 0.34
B211: Investments and Loans | F211: =IF(F4,F21+F26+F27,E211*(1+F212)) -> 96.33 | G211: =IF(G4,G21+G26+G27,F211*(1+G212)) -> 140.09 | H211: 407.97 | I211: 468.81 | J211: 599.21 | K211: 653.02 | L211: 888.66 | M211: 1090.7 | N211: 1208.61 | O211: 1261.29 | P211: 1459.21 | Q211: 1558.08 | R211: 1990.59 | S211: 1835.97 | T211: 2027.47 | U211: 2128.8435 | V211: 2235.285675 | W211: 2347.049959 | X211: 2464.402457 | Y211: 2587.62258 | Z211: 2717.003708 | AA211: 2852.853894 | AB211: 2995.496589 | AC211: 3145.271418 | AD211: 3302.534989
B212: Growth | C212: =AVERAGEIF($4:$4,TRUE,212:212) -> 0.2965957013 | D212: =LOOKUP($D$4,$3:$3,212:212) -> 0.1043045366 | E212: 0.05 | G212: =IF(G4,G211/F211-1,$E$212) -> 0.4542717741 | H212: =IF(H4,H211/G211-1,$E$212) -> 1.9121993 | I212: 0.1491286124 | J212: 0.2781510633 | K212: 0.08980157207 | L212: 0.3608465284 | M212: 0.2273535435 | N212: 0.1081048868 | O212: 0.0435872614 | P212: 0.1569187102 | Q212: 0.06775584049 | R212: 0.2775916513 | S212: -0.07767546305 | T212: 0.1043045366 | U212: 0.05 | V212: 0.05 | W212: 0.05 | X212: 0.05 | Y212: 0.05 | Z212: 0.05 | AA212: 0.05 | AB212: 0.05 | AC212: 0.05 | AD212: 0.05
B214: Other Income | F214: =F44 -> 5.73 | G214: =G44 -> -3.99 | H214: -8.12 | I214: 26.85 | J214: 34.67 | K214: 0.22 | L214: -3.5 | M214: 31.61 | N214: 68.23 | O214: -81.3 | P214: 126.6 | Q214: 105.24 | R214: 153.48 | S214: 156.28 | T214: 197.16 | U214: 0 | V214: 0 | W214: 0 | X214: 0 | Y214: 0 | Z214: 0 | AA214: 0 | AB214: 0 | AC214: 0 | AD214: 0
B215: Average Investments | F215: =AVERAGE(E211:F211) -> 96.33 | G215: =AVERAGE(F211:G211) -> 118.21 | H215: 274.03 | I215: 438.39 | J215: 534.01 | K215: 626.115 | L215: 770.84 | M215: 989.68 | N215: 1149.655 | O215: 1234.95 | P215: 1360.25 | Q215: 1508.645 | R215: 1774.335 | S215: 1913.28 | T215: 1931.72 | U215: 2078.15675 | V215: 2182.064588 | W215: 2291.167817 | X215: 2405.726208 | Y215: 2526.012518 | Z215: 2652.313144 | AA215: 2784.928801 | AB215: 2924.175241 | AC215: 3070.384003 | AD215: 3223.903204
B216: Return on Average Investments | C216: =AVERAGEIF($4:$4,TRUE,216:216) -> 0.03844065754 | D216: =LOOKUP($D$4,$3:$3,216:216) -> 0.1020644814 | E216: 0.1 | F216: =IF(F4,F214/F215,$E$216) -> 0.05948302709 | G216: =IF(G4,G214/G215,$E$216) -> -0.03375348955 | H216: -0.02963179214 | I216: 0.06124683501 | J216: 0.06492387783 | K216: 0.0003513731503 | L216: -0.004540501271 | M216: 0.03193961685 | N216: 0.05934823925 | O216: -0.0658326248 | P216: 0.09307112663 | Q216: 0.06975796161 | R216: 0.08650001268 | S216: 0.08168171935 | T216: 0.1020644814 | U216: 0.1 | V216: 0.1 | W216: 0.1 | X216: 0.1 | Y216: 0.1 | Z216: 0.1 | AA216: 0.1 | AB216: 0.1 | AC216: 0.1 | AD216: 0.1
B218: Extraordinary and Stock Adjustments | F218: =F63+F61+F45 -> 0.61 | G218: =G63+G61+G45 -> 2.35 | H218: 2.55 | I218: 13.11 | J218: 5.26 | K218: 5.52 | L218: 1.2 | M218: 0.03 | N218: -0.01 | O218: 0.53 | P218: -0.39 | Q218: 0.04 | R218: -0.01 | S218: -0.05 | T218: -0.01 | U218: 0 | V218: 0 | W218: 0 | X218: 0 | Y218: 0 | Z218: 0 | AA218: 0 | AB218: 0 | AC218: 0 | AD218: 0
B220: Total Debt | F220: =F13 -> 187.54 | G220: =G13 -> 171.6 | H220: 169.57 | I220: 165 | J220: 213.76 | K220: 369.87 | L220: 177.5 | M220: 264.9 | N220: 267.54 | O220: 329.49 | P220: 396.51 | Q220: 245.66 | R220: 884.48 | S220: 987.4 | T220: 1071.96 | U220: 0 | V220: 0 | W220: 0 | X220: 0 | Y220: 0 | Z220: 0 | AA220: 0 | AB220: 0 | AC220: 0 | AD220: 0
B221: Average Debt | F221: =AVERAGE(E220:F220) -> 187.54 | G221: =AVERAGE(F220:G220) -> 179.57 | H221: 170.585 | I221: 167.285 | J221: 189.38 | K221: 291.815 | L221: 273.685 | M221: 221.2 | N221: 266.22 | O221: 298.515 | P221: 363 | Q221: 321.085 | R221: 565.07 | S221: 935.94 | T221: 1029.68 | U221: 535.98 | V221: 0 | W221: 0 | X221: 0 | Y221: 0 | Z221: 0 | AA221: 0 | AB221: 0 | AC221: 0 | AD221: 0
B222: Interest Expense | F222: =F58 -> 5.82 | G222: =G58 -> 7.2 | H222: 14.3 | I222: 14.86 | J222: 17.73 | K222: 31.69 | L222: 25.73 | M222: 19.67 | N222: 28.58 | O222: 33.58 | P222: 55.57 | Q222: 36.03 | R222: 51.38 | S222: 78.68 | T222: 69.6 | U222: 0 | V222: 0 | W222: 0 | X222: 0 | Y222: 0 | Z222: 0 | AA222: 0 | AB222: 0 | AC222: 0 | AD222: 0
B223: Interest Rate | C223: =AVERAGEIF($4:$4,TRUE,223:223) -> 0.09044486578 | D223: =LOOKUP($D$4,$3:$3,223:223) -> 0.06759381555 | E223: 0.07 | F223: =IF(F4,F222/F221,$E$223) -> 0.03103337955 | G223: =IF(G4,G222/G221,$E$223) -> 0.04009578437 | H223: 0.08382917607 | I223: 0.08883043907 | J223: 0.09362129053 | K223: 0.1085961996 | L223: 0.09401319035 | M223: 0.08892405063 | N223: 0.1073548193 | O223: 0.1124901596 | P223: 0.1530853994 | Q223: 0.1122132769 | R223: 0.09092678783 | S223: 0.08406521786 | T223: 0.06759381555 | U223: 0.07 | V223: 0.07 | W223: 0.07 | X223: 0.07 | Y223: 0.07 | Z223: 0.07 | AA223: 0.07 | AB223: 0.07 | AC223: 0.07 | AD223: 0.07
B225: Total Cash Balance | F225: =F24 -> 31.98 | G225: =G24 -> 32.85 | H225: 50.33 | I225: 62.25 | J225: 68.64 | K225: 54.91 | L225: 63.44 | M225: 59.28 | N225: 80.46 | O225: 96.83 | P225: 72.14 | Q225: 115.92 | R225: 83.82 | S225: 65.91 | T225: 80.5 | U225: 0 | V225: 0 | W225: 0 | X225: 0 | Y225: 0 | Z225: 0 | AA225: 0 | AB225: 0 | AC225: 0 | AD225: 0
B226: Revenues | F226: =F160 -> 417.17 | G226: =G160 -> 624.58 | H226: 821.01 | I226: 1039.29 | J226: 1186.23 | K226: 1323.04 | L226: 1263.11 | M226: 1221.39 | N226: 1319.14 | O226: 1345.09 | P226: 1429.25 | Q226: 1452.82 | R226: 1525.7 | S226: 1432.04 | T226: 1388.65 | U226: 1402.5365 | V226: 1422.371361 | W226: 1450.818789 | X226: 1481.499871 | Y226: 1514.627215 | Z226: 1550.438364 | AA226: 1589.199323 | AB226: 1632.721339 | AC226: 1681.702979 | AD226: 1732.154069
B227: Minimum Cash as Pct of Revenues | C227: =AVERAGEIF($4:$4,TRUE,227:227) -> 0.05805070552 | D227: =LOOKUP($D$4,$3:$3,227:227) -> 0.05796997083 | E227: 0.058 | F227: =IF(F4,F225/F226,$E$227) -> 0.07665939545 | G227: =IF(G4,G225/G226,$E$227) -> 0.05259534407 | H227: 0.06130254199 | I227: 0.05989666022 | J227: 0.05786398928 | K227: 0.04150290241 | L227: 0.05022523771 | M227: 0.04853486601 | N227: 0.06099428415 | O227: 0.07198774803 | P227: 0.05047402484 | Q227: 0.07978965047 | R227: 0.05493871665 | S227: 0.04602525069 | T227: 0.05796997083 | U227: 0.058 | V227: 0.058 | W227: 0.058 | X227: 0.058 | Y227: 0.058 | Z227: 0.058 | AA227: 0.058 | AB227: 0.058 | AC227: 0.058 | AD227: 0.058
B229: Dividend | F229: =F70 -> 0 | G229: =G70 -> 4.02 | H229: 5.62 | I229: 7.03 | J229: 9.37 | K229: 7.05 | L229: 8.46 | M229: 8.46 | N229: 9.4 | O229: 9.4 | P229: 9.29 | Q229: 9.31 | R229: 9.31 | S229: 9.31 | T229: 9.31 | U229: 0 | V229: 0 | W229: 0 | X229: 0 | Y229: 0 | Z229: 0 | AA229: 0 | AB229: 0 | AC229: 0 | AD229: 0
B230: Net Income | F230: =F66 -> -2.38 | G230: =G66 -> 27.33 | H230: 37.27 | I230: 115.06 | J230: 144.55 | K230: 85.23 | L230: 124.77 | M230: 177.59 | N230: 159.82 | O230: 24.15 | P230: 155.64 | Q230: 113.66 | R230: 107.99 | S230: 61.51 | T230: 213.74 | U230: 0 | V230: 0 | W230: 0 | X230: 0 | Y230: 0 | Z230: 0 | AA230: 0 | AB230: 0 | AC230: 0 | AD230: 0
... 132 more rows

Sheet ROIC and Assumption Graph
D3: Start Row | E3: =ROW('HT Media Assumptions'!E160) -> 160 | S3: Graph Start | U3: 2016
D4: Row Applied | E4: 240 | J4: 214
E5: spinner1
F6: ='HT Media Assumptions'!F3 -> 2004 | G6: ='HT Media Assumptions'!G3 -> 2005 | H6: ='HT Media Assumptions'!H3 -> 2006 | I6: ='HT Media Assumptions'!I3 -> 2007 | J6: ='HT Media Assumptions'!J3 -> 2008 | K6: ='HT Media Assumptions'!K3 -> 2009 | L6: ='HT Media Assumptions'!L3 -> 2010 | M6: ='HT Media Assumptions'!M3 -> 2011 | N6: ='HT Media Assumptions'!N3 -> 2012 | O6: ='HT Media Assumptions'!O3 -> 2013 | P6: ='HT Media Assumptions'!P3 -> 2014 | Q6: ='HT Media Assumptions'!Q3 -> 2015 | R6: ='HT Media Assumptions'!R3 -> 2016 | S6: ='HT Media Assumptions'!S3 -> 2017 | T6: ='HT Media Assumptions'!T3 -> 2018 | U6: ='HT Media Assumptions'!U3 -> 2019 | V6: ='HT Media Assumptions'!V3 -> 2020 | W6: ='HT Media Assumptions'!W3 -> 2021 | X6: ='HT Media Assumptions'!X3 -> 2022 | Y6: ='HT Media Assumptions'!Y3 -> 2023 | Z6: ='HT Media Assumptions'!Z3 -> 2024 | AA6: ='HT Media Assumptions'!AA3 -> 2025 | AB6: ='HT Media Assumptions'!AB3 -> 2026 | AC6: ='HT Media Assumptions'!AC3 -> 2027 | AD6: ='HT Media Assumptions'!AD3 -> 2028
F7: ='HT Media Assumptions'!F4 -> TRUE | G7: ='HT Media Assumptions'!G4 -> TRUE | H7: ='HT Media Assumptions'!H4 -> TRUE | I7: ='HT Media Assumptions'!I4 -> TRUE | J7: ='HT Media Assumptions'!J4 -> TRUE | K7: ='HT Media Assumptions'!K4 -> TRUE | L7: ='HT Media Assumptions'!L4 -> TRUE | M7: ='HT Media Assumptions'!M4 -> TRUE | N7: ='HT Media Assumptions'!N4 -> TRUE | O7: ='HT Media Assumptions'!O4 -> TRUE | P7: ='HT Media Assumptions'!P4 -> TRUE | Q7: ='HT Media Assumptions'!Q4 -> TRUE | R7: ='HT Media Assumptions'!R4 -> TRUE | S7: ='HT Media Assumptions'!S4 -> TRUE | T7: ='HT Media Assumptions'!T4 -> TRUE | U7: ='HT Media Assumptions'!U4 -> FALSE | V7: ='HT Media Assumptions'!V4 -> FALSE | W7: ='HT Media Assumptions'!W4 -> FALSE | X7: ='HT Media Assumptions'!X4 -> FALSE | Y7: ='HT Media Assumptions'!Y4 -> FALSE | Z7: ='HT Media Assumptions'!Z4 -> FALSE | AA7: ='HT Media Assumptions'!AA4 -> FALSE | AB7: ='HT Media Assumptions'!AB4 -> FALSE | AC7: ='HT Media Assumptions'!AC4 -> FALSE | AD7: ='HT Media Assumptions'!AD4 -> FALSE
B8: =INDEX('HT Media Model Valuation'!B:B,'ROIC and Assumption Graph'!$E$4) -> Employee Cost | F8: =INDEX('HT Media Model Valuation'!F:F,'ROIC and Assumption Graph'!$E$4) -> 58.68 | G8: =INDEX('HT Media Model Valuation'!G:G,'ROIC and Assumption Graph'!$E$4) -> 79.37 | H8: =INDEX('HT Media Model Valuation'!H:H,'ROIC and Assumption Graph'!$E$4) -> 118.39 | I8: =INDEX('HT Media Model Valuation'!I:I,'ROIC and Assumption Graph'!$E$4) -> 147.68 | J8: =INDEX('HT Media Model Valuation'!J:J,'ROIC and Assumption Graph'!$E$4) -> 175.58 | K8: =INDEX('HT Media Model Valuation'!K:K,'ROIC and Assumption Graph'!$E$4) -> 203.58 | L8: =INDEX('HT Media Model Valuation'!L:L,'ROIC and Assumption Graph'!$E$4) -> 208.18 | M8: =INDEX('HT Media Model Valuation'!M:M,'ROIC and Assumption Graph'!$E$4) -> 209.53 | N8: =INDEX('HT Media Model Valuation'!N:N,'ROIC and Assumption Graph'!$E$4) -> 247.22 | O8: =INDEX('HT Media Model Valuation'!O:O,'ROIC and Assumption Graph'!$E$4) -> 289.15 | P8: =INDEX('HT Media Model Valuation'!P:P,'ROIC and Assumption Graph'!$E$4) -> 312.51 | Q8: =INDEX('HT Media Model Valuation'!Q:Q,'ROIC and Assumption Graph'!$E$4) -> 347.95 | R8: =INDEX('HT Media Model Valuation'!R:R,'ROIC and Assumption Graph'!$E$4) -> 390.84 | S8: =INDEX('HT Media Model Valuation'!S:S,'ROIC and Assumption Graph'!$E$4) -> 327.95 | T8: =INDEX('HT Media Model Valuation'!T:T,'ROIC and Assumption Graph'!$E$4) -> 261.9 | U8: =INDEX('HT Media Model Valuation'!U:U,'ROIC and Assumption Graph'!$E$4) -> 274.995 | V8: =INDEX('HT Media Model Valuation'!V:V,'ROIC and Assumption Graph'!$E$4) -> 288.74475 | W8: =INDEX('HT Media Model Valuation'!W:W,'ROIC and Assumption Graph'!$E$4) -> 303.1819875 | X8: =INDEX('HT Media Model Valuation'!X:X,'ROIC and Assumption Graph'!$E$4) -> 318.3410869 | Y8: =INDEX('HT Media Model Valuation'!Y:Y,'ROIC and Assumption Graph'!$E$4) -> 334.2581412 | Z8: =INDEX('HT Media Model Valuation'!Z:Z,'ROIC and Assumption Graph'!$E$4) -> 350.9710483 | AA8: =INDEX('HT Media Model Valuation'!AA:AA,'ROIC and Assumption Graph'!$E$4) -> 368.5196007 | AB8: =INDEX('HT Media Model Valuation'!AB:AB,'ROIC and Assumption Graph'!$E$4) -> 386.9455807 | AC8: =INDEX('HT Media Model Valuation'!AC:AC,'ROIC and Assumption Graph'!$E$4) -> 406.2928598 | AD8: =INDEX('HT Media Model Valuation'!AD:AD,'ROIC and Assumption Graph'!$E$4) -> 426.6075028
F10: =F6 -> 2004 | G10: =G6 -> 2005 | H10: 2006 | I10: 2007 | J10: 2008 | K10: 2009 | L10: 2010 | M10: 2011 | N10: 2012 | O10: 2013 | P10: 2014 | Q10: 2015 | R10: 2016 | S10: 2017 | T10: 2018 | U10: 2019 | V10: 2020 | W10: 2021 | X10: 2022 | Y10: 2023 | Z10: 2024 | AA10: 2025 | AB10: 2026 | AC10: 2027 | AD10: 2028
B11: History | F11: =IF(F7,F8) -> 58.68 | G11: =IF(G7,G8) -> 79.37 | H11: 118.39 | I11: 147.68 | J11: 175.58 | K11: 203.58 | L11: 208.18 | M11: 209.53 | N11: 247.22 | O11: 289.15 | P11: 312.51 | Q11: 347.95 | R11: 390.84 | S11: 327.95 | T11: 261.9 | U11: FALSE | V11: FALSE | W11: FALSE | X11: FALSE | Y11: FALSE | Z11: FALSE | AA11: FALSE | AB11: FALSE | AC11: FALSE | AD11: FALSE
B12: Forecast | F12: =IF(NOT(F7),F8) -> FALSE | G12: =IF(NOT(G7),G8) -> FALSE | H12: FALSE | I12: FALSE | J12: FALSE | K12: FALSE | L12: FALSE | M12: FALSE | N12: FALSE | O12: FALSE | P12: FALSE | Q12: FALSE | R12: FALSE | S12: FALSE | T12: FALSE | U12: 274.995 | V12: 288.74475 | W12: 303.1819875 | X12: 318.3410869 | Y12: 334.2581412 | Z12: 350.9710483 | AA12: 368.5196007 | AB12: 386.9455807 | AC12: 406.2928598 | AD12: 426.6075028
B14: Sum of Forecast | E14: =SUMIF(7:7,FALSE,8:8) -> 3458.857558 | F14: output1
B17: ROIC | E17: =ROW('HT Media Model Structure'!E287) -> 287 | F17: =IF(ISNUMBER(F19),INDEX('HT Media Model Structure'!F:F,'ROIC and Assumption Graph'!$E$17),NA()) ->  | G17: =IF(ISNUMBER(G19),INDEX('HT Media Model Structure'!G:G,'ROIC and Assumption Graph'!$E$17),NA()) ->  | H17: =IF(ISNUMBER(H19),INDEX('HT Media Model Structure'!H:H,'ROIC and Assumption Graph'!$E$17),NA()) ->  | I17: =IF(ISNUMBER(I19),INDEX('HT Media Model Structure'!I:I,'ROIC and Assumption Graph'!$E$17),NA()) ->  | J17: =IF(ISNUMBER(J19),INDEX('HT Media Model Structure'!J:J,'ROIC and Assumption Graph'!$E$17),NA()) ->  | K17: =IF(ISNUMBER(K19),INDEX('HT Media Model Structure'!K:K,'ROIC and Assumption Graph'!$E$17),NA()) ->  | L17: =IF(ISNUMBER(L19),INDEX('HT Media Model Structure'!L:L,'ROIC and Assumption Graph'!$E$17),NA()) ->  | M17: =IF(ISNUMBER(M19),INDEX('HT Media Model Structure'!M:M,'ROIC and Assumption Graph'!$E$17),NA()) ->  | N17: =IF(ISNUMBER(N19),INDEX('HT Media Model Structure'!N:N,'ROIC and Assumption Graph'!$E$17),NA()) ->  | O17: =IF(ISNUMBER(O19),INDEX('HT Media Model Structure'!O:O,'ROIC and Assumption Graph'!$E$17),NA()) ->  | P17: =IF(ISNUMBER(P19),INDEX('HT Media Model Structure'!P:P,'ROIC and Assumption Graph'!$E$17),NA()) ->  | Q17: =IF(ISNUMBER(Q19),INDEX('HT Media Model Structure'!Q:Q,'ROIC and Assumption Graph'!$E$17),NA()) ->  | R17: =IF(ISNUMBER(R19),INDEX('HT Media Model Structure'!R:R,'ROIC and Assumption Graph'!$E$17),NA()) -> 0.171994048 | S17: =IF(ISNUMBER(S19),INDEX('HT Media Model Structure'!S:S,'ROIC and Assumption Graph'!$E$17),NA()) -> -0.02334849961 | T17: =IF(ISNUMBER(T19),INDEX('HT Media Model Structure'!T:T,'ROIC and Assumption Graph'!$E$17),NA()) -> 0.1287546177 | U17: =IF(ISNUMBER(U19),INDEX('HT Media Model Structure'!U:U,'ROIC and Assumption Graph'!$E$17),NA()) -> 0.07427494742 | V17: =IF(ISNUMBER(V19),INDEX('HT Media Model Structure'!V:V,'ROIC and Assumption Graph'!$E$17),NA()) -> 0.07470674219 | W17: =IF(ISNUMBER(W19),INDEX('HT Media Model Structure'!W:W,'ROIC and Assumption Graph'!$E$17),NA()) -> 0.07814951144 | X17: =IF(ISNUMBER(X19),INDEX('HT Media Model Structure'!X:X,'ROIC and Assumption Graph'!$E$17),NA()) -> 0.08128809483 | Y17: =IF(ISNUMBER(Y19),INDEX('HT Media Model Structure'!Y:Y,'ROIC and Assumption Graph'!$E$17),NA()) -> 0.08413192902 | Z17: =IF(ISNUMBER(Z19),INDEX('HT Media Model Structure'!Z:Z,'ROIC and Assumption Graph'!$E$17),NA()) -> 0.08674627946 | AA17: =IF(ISNUMBER(AA19),INDEX('HT Media Model Structure'!AA:AA,'ROIC and Assumption Graph'!$E$17),NA()) -> 0.0892092347 | AB17: =IF(ISNUMBER(AB19),INDEX('HT Media Model Structure'!AB:AB,'ROIC and Assumption Graph'!$E$17),NA()) -> 0.09210797133 | AC17: =IF(ISNUMBER(AC19),INDEX('HT Media Model Structure'!AC:AC,'ROIC and Assumption Graph'!$E$17),NA()) -> 0.09565971112 | AD17: =IF(ISNUMBER(AD19),INDEX('HT Media Model Structure'!AD:AD,'ROIC and Assumption Graph'!$E$17),NA()) -> 0.09848775581
F19: =IF(F6>=$U$3,F6,NA()) ->  | G19: =IF(G6>=$U$3,G6,NA()) ->  | R19: 2016 | S19: 2017 | T19: 2018 | U19: 2019 | V19: 2020 | W19: 2021 | X19: 2022 | Y19: 2023 | Z19: 2024 | AA19: 2025 | AB19: 2026 | AC19: 2027 | AD19: 2028
B20: ROIC History | F20: =IF(F7,F17) ->  | G20: =IF(G7,G17) ->  | R20: 0.171994048 | S20: -0.02334849961 | T20: 0.1287546177 | U20: FALSE | V20: FALSE | W20: FALSE | X20: FALSE | Y20: FALSE | Z20: FALSE | AA20: FALSE | AB20: FALSE | AC20: FALSE | AD20: FALSE
B21: ROIC Forecast | F21: =IF(NOT(F7),F17) -> FALSE | G21: =IF(NOT(G7),G17) -> FALSE | H21: FALSE | I21: FALSE | J21: FALSE | K21: FALSE | L21: FALSE | M21: FALSE | N21: FALSE | O21: FALSE | P21: FALSE | Q21: FALSE | R21: FALSE | S21: FALSE | T21: FALSE | U21: 0.07427494742 | V21: 0.07470674219 | W21: 0.07814951144 | X21: 0.08128809483 | Y21: 0.08413192902 | Z21: 0.08674627946 | AA21: 0.0892092347 | AB21: 0.09210797133 | AC21: 0.09565971112 | AD21: 0.09848775581
B22: =B8&" "&$B$11 -> Employee Cost History | F22: =F11 -> 58.68 | G22: =G11 -> 79.37 | H22: 118.39 | I22: 147.68 | J22: 175.58 | K22: 203.58 | L22: 208.18 | M22: 209.53 | N22: 247.22 | O22: 289.15 | P22: 312.51 | Q22: 347.95 | R22: 390.84 | S22: 327.95 | T22: 261.9 | U22: FALSE | V22: FALSE | W22: FALSE | X22: FALSE | Y22: FALSE | Z22: FALSE | AA22: FALSE | AB22: FALSE | AC22: FALSE | AD22: FALSE
B23: =B9&" "&B8 -> Employee Cost | F23: =F12 -> FALSE | G23: =G12 -> FALSE | H23: FALSE | I23: FALSE | J23: FALSE | K23: FALSE | L23: FALSE | M23: FALSE | N23: FALSE | O23: FALSE | P23: FALSE | Q23: FALSE | R23: FALSE | S23: FALSE | T23: FALSE | U23: 274.995 | V23: 288.74475 | W23: 303.1819875 | X23: 318.3410869 | Y23: 334.2581412 | Z23: 350.9710483 | AA23: 368.5196007 | AB23: 386.9455807 | AC23: 406.2928598 | AD23: 426.6075028

Sheet HT Media Model Valuation
B1: Revene Assumption | L1: Investments in Core Assets | O1: FALSE
F3: 2004 | G3: 2005 | H3: 2006 | I3: 2007 | J3: 2008 | K3: 2009 | L3: 2010 | M3: 2011 | N3: 2012 | O3: 2013 | P3: 2014 | Q3: 2015 | R3: 2016 | S3: 2017 | T3: 2018 | U3: 2019 | V3: 2020 | W3: 2021 | X3: 2022 | Y3: 2023 | Z3: 2024 | AA3: 2025 | AB3: 2026 | AC3: 2027 | AD3: 2028 | AE3: 2029 | AF3: 2030 | AG3: 2031 | AH3: 2032 | AI3: 2033 | AJ3: 2034 | AK3: 2035 | AL3: 2036
B4: Historic Switch | D4: 2018 | F4: =F3<=$D$4 -> TRUE | G4: =G3<=$D$4 -> TRUE | H4: TRUE | I4: TRUE | J4: TRUE | K4: TRUE | L4: TRUE | M4: TRUE | N4: TRUE | O4: TRUE | P4: TRUE | Q4: TRUE | R4: TRUE | S4: TRUE | T4: TRUE | U4: FALSE | V4: FALSE | W4: FALSE | X4: FALSE | Y4: FALSE | Z4: FALSE | AA4: FALSE | AB4: FALSE | AC4: FALSE | AD4: FALSE | AE4: =AE3<=$D$4 -> FALSE | AF4: FALSE | AG4: FALSE | AH4: FALSE | AI4: FALSE | AJ4: FALSE | AK4: FALSE | AL4: FALSE
B5: Explicit Switch | D5: =E404 -> 2020 | E5: =E405 -> 2026 | F5: =AND(F3>=$D$5,F3<=$E$5) -> FALSE | G5: =AND(G3>=$D$5,G3<=$E$5) -> FALSE | H5: FALSE | I5: FALSE | J5: FALSE | K5: FALSE | L5: FALSE | M5: FALSE | N5: FALSE | O5: FALSE | P5: FALSE | Q5: FALSE | R5: FALSE | S5: =AND(S3>=$D$5,S3<=$E$5) -> FALSE | T5: FALSE | U5: FALSE | V5: TRUE | W5: TRUE | X5: TRUE | Y5: TRUE | Z5: TRUE | AA5: TRUE | AB5: TRUE | AC5: FALSE | AD5: FALSE | AE5: =AND(AE3>=$D$5,AE3<=$E$5) -> FALSE | AF5: FALSE | AG5: FALSE | AH5: FALSE | AI5: FALSE | AJ5: FALSE | AK5: FALSE | AL5: FALSE
B6: Terminal Switch | D6: =E405 -> 2026 | F6: =F3=$D$6 -> FALSE | G6: =G3=$D$6 -> FALSE | H6: FALSE | I6: FALSE | J6: FALSE | K6: FALSE | L6: FALSE | M6: FALSE | N6: FALSE | O6: FALSE | P6: FALSE | Q6: FALSE | R6: FALSE | S6: FALSE | T6: FALSE | U6: FALSE | V6: FALSE | W6: FALSE | X6: FALSE | Y6: FALSE | Z6: FALSE | AA6: FALSE | AB6: TRUE | AC6: FALSE | AD6: FALSE | AE6: =AE3=$D$6 -> FALSE | AF6: FALSE | AG6: FALSE | AH6: FALSE | AI6: FALSE | AJ6: FALSE | AK6: FALSE | AL6: FALSE
A7: Balance Sheet of HT Media
B8: Sources Of Funds | C8: Direct | D8: Financing
B9: Total Share Capital | F9: 47.14 | G9: 61.75 | H9: 66.85 | I9: 46.85 | J9: 46.85 | K9: 47 | L9: 47 | M9: 47 | N9: 47 | O9: 47 | P9: 46.08 | Q9: 46.1 | R9: 46.1 | S9: 46.1 | T9: 46.11
B10: Equity Share Capital | F10: 37.14 | G10: 41.75 | H10: 46.85 | I10: 46.85 | J10: 46.85 | K10: 47 | L10: 47 | M10: 47 | N10: 47 | O10: 47 | P10: 46.08 | Q10: 46.1 | R10: 46.1 | S10: 46.1 | T10: 46.11
B11: Preference Share Capital | F11: 10 | G11: 20 | H11: 20 | I11: 0 | J11: 0 | K11: 854.61 | L11: 961.86 | M11: 1121.96 | N11: 1263.18 | O11: 1263.15 | P11: 1362.48 | Q11: 1455.37 | R11: 1545.9 | S11: 1652.25 | T11: 1853.28
B12: Reserves | F12: 238.52 | G12: 345.2 | H12: 626.39 | I12: 736.99 | J12: 868.88 | K12: 901.61 | L12: 1008.86 | M12: 1168.96 | N12: 1310.18 | O12: 1310.15 | P12: 1408.56 | Q12: 1501.47 | R12: 1592 | S12: 1698.35 | T12: 1899.39
B13: Networth | D13: 1 | F13: =SUM(F10:F12) -> 285.66 | G13: =SUM(G10:G12) -> 406.95 | H13: =SUM(H10:H12) -> 693.24 | I13: =SUM(I10:I12) -> 783.84 | J13: =SUM(J10:J12) -> 915.73 | K13: =K12 -> 901.61 | L13: =L12 -> 1008.86 | M13: 1168.96 | N13: 1310.18 | O13: 1310.15 | P13: 1408.56 | Q13: 1501.47 | R13: 1592 | S13: 1698.35 | T13: 1899.39
B14: Secured Loans | F14: 187.54 | G14: 171.6 | H14: 169.57 | I14: 165 | J14: 213.76 | K14: 0 | L14: 0 | M14: 28.36 | N14: 116.37 | O14: 143.38 | P14: 254.91 | Q14: 139.72 | R14: 0 | S14: 0 | T14: 0
B15: Total Debt | D15: 1 | F15: 187.54 | G15: 171.6 | H15: 169.57 | I15: 165 | J15: 213.76 | K15: 369.87 | L15: 177.5 | M15: 264.9 | N15: 267.54 | O15: 329.49 | P15: 396.51 | Q15: 245.66 | R15: 884.48 | S15: 987.4 | T15: 1071.96
B16: Total Liabilities | F16: 473.2 | G16: 578.55 | H16: 862.81 | I16: 948.84 | J16: 1129.49 | K16: 1271.48 | L16: 1186.36 | M16: 1433.86 | N16: 1577.72 | O16: 1639.64 | P16: 1805.07 | Q16: 1747.13 | R16: 2476.48 | S16: 2685.75 | T16: 2971.35
B18: Application Of Funds
B19: Gross Block | F19: 172.03 | G19: 418.84 | H19: 454.17 | I19: 496.47 | J19: 570.04 | K19: 793.46 | L19: 821.53 | M19: 765.6 | N19: 772.68 | O19: 785.39 | P19: 940.85 | Q19: 931.85 | R19: 1240.86 | S19: 989.4 | T19: 953.8
B20: Less: Accum. Depreciation | F20: 12.61 | G20: 32.38 | H20: 66.19 | I20: 100.72 | J20: 154.81 | K20: 234.05 | L20: 257.85 | M20: 240.34 | N20: 287.32 | O20: 336.93 | P20: 380.51 | Q20: 432.75 | R20: 487.93 | S20: 127.4 | T20: 180.1
B21: Net Block | C21: 1 | F21: 159.42 | G21: 386.46 | H21: 387.98 | I21: 395.75 | J21: 415.23 | K21: 559.41 | L21: 563.68 | M21: 525.26 | N21: 485.36 | O21: 448.46 | P21: 560.34 | Q21: 499.1 | R21: 752.93 | S21: 862 | T21: 773.7
B22: Capital Work in Progress | C22: 1 | F22: 145.99 | G22: 11.64 | H22: 3.9 | I22: 17.44 | J22: 46.8 | K22: 177.94 | L22: 19.53 | M22: 8.9 | N22: 11.04 | O22: 109.4 | P22: 22.53 | Q22: 36.98 | R22: 0 | S22: 368.81 | T22: 469.78
B23: Investments | C23: =IF(O1,1,0) -> 0 | D23: =IF(O1,0,-1) -> -1 | F23: 43.69 | G23: 100.92 | H23: 64.4 | I23: 372.98 | J23: 456.77 | K23: 405.59 | L23: 630.72 | M23: 808.19 | N23: 929.28 | O23: 872.81 | P23: 1078.67 | Q23: 1055.41 | R23: 1215.79 | S23: 1654.36 | T23: 1733.11
B24: Inventories | C24: 1 | F24: 56.13 | G24: 77.56 | H24: 108.45 | I24: 101.9 | J24: 113.67 | K24: 174.49 | L24: 94.38 | M24: 101.27 | N24: 121.28 | O24: 104.64 | P24: 192.73 | Q24: 108.86 | R24: 113.99 | S24: 107.91 | T24: 77.16
B25: Sundry Debtors | C25: 1 | F25: 103.69 | G25: 93.5 | H25: 121.22 | I25: 146.47 | J25: 197.82 | K25: 235 | L25: 185.1 | M25: 178.56 | N25: 194.36 | O25: 194.61 | P25: 189.93 | Q25: 196.52 | R25: 241.76 | S25: 177.05 | T25: 219.07
B26: Cash and Bank Balance | D26: -1 | F26: 31.98 | G26: 32.85 | H26: 50.33 | I26: 62.25 | J26: 68.64 | K26: 54.91 | L26: 63.44 | M26: 59.28 | N26: 80.46 | O26: 96.83 | P26: 72.14 | Q26: 115.92 | R26: 83.82 | S26: 65.91 | T26: 80.5
B27: Total Current Assets | F27: 191.8 | G27: 203.91 | H27: 280 | I27: 310.62 | J27: 380.13 | K27: 464.4 | L27: 342.92 | M27: 339.11 | N27: 396.1 | O27: 396.08 | P27: 454.8 | Q27: 421.3 | R27: 439.57 | S27: 350.87 | T27: 376.73
B28: Loans and Advances | D28: -1 | F28: 23.14 | G28: 23.15 | H28: 126.14 | I28: 51.85 | J28: 141.41 | K28: 242.09 | L28: 255.26 | M28: 282.51 | N28: 279.33 | O28: 388.48 | P28: 380.54 | Q28: 502.67 | R28: 774.8 | S28: 181.61 | T28: 294.36
B29: Fixed Deposits | D29: -1 | F29: 29.5 | G29: 16.02 | H29: 217.43 | I29: 43.98 | J29: 1.03 | K29: 5.34 | L29: 2.68 | M29: 0 | N29: 0 | O29: 0
B30: Total CA, Loans & Advances | F30: 244.44 | G30: 243.08 | H30: 623.57 | I30: 406.45 | J30: 522.57 | K30: 711.83 | L30: 600.86 | M30: 621.62 | N30: 675.43 | O30: 784.56 | P30: 835.34 | Q30: 923.97 | R30: 1214.37 | S30: 532.48 | T30: 671.09
B31: Current Liabilities | C31: -1 | F31: 118.06 | G31: 155.09 | H31: 204.57 | I31: 223.17 | J31: 289.24 | K31: 567.15 | L31: 603.92 | M31: 489.32 | N31: 505.46 | O31: 554.04 | P31: 671.46 | Q31: 734.14 | R31: 698.79 | S31: 707.74 | T31: 668.8
B32: Provisions | C32: -1 | F32: 2.29 | G32: 8.45 | H32: 12.46 | I32: 20.62 | J32: 22.66 | K32: 16.15 | L32: 24.51 | M32: 40.8 | N32: 17.91 | O32: 21.54 | P32: 20.33 | Q32: 34.18 | R32: 47.55 | S32: 24.16 | T32: 7.53
B33: Total CL & Provisions | F33: 120.35 | G33: 163.54 | H33: 217.03 | I33: 243.79 | J33: 311.9 | K33: 583.3 | L33: 628.43 | M33: 530.12 | N33: 523.37 | O33: 575.58 | P33: 691.79 | Q33: 768.32 | R33: 746.34 | S33: 731.9 | T33: 676.33
B34: Net Current Assets | F34: 124.09 | G34: 79.54 | H34: 406.54 | I34: 162.66 | J34: 210.67 | K34: 128.53 | L34: -27.57 | M34: 91.5 | N34: 152.06 | O34: 208.98 | P34: 143.55 | Q34: 155.65 | R34: 468.03 | S34: -199.42 | T34: -5.24
B35: Total Assets | F35: 473.19 | G35: 578.56 | H35: 862.82 | I35: 948.83 | J35: 1129.47 | K35: 1271.47 | L35: 1186.36 | M35: 1433.85 | N35: 1577.74 | O35: 1639.65 | P35: 1805.09 | Q35: 1747.14 | R35: 2436.75 | S35: 2685.75 | T35: 2971.35
B37: Invested Capital | F37: =SUMPRODUCT(F9:F35*$D$9:$D$35) -> 344.89 | G37: =SUMPRODUCT(G9:G35*$D$9:$D$35) -> 405.61 | H37: 404.51 | I37: 417.78 | J37: 461.64 | K37: 563.55 | L37: 234.26 | M37: 283.88 | N37: 288.65 | O37: 281.52 | P37: 273.72 | Q37: 73.13 | R37: 402.07 | S37: 783.87 | T37: 863.38
B38: Invested Capital | F38: =SUMPRODUCT(F9:F35*$C$9:$C$35) -> 344.88 | G38: =SUMPRODUCT(G9:G35*$C$9:$C$35) -> 405.62 | H38: 404.52 | I38: 417.77 | J38: 461.62 | K38: 563.54 | L38: 234.26 | M38: 283.87 | N38: 288.67 | O38: 281.53 | P38: 273.74 | Q38: 73.14 | R38: 362.34 | S38: 783.87 | T38: 863.38
B40: Contingent Liabilities | F40: 62.7 | G40: 5.1 | H40: 5.57 | I40: 10.73 | J40: 122.43 | K40: 22.74 | L40: 7.92 | M40: 40.88 | N40: 39.89 | O40: 271.57 | P40: 146.34 | Q40: 49.95 | R40: 31.03 | S40: 40.58 | T40: 49.12
B41: Book Value (Rs) | F41: 74.22 | G41: 92.68 | H41: 143.71 | I41: 33.46 | J41: 39.1 | K41: 38.49 | L41: 42.93 | M41: 49.74 | N41: 55.75 | O41: 55.75 | P41: 61.13 | Q41: 65.13 | R41: 69.06 | S41: 73.67 | T41: 82.38
A43: Profit & Loss account of HT Media
B44: Sales Turnover | F44: 417.17 | G44: 624.58 | H44: 821.01 | I44: 1039.29 | J44: 1186.23 | K44: 1323.04 | L44: 1263.11 | M44: 1221.39 | N44: 1319.14 | O44: 1345.09 | P44: 1429.25 | Q44: 1452.82 | R44: 1525.7 | S44: 1432.04 | T44: 1388.65
B45: Net Sales | F45: 417.17 | G45: 624.58 | H45: 821.01 | I45: 1039.29 | J45: 1186.23 | K45: 1323.04 | L45: 1263.11 | M45: 1221.39 | N45: 1319.14 | O45: 1345.09 | P45: 1429.25 | Q45: 1452.82 | R45: 1525.7 | S45: 1432.04 | T45: 1388.65
B46: Other Income | F46: 5.73 | G46: -3.99 | H46: -8.12 | I46: 26.85 | J46: 34.67 | K46: 0.22 | L46: -3.5 | M46: 31.61 | N46: 68.23 | O46: -81.3 | P46: 126.6 | Q46: 105.24 | R46: 153.48 | S46: 156.28 | T46: 197.16
B47: Stock Adjustments | F47: -0.05 | G47: 0.04 | H47: 0.03 | I47: 0.27 | J47: -0.35 | K47: 0.1 | L47: 0.49 | M47: 0.03 | N47: -0.01 | O47: 0.53 | P47: -0.39 | Q47: 0.04 | R47: -0.01 | S47: -0.05 | T47: -0.01
B48: Total Income | F48: 422.85 | G48: 620.63 | H48: 812.92 | I48: 1066.41 | J48: 1220.55 | K48: 1323.36 | L48: 1260.1 | M48: 1253.03 | N48: 1387.36 | O48: 1264.32 | P48: 1555.46 | Q48: 1558.1 | R48: 1679.17 | S48: 1588.27 | T48: 1585.8
B49: Expenditure
B50: Raw Materials | F50: 203.84 | G50: 303 | H50: 363.63 | I50: 458.73 | J50: 485.04 | K50: 572.48 | L50: 441.51 | M50: 384.94 | N50: 434.33 | O50: 447.77 | P50: 441.47 | Q50: 442.64 | R50: 417.96 | S50: 381.7 | T50: 325.99
B51: Power & Fuel Cost | F51: 6.14 | G51: 8.19 | H51: 12.8 | I51: 14.48 | J51: 16.23 | K51: 18.3 | L51: 19.75 | M51: 19.82 | N51: 20.69 | O51: 25.27 | P51: 27.91 | Q51: 27.54 | R51: 28.9 | S51: 27.02 | T51: 26.25
B52: Employee Cost | F52: 58.68 | G52: 79.37 | H52: 118.39 | I52: 147.68 | J52: 175.58 | K52: 203.58 | L52: 208.18 | M52: 209.53 | N52: 247.22 | O52: 289.15 | P52: 312.51 | Q52: 347.95 | R52: 390.84 | S52: 327.95 | T52: 261.9
B53: Other Manufacturing Expenses | F53: 42.23 | G53: 50.96 | H53: 56.72 | I53: 58.23 | J53: 70.64 | K53: 74.98 | L53: 65.01 | M53: 0 | N53: 0 | O53: 0
B54: Selling and Admin Expenses | F54: 75.27 | G54: 81.39 | H54: 117.74 | I54: 129.26 | J54: 166.92 | K54: 205.13 | L54: 205.91 | M54: 0 | N54: 0 | O54: 0 | P54: 0 | Q54: 0 | R54: 144.98 | S54: 112.46 | T54: 117.3
B55: Miscellaneous Expenses | F55: 19.81 | G55: 26.31 | H55: 32.14 | I55: 39.8 | J55: 48.11 | K55: 53.09 | L55: 53.24 | M55: 313.7 | N55: 378.21 | O55: 396.34 | P55: 469.41 | Q55: 508.46 | R55: 419.43 | S55: 499.41 | T55: 436.12
B56: Total Expenses | F56: 405.97 | G56: 549.22 | H56: 701.42 | I56: 848.18 | J56: 962.52 | K56: 1127.56 | L56: 993.6 | M56: 927.99 | N56: 1080.45 | O56: 1158.53 | P56: 1251.3 | Q56: 1326.59 | R56: 1402.11 | S56: 1348.54 | T56: 1167.56
B58: Operating Profit | F58: 11.15 | G58: 75.4 | H58: 119.62 | I58: 191.38 | J58: 223.36 | K58: 195.58 | L58: 270 | M58: 293.43 | N58: 238.68 | O58: 187.09 | P58: 177.56 | Q58: 126.27 | R58: 123.58 | S58: 83.45 | T58: 221.08
B59: PBDIT | F59: 16.88 | G59: 71.41 | H59: 111.5 | I59: 218.23 | J59: 258.03 | K59: 195.8 | L59: 266.5 | M59: 325.04 | N59: 306.91 | O59: 105.79 | P59: 304.16 | Q59: 231.51 | R59: 277.06 | S59: 239.73 | T59: 418.24
B60: Interest | F60: 5.82 | G60: 7.2 | H60: 14.3 | I60: 14.86 | J60: 17.73 | K60: 31.69 | L60: 25.73 | M60: 19.67 | N60: 28.58 | O60: 33.58 | P60: 55.57 | Q60: 36.03 | R60: 51.38 | S60: 78.68 | T60: 69.6
B61: PBDT | F61: 11.06 | G61: 64.21 | H61: 97.2 | I61: 203.37 | J61: 240.3 | K61: 164.11 | L61: 240.77 | M61: 305.37 | N61: 278.33 | O61: 72.21 | P61: 248.59 | Q61: 195.48 | R61: 225.68 | S61: 161.05 | T61: 348.64
B62: Depreciation | F62: 15.15 | G62: 22.66 | H62: 38.54 | I62: 39.71 | J62: 44.67 | K62: 55.01 | L62: 63.79 | M62: 56.29 | N62: 60.3 | O62: 57.58 | P62: 56.21 | Q62: 71.67 | R62: 69.39 | S62: 97.47 | T62: 96.74
B63: Other Written Off | F63: 0 | G63: 0.02 | H63: 0.01 | I63: 0 | J63: 0
B64: Profit Before Tax | F64: -4.09 | G64: 41.53 | H64: 58.65 | I64: 163.66 | J64: 195.63 | K64: 109.1 | L64: 176.98 | M64: 249.08 | N64: 218.03 | O64: 14.63 | P64: 192.38 | Q64: 123.81 | R64: 156.29 | S64: 63.58 | T64: 251.9
B65: Extra-ordinary items | F65: 0.66 | G65: 2.29 | H65: 2.51 | I65: 12.84 | J65: 5.61 | K65: 5.42 | L65: 0.71 | M65: 0 | N65: 0 | O65: 0
B66: PBT (Post Extra-ord Items) | F66: -3.43 | G66: 43.82 | H66: 61.16 | I66: 176.5 | J66: 201.24 | K66: 114.52 | L66: 177.69 | M66: 249.08 | N66: 218.03 | O66: 14.63 | P66: 192.38 | Q66: 123.81 | R66: 156.29 | S66: 63.58 | T66: 251.9
B67: Tax | F67: -1.04 | G67: 16.48 | H67: 23.9 | I67: 61.45 | J67: 56.68 | K67: 29.28 | L67: 52.93 | M67: 71.49 | N67: 58.21 | O67: -9.52 | P67: 36.73 | Q67: 10.14 | R67: 48.3 | S67: 2.68 | T67: 37.08
B68: Reported Net Profit | F68: -2.38 | G68: 27.33 | H68: 37.27 | I68: 115.06 | J68: 144.55 | K68: 85.23 | L68: 124.77 | M68: 177.59 | N68: 159.82 | O68: 24.15 | P68: 155.64 | Q68: 113.66 | R68: 107.99 | S68: 61.51 | T68: 213.74
B70: Total Value Addition | F70: 202.12 | G70: 246.22 | H70: 337.78 | I70: 389.45 | J70: 477.49 | K70: 555.08 | L70: 552.09 | M70: 543.05 | N70: 646.12 | O70: 710.76 | P70: 809.83 | Q70: 883.95 | R70: 984.14 | S70: 966.84 | T70: 841.57
B71: Preference Dividend | F71: 0 | G71: 0 | H71: 0.2 | I71: 0 | J71: 0
B72: Equity Dividend | F72: 0 | G72: 4.02 | H72: 5.62 | I72: 7.03 | J72: 9.37 | K72: 7.05 | L72: 8.46 | M72: 8.46 | N72: 9.4 | O72: 9.4 | P72: 9.29 | Q72: 9.31 | R72: 9.31 | S72: 9.31 | T72: 9.31
B73: Corporate Dividend Tax | F73: 0 | G73: 0.56 | H73: 0.82 | I73: 1.19 | J73: 1.59 | K73: 1.2 | L73: 1.41 | M73: 1.37 | N73: 1.53 | O73: 0.5 | P73: 0.47 | Q73: 0.78 | R73: 0.56 | S73: 0.56 | T73: 0.56
B74: Per share data (annualised)
B75: Shares in issue (lakhs) | F75: 371.43 | G75: 417.54 | H75: 468.46 | I75: 2342.29 | J75: 2342.29 | K75: 2342.52 | L75: 2350.21 | M75: 2350.21 | N75: 2350.21 | O75: 2350.21 | P75: 2304.23 | Q75: 2305.2 | R75: 2305.2 | S75: 2305.2 | T75: 2305.7
B76: Earning Per Share (Rs) | F76: -0.64 | G76: 6.55 | H76: 7.91 | I76: 4.91 | J76: 6.17 | K76: 3.64 | L76: 5.31 | M76: 7.56 | N76: 6.8 | O76: 1.03 | P76: 6.75 | Q76: 4.93 | R76: 4.68 | S76: 2.67 | T76: 9.27
B77: Equity Dividend (%) | F77: 0 | G77: 10 | H77: 12 | I77: 15 | J77: 20 | K77: 15 | L77: 18 | M77: 18 | N77: 20 | O77: 20 | P77: 20 | Q77: 20 | R77: 20 | S77: 20 | T77: 20
B78: Book Value (Rs) | F78: 74.22 | G78: 92.68 | H78: 143.71 | I78: 33.46 | J78: 39.1 | K78: 38.49 | L78: 42.93 | M78: 49.74 | N78: 55.75 | O78: 55.75 | P78: 61.13 | Q78: 65.13 | R78: 69.06 | S78: 73.67 | T78: 82.38
B79: Net Profit Before Tax | F79: -3.42 | G79: 43.82 | H79: 61.17 | I79: 176.51 | J79: 201.23 | K79: 114.51 | L79: 179.96 | M79: 249.08 | N79: 218.03 | O79: 14.63 | P79: 192.37 | Q79: 123.8 | R79: 127.06 | S79: 64.19 | T79: 250.82
B80: Net Cash From Operating Activities | F80: -1.97 | G80: 86.39 | H80: 52.75 | I80: 135.33 | J80: 144.28 | K80: 161.57 | L80: 387.56 | M80: 274.27 | N80: 134.78 | O80: 167.19 | P80: 183.34 | Q80: 291.23 | R80: 0 | S80: 191.21 | T80: 190.3
B81: Net Cash (used in)/from
B82: Investing Activities | F82: -193.92 | G82: -169.3 | H82: -83.58 | I82: -109.82 | J82: -172.09 | K82: -400.76 | L82: -152.69 | M82: -251.75 | N82: -96.4 | O82: -196.71 | P82: -193.74 | Q82: -23.89 | R82: 0 | S82: -214.97 | T82: -172.58
B83: Net Cash (used in)/from Financing Activities | F83: 247.66 | G83: 70.29 | H83: 249.72 | I83: -41.29 | J83: 23.17 | K83: 207.89 | L83: -214.73 | M83: -11.31 | N83: -17.2 | O83: 45.88 | P83: -14.29 | Q83: -223.56 | R83: 0 | S83: 10.79 | T83: 7.17
B84: Net (decrease)/increase In Cash and Cash Equivalents | F84: 51.76 | G84: -12.62 | H84: 218.89 | I84: -15.78 | J84: -4.65 | K84: -31.31 | L84: 20.15 | M84: 11.22 | N84: 21.18 | O84: 16.37 | P84: -24.69 | Q84: 43.78 | R84: -32.1 | S84: -12.97 | T84: 24.89
B85: Opening Cash & Cash Equivalents | F85: 9.71 | G85: 61.48 | H85: 48.86 | I85: 77.75 | J85: 61.97 | K85: 57.32 | L85: 26.02 | M85: 46.16 | N85: 59.28 | O85: 80.46 | P85: 96.83 | Q85: 72.14 | R85: 115.92 | S85: 68.56 | T85: 55.59
B86: Closing Cash & Cash Equivalents | F86: 61.48 | G86: 48.86 | H86: 267.75 | I86: 61.97 | J86: 57.32 | K86: 26.02 | L86: 46.16 | M86: 57.38 | N86: 80.46 | O86: 96.83 | P86: 72.14 | Q86: 115.92 | R86: 83.82 | S86: 55.59 | T86: 80.48
B87: Basic EPS (Rs.) | G87: 6.55 | H87: 7.96 | I87: 4.91 | J87: 6.17 | K87: 3.63 | L87: 5.31 | M87: 7.56 | N87: 6.8 | O87: 1.03 | P87: 6.66 | Q87: 4.88 | R87: 4.64 | S87: 2.64 | T87: 9.18
B88: Diluted EPS (Rs.) | G88: 6.55 | H88: 7.96 | I88: 4.91 | J88: 6.17 | K88: 3.63 | L88: 5.31 | M88: 7.56 | N88: 6.8 | O88: 1.03 | P88: 6.66 | Q88: 4.88 | R88: 4.64 | S88: 2.64 | T88: 9.18
B89: Cash EPS (Rs.) | G89: 11.98 | H89: 16.18 | I89: 6.61 | J89: 8.08 | K89: 5.97 | L89: 8.02 | M89: 9.95 | N89: 9.37 | O89: 3.48 | P89: 9.19 | Q89: 8.04 | R89: 7.69 | S89: 6.9 | T89: 13.47
